Workbook

Sheet CAPA
B1: SPARTA | C1: Ver. Escassez/GD | R1: DF | S1: Sudeste/Centro Oeste
B2: Helenístico LX | C2: 0.93 | M2: =C23 -> 155 | N2: =C22 -> 6587
C3: Macro Ver.
C4: 80.62
B6: ESE | C6: =VLOOKUP(B6,TabEmpresas[#Data],5,FALSE) -> NÃO SUPRIDA | L6: CodigoSamp | M6: Empresa | N6: Nome Completo | O6: IdSgtAg | P6: CodigoSamp | Q6: Supridora/suprida | R6: Financeiro 243 (TUSD) | S6: Databse Fin. 243 | T6: Contrato de Concessão | U6: Data Aditivo (Cont Novo) | V6: Cidade Sede | W6: CNPJ | X6: Novo/Antigo
B7: =VLOOKUP(B6,TabEmpresas[#Data],2,FALSE) -> Energisa Sergipe - Distribuidora de Energia S.A. | C7: Revisão | G7: Últ. Atualização | L7: 7019 | M7: Amazonas Energia | N7: Amazonas Energia S.A. | O7: 102 | P7: 7019 | Q7: NÃO SUPRIDA | T7: 1/2019 | U7: 42579 | V7: Manaus - AM | W7: 02.341.467/0001-20 | X7: N
B8: CÓDIGO DA EMPRESA | C8: ="D" & TEXT(C23-100,"00") -> D55 | F8: Info iniciais | G8: 2023-04-05T08:09:00 | L8: 31 | M8: CEA | N8: Companhia de Eletricidade do Amapá | O8: 107 | P8: 31 | Q8: NÃO SUPRIDA | T8: 01/2021 | U8: 42606 | V8: Macapá - AP | W8: 05.965.546/0001-09 | X8: N
B9: Data do Reajuste/Revisão Anterior | C9: 44673 | F9: Energia do ano anterior (CM compra, MWh Mercado, R$ Mercado) | L9: 5707 | M9: CEEE-D | N9: Companhia Estadual de Distribuição de Energia Elétrica | O9: 110 | P9: 5707 | Q9: NÃO SUPRIDA | T9: 81/1999 | U9: 42347 | V9: Porto Alegre - RS | W9: 08.467.115/0001-00 | X9: N
B10: Data de Reajuste/Revisão em Processamento | C10: 45038 | F10: Perda de RB /Perdas Regulatórias /TUSDgONS-RB | L10: 5697 | M10: Celesc-Dis | N10: Celesc Distribuição S.A. | O10: 111 | P10: 5697 | Q10: NÃO SUPRIDA | U10: 42347 | V10: Florianópolis - SC | W10: 08.336.783/0001-90 | X10: N
F11: Financeiros ano anterior (CVA 5º dia útil, RTE restante) | L11: 4950 | M11: Cemig-D | N11: Cemig Distribuição S.A. | O11: 118 | P11: 4950 | Q11: NÃO SUPRIDA | T11: 3/1997 | U11: 42359 | V11: Belo Horizonte - MG | W11: 06.981.180/0001-16 | X11: N
F12: Encargos ano anterior (não RTE) | L12: 103 | M12: CHESP | N12: Companhia Hidroelétrica São Patrício | O12: 123 | P12: 103 | Q12: SUPRIDA | T12: 44/1999 | U12: 42347 | V12: Ceres - GO | W12: 01.377.555/0001-10 | X12: N
F13: Dados da Revisão, Fator X e DecFec | L13: 82 | M13: Cocel | N13: Companhia Campolarguense de Energia | O13: 128 | P13: 82 | Q13: SUPRIDA | T13: 27/1998 | U13: 42347 | V13: Campo Largo - PR | W13: 75.805.895/0001-30 | X13: N
F14: Previsão de Subsidios dos Processos Anteriores | L14: 2904 | M14: Cooperaliança | N14: Cooperativa Aliança | O14: 131 | P14: 2904 | Q14: SUPRIDA | T14: 145/2002 | U14: 42347 | V14: Iraça - SC | W14: 83.647.990/0001-81 | X14: N
B15: Período de Referencia final | C15: =DATE(YEAR($C$10),MONTH($C$10)-1,1) -> 44986 | F15: Conexão ano anterior | L15: 2866 | M15: Copel-Dis | N15: Copel Distribuição S.A. | O15: 132 | P15: 2866 | Q15: NÃO SUPRIDA | T15: 46/1999 | U15: 42347 | V15: Curitiba - PR | W15: 04.368.898/0001-06 | X15: N
B16: Período de Referencia inicial | C16: =DATE(YEAR($C$10)-1,MONTH($C$10),1) -> 44652 | F16: Energia (CCEAR, Bil., Itaipu) | G16: 2023-04-11T12:10:16 | L16: 63 | M16: CPFL Paulista | N16: Companhia Paulista de Força e Luz | O16: 136 | P16: 63 | Q16: NÃO SUPRIDA | T16: 14/1997 | V16: Campinas - SP | W16: 33.050.196/0001-88 | X16: A
B17: Índice IGPM na data Revisão/Reajuste | C17: =VLOOKUP(C15,Índices!$B$7:$F$500,2,FALSE) -> 1163.359 | F17: CCEAR | L17: 2937 | M17: CPFL Piratininga | N17: Companhia Piratininga de Força e Luz | O17: 135 | P17: 2937 | Q17: NÃO SUPRIDA | T17: 9/2002 | V17: Sorocaba - SP | W17: 04.172.213/0001-51 | X17: A
B18: Índice IPCA na data Revisão/Reajuste | C18: =VLOOKUP(C15,Índices!$B$7:$F$500,3,FALSE) -> 6609.67 | L18: 1000041 | M18: CPFL Santa Cruz | N18: Companhia Jaguari de Energia | O18: 166 | P18: 1000041 | Q18: NÃO SUPRIDA | T18: 15/1999 | U18: 42347 | V18: Jaguariúna - SP | W18: 53.859.112/0001-69 | X18: N
B19: IGPM para o período de Referência | C19: =VLOOKUP(DATE(YEAR($C$10),MONTH($C$10)-1,1),Índices!$B$7:$F$500,2,FALSE)/VLOOKUP(DATE(YEAR($C$9),MONTH($C$9)-1,1),Índices!$B$7:$F$500,2,FALSE)-1 -> 0.001671232924 | F19: Itaipu (Energia, Transporte, MUST) | L19: 87 | M19: DCELT | N19: Distribuidora Catarinense de Energia Elétrica Ltda | O19: 158 | P19: 87 | Q19: NÃO SUPRIDA | T19: 50/1999 | U19: 42353 | V19: Xanxerê - SC | W19: 83.855.973/0001-30 | X19: N
B20: IPCA para o período de Referência | C20: =VLOOKUP(DATE(YEAR(C10),MONTH(C10)-1,1),Índices!$B$7:$F$500,3,FALSE)/VLOOKUP(DATE(YEAR($C$9),MONTH($C$9)-1,1),Índices!$B$7:$F$500,3,FALSE)-1 -> 0.04650779853 | F20: Cotas Lei/Angra | L20: 95 | M20: Demei | N20: Departamento Municipal de Energia de Ijuí | O20: 138 | P20: 95 | Q20: SUPRIDA | T20: 85/2000 | U20: 42347 | V20: Ijuí - RS | W20: 95.289.500/0001-00 | X20: N
B21: Dados Gerenciais | F21: Encargos DRP | G21: 2023-03-21T17:14:22 | L21: 51 | M21: DME-D | N21: DME Distribuição S.A. | O21: 139 | P21: 51 | Q21: NÃO SUPRIDA | T21: 49/1999 | U21: 42347 | V21: Poços de Caldas - MG | W21: 23.664.303/0001-04 | X21: N
B22: IdAgente | C22: =VLOOKUP(B6,TabEmpresas[#Data],4,FALSE) -> 6587 | F22: Indicadores Econômicos / Dólar | G22: 2023-04-11T10:41:08 | L22: 26 | M22: EAC | N22: Energisa Acre - Distribuidora de Energia S.A | O22: 146 | P22: 26 | Q22: NÃO SUPRIDA | T22: 3/2018 | U22: 42579 | V22: Rio Branco - AC | W22: 04.065.033/0001-70 | X22: N
B23: ID Concessão | C23: =VLOOKUP(B6,TabEmpresas[#Data],3,FALSE) -> 155 | F23: Tudo de Mercado | G23: 2023-03-28T12:12:22 | L23: 6611 | M23: EBO | N23: Energisa Borborema - Distribuidora de Energia S.A | O23: 140 | P23: 6611 | Q23: NÃO SUPRIDA | T23: 8/2000 | V23: Campina Grande - PB | W23: 08.826.596/0001-95 | X23: A
F24: Rede Básica e Conexão | G24: 2023-04-05T08:56:24 | L24: 380 | M24: EDP ES | N24: EDP Espírito Santo Distribuição de Energia S.A. | O24: 154 | P24: 380 | Q24: NÃO SUPRIDA | T24: 1/1995 | V24: Vitória - ES | W24: 28.152.650/0001-71 | X24: A
B25: Quadro para vínculos | F25: Histórico de Tarifas B1 Residencial | L25: 391 | M25: EDP SP | N25: EDP São Paulo Distribuição de Energia S.A. | O25: 104 | P25: 391 | Q25: NÃO SUPRIDA | T25: 202/1998 | V25: São Paulo - SP | W25: 02.302.100/0001-06 | X25: A
B26: Descrição | C26: valor | F26: CVA | G26: 2023-04-10T14:17:20 | H26: E | L26: 86 | M26: EFLUL | N26: Empresa Força e Luz de Urussanga Ltda | O26: 144 | P26: 86 | Q26: SUPRIDA | T26: 25/1999 | U26: 42347 | V26: Urussanga - SC | W26: 86.531.175/0001-40 | X26: N
B27: Tipo de contrato | C27: =IF(VLOOKUP(B6,TabEmpresas[],12,FALSE)="A", "Antigo","Novo") -> Antigo | F27: CUSD | L27: 398 | M27: Eletrocar | N27: Centrais Elétricas de Carazinho S.A. | O27: 147 | P27: 398 | Q27: SUPRIDA | T27: 84/2000 | U27: 42347 | V27: Carazinho - RS | W27: 88.446.034/0001-55 | X27: N
B28: Contrato de concessão | C28: =VLOOKUP(B6,TabEmpresas[],8,FALSE) -> 7/1997 | F28: Suprimento: Financeiro de Ultrapassagem e Sobrecontratação | G28: 2023-03-22T08:43:12 | L28: 6585 | M28: EMG | N28: Energisa Minas Gerais - Distribuidora de Energia S.A. | O28: 150 | P28: 6585 | Q28: NÃO SUPRIDA | T28: 40/1999 | U28: 42347 | V28: Cataguases - MG | W28: 19.527.639/0001-58 | X28: N
B29: Número do Processo | C29: 48500.006889/2022-48 | F29: Uderor | G29: 2023-03-30T12:00:30 | L29: 404 | M29: EMS | N29: Energisa Mato Grossodo Sul - Distribuidora de Energia S.A. | O29: 151 | P29: 404 | Q29: NÃO SUPRIDA | T29: 1/1997 | V29: Campo Grande - MS | W29: 15.413.826/0001-50 | X29: A
B30: Período de Referencia | C30: =TEXT(C16,"mmmm/aaaa")& " a "&TEXT(C15,"mmmm/aaaa") -> abril/2022 a março/2023 | F30: BMP/RIT | G30: 2023-03-22T09:19:43 | L30: 405 | M30: EMT | N30: Energisa Mato Grosso - Distribuidora de Energia S.A. | O30: 117 | P30: 405 | Q30: NÃO SUPRIDA | T30: 3/1997 | V30: Cuibá - MT | W30: 03.467.321/0001-99 | X30: A
B31: Início da vigênica por extenso | C31: =DAY(LnkTxtDRPData)&" de "&TEXT(LnkTxtDRPData,"mmmmmm")&" de "&YEAR(LnkTxtDRPData) -> 22 de abril de 2023 | L31: 39 | M31: ENEL CE | N31: Companhia Energética do Ceará | O31: 130 | P31: 39 | Q31: NÃO SUPRIDA | T31: 1/1998 | V31: Fortaleza - CE | W31: 07.047.251/0001-70 | X31: A
B32: CNPJ | C32: =VLOOKUP(B6,TabEmpresas[],11,FALSE) -> 13.017.462/0001-63 | L32: 6072 | M32: ENEL GO | N32: Enel Distribuição Goiás | O32: 112 | P32: 6072 | Q32: NÃO SUPRIDA | T32: 63/2000 | U32: 42367 | V32: Goiânia - GO | W32: 01.543.032/0001-04 | X32: N
B33: Período de competência de previsão de subsídios | C33: =TEXT(EDATE(Aj.Subsidio!G17,12),"mmmmmm")&"/"&TEXT(EDATE(Aj.Subsidio!G17,12),"aaaa")&" a "&TEXT(EDATE(Aj.Subsidio!R17,12),"mmmmmm")&"/"&TEXT(EDATE(Aj.Subsidio!R17,12),"aaaa") -> abril/2023 a março/2024 | L33: 383 | M33: ENEL RJ | N33: Ampla Energia e Serviços S.A. | O33: 103 | P33: 383 | Q33: NÃO SUPRIDA | T33: 5/1996 | U33: 42808 | V33: Rio de Janeiro - RJ | W33: 33.050.071/0001-58 | X33: N
B34: Período de competêbnc de ajuste de subsídios | C34: =TEXT(Aj.Subsidio!G17,"mmmmmm")&"/"&TEXT(Aj.Subsidio!G17,"aaaa")&" a "&TEXT(Aj.Subsidio!R17,"mmmmmm")&"/"&TEXT(Aj.Subsidio!R17,"aaaa") -> abril/2022 a março/2023 | L34: 390 | M34: ENEL SP | N34: Eletropaulo Metropolitana Eletricidade de São Paulo S.A. | O34: 148 | P34: 390 | Q34: NÃO SUPRIDA | T34: 162/1998 | V34: São Paulo - SP | W34: 61.695.227/0001-93 | X34: A
B35: Cidade Sede | C35: =VLOOKUP(B6,TabEmpresas[],10,FALSE) -> Aracajú - SE | L35: 6612 | M35: ENF | N35: Energisa Nova Friburgo - Distribuidora de Energia S.A. | O35: 152 | P35: 6612 | Q35: SUPRIDA | T35: 42/1999 | U35: 42347 | V35: Nova Friburgo - RJ | W35: 33.249.046/0001-06 | X35: N
B36: Receita | C36: =IF(Mercado!D24>2000000000,ROUND(Mercado!D24/1000000000,2)&" bilhões",IF(Mercado!D24>1000000000,ROUND(Mercado!D24/1000000000,2)&" bilhão",IF(Mercado!D24>100000000,ROUND(Mercado!D24/1000000,0)&" milhões",IF(Mercado!D24>10000000,ROUND(Mercado!D24/1000000,1)&" milhões",IF(Mercado!D24>2000000,ROUND(Mercado!D24/1000000,2)&" milhões",IF(Mercado!D24>1000000,ROUND(Mercado!D24/1000000,2)&" milhão",ROUND(Mercado!D24/1000,0)&" mil")))))) -> 1,55 bilhão | L36: 6600 | M36: EPB | N36: Energisa Paraíba - Distribuidora de Energia S.A. | O36: 153 | P36: 6600 | Q36: NÃO SUPRIDA | T36: 19/2001 | V36: João Pessoa - PB | W36: 09.095.183/0001-40 | X36: A
B37: Unidades Consumidoras | C37: =IF(Mercado!E38>2000000,ROUND(Mercado!E38/1000000,2)&" milhões",IF(Mercado!E38>1000000,ROUND(Mercado!E38/1000000,2)&" milhão",IF(Mercado!E38>100000,ROUND(Mercado!E38/1000,0)&" mil",IF(Mercado!E38>10000,ROUND(Mercado!E38/1000,1)&" mil",IF(Mercado!E38>1000,ROUND(Mercado!E38/1000,2)&" mil",Mercado!E38))))) -> 0 | L37: 44 | M37: Equatorial AL | N37: Equatorial Alagoas Distribuidora de Energia S.A. | O37: 108 | P37: 44 | Q37: NÃO SUPRIDA | T37: 2/2019 | U37: 42579 | V37: Maceió - AL | W37: 12.272.084/0001-00 | X37: N
B38: Data SAMP | C38: =TEXT(_xlfn.MAXIFS(Mercado_Receita!K:K,Mercado_Receita!B:B,"regular"),"mmmmmm")&"/"&YEAR(_xlfn.MAXIFS(Mercado_Receita!K:K,Mercado_Receita!B:B,"regular")) -> fevereiro/2023 | L38: 37 | M38: Equatorial MA | N38: Equatorial Maranhão Distribuidora de Energia S.A. | O38: 116 | P38: 37 | Q38: NÃO SUPRIDA | T38: 60/2000 | V38: São Luís - MA | W38: 06.272.793/0001-84 | X38: A
L39: 371 | M39: Equatorial PA | N39: Equatorial Pará Distribuidora de Energia S.A. | O39: 113 | P39: 371 | Q39: NÃO SUPRIDA | T39: 182/1998 | V39: Belém - PA | W39: 04.895.728/0001-80 | X39: A
L40: 38 | M40: Equatorial PI | N40: Equatorial Piauí Distribuidora de Energia S.A. | O40: 119 | P40: 38 | Q40: NÃO SUPRIDA | T40: 1/2018 | U40: 42579 | V40: Teresina - PI | W40: 06.840.748/0001-89 | X40: N
L41: 369 | M41: ERO | N41: Energisa Rondônia - Distribuidora de Energia S.A. | O41: 120 | P41: 369 | Q41: NÃO SUPRIDA | T41: 2/2018 | U41: 42579 | V41: Porto Velho - RO | W41: 05.914.650/0001-66 | X41: N
L42: 6587 | M42: ESE | N42: Energisa Sergipe - Distribuidora de Energia S.A. | O42: 155 | P42: 6587 | Q42: NÃO SUPRIDA | T42: 7/1997 | V42: Aracajú - SE | W42: 13.017.462/0001-63 | X42: A
L43: 1000040 | M43: ESS | N43: Energisa Sul-Sudeste - Distribuidora de Energia S.A. | O43: 165 | P43: 1000040 | Q43: NÃO SUPRIDA | T43: 13/1999 | U43: 42347 | V43: Presidente Prudente - SP | W43: 07.282.377/0001-20 | X43: N
L44: 32 | M44: ETO | N44: Energisa Tocantins Distribuidora de Energia S.A. | O44: 115 | P44: 32 | Q44: NÃO SUPRIDA | T44: 52/1999 | U44: 43805 | V44: Palmas - TO | W44: 25.086.034/0001-71 | X44: A
L45: 83 | M45: Forcel | N45: Força e Luz Coronel Vivida Ltda. | O45: 156 | P45: 83 | Q45: SUPRIDA | T45: 69/1999 | U45: 42347 | V45: Coronel Vivida - PR | W45: 79.850.574/0001-09 | X45: N
L46: 399 | M46: Hidropan | N46: Hidropan Distribuição de Energia S.A. | O46: 157 | P46: 399 | Q46: SUPRIDA | T46: 86/2000 | U46: 42347 | V46: Panambi - RS | W46: 91.982.348/0001-87 | X46: N
B47: Deslocar mercado | C47: Não | L47: 88 | M47: João Cesa | N47: Empresa Força e Luz João Cesa Ltda. | O47: 143 | P47: 88 | Q47: SUPRIDA | T47: 26/1999 | U47: 42347 | V47: Siderópolis - RS | W47: 86.301.124/0001-22 | X47: N
B48: Data de processamento em simulação | C48: 43811 | L48: 382 | M48: Light | N48: Light Serviços de Eletricidade S.A. | O48: 160 | P48: 382 | Q48: NÃO SUPRIDA | T48: 1/1996 | U48: 42803 | V48: Rio de Janeiro - RJ | W48: 60.444.437/0001-46 | X48: N
L49: 401 | M49: Mux Energia | N49: Muxfeldt Marin E Cia Ltda | O49: 161 | P49: 401 | Q49: SUPRIDA | T49: 87/2000 | U49: 42347 | V49: Tapejara - RS | W49: 97.578.090/0001-34 | X49: N
L50: 5160 | M50: Neoenergia Brasília | N50: Neoenergia Distribuição Brasília S.A. | O50: 109 | P50: 5160 | Q50: NÃO SUPRIDA | T50: 66/1999 | U50: 42347 | V50: Brasília - DF | W50: 07.522.669/0001-92 | X50: N
L51: 47 | M51: Neoenergia Coelba | N51: Companhia de Eletricidadedo Estado da Bahia | O51: 129 | P51: 47 | Q51: NÃO SUPRIDA | T51: 10/1997 | V51: Salvador - BA | W51: 15.139.629/0001-94 | X51: A
L52: 40 | M52: Neoenergia Cosern | N52: Companhia Energetica do Rio Grande do Norte | O52: 133 | P52: 40 | Q52: NÃO SUPRIDA | T52: 8/1997 | V52: Natal - RN | W52: 08.324.196/0001-81 | X52: A
L53: 385 | M53: Neoenergia Elektro | N53: Elektro Redes S.A. | O53: 145 | P53: 385 | Q53: NÃO SUPRIDA | T53: 187/1998 | V53: Campinas - SP | W53: 02.328.280/0001-97 | X53: A
L54: 43 | M54: Neoenergia Pernambuco | N54: Companhia Energética de Pernambuco | O54: 114 | P54: 43 | Q54: NÃO SUPRIDA | T54: 26/2000 | V54: Recife - PE | W54: 10.835.932/0001-08 | X54: A
L55: 400 | M55: Nova Palma | N55: Nova Palma Energia Ltda. | O55: 164 | P55: 400 | Q55: SUPRIDA | T55: 107/2001 | U55: 42347 | V55: Faxinal do Soturno - RS | W55: 89.889.604/0001-44 | X55: N
L56: 1000042 | M56: RGE | N56: RGE Sul Distribuidora de Energia S.A. | O56: 167 | P56: 1000042 | Q56: NÃO SUPRIDA | T56: 12/1997 | V56: São Leopoldo - RS | W56: 02.016.440/0001-62 | X56: A
L57: 370 | M57: Roraima Energia | N57: Roraima Energia S.A. | O57: 105 | P57: 370 | Q57: NÃO SUPRIDA | T57: 4/2018 | U57: 42579 | V57: Boa Vista - RR | W57: 02.341.470/0001-44 | X57: N
L58: 381 | M58: Santa Maria | N58: Empresa Luz e Força Santa Maria S/A | O58: 149 | P58: 381 | Q58: SUPRIDA | T58: 20/1999 | U58: 42347 | V58: Colatina - ES | W58: 27.485.069/0001-09 | X58: N
L59: 46 | M59: Sulgipe | N59: Companhia Sul Sergipana de Eletricidade | O59: 163 | P59: 46 | Q59: SUPRIDA | T59: 91/1999 | U59: 42347 | V59: Estância - SE | W59: 13.255.658/0001-96 | X59: N

Sheet BD
B1: Banco de Dados | M1: Anexo II | N1: =Resultado!$D$6 -> 0.008972456795
B2: =CAPA!B6 -> ESE | M2: Anexo I | N2: =Resultado!$D$8 -> -0.03356754261
B5: Informações do ano anterior | G5: Dados de abertura (Neutralidade e CVA saldo a compensar) | L5: Dados de Energia | S5: Dados para Revisão | AA5: BMP_RIT | AK5: Avaliação Parcela B
B7: Encargos | G7: Encargo | H7: Valor | I7: Norma | L7: Cotas | M7: Valor da "Cota" | N7: Ano | O7: Custo Médio da Cota | P7: Energia MWh | S7: item | T7: Descrição | U7: Detalhe | V7: Valor | AA7: IDAGENTE | AB7: ANO | AC7: SIGLA | AD7: ContaPrincipal | AE7: ContaDetalhada | AF7: CONTA | AG7: SALDO | AK7: Ano | AL7: DataRevREa | AM7: item | AN7: valor
B8: CDE Covid TE | C8: 9633157.01 | G8: CDE Eletrobras | H8: =-4116108.25-36746333.75*Índices!N2981/Índices!N2716 -> -44417929.1 | I8: Previsão SGT | L8: Angra | M8: 0.007773393405 | N8: 2023 | O8: 347.5 | P8: 104290.46 | Q8: REH 3.164/2023 e REH 3.148/2022 | S8: 0 | T8: Duração do Ciclo de Revisão | V8: 5 | AA8: 6587 | AB8: 2020 | AC8: ESE | AD8: Pessoal | AE8: Remuneração | AF8: 610530501 | AG8: 29119222.11 | AK8: 2018 | AL8: 21296 | AM8: ANEXO II | AN8: 0.1057393566
B9: CDE Covid TUSD | C9: 9196083.994 | G9: CDE | H9: 90436305.97 | I9: REH 3.175/2023 | S9: 1 | T9: RI Limite de Neutralidade de Encargos (por grupo) | U9: Residencial | V9: 0.0295 | AA9: 6587 | AB9: 2020 | AC9: ESE | AD9: Pessoal | AE9: Encargos | AF9: 610530502 | AG9: 10059370.78 | AK9: 2018 | AL9: 21296 | AM9: Base de Remuneração Bruta | AN9: 1294449228
B10: TFSEE | C10: 2819440.257 | G10: CFURH | S10: 2 | T10: RI Limite de Neutralidade de Encargos (por grupo) | U10: Industrial | V10: 0.0219 | AA10: 6587 | AB10: 2020 | AC10: ESE | AD10: Pessoal | AE10: Previdência Privada Corrente | AF10: 610530503 | AG10: 966916.33 | AK10: 2018 | AL10: 21296 | AM10: Base de Remuneração Líquida | AN10: 797257412.4
B11: CDE | C11: 80903572.19 | G11: ESS/EER | H11: 38670294.86 | I11: DSP 512/2023 | L11: Ano | M11: Cota Itaipu | S11: 3 | T11: RI Limite de Neutralidade de Encargos (por grupo) | U11: COMERCIAL | V11: 0.0154 | AA11: 6587 | AB11: 2020 | AC11: ESE | AD11: Pessoal | AE11: Despesas Rescisórias | AF11: 610530506 | AG11: 0 | AK11: 2018 | AL11: 21296 | AM11: CONSUMIDOR DISTRIBUIÇÃO | AN11: 27122.827
B12: ESS/ERR | C12: 44173415.51 | G12: PROINFA | H12: 29575162.25 | I12: REH 3.147/2022 | S12: 4 | T12: RI Limite de Neutralidade de Encargos (por grupo) | U12: RURAL | V12: 0.0317 | AA12: 6587 | AB12: 2020 | AC12: ESE | AD12: Pessoal | AE12: Participação Lucros Resultados | AF12: 610530507 | AG12: 0 | AK12: 2018 | AL12: 21296 | AM12: CONSUMIDOR LIVRE | AN12: 659232.841
B13: PROINFA | C13: 35275305.42 | G13: ONS | H13: 76772.69111 | I13: Contribuição 2023 | S13: 5 | T13: RI Limite de Neutralidade de Encargos (por grupo) | U13: PODERPUBLICO | V13: 0.0252 | AA13: 6587 | AB13: 2020 | AC13: ESE | AD13: Pessoal | AE13: Outros Benefícios | AF13: 610530508 | AG13: 10894389.36 | AK13: 2018 | AL13: 21296 | AM13: ENCARGO | AN13: 174005994.7
B14: P&D | C14: 14549755.27 | G14: TFSEE | S14: 6 | T14: RI Limite de Neutralidade de Encargos (por grupo) | U14: ILUMPUBLICA | V14: 0.0184 | AA14: 6587 | AB14: 2020 | AC14: ESE | AD14: Pessoal | AE14: (-)Créditos Tributários Recuperáveis | AF14: 610530510 | AG14: 0 | AK14: 2018 | AL14: 21296 | AM14: ENERGIA | AN14: 547349456.1
B15: ONS | C15: 72430.71429 | G15: EER | H15: 37700345.61 | I15: DSP 512/2023 | S15: 7 | T15: RI Limite de Neutralidade de Encargos (por grupo) | U15: SERVPUBLICO | V15: 0.1299 | AA15: 6587 | AB15: 2020 | AC15: ESE | AD15: Pessoal | AE15: Outros | AF15: 610530599 | AG15: 0 | AK15: 2018 | AL15: 21296 | AM15: FATOR X | AN15: -4.864701219e-05
G16: TFSEE Fator de Carga | H16: 0.888 | S16: 11 | T16: RI Limite de outros componentes (por empresa) | U16: Residencial | V16: 0.0136 | AA16: 6587 | AB16: 2020 | AC16: ESE | AD16: Pessoal | AE16: Administradores | AF16: 6105306 | AG16: 0 | AK16: 2018 | AL16: 21296 | AM16: Fornecimento | AN16: 2357844.801
G17: CDE Covid | H17: 18829241 | I17: DSP 939/2021 | S17: 12 | T17: RI Limite de outros componentes (por empresa) | U17: Industrial | V17: 0.0036 | AA17: 6587 | AB17: 2020 | AC17: ESE | AD17: Materiais | AE17: Materiais | AF17: 610530701 | AG17: 9934914.16 | AK17: 2018 | AL17: 21296 | AM17: IGPM | AN17: 0.001991903296
B18: Pmix | C18: 216.4185269 | G18: CDE Covid TE% | H18: 0.5116062303 | S18: 13 | T18: RI Limite de outros componentes (por empresa) | U18: COMERCIAL | V18: 0.0066 | AA18: 6587 | AB18: 2020 | AC18: ESE | AD18: Materiais | AE18: (-)Créditos Tributários Recuperáveis | AF18: 610530710 | AG18: -315943.5 | AK18: 2018 | AL18: 21296 | AM18: IPCA | AN18: 0.02680802789
B19: PN2022 | C19: 0.04896394538 | G19: CDE Covid TUSD% | H19: 0.4883937697 | S19: 14 | T19: RI Limite de outros componentes (por empresa) | U19: RURAL | V19: 0.0118 | AA19: 6587 | AB19: 2020 | AC19: ESE | AD19: Materiais | AE19: Outros | AF19: 610530799 | AG19: 1008256.23 | AK19: 2018 | AL19: 21296 | AM19: Parcela B | AN19: 394404155.1
B20: PT2018 | C20: 0.07914 | G20: CDE Escassez Hidrica | H20: 36314743.24 | I20: DSP 510/2023 | S20: 15 | T20: RI Limite de outros componentes (por empresa) | U20: PODERPUBLICO | V20: 0.0009 | AA20: 6587 | AB20: 2020 | AC20: ESE | AD20: Terceiros | AE20: (-)Créditos Tributários Recuperáveis | AF20: 610530810 | AG20: -759516.21 | AK20: 2018 | AL20: 21296 | AM20: Revisão ou Reajuste (1-REVI,0-Reaj) | AN20: 1
G21: CDE Escassez Hidr TE% | H21: 0.900468002 | S21: 16 | T21: RI Limite de outros componentes (por empresa) | U21: ILUMPUBLICA | V21: 0.0001 | AA21: 6587 | AB21: 2020 | AC21: ESE | AD21: Seguros | AE21: Seguros | AF21: 610531001 | AG21: 310483.31 | AK21: 2018 | AL21: 21296 | AM21: SUPRIMENTO (Mercado TUSD) | AN21: 65532.868
B22: Perda RB total | C22: 0.02850023406 | G22: CDE Escassez Hidr TUSD% | H22: 0.09953199801 | L22: Mês | M22: Potência | N22: Tarifa | O22: Perdas | P22: Energia | S22: 17 | T22: RI Limite de outros componentes (por empresa) | U22: SERVPUBLICO | V22: 0 | AA22: 6587 | AB22: 2020 | AC22: ESE | AD22: Seguros | AE22: (-)Créditos Tributários Recuperáveis | AF22: 610531010 | AG22: 0 | AK22: 2018 | AL22: 21296 | AM22: TRANSPORTE TERCEIROS | AN22: 79497636.81
G23: CDE GD | H23: 5889137.31 | I23: REH 3.175/2023 | S23: 101 | T23: Parâmetros de Custos Operacionais | U23: CO1_Theta_inf | V23: 0.6537558437 | AA23: 6587 | AB23: 2020 | AC23: ESE | AD23: Seguros | AE23: Outros | AF23: 610531099 | AG23: 0 | AK23: 2019 | AL23: 21661 | AM23: ANEXO II | AN23: 0.004246771964
B24: CVA RB | C24: 4301838.513 | S24: 102 | T24: Parâmetros de Custos Operacionais | U24: CO2_Theta_centro | V24: 0.7159216545 | AA24: 6587 | AB24: 2020 | AC24: ESE | AD24: Tributos | AE24: Tributos | AF24: 6105316 | AG24: 664.07 | AK24: 2019 | AL24: 21661 | AM24: CONSUMIDOR DISTRIBUIÇÃO | AN24: 44502.248
B25: CVA CCC | C25: 0 | G25: Informações de Postergação | S25: 103 | T25: Parâmetros de Custos Operacionais | U25: CO3_Theta_sup | V25: 0.7792651639 | AA25: 6587 | AB25: 2020 | AC25: ESE | AD25: Outros | AE25: Indenização Perdas Danos | AF25: 610531901 | AG25: 1161694.65 | AK25: 2019 | AL25: 21661 | AM25: CONSUMIDOR LIVRE | AN25: 643092.478
B26: CVA CDE | C26: 6758408.578 | S26: 104 | T26: Parâmetros de Custos Operacionais | U26: CO4_Theta_ref | V26: 0.786868 | AA26: 6587 | AB26: 2020 | AC26: ESE | AD26: Outros | AE26: Consumo Próprio Energia | AF26: 610531902 | AG26: 1871303.59 | AK26: 2019 | AL26: 21661 | AM26: ENCARGO | AN26: 128921789.7
B27: CVA CFURH | G27: Tipo | H27: Valor | S27: 105 | T27: Parâmetros de Custos Operacionais | U27: CO5_Opex_real | V27: 164088.9392 | AA27: 6587 | AB27: 2020 | AC27: ESE | AD27: Outros | AE27: Taxas Arrecadação | AF27: 610531903 | AG27: 0 | AK27: 2019 | AL27: 21661 | AM27: ENERGIA | AN27: 611702104.8
B28: CVA ESS\ERR | C28: 84733738.63 | G28: Data Postergada | H28: 45038 | S28: 106 | T28: Parâmetros de Custos Operacionais | U28: CO6_PMSOcorrigido | V28: 184479.1137 | AA28: 6587 | AB28: 2020 | AC28: ESE | AD28: Outros | AE28: Taxas Bancárias | AF28: 610531904 | AG28: 0 | AK28: 2019 | AL28: 21661 | AM28: FATOR X | AN28: 0.02549368834
B29: CVA PROINFA | C29: 3953685.35 | G29: Data Anterior | H29: 45038 | S29: 107 | T29: Parâmetros de Custos Operacionais | U29: CO7_FatorEscala | V29: 0.002033156948 | AA29: 6587 | AB29: 2020 | AC29: ESE | AD29: Outros | AE29: DespesaConselhoConsumidores | AF29: 610531905 | AG29: 0 | AK29: 2019 | AL29: 21661 | AM29: Fornecimento | AN29: 2444404.734
B30: CVA TRANS. ITAIPU | C30: 0 | G30: Diferença de Dias | H30: 0 | S30: 108 | T30: Parâmetros de Custos Operacionais | U30: CO8_u | V30: 5.420667847e-06 | AA30: 6587 | AB30: 2020 | AC30: ESE | AD30: Outros | AE30: (-)Créditos Tributários Recuperáveis | AF30: 610531910 | AG30: 0 | AK30: 2019 | AL30: 21661 | AM30: IGPM | AN30: 0.08266818871
B31: CVA ENERGIA | C31: 46612837.41 | G31: MesesAdin | H31: 0 | S31: 109 | T31: Parâmetros de Custos Operacionais | U31: CO9_Vs_Yrsub | V31: 7.870614569e-06 | AA31: 6587 | AB31: 2020 | AC31: ESE | AD31: Pessoal | AE31: Remuneração | AF31: 610532501 | AG31: 1158403.36 | AK31: 2019 | AL31: 21661 | AM31: IPCA | AN31: 0.04575283531
B32: CVA CDE Covid | C32: 1170539.488 | G32: Reversão Subvenção CDE | S32: 110 | T32: Parâmetros de Custos Operacionais | U32: CO10_Vs_Yrdist_a | V32: 3.935307285e-06 | AA32: 6587 | AB32: 2020 | AC32: ESE | AD32: Pessoal | AE32: Encargos | AF32: 610532502 | AG32: 3757967.63 | AK32: 2019 | AL32: 21661 | AM32: Parcela B | AN32: 431306252.6
G33: Data 4CRT | H33: 43212 | S33: 111 | T33: Parâmetros de Custos Operacionais | U33: CO11_Vs_Yralta | V33: 3.935307285e-06 | AA33: 6587 | AB33: 2020 | AC33: ESE | AD33: Pessoal | AE33: Previdência Privada Corrente | AF33: 610532503 | AG33: 631737.35 | AK33: 2019 | AL33: 21661 | AM33: Revisão ou Reajuste (1-REVI,0-Reaj) | AN33: 0
S34: 112 | T34: Parâmetros de Custos Operacionais | U34: CO12_Vs_Ycons | V34: 5.337922172e-07 | AA34: 6587 | AB34: 2020 | AC34: ESE | AD34: Pessoal | AE34: Despesas Rescisórias | AF34: 610532506 | AG34: 0 | AK34: 2019 | AL34: 21661 | AM34: SUPRIMENTO (Mercado TUSD) | AN34: 50415.182
G35: Nome | H35: Valor | S35: 113 | T35: Parâmetros de Custos Operacionais | U35: CO13_Vs_Ymponderado | V35: 1.664985778e-07 | AA35: 6587 | AB35: 2020 | AC35: ESE | AD35: Pessoal | AE35: Participação Lucros Resultados | AF35: 610532507 | AG35: 8710954.25 | AK35: 2019 | AL35: 21661 | AM35: TRANSPORTE TERCEIROS | AN35: 63990205.9
G36: TUSDg Export DRP | H36: 0 | L36: Mês | M36: Potência | N36: Tarifa DRA | O36: Tarifa DRP | P36: Colunas1 | S36: 114 | T36: Parâmetros de Custos Operacionais | U36: CO14_Vs_Yd_perdas_dif2 | V36: 1.017752071e-06 | AA36: 6587 | AB36: 2020 | AC36: ESE | AD36: Pessoal | AE36: Outros Benefícios | AF36: 610532508 | AG36: 4546704.01 | AK36: 2020 | AL36: 22027 | AM36: ANEXO II | AN36: 0.009956951829
G37: TUSDg ONS DRP | H37: 0 | S37: 115 | T37: Parâmetros de Custos Operacionais | U37: CO15_Vs_Yd_DEC_V8 | V37: 0 | AA37: 6587 | AB37: 2020 | AC37: ESE | AD37: Pessoal | AE37: (-)Créditos Tributários Recuperáveis | AF37: 610532510 | AG37: 0 | AK37: 2020 | AL37: 22027 | AM37: CONSUMIDOR DISTRIBUIÇÃO | AN37: 44270.788
G38: TUSDg ONS DRA | H38: 0 | S38: 116 | T38: Parâmetros de Custos Operacionais | U38: CO16_P_AT | V38: 0.04327690163 | AA38: 6587 | AB38: 2020 | AC38: ESE | AD38: Pessoal | AE38: Outros | AF38: 610532599 | AG38: 7831286.05 | AK38: 2020 | AL38: 22027 | AM38: CONSUMIDOR LIVRE | AN38: 460699.505
B39: Transporte | G39: TUSDg Export DRA | H39: 0 | S39: 117 | T39: Parâmetros de Custos Operacionais | U39: CO17_P_MT | V39: 0.1882437231 | AA39: 6587 | AB39: 2020 | AC39: ESE | AD39: Pessoal | AE39: Administradores | AF39: 6105326 | AG39: 3337887.38 | AK39: 2020 | AL39: 22027 | AM39: ENCARGO | AN39: 113091956.3
B40: Conexao | C40: 13787977.05 | S40: 118 | T40: Parâmetros de Custos Operacionais | U40: CO18_P_BT | V40: 0.7684793752 | AA40: 6587 | AB40: 2020 | AC40: ESE | AD40: Materiais | AE40: Materiais | AF40: 610532701 | AG40: 2598750.24 | AK40: 2020 | AL40: 22027 | AM40: ENERGIA | AN40: 623252436.8
S41: 119 | T41: Parâmetros de Custos Operacionais | U41: CO19_PMSO2013 | AA41: 6587 | AB41: 2020 | AC41: ESE | AD41: Materiais | AE41: (-)Créditos Tributários Recuperáveis | AF41: 610532710 | AG41: 0 | AK41: 2020 | AL41: 22027 | AM41: FATOR X | AN41: 0.03349293945
G42: Fator X | H42: Valor | S42: 120 | T42: Parâmetros de Custos Operacionais | U42: CO20_Cont_Associativa | V42: 308967.0176 | AA42: 6587 | AB42: 2020 | AC42: ESE | AD42: Materiais | AE42: Outros | AF42: 610532799 | AG42: 0 | AK42: 2020 | AL42: 22027 | AM42: Fornecimento | AN42: 2517733.712
G43: fatorx_t | H43: 0.0217 | S43: 201 | T43: Parâmetros de Custos Operacionais | U43: pesoAT | V43: 0.06305347491 | AA43: 6587 | AB43: 2020 | AC43: ESE | AD43: Terceiros | AE43: AdmCentral | AF43: 610532801 | AG43: 46530150.68 | AK43: 2020 | AL43: 22027 | AM43: IGPM | AN43: 0.06807876498
B44: Mercado | G44: fatorx_pd | H44: 0.0103 | S44: 202 | T44: Parâmetros de Custos Operacionais | U44: pesoMT | V44: 0.2573472868 | AA44: 6587 | AB44: 2020 | AC44: ESE | AD44: Terceiros | AE44: (-)Créditos Tributários Recuperáveis | AF44: 610532810 | AG44: 0 | AK44: 2020 | AL44: 22027 | AM44: IPCA | AN44: 0.03365121865
B45: RA0_MWh_Tusd | C45: 2959212.422 | S45: 203 | T45: Parâmetros de Custos Operacionais | U45: pesoBT | V45: 0.6795992383 | AA45: 6587 | AB45: 2020 | AC45: ESE | AD45: Seguros | AE45: Seguros | AF45: 610533001 | AG45: 239438.53 | AK45: 2020 | AL45: 22027 | AM45: Parcela B | AN45: 462046150.3
B46: RA1_R$ | C46: 1635965273 | G46: DecFec Processo Anterior | H46: Valor | S46: 301 | T46: Financeiro de RTP | U46: Conselho de Consumidor | V46: 82335.52 | AA46: 6587 | AB46: 2020 | AC46: ESE | AD46: Seguros | AE46: (-)Créditos Tributários Recuperáveis | AF46: 610533010 | AG46: 0 | AK46: 2020 | AL46: 22027 | AM46: Revisão ou Reajuste (1-REVI,0-Reaj) | AN46: 0
B47: Proinfa | G47: DEC A-2 | S47: 2018 | T47: Financeiro de RTP | U47: Conselho de Consumidor | V47: 150580.75 | AA47: 6587 | AB47: 2020 | AC47: ESE | AD47: Seguros | AE47: Outros | AF47: 610533099 | AG47: 0 | AK47: 2020 | AL47: 22027 | AM47: SUPRIMENTO (Mercado TUSD) | AN47: 11600.944
B48: 2023 | C48: 53854.8812 | G48: DEC A-1 | S48: 401 | T48: Duração do Próximo Ciclo de Revisão | V48: 5 | AA48: 6587 | AB48: 2020 | AC48: ESE | AD48: Tributos | AE48: Tributos | AF48: 6105336 | AG48: 701280.3 | AK48: 2020 | AL48: 22027 | AM48: TRANSPORTE TERCEIROS | AN48: 74842009.6
B49: Detalhamento de Encargos ESS e CDE | G49: FEC A-2 | AA49: 6587 | AB49: 2020 | AC49: ESE | AD49: Outros | AE49: Indenização Perdas Danos | AF49: 610533901 | AG49: 3662600.63 | AK49: 2021 | AL49: 22392 | AM49: ANEXO II | AN49: 0.1841468288
G50: FEC A-1 | L50: Dado | M50: Valor | N50: Início | O50: Fim | AA50: 6587 | AB50: 2020 | AC50: ESE | AD50: Outros | AE50: Consumo Próprio Energia | AF50: 610533902 | AG50: 0 | AK50: 2021 | AL50: 22392 | AM50: CONSUMIDOR DISTRIBUIÇÃO | AN50: 46489.955
L51: MUST | M51: 7919 | N51: 44378 | O51: 44742 | AA51: 6587 | AB51: 2020 | AC51: ESE | AD51: Outros | AE51: Taxas Arrecadação | AF51: 610533903 | AG51: 0 | AK51: 2021 | AL51: 22392 | AM51: CONSUMIDOR LIVRE | AN51: 387651.359
G52: Dados de dólar | H52: Valor | L52: MUST | M52: 7880 | N52: 44743 | O52: 45107 | AA52: 6587 | AB52: 2020 | AC52: ESE | AD52: Outros | AE52: Taxas Bancárias | AF52: 610533904 | AG52: 0 | AK52: 2021 | AL52: 22392 | AM52: ENCARGO | AN52: 132338222.5
G53: Dólar médio | H53: 5.18685 | L53: Potência Max | M53: 10775 | N53: 44562 | O53: 44926 | AA53: 6587 | AB53: 2020 | AC53: ESE | AD53: Outros | AE53: (-)Créditos Tributários Recuperáveis | AF53: 610533910 | AG53: 0 | AK53: 2021 | AL53: 22392 | AM53: ENERGIA | AN53: 640722569
G54: Data Inicial | H54: 44993 | L54: Potência Max | M54: 10555 | N54: 44927 | O54: 45291 | AA54: 6587 | AB54: 2020 | AC54: ESE | AD54: Pessoal | AE54: Remuneração | AF54: 610550501 | AG54: 0 | AK54: 2021 | AL54: 22392 | AM54: FATOR X | AN54: 0.03165894888
G55: Data Final | H55: 45022 | AA55: 6587 | AB55: 2020 | AC55: ESE | AD55: Pessoal | AE55: Encargos | AF55: 610550502 | AG55: 0 | AK55: 2021 | AL55: 22392 | AM55: Fornecimento | AN55: 2414062.492
G56: Último Dado Diponível | H56: 45026 | L56: Dados de perda | M56: Valor | O56: Agente | P56: Ressarcimento P&D | AA56: 6587 | AB56: 2020 | AC56: ESE | AD56: Pessoal | AE56: Previdência Privada Corrente | AF56: 610550503 | AG56: 0 | AK56: 2021 | AL56: 22392 | AM56: IGPM | AN56: 0.3109697011
B57: Subsídios Concedidos (sem ajuste) | L57: Perdas RB | M57: 72175.0663 | AA57: 6587 | AB57: 2020 | AC57: ESE | AD57: Pessoal | AE57: Despesas Rescisórias | AF57: 610550506 | AG57: 0 | AK57: 2021 | AL57: 22392 | AM57: IPCA | AN57: 0.06099478544
B58: Mês de Início | C58: Carga Fonte | D58: Geração | E58: Distribuição | F58: Água, Esgoto e Saneamento | G58: Rural | H58: Irrigante/Aquicultor | L58: Perdas DITs | M58: 3618.7191 | AA58: 6587 | AB58: 2020 | AC58: ESE | AD58: Pessoal | AE58: Participação Lucros Resultados | AF58: 610550507 | AG58: 0 | AK58: 2021 | AL58: 22392 | AM58: Parcela B | AN58: 582360670.1
B59: 2022-04-01 | C59: 2509104.552 | D59: 365866.2683 | E59: 0 | F59: 175795.8983 | G59: 219387.4475 | H59: 527938.6483 | I59: ok | AA59: 6587 | AB59: 2020 | AC59: ESE | AD59: Pessoal | AE59: Outros Benefícios | AF59: 610550508 | AG59: 0 | AK59: 2021 | AL59: 22392 | AM59: Revisão ou Reajuste (1-REVI,0-Reaj) | AN59: 0
B60: 2023-04-01 | C60: 2716852.955 | D60: 352157.2925 | E60: 0 | F60: 0 | G60: 0 | H60: 420136.97 | AA60: 6587 | AB60: 2020 | AC60: ESE | AD60: Pessoal | AE60: (-)Créditos Tributários Recuperáveis | AF60: 610550510 | AG60: 0 | AK60: 2021 | AL60: 22392 | AM60: SUPRIMENTO (Mercado TUSD) | AN60: 12091.179
AA61: 6587 | AB61: 2020 | AC61: ESE | AD61: Pessoal | AE61: Outros | AF61: 610550599 | AG61: 0 | AK61: 2021 | AL61: 22392 | AM61: TRANSPORTE TERCEIROS | AN61: 106148982.3
AA62: 6587 | AB62: 2020 | AC62: ESE | AD62: Pessoal | AE62: Administradores | AF62: 6105506 | AG62: 0 | AK62: 2022 | AL62: 22757 | AM62: ANEXO II | AN62: 0.1122848722
AA63: 6587 | AB63: 2020 | AC63: ESE | AD63: Materiais | AE63: Materiais | AF63: 610550701 | AG63: 0 | AK63: 2022 | AL63: 22757 | AM63: CONSUMIDOR DISTRIBUIÇÃO | AN63: 46671.571
AA64: 6587 | AB64: 2020 | AC64: ESE | AD64: Materiais | AE64: (-)Créditos Tributários Recuperáveis | AF64: 610550710 | AG64: 0 | AK64: 2022 | AL64: 22757 | AM64: CONSUMIDOR LIVRE | AN64: 523196.383
B65: Data | C65: Tipo | D65: Valor | E65: Valor IGPM | F65: Valor IPCA | G65: EixoRef | AA65: 6587 | AB65: 2020 | AC65: ESE | AD65: Materiais | AE65: Outros | AF65: 610550799 | AG65: 0 | AK65: 2022 | AL65: 22757 | AM65: ENCARGO | AN65: 196623160.4
B66: =DATE(YEAR(CAPA!C10),MONTH(CAPA!C10),1) -> 2023-04-01 | C66: =IF(CAPA!C7="Revisão",1,0) -> 1 | D66: =Resultado!L11 -> 657.6133832 | E66: =IFERROR(VLOOKUP(EDATE($B66,-1),Índices!$B$6:$F$500,2,FALSE)/VLOOKUP(EDATE(MIN($B$67:$B$81),-1),Índices!$B$6:$F$500,2,FALSE)*VLOOKUP(MIN($B$67:$B$81),$B$67:$D$81,3,FALSE),0) -> 0 | F66: =IFERROR(VLOOKUP(EDATE($B66,-1),Índices!$B$6:$F$500,3,FALSE)/VLOOKUP(EDATE(MIN($B$67:$B$81),-1),Índices!$B$6:$F$500,3,FALSE)*VLOOKUP(MIN($B$67:$B$81),$B$67:$D$81,3,FALSE),0) -> 0 | G66: =IF(B66<>"",150+1,"") -> 151 | O66: Data | P66: Fat Bandeiras | AA66: 6587 | AB66: 2020 | AC66: ESE | AD66: Terceiros | AE66: (-)Créditos Tributários Recuperáveis | AF66: 610550810 | AG66: 0 | AK66: 2022 | AL66: 22757 | AM66: ENERGIA | AN66: 672453144.3
O67: 44652 | P67: 18307935.45 | AA67: 6587 | AB67: 2020 | AC67: ESE | AD67: Seguros | AE67: Seguros | AF67: 610551001 | AG67: 0 | AK67: 2022 | AL67: 22757 | AM67: FATOR X | AN67: 0.03284073547
O68: 44682 | P68: 2441158.55 | AA68: 6587 | AB68: 2020 | AC68: ESE | AD68: Seguros | AE68: (-)Créditos Tributários Recuperáveis | AF68: 610551010 | AG68: 0 | AK68: 2022 | AL68: 22757 | AM68: Fornecimento | AN68: 2376578.999
O69: 44713 | P69: 65042.37 | AA69: 6587 | AB69: 2020 | AC69: ESE | AD69: Seguros | AE69: Outros | AF69: 610551099 | AG69: 0 | AK69: 2022 | AL69: 22757 | AM69: IGPM | AN69: 0.1477052181
O70: 44743 | P70: 77229.99 | AA70: 6587 | AB70: 2020 | AC70: ESE | AD70: Tributos | AE70: Tributos | AF70: 6105516 | AG70: 0 | AK70: 2022 | AL70: 22757 | AM70: IPCA | AN70: 0.1129941213
O71: 44774 | P71: 67280.16 | AA71: 6587 | AB71: 2020 | AC71: ESE | AD71: Outros | AE71: Indenização Perdas Danos | AF71: 610551901 | AG71: 0 | AK71: 2022 | AL71: 22757 | AM71: Parcela B | AN71: 672726400.5
O72: 44805 | P72: 148520.57 | AA72: 6587 | AB72: 2020 | AC72: ESE | AD72: Outros | AE72: Consumo Próprio Energia | AF72: 610551902 | AG72: 0 | AK72: 2022 | AL72: 22757 | AM72: Revisão ou Reajuste (1-REVI,0-Reaj) | AN72: 0
O73: 44835 | P73: 71809.7 | AA73: 6587 | AB73: 2020 | AC73: ESE | AD73: Outros | AE73: Taxas Arrecadação | AF73: 610551903 | AG73: 0 | AK73: 2022 | AL73: 22757 | AM73: SUPRIMENTO (Mercado TUSD) | AN73: 12765.469
O74: 44866 | P74: 7565.04 | AA74: 6587 | AB74: 2020 | AC74: ESE | AD74: Outros | AE74: Taxas Bancárias | AF74: 610551904 | AG74: 0 | AK74: 2022 | AL74: 22757 | AM74: TRANSPORTE TERCEIROS | AN74: 94162567.93
O75: 44896 | P75: 167750.79 | AA75: 6587 | AB75: 2020 | AC75: ESE | AD75: Outros | AE75: (-)Créditos Tributários Recuperáveis | AF75: 610551910 | AG75: 0
O76: 44927 | P76: 28719.03 | AA76: 6587 | AB76: 2020 | AC76: ESE | AD76: Pessoal | AE76: Remuneração | AF76: 610552501 | AG76: 0
O77: 44958 | P77: 0 | AA77: 6587 | AB77: 2020 | AC77: ESE | AD77: Pessoal | AE77: Encargos | AF77: 610552502 | AG77: 0
O78: 44986 | P78: 0 | AA78: 6587 | AB78: 2020 | AC78: ESE | AD78: Pessoal | AE78: Previdência Privada Corrente | AF78: 610552503 | AG78: 0
AA79: 6587 | AB79: 2020 | AC79: ESE | AD79: Pessoal | AE79: Despesas Rescisórias | AF79: 610552506 | AG79: 0
AA80: 6587 | AB80: 2020 | AC80: ESE | AD80: Pessoal | AE80: Participação Lucros Resultados | AF80: 610552507 | AG80: 0
AA81: 6587 | AB81: 2020 | AC81: ESE | AD81: Pessoal | AE81: Outros Benefícios | AF81: 610552508 | AG81: 0
AA82: 6587 | AB82: 2020 | AC82: ESE | AD82: Pessoal | AE82: (-)Créditos Tributários Recuperáveis | AF82: 610552510 | AG82: 0
AA83: 6587 | AB83: 2020 | AC83: ESE | AD83: Pessoal | AE83: Outros | AF83: 610552599 | AG83: 0
B84: Tabela de Resumo de Montante DRP ano anterior/ Montante Apurado pelo Mercado | AA84: 6587 | AB84: 2020 | AC84: ESE | AD84: Pessoal | AE84: Administradores | AF84: 6105526 | AG84: 0
B85: detalhe_grupo | C85: GrupoTarifa | D85: tipoBase | E85: tipofatura | F85: ValorCTAnterior_Sum | G85: ValorAnt_Sum | L85: Prcesso Anterior | N85: RTE | AA85: 6587 | AB85: 2020 | AC85: ESE | AD85: Materiais | AE85: Materiais | AF85: 610552701 | AG85: 0
L86: MWh | M86: R$ | N86: MWh | O86: R$ | S86: DthEfetivaPagamento | T86: VlrGarantiaFinanceira | V86: Conta Escassez | W86: Valor | X86: Legislacao | AA86: 6587 | AB86: 2020 | AC86: ESE | AD86: Materiais | AE86: (-)Créditos Tributários Recuperáveis | AF86: 610552710 | AG86: 0
I87: CCEAR-DISP | J87: Alternativa | K87: valor | L87: 68584.08642 | M87: 18949400.21 | S87: 44593 | T87: 43771.2 | V87: IMPORTACAO | W87: -6064448.75 | AA87: 6587 | AB87: 2020 | AC87: ESE | AD87: Materiais | AE87: Outros | AF87: 610552799 | AG87: 0
I88: CCEAR-DISP | J88: Nova | K88: valor | L88: 875090.183 | M88: 248592689.2 | S88: 44621 | T88: 43771.2 | V88: BONUS_RED_VOLUNT | W88: -12407038.76 | AA88: 6587 | AB88: 2020 | AC88: ESE | AD88: Terceiros | AE88: AdmCentral | AF88: 610552801 | AG88: 0
I89: CCEAR-QTD | J89: Alternativa | K89: valor | L89: 4746.717 | M89: 1371958.837 | S89: 44652 | T89: 45077.76 | V89: DIFERIMENTOS | W89: -62876524.19 | AA89: 6587 | AB89: 2020 | AC89: ESE | AD89: Terceiros | AE89: (-)Créditos Tributários Recuperáveis | AF89: 610552810 | AG89: 0
I90: CCEAR-QTD | J90: Belo Monte | K90: valor | L90: 305968.141 | M90: 47245380.67 | S90: 44682 | T90: 45077.76 | X90: DSP 1177/2022 | AA90: 6587 | AB90: 2020 | AC90: ESE | AD90: Seguros | AE90: Seguros | AF90: 610553001 | AG90: 0
I91: CCEAR-QTD | J91: Madeira | K91: valor | L91: 140210.352 | M91: 24583221.56 | S91: 44713 | T91: 45077.76 | AA91: 6587 | AB91: 2020 | AC91: ESE | AD91: Seguros | AE91: (-)Créditos Tributários Recuperáveis | AF91: 610553010 | AG91: 0
I92: CCEAR-QTD | J92: Nova | K92: valor | L92: 492620.4481 | M92: 125872838.7 | S92: 44743 | T92: 45077.76 | AA92: 6587 | AB92: 2020 | AC92: ESE | AD92: Seguros | AE92: Outros | AF92: 610553099 | AG92: 0
I93: CCEN | K93: valor | L93: 96266.70475 | M93: 33611519.96 | S93: 44774 | T93: 50365.82 | AA93: 6587 | AB93: 2020 | AC93: ESE | AD93: Tributos | AE93: Tributos | AF93: 6105536 | AG93: 0
I94: CCGF | K94: valor | L94: 646846.7006 | M94: 79335108.11 | S94: 44805 | T94: 50365.75 | AA94: 6587 | AB94: 2020 | AC94: ESE | AD94: Outros | AE94: Indenização Perdas Danos | AF94: 610553901 | AG94: 0
I95: PROINFA | K95: valor | L95: 55270.67351 | S95: 44835 | T95: 50365.88 | AA95: 6587 | AB95: 2020 | AC95: ESE | AD95: Outros | AE95: Consumo Próprio Energia | AF95: 610553902 | AG95: 0
I96: SOBRA/EXPOSIÇÃO | K96: valor | L96: 421584.4299 | M96: 92891027.05 | S96: 44866 | T96: 50365.82 | AA96: 6587 | AB96: 2020 | AC96: ESE | AD96: Outros | AE96: Taxas Arrecadação | AF96: 610553903 | AG96: 0
S97: 44896 | T97: 50365.82 | AA97: 6587 | AB97: 2020 | AC97: ESE | AD97: Outros | AE97: Taxas Bancárias | AF97: 610553904 | AG97: 0
S98: 44927 | T98: 50365.82 | AA98: 6587 | AB98: 2020 | AC98: ESE | AD98: Outros | AE98: (-)Créditos Tributários Recuperáveis | AF98: 610553910 | AG98: 0
S99: 44958 | T99: 50365.82 | AA99: 6587 | AB99: 2020 | AC99: ESE | AD99: Demais | AE99: Ganhos Alienação Materiais | AF99: 611112103 | AG99: -1583771.53
S100: 44986 | T100: 50365.82 | AA100: 6587 | AB100: 2020 | AC100: ESE | AD100: Demais | AE100: Perdas Alienação Desativação | AF100: 611511401 | AG100: 6736555.18
AA101: 6587 | AB101: 2021 | AC101: ESE | AD101: Pessoal | AE101: Remuneração | AF101: 610530501 | AG101: 33113958.89
AA102: 6587 | AB102: 2021 | AC102: ESE | AD102: Pessoal | AE102: Encargos | AF102: 610530502 | AG102: 11249779.01
AA103: 6587 | AB103: 2021 | AC103: ESE | AD103: Pessoal | AE103: Previdência Privada Corrente | AF103: 610530503 | AG103: 1233311.5
AA104: 6587 | AB104: 2021 | AC104: ESE | AD104: Pessoal | AE104: Despesas Rescisórias | AF104: 610530506 | AG104: 0
V105: Empresa | W105: AT | X105: MT | Y105: BT | AA105: 6587 | AB105: 2021 | AC105: ESE | AD105: Pessoal | AE105: Participação Lucros Resultados | AF105: 610530507 | AG105: 0
V106: 167 | W106: 0.02134 | X106: 0.35825 | Y106: 0.62041 | AA106: 6587 | AB106: 2021 | AC106: ESE | AD106: Pessoal | AE106: Outros Benefícios | AF106: 610530508 | AG106: 11041380.78
V107: 102 | W107: 0.064 | X107: 0.32003 | Y107: 0.61596 | AA107: 6587 | AB107: 2021 | AC107: ESE | AD107: Pessoal | AE107: (-)Créditos Tributários Recuperáveis | AF107: 610530510 | AG107: 0
V108: 103 | W108: 0.02996 | X108: 0.27106 | Y108: 0.69898 | AA108: 6587 | AB108: 2021 | AC108: ESE | AD108: Pessoal | AE108: Outros | AF108: 610530599 | AG108: 0
V109: 104 | W109: 0.07171 | X109: 0.2909 | Y109: 0.63739 | AA109: 6587 | AB109: 2021 | AC109: ESE | AD109: Pessoal | AE109: Administradores | AF109: 6105306 | AG109: 2469.23
V110: 105 | W110: 0.00823 | X110: 0.24677 | Y110: 0.745 | AA110: 6587 | AB110: 2021 | AC110: ESE | AD110: Materiais | AE110: Materiais | AF110: 610530701 | AG110: 11835941.85
I111: Agente | J111: idagente | K111: indexador | L111: database | M111: RAP do ciclo | N111: Colunas1 | O111: RAP atualizada | V111: 165 | W111: 0.00795 | X111: 0.22554 | Y111: 0.76651 | AA111: 6587 | AB111: 2021 | AC111: ESE | AD111: Materiais | AE111: (-)Créditos Tributários Recuperáveis | AF111: 610530710 | AG111: -307577.2
O112: =M112*VLOOKUP(CAPA!C15,Índices!$B$6:$F$626,IF(BD!K112="IPCA",3,2),FALSE)/VLOOKUP(L112,Índices!$B$6:$F$626,IF(BD!K112="IPCA",3,2),FALSE) ->  | V112: 108 | W112: 0.06098 | X112: 0.1711 | Y112: 0.76792 | AA112: 6587 | AB112: 2021 | AC112: ESE | AD112: Materiais | AE112: Outros | AF112: 610530799 | AG112: 428381.67
O113: =M113*VLOOKUP(CAPA!C16,Índices!$B$6:$F$626,IF(BD!K113="IPCA",3,2),FALSE)/VLOOKUP(L113,Índices!$B$6:$F$626,IF(BD!K113="IPCA",3,2),FALSE) ->  | V113: 109 | W113: 0.01034 | X113: 0.24366 | Y113: 0.746 | AA113: 6587 | AB113: 2021 | AC113: ESE | AD113: Terceiros | AE113: (-)Créditos Tributários Recuperáveis | AF113: 610530810 | AG113: -903576.25
O114: =M114*VLOOKUP(CAPA!C17,Índices!$B$6:$F$626,IF(BD!K114="IPCA",3,2),FALSE)/VLOOKUP(L114,Índices!$B$6:$F$626,IF(BD!K114="IPCA",3,2),FALSE) ->  | V114: 110 | W114: 0.01165 | X114: 0.24322 | Y114: 0.74513 | AA114: 6587 | AB114: 2021 | AC114: ESE | AD114: Seguros | AE114: Seguros | AF114: 610531001 | AG114: 230056.39
O115: =M115*VLOOKUP(CAPA!C18,Índices!$B$6:$F$626,IF(BD!K115="IPCA",3,2),FALSE)/VLOOKUP(L115,Índices!$B$6:$F$626,IF(BD!K115="IPCA",3,2),FALSE) ->  | V115: 111 | W115: 0.03791 | X115: 0.37961 | Y115: 0.58248 | AA115: 6587 | AB115: 2021 | AC115: ESE | AD115: Seguros | AE115: (-)Créditos Tributários Recuperáveis | AF115: 610531010 | AG115: 0
O116: =M116*VLOOKUP(CAPA!C19,Índices!$B$6:$F$626,IF(BD!K116="IPCA",3,2),FALSE)/VLOOKUP(L116,Índices!$B$6:$F$626,IF(BD!K116="IPCA",3,2),FALSE) ->  | V116: 112 | W116: 0.02273 | X116: 0.26361 | Y116: 0.71367 | AA116: 6587 | AB116: 2021 | AC116: ESE | AD116: Seguros | AE116: Outros | AF116: 610531099 | AG116: 0
O117: =M117*VLOOKUP(CAPA!C20,Índices!$B$6:$F$626,IF(BD!K117="IPCA",3,2),FALSE)/VLOOKUP(L117,Índices!$B$6:$F$626,IF(BD!K117="IPCA",3,2),FALSE) ->  | V117: 113 | W117: 0.01263 | X117: 0.23345 | Y117: 0.75392 | AA117: 6587 | AB117: 2021 | AC117: ESE | AD117: Tributos | AE117: Tributos | AF117: 6105316 | AG117: 0
O118: =M118*VLOOKUP(CAPA!C21,Índices!$B$6:$F$626,IF(BD!K118="IPCA",3,2),FALSE)/VLOOKUP(L118,Índices!$B$6:$F$626,IF(BD!K118="IPCA",3,2),FALSE) ->  | V118: 114 | W118: 0.01726 | X118: 0.23794 | Y118: 0.7448 | AA118: 6587 | AB118: 2021 | AC118: ESE | AD118: Outros | AE118: Indenização Perdas Danos | AF118: 610531901 | AG118: 1315355.1
O119: =M119*VLOOKUP(CAPA!C22,Índices!$B$6:$F$626,IF(BD!K119="IPCA",3,2),FALSE)/VLOOKUP(L119,Índices!$B$6:$F$626,IF(BD!K119="IPCA",3,2),FALSE) ->  | V119: 115 | W119: 0.00993 | X119: 0.23087 | Y119: 0.7592 | AA119: 6587 | AB119: 2021 | AC119: ESE | AD119: Outros | AE119: Consumo Próprio Energia | AF119: 610531902 | AG119: 2411943.62
O120: =M120*VLOOKUP(CAPA!C23,Índices!$B$6:$F$626,IF(BD!K120="IPCA",3,2),FALSE)/VLOOKUP(L120,Índices!$B$6:$F$626,IF(BD!K120="IPCA",3,2),FALSE) ->  | S120: iddet1 | T120: valor | V120: 116 | W120: 0.00806 | X120: 0.16835 | Y120: 0.82359 | AA120: 6587 | AB120: 2021 | AC120: ESE | AD120: Outros | AE120: Taxas Arrecadação | AF120: 610531903 | AG120: 0
O121: =M121*VLOOKUP(CAPA!C24,Índices!$B$6:$F$626,IF(BD!K121="IPCA",3,2),FALSE)/VLOOKUP(L121,Índices!$B$6:$F$626,IF(BD!K121="IPCA",3,2),FALSE) ->  | S121: 56 | T121: 45014 | V121: 117 | W121: 0.03028 | X121: 0.29131 | Y121: 0.67841 | AA121: 6587 | AB121: 2021 | AC121: ESE | AD121: Outros | AE121: Taxas Bancárias | AF121: 610531904 | AG121: 0
O122: =M122*VLOOKUP(CAPA!C25,Índices!$B$6:$F$626,IF(BD!K122="IPCA",3,2),FALSE)/VLOOKUP(L122,Índices!$B$6:$F$626,IF(BD!K122="IPCA",3,2),FALSE) ->  | S122: 57 | T122: 45000 | V122: 118 | W122: 0.04215 | X122: 0.2081 | Y122: 0.74975 | AA122: 6587 | AB122: 2021 | AC122: ESE | AD122: Outros | AE122: DespesaConselhoConsumidores | AF122: 610531905 | AG122: 0
O123: =M123*VLOOKUP(CAPA!C26,Índices!$B$6:$F$626,IF(BD!K123="IPCA",3,2),FALSE)/VLOOKUP(L123,Índices!$B$6:$F$626,IF(BD!K123="IPCA",3,2),FALSE) ->  | S123: 58 | T123: 44958 | V123: 119 | W123: 0.01807 | X123: 0.11713 | Y123: 0.8648 | AA123: 6587 | AB123: 2021 | AC123: ESE | AD123: Outros | AE123: (-)Créditos Tributários Recuperáveis | AF123: 610531910 | AG123: 0
O124: =M124*VLOOKUP(CAPA!C27,Índices!$B$6:$F$626,IF(BD!K124="IPCA",3,2),FALSE)/VLOOKUP(L124,Índices!$B$6:$F$626,IF(BD!K124="IPCA",3,2),FALSE) ->  | V124: 120 | W124: - | X124: 0.17688 | Y124: 0.82312 | AA124: 6587 | AB124: 2021 | AC124: ESE | AD124: Pessoal | AE124: Remuneração | AF124: 610532501 | AG124: -3258818.19
O125: =M125*VLOOKUP(CAPA!C28,Índices!$B$6:$F$626,IF(BD!K125="IPCA",3,2),FALSE)/VLOOKUP(L125,Índices!$B$6:$F$626,IF(BD!K125="IPCA",3,2),FALSE) ->  | V125: 123 | W125: - | X125: 0.13612 | Y125: 0.86388 | AA125: 6587 | AB125: 2021 | AC125: ESE | AD125: Pessoal | AE125: Encargos | AF125: 610532502 | AG125: 3939975.01
O126: =M126*VLOOKUP(CAPA!C29,Índices!$B$6:$F$626,IF(BD!K126="IPCA",3,2),FALSE)/VLOOKUP(L126,Índices!$B$6:$F$626,IF(BD!K126="IPCA",3,2),FALSE) ->  | V126: 166 | W126: 0.04257 | X126: 0.29652 | Y126: 0.66092 | AA126: 6587 | AB126: 2021 | AC126: ESE | AD126: Pessoal | AE126: Previdência Privada Corrente | AF126: 610532503 | AG126: 1437079.07
O127: =M127*VLOOKUP(CAPA!C30,Índices!$B$6:$F$626,IF(BD!K127="IPCA",3,2),FALSE)/VLOOKUP(L127,Índices!$B$6:$F$626,IF(BD!K127="IPCA",3,2),FALSE) ->  | V127: 128 | W127: - | X127: 0.40427 | Y127: 0.59573 | AA127: 6587 | AB127: 2021 | AC127: ESE | AD127: Pessoal | AE127: Despesas Rescisórias | AF127: 610532506 | AG127: 0
O128: =M128*VLOOKUP(CAPA!C31,Índices!$B$6:$F$626,IF(BD!K128="IPCA",3,2),FALSE)/VLOOKUP(L128,Índices!$B$6:$F$626,IF(BD!K128="IPCA",3,2),FALSE) ->  | V128: 129 | W128: 0.02905 | X128: 0.24895 | Y128: 0.722 | AA128: 6587 | AB128: 2021 | AC128: ESE | AD128: Pessoal | AE128: Participação Lucros Resultados | AF128: 610532507 | AG128: 14925264.68
O129: =M129*VLOOKUP(CAPA!C32,Índices!$B$6:$F$626,IF(BD!K129="IPCA",3,2),FALSE)/VLOOKUP(L129,Índices!$B$6:$F$626,IF(BD!K129="IPCA",3,2),FALSE) ->  | V129: 130 | W129: 0.0175 | X129: 0.14397 | Y129: 0.83853 | AA129: 6587 | AB129: 2021 | AC129: ESE | AD129: Pessoal | AE129: Outros Benefícios | AF129: 610532508 | AG129: 4688206.17
O130: =M130*VLOOKUP(CAPA!C33,Índices!$B$6:$F$626,IF(BD!K130="IPCA",3,2),FALSE)/VLOOKUP(L130,Índices!$B$6:$F$626,IF(BD!K130="IPCA",3,2),FALSE) ->  | S130: Nível | T130: Mercado Faturado A-6 | V130: 131 | W130: - | X130: 0.30099 | Y130: 0.69901 | AA130: 6587 | AB130: 2021 | AC130: ESE | AD130: Pessoal | AE130: (-)Créditos Tributários Recuperáveis | AF130: 610532510 | AG130: 0
O131: =M131*VLOOKUP(CAPA!C34,Índices!$B$6:$F$626,IF(BD!K131="IPCA",3,2),FALSE)/VLOOKUP(L131,Índices!$B$6:$F$626,IF(BD!K131="IPCA",3,2),FALSE) ->  | S131: AT | T131: 689182.801 | U131: ok | V131: 132 | W131: 0.02757 | X131: 0.26424 | Y131: 0.70819 | AA131: 6587 | AB131: 2021 | AC131: ESE | AD131: Pessoal | AE131: Outros | AF131: 610532599 | AG131: 13083194
O132: =M132*VLOOKUP(CAPA!C35,Índices!$B$6:$F$626,IF(BD!K132="IPCA",3,2),FALSE)/VLOOKUP(L132,Índices!$B$6:$F$626,IF(BD!K132="IPCA",3,2),FALSE) ->  | S132: MT | T132: 807022.59 | U132: ok | V132: 133 | W132: 0.01856 | X132: 0.19536 | Y132: 0.78608 | AA132: 6587 | AB132: 2021 | AC132: ESE | AD132: Pessoal | AE132: Administradores | AF132: 6105326 | AG132: 4061476.38
S133: BT | T133: 1624416.464 | U133: ok | V133: 135 | W133: 0.04788 | X133: 0.27054 | Y133: 0.68158 | AA133: 6587 | AB133: 2021 | AC133: ESE | AD133: Materiais | AE133: Materiais | AF133: 610532701 | AG133: 2880065.37
V134: 136 | W134: 0.06732 | X134: 0.35547 | Y134: 0.57721 | AA134: 6587 | AB134: 2021 | AC134: ESE | AD134: Materiais | AE134: (-)Créditos Tributários Recuperáveis | AF134: 610532710 | AG134: 0
V135: 138 | W135: - | X135: 0.07651 | Y135: 0.92349 | AA135: 6587 | AB135: 2021 | AC135: ESE | AD135: Materiais | AE135: Outros | AF135: 610532799 | AG135: 0
V136: 139 | W136: - | X136: 0.35483 | Y136: 0.64517 | AA136: 6587 | AB136: 2021 | AC136: ESE | AD136: Terceiros | AE136: AdmCentral | AF136: 610532801 | AG136: 46922526.19
V137: 140 | W137: 0.01004 | X137: 0.21058 | Y137: 0.77938 | AA137: 6587 | AB137: 2021 | AC137: ESE | AD137: Terceiros | AE137: (-)Créditos Tributários Recuperáveis | AF137: 610532810 | AG137: 0
V138: 143 | W138: - | X138: 0.20409 | Y138: 0.79591 | AA138: 6587 | AB138: 2021 | AC138: ESE | AD138: Seguros | AE138: Seguros | AF138: 610533001 | AG138: 461946.07
V139: 144 | W139: - | X139: 0.48131 | Y139: 0.51869 | AA139: 6587 | AB139: 2021 | AC139: ESE | AD139: Seguros | AE139: (-)Créditos Tributários Recuperáveis | AF139: 610533010 | AG139: 0
A140: NumBar | B140: Nome Conexão | C140: Tensão | D140: Posto Tarifário | E140: Tarifas RB- DRA | F140: Tarifas RB - DRP | G140: Tarifas FR- DRA | H140: Tarifas FR - DRP | I140: M01 | J140: M02 | K140: M03 | L140: M04 | M140: M05 | N140: M06 | O140: M07 | P140: M08 | Q140: M09 | R140: M10 | S140: M11 | T140: M12 | V140: 145 | W140: 0.03725 | X140: 0.29306 | Y140: 0.66969 | AA140: 6587 | AB140: 2021 | AC140: ESE | AD140: Seguros | AE140: Outros | AF140: 610533099 | AG140: 0
A141: 5713 | B141: ITABAIANA - 69 kV (A) | C141: 69 | D141: Ponta | E141: 5428 | F141: 6645 | G141: 926 | H141: 1224 | I141: 163 | J141: 163 | K141: 163 | L141: 163 | M141: 163 | N141: 164 | O141: 164 | P141: 164 | Q141: 164 | R141: 174 | S141: 174 | T141: 174 | V141: 146 | W141: - | X141: 0.14124 | Y141: 0.85876 | AA141: 6587 | AB141: 2021 | AC141: ESE | AD141: Tributos | AE141: Tributos | AF141: 6105336 | AG141: 691341.2
A142: 5723 | B142: JARDIM SE - 69 kV (A) | C142: 69 | D142: Ponta | E142: 5355 | F142: 6512 | G142: 1063 | H142: 1493 | I142: 179 | J142: 179 | K142: 179 | L142: 179 | M142: 179 | N142: 191.5 | O142: 191.5 | P142: 191.5 | Q142: 191.5 | R142: 191.5 | S142: 191.5 | T142: 191.5 | V142: 147 | W142: - | X142: 0.20977 | Y142: 0.79023 | AA142: 6587 | AB142: 2021 | AC142: ESE | AD142: Outros | AE142: Indenização Perdas Danos | AF142: 610533901 | AG142: 6260663.55
A143: 5743 | B143: N.S.SOCORRO - 69 kV (A) | C143: 69 | D143: Ponta | E143: 5441 | F143: 6608 | G143: 918 | H143: 1520 | I143: 114 | J143: 114 | K143: 114 | L143: 114 | M143: 114 | N143: 114 | O143: 114 | P143: 114 | Q143: 114 | R143: 119 | S143: 119 | T143: 119 | V143: 148 | W143: 0.03455 | X143: 0.23757 | Y143: 0.72788 | AA143: 6587 | AB143: 2021 | AC143: ESE | AD143: Outros | AE143: Consumo Próprio Energia | AF143: 610533902 | AG143: 0
A144: 5293 | B144: PENEDO - 69 kV (A) | C144: 69 | D144: Ponta | E144: 6393 | F144: 7639 | G144: 1281 | H144: 1592 | I144: 28 | J144: 28 | K144: 28 | L144: 26 | M144: 26 | N144: 26 | O144: 26 | P144: 26 | Q144: 26 | R144: 33.5 | S144: 33.5 | T144: 33.5 | V144: 149 | W144: - | X144: 0.17399 | Y144: 0.82601 | AA144: 6587 | AB144: 2021 | AC144: ESE | AD144: Outros | AE144: Taxas Arrecadação | AF144: 610533903 | AG144: 0
A145: 6253 | B145: ZEBU - 69 kV (A) | C145: 69 | D145: Ponta | E145: 4833 | F145: 5992 | G145: 5218 | H145: 4405 | I145: 13.5 | J145: 13.5 | K145: 13.5 | L145: 13.5 | M145: 13.5 | N145: 13.5 | O145: 13.5 | P145: 13.5 | Q145: 13.5 | R145: 15 | S145: 15 | T145: 15 | V145: 150 | W145: 0.03635 | X145: 0.17413 | Y145: 0.78952 | AA145: 6587 | AB145: 2021 | AC145: ESE | AD145: Outros | AE145: Taxas Bancárias | AF145: 610533904 | AG145: 0
A146: 5713 | B146: ITABAIANA - 69 kV (A) | C146: 69 | D146: Fora Ponta | E146: 5146 | F146: 6477 | G146: 926 | H146: 1224 | I146: 161 | J146: 161 | K146: 161 | L146: 161 | M146: 161 | N146: 161 | O146: 161 | P146: 161 | Q146: 161 | R146: 183 | S146: 183 | T146: 183 | V146: 151 | W146: 0.02735 | X146: 0.28351 | Y146: 0.68915 | AA146: 6587 | AB146: 2021 | AC146: ESE | AD146: Outros | AE146: (-)Créditos Tributários Recuperáveis | AF146: 610533910 | AG146: 0
A147: 5723 | B147: JARDIM SE - 69 kV (A) | C147: 69 | D147: Fora Ponta | E147: 5057 | F147: 6334 | G147: 1063 | H147: 1493 | I147: 196 | J147: 196 | K147: 196 | L147: 196 | M147: 196 | N147: 200 | O147: 200 | P147: 200 | Q147: 200 | R147: 200 | S147: 200 | T147: 200 | V147: 152 | W147: 0.00215 | X147: 0.1412 | Y147: 0.85665 | AA147: 6587 | AB147: 2021 | AC147: ESE | AD147: Pessoal | AE147: Remuneração | AF147: 610550501 | AG147: 0
A148: 5743 | B148: N.S.SOCORRO - 69 kV (A) | C148: 69 | D148: Fora Ponta | E148: 5159 | F148: 6445 | G148: 918 | H148: 1520 | I148: 130 | J148: 130 | K148: 130 | L148: 130 | M148: 130 | N148: 130 | O148: 130 | P148: 130 | Q148: 130 | R148: 130 | S148: 130 | T148: 130 | V148: 153 | W148: 0.03606 | X148: 0.17601 | Y148: 0.78793 | AA148: 6587 | AB148: 2021 | AC148: ESE | AD148: Pessoal | AE148: Encargos | AF148: 610550502 | AG148: 0
A149: 5293 | B149: PENEDO - 69 kV (A) | C149: 69 | D149: Fora Ponta | E149: 6272 | F149: 7632 | G149: 1281 | H149: 1592 | I149: 41 | J149: 41 | K149: 41 | L149: 38 | M149: 38 | N149: 38 | O149: 38 | P149: 38 | Q149: 38 | R149: 45.5 | S149: 45.5 | T149: 45.5 | V149: 154 | W149: 0.12913 | X149: 0.26626 | Y149: 0.60462 | AA149: 6587 | AB149: 2021 | AC149: ESE | AD149: Pessoal | AE149: Previdência Privada Corrente | AF149: 610550503 | AG149: 0
A150: 6253 | B150: ZEBU - 69 kV (A) | C150: 69 | D150: Fora Ponta | E150: 4467 | F150: 5748 | G150: 5218 | H150: 4405 | I150: 18 | J150: 18 | K150: 18 | L150: 18 | M150: 18 | N150: 18 | O150: 18 | P150: 18 | Q150: 18 | R150: 19 | S150: 19 | T150: 19 | V150: 155 | W150: 0.04008 | X150: 0.23225 | Y150: 0.72768 | AA150: 6587 | AB150: 2021 | AC150: ESE | AD150: Pessoal | AE150: Despesas Rescisórias | AF150: 610550506 | AG150: 0
V151: 156 | W151: - | X151: 0.35985 | Y151: 0.64015 | AA151: 6587 | AB151: 2021 | AC151: ESE | AD151: Pessoal | AE151: Participação Lucros Resultados | AF151: 610550507 | AG151: 0
V152: 157 | W152: - | X152: 0.15963 | Y152: 0.84037 | AA152: 6587 | AB152: 2021 | AC152: ESE | AD152: Pessoal | AE152: Outros Benefícios | AF152: 610550508 | AG152: 0
V153: 158 | W153: - | X153: 0.33049 | Y153: 0.66951 | AA153: 6587 | AB153: 2021 | AC153: ESE | AD153: Pessoal | AE153: (-)Créditos Tributários Recuperáveis | AF153: 610550510 | AG153: 0
V154: 160 | W154: 0.1013 | X154: 0.22818 | Y154: 0.67051 | AA154: 6587 | AB154: 2021 | AC154: ESE | AD154: Pessoal | AE154: Outros | AF154: 610550599 | AG154: 0
V155: 161 | W155: - | X155: 0.28355 | Y155: 0.71645 | AA155: 6587 | AB155: 2021 | AC155: ESE | AD155: Pessoal | AE155: Administradores | AF155: 6105506 | AG155: 0
V156: 163 | W156: 0.03507 | X156: 0.1664 | Y156: 0.79853 | AA156: 6587 | AB156: 2021 | AC156: ESE | AD156: Materiais | AE156: Materiais | AF156: 610550701 | AG156: 0
V157: 164 | W157: - | X157: 0.12897 | Y157: 0.87103 | AA157: 6587 | AB157: 2021 | AC157: ESE | AD157: Materiais | AE157: (-)Créditos Tributários Recuperáveis | AF157: 610550710 | AG157: 0
AA158: 6587 | AB158: 2021 | AC158: ESE | AD158: Materiais | AE158: Outros | AF158: 610550799 | AG158: 0
AA159: 6587 | AB159: 2021 | AC159: ESE | AD159: Terceiros | AE159: (-)Créditos Tributários Recuperáveis | AF159: 610550810 | AG159: 0
AA160: 6587 | AB160: 2021 | AC160: ESE | AD160: Seguros | AE160: Seguros | AF160: 610551001 | AG160: 0
AA161: 6587 | AB161: 2021 | AC161: ESE | AD161: Seguros | AE161: (-)Créditos Tributários Recuperáveis | AF161: 610551010 | AG161: 0
AA162: 6587 | AB162: 2021 | AC162: ESE | AD162: Seguros | AE162: Outros | AF162: 610551099 | AG162: 0
AA163: 6587 | AB163: 2021 | AC163: ESE | AD163: Tributos | AE163: Tributos | AF163: 6105516 | AG163: 0
AA164: 6587 | AB164: 2021 | AC164: ESE | AD164: Outros | AE164: Indenização Perdas Danos | AF164: 610551901 | AG164: 0
AA165: 6587 | AB165: 2021 | AC165: ESE | AD165: Outros | AE165: Consumo Próprio Energia | AF165: 610551902 | AG165: 0
AA166: 6587 | AB166: 2021 | AC166: ESE | AD166: Outros | AE166: Taxas Arrecadação | AF166: 610551903 | AG166: 0
AA167: 6587 | AB167: 2021 | AC167: ESE | AD167: Outros | AE167: Taxas Bancárias | AF167: 610551904 | AG167: 0
AA168: 6587 | AB168: 2021 | AC168: ESE | AD168: Outros | AE168: (-)Créditos Tributários Recuperáveis | AF168: 610551910 | AG168: 0
AA169: 6587 | AB169: 2021 | AC169: ESE | AD169: Pessoal | AE169: Remuneração | AF169: 610552501 | AG169: 0
AA170: 6587 | AB170: 2021 | AC170: ESE | AD170: Pessoal | AE170: Encargos | AF170: 610552502 | AG170: 0
AA171: 6587 | AB171: 2021 | AC171: ESE | AD171: Pessoal | AE171: Previdência Privada Corrente | AF171: 610552503 | AG171: 0
AA172: 6587 | AB172: 2021 | AC172: ESE | AD172: Pessoal | AE172: Despesas Rescisórias | AF172: 610552506 | AG172: 0
AA173: 6587 | AB173: 2021 | AC173: ESE | AD173: Pessoal | AE173: Participação Lucros Resultados | AF173: 610552507 | AG173: 0
AA174: 6587 | AB174: 2021 | AC174: ESE | AD174: Pessoal | AE174: Outros Benefícios | AF174: 610552508 | AG174: 0
AA175: 6587 | AB175: 2021 | AC175: ESE | AD175: Pessoal | AE175: (-)Créditos Tributários Recuperáveis | AF175: 610552510 | AG175: 0
AA176: 6587 | AB176: 2021 | AC176: ESE | AD176: Pessoal | AE176: Outros | AF176: 610552599 | AG176: 0
AA177: 6587 | AB177: 2021 | AC177: ESE | AD177: Pessoal | AE177: Administradores | AF177: 6105526 | AG177: 0
AA178: 6587 | AB178: 2021 | AC178: ESE | AD178: Materiais | AE178: Materiais | AF178: 610552701 | AG178: 0
AA179: 6587 | AB179: 2021 | AC179: ESE | AD179: Materiais | AE179: (-)Créditos Tributários Recuperáveis | AF179: 610552710 | AG179: 0
AA180: 6587 | AB180: 2021 | AC180: ESE | AD180: Materiais | AE180: Outros | AF180: 610552799 | AG180: 0
AA181: 6587 | AB181: 2021 | AC181: ESE | AD181: Terceiros | AE181: AdmCentral | AF181: 610552801 | AG181: 0
AA182: 6587 | AB182: 2021 | AC182: ESE | AD182: Terceiros | AE182: (-)Créditos Tributários Recuperáveis | AF182: 610552810 | AG182: 0
AA183: 6587 | AB183: 2021 | AC183: ESE | AD183: Seguros | AE183: Seguros | AF183: 610553001 | AG183: 0
AA184: 6587 | AB184: 2021 | AC184: ESE | AD184: Seguros | AE184: (-)Créditos Tributários Recuperáveis | AF184: 610553010 | AG184: 0
AA185: 6587 | AB185: 2021 | AC185: ESE | AD185: Seguros | AE185: Outros | AF185: 610553099 | AG185: 0
AA186: 6587 | AB186: 2021 | AC186: ESE | AD186: Tributos | AE186: Tributos | AF186: 6105536 | AG186: 0
AA187: 6587 | AB187: 2021 | AC187: ESE | AD187: Outros | AE187: Indenização Perdas Danos | AF187: 610553901 | AG187: 0
AA188: 6587 | AB188: 2021 | AC188: ESE | AD188: Outros | AE188: Consumo Próprio Energia | AF188: 610553902 | AG188: 0
AA189: 6587 | AB189: 2021 | AC189: ESE | AD189: Outros | AE189: Taxas Arrecadação | AF189: 610553903 | AG189: 0
AA190: 6587 | AB190: 2021 | AC190: ESE | AD190: Outros | AE190: Taxas Bancárias | AF190: 610553904 | AG190: 0
AA191: 6587 | AB191: 2021 | AC191: ESE | AD191: Outros | AE191: (-)Créditos Tributários Recuperáveis | AF191: 610553910 | AG191: 0
AA192: 6587 | AB192: 2021 | AC192: ESE | AD192: Demais | AE192: Ganhos Alienação Materiais | AF192: 611112103 | AG192: -1918017.83
AA193: 6587 | AB193: 2021 | AC193: ESE | AD193: Demais | AE193: Perdas Alienação Desativação | AF193: 611511401 | AG193: 6601618.44
AA194: 6587 | AB194: 2022 | AC194: ESE | AD194: Pessoal | AE194: Remuneração | AF194: 610530501 | AG194: 0
AA195: 6587 | AB195: 2022 | AC195: ESE | AD195: Pessoal | AE195: Encargos | AF195: 610530502 | AG195: 0
AA196: 6587 | AB196: 2022 | AC196: ESE | AD196: Pessoal | AE196: Previdência Privada Corrente | AF196: 610530503 | AG196: 0
AA197: 6587 | AB197: 2022 | AC197: ESE | AD197: Pessoal | AE197: Despesas Rescisórias | AF197: 610530506 | AG197: 0
AA198: 6587 | AB198: 2022 | AC198: ESE | AD198: Pessoal | AE198: Participação Lucros Resultados | AF198: 610530507 | AG198: 0
AA199: 6587 | AB199: 2022 | AC199: ESE | AD199: Pessoal | AE199: Outros Benefícios | AF199: 610530508 | AG199: 0
AA200: 6587 | AB200: 2022 | AC200: ESE | AD200: Pessoal | AE200: (-)Créditos Tributários Recuperáveis | AF200: 610530510 | AG200: 0
AA201: 6587 | AB201: 2022 | AC201: ESE | AD201: Pessoal | AE201: Outros | AF201: 610530599 | AG201: 0
AA202: 6587 | AB202: 2022 | AC202: ESE | AD202: Pessoal | AE202: Administradores | AF202: 6105306 | AG202: 0
AA203: 6587 | AB203: 2022 | AC203: ESE | AD203: Materiais | AE203: Materiais | AF203: 610530701 | AG203: 0
... 153 more rows

Sheet BD_Uderor
K1: Número de lançamentos por item e por competência
A2: Dados SAMP Opção:Cativo Classe:Industrial | K2: Descrição | L2: =EDATE(M2,1) -> 2023-03-01 | M2: 2023-02-01 | N2: 2023-01-01 | O2: 2022-12-01 | P2: 2022-11-01 | Q2: =EDATE(R2,1) -> 2022-10-01 | R2: =Entrada!R5 -> 2022-09-01 | S2: =EDATE(R2,-1) -> 2022-08-01 | T2: 2022-07-01 | U2: 2022-06-01 | V2: 2022-05-01 | W2: 2022-04-01 | X2: 2022-03-01 | Y2: 2022-02-01 | Z2: 2022-01-01 | AA2: =EDATE(Z2,-1) -> 2021-12-01 | AB2: 2021-11-01 | AC2: 2021-10-01 | AD2: 2021-09-01 | AE2: 2021-08-01 | AF2: 2021-07-01 | AG2: 2021-06-01 | AH2: 2021-05-01 | AI2: 2021-04-01 | AJ2: 2021-03-01 | AK2: 2021-02-01 | AL2: 2021-01-01 | AM2: 2020-12-01 | AN2: 2020-11-01 | AO2: 2020-10-01 | AP2: 2020-09-01 | AQ2: 2020-08-01 | AR2: 2020-07-01 | AS2: 2020-06-01 | AT2: 2020-05-01 | AU2: 2020-04-01 | AV2: 2020-03-01 | AW2: 2020-02-01 | AX2: 2020-01-01 | AY2: 2019-12-01 | AZ2: 2019-11-01 | BA2: =EDATE(AZ2,-1) -> 2019-10-01 | BB2: 2019-09-01 | BC2: 2019-08-01 | BD2: 2019-07-01 | BE2: 2019-06-01 | BF2: 2019-05-01 | BG2: =EDATE(BF2,-1) -> 2019-04-01 | BH2: 2019-03-01 | BI2: 2019-02-01 | BJ2: 2019-01-01 | BK2: 2018-12-01 | BL2: 2018-11-01 | BM2: 2018-10-01 | BN2: 2018-09-01 | BO2: 2018-08-01 | BP2: 2018-07-01 | BQ2: 2018-06-01 | BR2: 2018-05-01
A3: Competencia | B3: COFINS (R$) | C3: ICMS (R$) | D3: PIS/PASEP (R$) | E3: Receita Bandeiras (R$) | F3: Receita Demanda (R$) | G3: Receita Energia (R$) | H3: PIS_Cofins_% | I3: ICMS_% | K3: =Entrada!P8 -> Serviços Cobráveis | L3: =IF(COUNTIFS($C$82:$C$200000,$K3,$H$82:$H$200000,L$2)=0,"",COUNTIFS($C$82:$C$200000,$K3,$H$82:$H$200000,L$2)) -> 1 | M3: 1 | N3: 1 | O3: 1 | P3: 1 | Q3: 1 | R3: 1 | S3: 1 | T3: 1 | U3: 1 | V3: =IF(COUNTIFS($C$82:$C$200000,$K3,$H$82:$H$200000,V$2)=0,"",COUNTIFS($C$82:$C$200000,$K3,$H$82:$H$200000,V$2)) -> 1 | W3: 1 | X3: 1 | Y3: 1 | Z3: 1 | AA3: 1 | AB3: 1 | AC3: 1 | AD3: 1 | AE3: 1 | AF3: =IF(COUNTIFS($C$82:$C$200000,$K3,$H$82:$H$200000,AF$2)=0,"",COUNTIFS($C$82:$C$200000,$K3,$H$82:$H$200000,AF$2)) -> 1 | AG3: 1 | AH3: 1 | AI3: 1 | AJ3: 1 | AK3: 1 | AL3: 1 | AM3: 1 | AN3: 1 | AP3: =IF(COUNTIFS($C$82:$C$200000,$K3,$H$82:$H$200000,AP$2)=0,"",COUNTIFS($C$82:$C$200000,$K3,$H$82:$H$200000,AP$2)) ->  | AZ3: =IF(COUNTIFS($C$82:$C$200000,$K3,$H$82:$H$200000,AZ$2)=0,"",COUNTIFS($C$82:$C$200000,$K3,$H$82:$H$200000,AZ$2)) ->  | BJ3: =IF(COUNTIFS($C$82:$C$200000,$K3,$H$82:$H$200000,BJ$2)=0,"",COUNTIFS($C$82:$C$200000,$K3,$H$82:$H$200000,BJ$2)) -> 
A4: 42856 | B4: 398077.92 | C4: 1559843.16 | D4: 86416.02 | E4: 546308.82 | F4: 1142751.21 | G4: 5379733.22 | H4: 0.06040685397 | I4: 0.1944817266 | K4: =Entrada!P9 -> Arrecadação de convênios ou valores pela fatura | L4: 1 | M4: 1 | N4: 1 | O4: 1 | P4: 1 | Q4: 1 | R4: 1 | S4: 1 | T4: 1 | U4: 1 | V4: 1 | W4: 1 | X4: 1 | Y4: 1 | Z4: 1 | AA4: 1 | AB4: 1 | AC4: 1 | AD4: 1 | AE4: 1 | AF4: 1 | AG4: 1 | AH4: 1 | AI4: 1 | AJ4: 1 | AK4: 1 | AL4: 1 | AM4: 1 | AN4: 1
A5: 42887 | B5: 391530.61 | C5: 1435333.08 | D5: 84990.82 | E5: 53371.07 | F5: 1135027.76 | G5: 5293326.03 | H5: 0.05750341376 | I5: 0.1732063802 | K5: =Entrada!P10 -> Arrecadação de faturas de terceiros por estrutura própria
A6: 42917 | B6: 281920.03 | C6: 1443593.58 | D6: 61205.53 | E6: 317296.71 | F6: 1112252.79 | G6: 5230996.51 | H6: 0.04391910627 | I6: 0.1847759166 | K6: =Entrada!P11 -> Veiculação de publicidade
A7: 42948 | B7: 378835.62 | C7: 1548554.03 | D7: 82234.03 | E7: 518922.4 | F7: 1117723.65 | G7: 5415293.99 | H7: 0.05746333522 | I7: 0.1929970436 | K7: =Entrada!P12 -> Aluguel ou cessão onerosa de imóveis e espaços físicos
A8: 42979 | B8: 237010.78 | C8: 1398423.95 | D8: 51447.53 | E8: 350797.89 | F8: 1092423.62 | G8: 5038982.09 | H8: 0.03862854947 | I8: 0.1872682702 | K8: =Entrada!P13 -> Compartilhamento de infraestrutura | L8: 1 | M8: 1 | N8: 1 | O8: 1 | P8: 1 | Q8: 1 | R8: 1 | S8: 1 | T8: 1 | U8: 1 | V8: 1 | W8: 1 | X8: 1 | Y8: 1 | Z8: 1 | AA8: 1 | AB8: 1 | AC8: 1 | AD8: 1 | AE8: 1 | AF8: 1 | AG8: 1 | AH8: 1 | AI8: 1 | AJ8: 1 | AK8: 1 | AL8: 1 | AM8: 1 | AN8: 1
A9: 43009 | B9: 457175.37 | C9: 1608391.91 | D9: 99250.53 | E9: 616835.54 | F9: 1112649.17 | G9: 6115080.14 | H9: 0.06340521734 | I9: 0.1832776631 | K9: =Entrada!P14 -> Serviços de avaliação técnica e aferição de medidores.
A10: 43040 | B10: 414620.41 | C10: 1628325.6 | D10: 90010.33 | E10: 862436.01 | F10: 1145563.44 | G10: 6215048.56 | H10: 0.05846634262 | I10: 0.1886572396 | K10: =Entrada!P15 -> Operacionalização de serviço de créditos tributários
A11: 43070 | B11: 119816.4 | C11: 1484207.47 | D11: 26006.55 | E11: 562526.58 | F11: 1140100.68 | G11: 5888058.54 | H11: 0.01801247766 | I11: 0.1833336515 | K11: =Entrada!P16 -> Elaboração de projeto, construção, operação, manutenção ou reforma de:
A12: 43101 | B12: 332954.48 | C12: 1439823.67 | D12: 72278.68 | E12: 54485.89 | F12: 1136862.6 | G12: 5437325.36 | H12: 0.04844528872 | I12: 0.1721297275 | K12: =Entrada!P17 -> (1) redes de distribuição de energia elétrica destinadas à regularização fundiária de interesse específico e ao atendimento dos empreendimentos de múltiplas unidades consumidoras; | L12: =IF(COUNTIFS($C$82:$C$200000,$K12,$H$82:$H$200000,L$2)=0,"",COUNTIFS($C$82:$C$200000,$K12,$H$82:$H$200000,L$2)) ->  | V12: =IF(COUNTIFS($C$82:$C$200000,$K12,$H$82:$H$200000,V$2)=0,"",COUNTIFS($C$82:$C$200000,$K12,$H$82:$H$200000,V$2)) ->  | AF12: =IF(COUNTIFS($C$82:$C$200000,$K12,$H$82:$H$200000,AF$2)=0,"",COUNTIFS($C$82:$C$200000,$K12,$H$82:$H$200000,AF$2)) ->  | AP12: =IF(COUNTIFS($C$82:$C$200000,$K12,$H$82:$H$200000,AP$2)=0,"",COUNTIFS($C$82:$C$200000,$K12,$H$82:$H$200000,AP$2)) ->  | AZ12: =IF(COUNTIFS($C$82:$C$200000,$K12,$H$82:$H$200000,AZ$2)=0,"",COUNTIFS($C$82:$C$200000,$K12,$H$82:$H$200000,AZ$2)) ->  | BJ12: =IF(COUNTIFS($C$82:$C$200000,$K12,$H$82:$H$200000,BJ$2)=0,"",COUNTIFS($C$82:$C$200000,$K12,$H$82:$H$200000,BJ$2)) -> 
A13: 43132 | B13: 379222.7 | C13: 1451916.62 | D13: 82327.63 | E13: 12060.85 | F13: 1284528.02 | G13: 5289430.61 | H13: 0.05445787228 | I13: 0.1713102228 | K13: =Entrada!P18 -> (2) redes de energia elétrica destinadas ao acesso dos sistemas de distribuição ou transmissão;
A14: 43160 | B14: 234662.1 | C14: 1343178.61 | D14: 50944.05 | E14: 895.77 | F14: 1145892.34 | G14: 5053580.16 | H14: 0.03648817681 | I14: 0.1716004316 | K14: =Entrada!P19 -> (3) subestações de energia;
A15: 43191 | B15: 380519.63 | C15: 1417089.76 | D15: 82612.02 | F15: 1230153.41 | G15: 5180693.41 | H15: 0.0558591049 | I15: 0.1709176334 | K15: =Entrada!P20 -> (4) instalações elétricas internas de unidades consumidoras;
A16: 43221 | B16: 403970.33 | C16: 1507675.37 | D16: 87697.06 | E16: 150858.71 | F16: 1401408.24 | G16: 5402687.78 | H16: 0.05682321181 | I16: 0.1742457577 | K16: =Entrada!P21 -> (5) banco de capacitores;
A17: 43252 | B17: 346178.52 | C17: 1554755.33 | D17: 75152.93 | E17: 717505.98 | F17: 1404486.34 | G17: 5721174.6 | H17: 0.05025277933 | I17: 0.1854377985 | K17: =Entrada!P22 -> (6) padrões de entrada de unidades consumidoras atendidas em baixa tensão;
A18: 43282 | B18: 492030.97 | C18: 1670440.68 | D18: 106814.12 | E18: 826236.37 | F18: 1259546.25 | G18: 6243631.51 | H18: 0.06693828351 | I18: 0.186720128 | K18: =Entrada!P23 -> (7) sistemas de medição de energia elétrica;
A19: 43313 | B19: 441552.17 | C19: 1674498.06 | D19: 95858.73 | E19: 832646.95 | F19: 1327102.89 | G19: 6270376.35 | H19: 0.05986703694 | I19: 0.1865374097 | K19: =Entrada!P24 -> (8) geradores, incluindo-se unidades de microgeração e minigeração distribuída;
A20: 43344 | B20: 289923.95 | C20: 1608423.57 | D20: 62936.34 | E20: 813650.39 | F20: 1358473.31 | G20: 6040245.93 | H20: 0.04128782207 | I20: 0.1881999988 | K20: =Entrada!P25 -> (9) sistemas de iluminação pública.
A21: 43374 | B21: 304994.97 | C21: 1687324.91 | D21: 66208.18 | E21: 858280.77 | F21: 1348708.84 | G21: 6431356.89 | H21: 0.04133521283 | I21: 0.1878915475 | K21: =Entrada!P26 -> (10) estações de recarga de veículos elétricos, incluindo a prestação de serviços aos usuários
A22: 43405 | B22: 354473.24 | C22: 1573451.5 | D22: 76954.26 | E22: 228545.7 | F22: 1359226.08 | G22: 5780002.37 | H22: 0.04839038886 | I22: 0.1764837196 | K22: =Entrada!P27 -> Eficientização do consumo de energia elétrica e instalação de cogeração qualificada, desde que não enquadráveis nos projetos de Pesquisa e Desenvolvimento (P&D) ou de Eficiência Energética estabelecidos em lei
A23: 43435 | B23: 419087.04 | C23: 1415695.59 | D23: 90978.24 | E23: 10742.65 | F23: 1352913.33 | G23: 5005021.9 | H23: 0.06165455699 | I23: 0.1711233598 | K23: =Entrada!P28 -> Serviços de comunicação de dados
A24: 43466 | B24: 387306.72 | C24: 1391432.86 | D24: 84079.41 | E24: 5.551115123e-16 | F24: 1363601.6 | G24: 4888118.55 | H24: 0.05809154677 | I24: 0.1714740463 | K24: =Entrada!P29 -> Serviços de consultoria
A25: 43497 | B25: 286579.99 | C25: 1483578.92 | D25: 62218.87 | F25: 1340690.14 | G25: 5482128.56 | H25: 0.04029935783 | I25: 0.17140904 | K25: =Entrada!P30 -> Receita proveniente da comercialização de resultados de projetos de P&D COM comprovação
A26: 43525 | B26: 396644.7 | C26: 1421760.29 | D26: 86106.99 | E26: 358.13 | F26: 1341947.78 | G26: 4990210.04 | H26: 0.0586126059 | I26: 0.1726209919 | K26: =Entrada!P31 -> Receita proveniente da comercialização de resultados de projetos de P&D SEM comprovação
A27: 43556 | B27: 447388 | C27: 1612281.02 | D27: 97122.3 | E27: 5168.79 | F27: 1253898.96 | G27: 5542120.74 | H27: 0.06085517123 | I27: 0.1801905998
A28: 43586 | B28: 446305.8 | C28: 1618206.12 | D28: 96893.23 | E28: 143293.7 | F28: 1234457.48 | G28: 5529706.93 | H28: 0.06185173851 | I28: 0.1842581747 | K28: Descrição | L28: =L2 -> 2023-03-01 | M28: =M2 -> 2023-02-01 | N28: 2023-01-01 | O28: 2022-12-01 | P28: 2022-11-01 | Q28: 2022-10-01 | R28: 2022-09-01 | S28: 2022-08-01 | T28: 2022-07-01 | U28: 2022-06-01 | V28: 2022-05-01 | W28: 2022-04-01 | X28: 2022-03-01 | Y28: 2022-02-01 | Z28: 2022-01-01 | AA28: =AA2 -> 2021-12-01 | AB28: 2021-11-01 | AC28: 2021-10-01 | AD28: 2021-09-01 | AE28: 2021-08-01 | AF28: 2021-07-01 | AG28: 2021-06-01 | AH28: 2021-05-01 | AI28: 2021-04-01 | AJ28: 2021-03-01 | AK28: 2021-02-01 | AL28: 2021-01-01 | AM28: 2020-12-01 | AN28: 2020-11-01 | AO28: 2020-10-01 | AP28: 2020-09-01 | AQ28: 2020-08-01 | AR28: 2020-07-01 | AS28: 2020-06-01 | AT28: 2020-05-01 | AU28: 2020-04-01 | AV28: 2020-03-01 | AW28: 2020-02-01 | AX28: 2020-01-01 | AY28: 2019-12-01 | AZ28: 2019-11-01 | BA28: =BA2 -> 2019-10-01 | BB28: 2019-09-01 | BC28: 2019-08-01 | BD28: 2019-07-01 | BE28: 2019-06-01 | BF28: 2019-05-01 | BG28: =BG2 -> 2019-04-01 | BH28: 2019-03-01 | BI28: 2019-02-01 | BJ28: 2019-01-01 | BK28: 2018-12-01 | BL28: 2018-11-01 | BM28: 2018-10-01 | BN28: 2018-09-01 | BO28: 2018-08-01 | BP28: 2018-07-01 | BQ28: 2018-06-01 | BR28: 2018-05-01
A29: 43617 | B29: 420423.29 | C29: 1514965.31 | D29: 91268.63 | E29: 33705 | F29: 1233885.72 | G29: 5103705.98 | H29: 0.06142359062 | I29: 0.1818567098 | K29: =Entrada!P36 -> Ultrapassagem de Demanda | L29: =IF(COUNTIFS($C$82:$C$200000,$K29,$H$82:$H$200000,L$2)=0,"",COUNTIFS($C$82:$C$200000,$K29,$H$82:$H$200000,L$2)) -> 1 | M29: 1 | N29: 1 | O29: 1 | P29: 1 | Q29: 1 | R29: 1 | S29: 1 | T29: 1 | U29: 1 | V29: =IF(COUNTIFS($C$82:$C$200000,$K29,$H$82:$H$200000,V$2)=0,"",COUNTIFS($C$82:$C$200000,$K29,$H$82:$H$200000,V$2)) -> 1 | W29: 1 | X29: 1 | Y29: 1 | Z29: 1 | AA29: 1 | AB29: 1 | AC29: 1 | AD29: 1 | AE29: 1 | AF29: =IF(COUNTIFS($C$82:$C$200000,$K29,$H$82:$H$200000,AF$2)=0,"",COUNTIFS($C$82:$C$200000,$K29,$H$82:$H$200000,AF$2)) -> 1 | AG29: 1 | AH29: 1 | AI29: 1 | AJ29: 1 | AK29: 1 | AL29: 1 | AM29: 1 | AN29: 1 | AP29: =IF(COUNTIFS($C$82:$C$200000,$K29,$H$82:$H$200000,AP$2)=0,"",COUNTIFS($C$82:$C$200000,$K29,$H$82:$H$200000,AP$2)) ->  | AZ29: =IF(COUNTIFS($C$82:$C$200000,$K29,$H$82:$H$200000,AZ$2)=0,"",COUNTIFS($C$82:$C$200000,$K29,$H$82:$H$200000,AZ$2)) ->  | BJ29: =IF(COUNTIFS($C$82:$C$200000,$K29,$H$82:$H$200000,BJ$2)=0,"",COUNTIFS($C$82:$C$200000,$K29,$H$82:$H$200000,BJ$2)) -> 
A30: 43647 | B30: 445650.12 | C30: 1605823.79 | D30: 96745.33 | E30: 200928.06 | F30: 1246495.91 | G30: 5419609.43 | H30: 0.06297114602 | I30: 0.1864332829 | K30: =Entrada!P37 -> Excedente Reativo | L30: 1 | M30: 1 | N30: 1 | O30: 1 | P30: 1 | Q30: 1 | R30: 1 | S30: 1 | T30: 1 | U30: 1 | V30: 1 | W30: 1 | X30: 1 | Y30: 1 | Z30: 1 | AA30: 1 | AB30: 1 | AC30: 1 | AD30: 1 | AE30: 1 | AF30: 1 | AG30: 1 | AH30: 1 | AI30: 1 | AJ30: 1 | AK30: 1 | AL30: 1 | AM30: 1 | AN30: 1
A31: 43678 | B31: 391236.67 | C31: 1724877.05 | D31: 84934.55 | E31: 599183.64 | F31: 1233378.43 | G31: 6039415.01 | H31: 0.0536551624 | I31: 0.1943598318
A32: 43709 | B32: 328362.29 | C32: 1795260.03 | D32: 71284.12 | E32: 678542.61 | F32: 1229820.56 | G32: 6475869.71 | H32: 0.04333594291 | I32: 0.1946702991
A33: 43739 | B33: 379239.32 | C33: 1650849.91 | D33: 82333.17 | E33: 296545.29 | F33: 1219506.36 | G33: 5759587.34 | H33: 0.05248141239 | I33: 0.1877038532
A34: 43770 | B34: 432474.04 | C34: 1723839.76 | D34: 93885.56 | E34: 614783.96 | F34: 1217684.3 | G34: 6027558.69 | H34: 0.05927033525 | I34: 0.1941117071 | K34: Data do último Lançamento por item e competência
A35: 43800 | B35: 312081.7 | C35: 1623464.52 | D35: 67745.65 | E35: 277424.43 | F35: 1220349.36 | G35: 5698574.54 | H35: 0.04393713336 | I35: 0.1877968428 | K35: Descrição | L35: =L2 -> 2023-03-01 | M35: =M2 -> 2023-02-01 | N35: 2023-01-01 | O35: 2022-12-01 | P35: 2022-11-01 | Q35: 2022-10-01 | R35: 2022-09-01 | S35: 2022-08-01 | T35: 2022-07-01 | U35: 2022-06-01 | V35: 2022-05-01 | W35: 2022-04-01 | X35: 2022-03-01 | Y35: 2022-02-01 | Z35: 2022-01-01 | AA35: 2021-12-01 | AB35: 2021-11-01 | AC35: 2021-10-01 | AD35: 2021-09-01 | AE35: 2021-08-01 | AF35: 2021-07-01 | AG35: 2021-06-01 | AH35: 2021-05-01 | AI35: 2021-04-01 | AJ35: 2021-03-01 | AK35: 2021-02-01 | AL35: 2021-01-01 | AM35: 2020-12-01 | AN35: 2020-11-01 | AO35: 2020-10-01 | AP35: 2020-09-01 | AQ35: 2020-08-01 | AR35: 2020-07-01 | AS35: 2020-06-01 | AT35: 2020-05-01 | AU35: 2020-04-01 | AV35: 2020-03-01 | AW35: 2020-02-01 | AX35: 2020-01-01 | AY35: 2019-12-01 | AZ35: 2019-11-01 | BA35: 2019-10-01 | BB35: 2019-09-01 | BC35: 2019-08-01 | BD35: 2019-07-01 | BE35: 2019-06-01 | BF35: 2019-05-01 | BG35: =BG2 -> 2019-04-01 | BH35: 2019-03-01 | BI35: 2019-02-01 | BJ35: 2019-01-01 | BK35: 2018-12-01 | BL35: 2018-11-01 | BM35: 2018-10-01 | BN35: 2018-09-01 | BO35: 2018-08-01 | BP35: 2018-07-01 | BQ35: 2018-06-01 | BR35: 2018-05-01
A36: 43831 | B36: 268394.85 | C36: 1482729.16 | D36: 58264.95 | E36: 200177.37 | F36: 1194257.46 | G36: 5167119 | H36: 0.04098314929 | I36: 0.186025065 | K36: =Entrada!P8 -> Serviços Cobráveis | L36: =IF(_xlfn.MAXIFS($G$82:$G$200000,$C$82:$C$200000,$K36,$H$82:$H$200000,L$2)=0,"",_xlfn.MAXIFS($G$82:$G$200000,$C$82:$C$200000,$K36,$H$82:$H$200000,L$2)) -> 2023-03-01 | M36: 2023-02-01 | N36: 2023-01-01 | O36: 2022-12-01 | P36: 2022-11-01 | Q36: 2022-10-01 | R36: 2022-09-01 | S36: 2022-08-01 | T36: 2022-07-01 | U36: 2022-06-01 | V36: =IF(_xlfn.MAXIFS($G$82:$G$200000,$C$82:$C$200000,$K36,$H$82:$H$200000,V$2)=0,"",_xlfn.MAXIFS($G$82:$G$200000,$C$82:$C$200000,$K36,$H$82:$H$200000,V$2)) -> 2022-05-01 | W36: 2022-04-01 | X36: 2022-03-01 | Y36: 2022-02-01 | Z36: 2022-01-01 | AA36: 2021-12-01 | AB36: 2021-11-01 | AC36: 2021-10-01 | AD36: 2021-09-01 | AE36: 2021-08-01 | AF36: =IF(_xlfn.MAXIFS($G$82:$G$200000,$C$82:$C$200000,$K36,$H$82:$H$200000,AF$2)=0,"",_xlfn.MAXIFS($G$82:$G$200000,$C$82:$C$200000,$K36,$H$82:$H$200000,AF$2)) -> 2021-07-01 | AG36: 2021-06-01 | AH36: 2021-05-01 | AI36: 2021-04-01 | AJ36: 2021-03-01 | AK36: 2021-02-01 | AL36: 2021-01-01 | AM36: 2020-12-01 | AN36: 2020-11-01 | AP36: =IF(_xlfn.MAXIFS($G$82:$G$200000,$C$82:$C$200000,$K36,$H$82:$H$200000,AP$2)=0,"",_xlfn.MAXIFS($G$82:$G$200000,$C$82:$C$200000,$K36,$H$82:$H$200000,AP$2)) ->  | AZ36: =IF(_xlfn.MAXIFS($G$82:$G$200000,$C$82:$C$200000,$K36,$H$82:$H$200000,AZ$2)=0,"",_xlfn.MAXIFS($G$82:$G$200000,$C$82:$C$200000,$K36,$H$82:$H$200000,AZ$2)) ->  | BJ36: =IF(_xlfn.MAXIFS($G$82:$G$200000,$C$82:$C$200000,$K36,$H$82:$H$200000,BJ$2)=0,"",_xlfn.MAXIFS($G$82:$G$200000,$C$82:$C$200000,$K36,$H$82:$H$200000,BJ$2)) -> 
A37: 43862 | B37: 384117.09 | C37: 1554122.04 | D37: 83391.58 | E37: 33538.47 | F37: 1189918.29 | G37: 5378265.28 | H37: 0.05463927068 | I37: 0.181635337 | K37: =Entrada!P9 -> Arrecadação de convênios ou valores pela fatura | L37: 2023-03-01 | M37: 2023-02-01 | N37: 2023-01-01 | O37: 2022-12-01 | P37: 2022-11-01 | Q37: 2022-10-01 | R37: 2022-09-01 | S37: 2022-08-01 | T37: 2022-07-01 | U37: 2022-06-01 | V37: 2022-05-01 | W37: 2022-04-01 | X37: 2022-03-01 | Y37: 2022-02-01 | Z37: 2022-01-01 | AA37: 2021-12-01 | AB37: 2021-11-01 | AC37: 2021-10-01 | AD37: 2021-09-01 | AE37: 2021-08-01 | AF37: 2021-07-01 | AG37: 2021-06-01 | AH37: 2021-05-01 | AI37: 2021-04-01 | AJ37: 2021-03-01 | AK37: 2021-02-01 | AL37: 2021-01-01 | AM37: 2020-12-01 | AN37: 2020-11-01
A38: 43891 | B38: 364897.42 | C38: 1530464.11 | D38: 79213.92 | E38: 323.13 | F38: 1162452.7 | G38: 5291355.37 | H38: 0.05269437088 | I38: 0.1815914978 | K38: =Entrada!P10 -> Arrecadação de faturas de terceiros por estrutura própria
A39: 43922 | B39: 304149.61 | C39: 1375477.67 | D39: 66027.77 | F39: 1170668.23 | G39: 4666770.76 | H39: 0.04881613996 | I39: 0.1813873945 | K39: =Entrada!P11 -> Veiculação de publicidade
A40: 43952 | B40: 397477.71 | C40: 1458181.31 | D40: 86292.68 | E40: 470.11 | F40: 1170394.03 | G40: 4897761.63 | H40: 0.06039853927 | I40: 0.182053352 | K40: =Entrada!P12 -> Aluguel ou cessão onerosa de imóveis e espaços físicos
A41: 43983 | B41: 294060.88 | C41: 1361189 | D41: 63836.94 | F41: 1172759.26 | G41: 4577706.62 | H41: 0.04791422383 | I41: 0.1822316616 | K41: =Entrada!P13 -> Compartilhamento de infraestrutura | L41: 2023-03-01 | M41: 2023-02-01 | N41: 2023-01-01 | O41: 2022-12-01 | P41: 2022-11-01 | Q41: 2022-10-01 | R41: 2022-09-01 | S41: 2022-08-01 | T41: 2022-07-01 | U41: 2022-06-01 | V41: 2022-05-01 | W41: 2022-04-01 | X41: 2022-03-01 | Y41: 2022-02-01 | Z41: 2022-01-01 | AA41: 2021-12-01 | AB41: 2021-11-01 | AC41: 2021-10-01 | AD41: 2021-09-01 | AE41: 2021-08-01 | AF41: 2021-07-01 | AG41: 2021-06-01 | AH41: 2021-05-01 | AI41: 2021-04-01 | AJ41: 2021-03-01 | AK41: 2021-02-01 | AL41: 2021-01-01 | AM41: 2020-12-01 | AN41: 2020-11-01
A42: 44013 | B42: 335696.21 | C42: 1451073.85 | D42: 72881.77 | F42: 1276869.01 | G42: 4858217.59 | H42: 0.05110585963 | I42: 0.1815036055 | K42: =Entrada!P14 -> Serviços de avaliação técnica e aferição de medidores.
A43: 44044 | B43: 403993.63 | C43: 1582848.58 | D43: 87705.36 | E43: 5385.85 | F43: 1300210.72 | G43: 5330652.17 | H43: 0.05651696542 | I43: 0.1819361037 | K43: =Entrada!P15 -> Operacionalização de serviço de créditos tributários
A44: 44075 | B44: 277110.04 | C44: 1515515.74 | D44: 60157.6 | F44: 1291340.38 | G44: 5185161.71 | H44: 0.04049178543 | I44: 0.18195027 | K44: =Entrada!P16 -> Elaboração de projeto, construção, operação, manutenção ou reforma de:
A45: 44105 | B45: 204418.27 | C45: 1472663.14 | D45: 44374.48 | E45: -495.66 | F45: 1265810.48 | G45: 5075987.97 | H45: 0.03085323206 | I45: 0.182627579 | K45: =Entrada!P17 -> (1) redes de distribuição de energia elétrica destinadas à regularização fundiária de interesse específico e ao atendimento dos empreendimentos de múltiplas unidades consumidoras; | L45: =IF(_xlfn.MAXIFS($G$82:$G$200000,$C$82:$C$200000,$K45,$H$82:$H$200000,L$2)=0,"",_xlfn.MAXIFS($G$82:$G$200000,$C$82:$C$200000,$K45,$H$82:$H$200000,L$2)) ->  | V45: =IF(_xlfn.MAXIFS($G$82:$G$200000,$C$82:$C$200000,$K45,$H$82:$H$200000,V$2)=0,"",_xlfn.MAXIFS($G$82:$G$200000,$C$82:$C$200000,$K45,$H$82:$H$200000,V$2)) ->  | AF45: =IF(_xlfn.MAXIFS($G$82:$G$200000,$C$82:$C$200000,$K45,$H$82:$H$200000,AF$2)=0,"",_xlfn.MAXIFS($G$82:$G$200000,$C$82:$C$200000,$K45,$H$82:$H$200000,AF$2)) ->  | AP45: =IF(_xlfn.MAXIFS($G$82:$G$200000,$C$82:$C$200000,$K45,$H$82:$H$200000,AP$2)=0,"",_xlfn.MAXIFS($G$82:$G$200000,$C$82:$C$200000,$K45,$H$82:$H$200000,AP$2)) ->  | AZ45: =IF(_xlfn.MAXIFS($G$82:$G$200000,$C$82:$C$200000,$K45,$H$82:$H$200000,AZ$2)=0,"",_xlfn.MAXIFS($G$82:$G$200000,$C$82:$C$200000,$K45,$H$82:$H$200000,AZ$2)) ->  | BJ45: =IF(_xlfn.MAXIFS($G$82:$G$200000,$C$82:$C$200000,$K45,$H$82:$H$200000,BJ$2)=0,"",_xlfn.MAXIFS($G$82:$G$200000,$C$82:$C$200000,$K45,$H$82:$H$200000,BJ$2)) -> 
A46: 44136 | B46: 216066.92 | C46: 1550937.83 | D46: 46903.36 | F46: 1251645.61 | G46: 5426071.79 | H46: 0.03096819092 | I46: 0.1826432204 | K46: =Entrada!P18 -> (2) redes de energia elétrica destinadas ao acesso dos sistemas de distribuição ou transmissão;
A47: 44166 | B47: 231076.62 | C47: 1665289.3 | D47: 50161.28 | E47: 846747.68 | F47: 1253321.31 | G47: 5917099.77 | H47: 0.03400617634 | I47: 0.2013602064 | K47: =Entrada!P19 -> (3) subestações de energia;
A48: 44197 | B48: 207167.42 | C48: 1486658.37 | D48: 44970.93 | E48: 310744.44 | F48: 1137879.5 | G48: 5290962.68 | H48: 0.03209135 | I48: 0.1892170472 | K48: =Entrada!P20 -> (4) instalações elétricas internas de unidades consumidoras;
A49: 44228 | B49: 169617.89 | C49: 1218592.94 | D49: 36819.98 | E49: 167769.15 | F49: 1027388.12 | G49: 4242989.76 | H49: 0.03162519449 | I49: 0.1866820207 | K49: =Entrada!P21 -> (5) banco de capacitores;
A50: 44256 | B50: 209373.19 | C50: 1509822.45 | D50: 45450.08 | E50: 206812.4 | F50: 1268988.96 | G50: 5248614.76 | H50: 0.03155535344 | I50: 0.1869647974 | K50: =Entrada!P22 -> (6) padrões de entrada de unidades consumidoras atendidas em baixa tensão;
A51: 44287 | B51: 210978.09 | C51: 1514686.8 | D51: 45798.62 | E51: 203583.89 | F51: 1351527.28 | G51: 5187677.41 | H51: 0.03167312688 | I51: 0.1868349634 | K51: =Entrada!P23 -> (7) sistemas de medição de energia elétrica;
A52: 44317 | B52: 231203.06 | C52: 1659501.18 | D52: 50188.49 | E52: 556253.48 | F52: 1507605.02 | G52: 5631468.53 | H52: 0.03301279109 | I52: 0.1946922918 | K52: =Entrada!P24 -> (8) geradores, incluindo-se unidades de microgeração e minigeração distribuída;
A53: 44348 | B53: 233796.21 | C53: 1677628.81 | D53: 50751.57 | E53: 840678.76 | F53: 1499896.07 | G53: 5745074.23 | H53: 0.03401050187 | I53: 0.2005181618 | K53: =Entrada!P25 -> (9) sistemas de iluminação pública.
A54: 44378 | B54: 245190.85 | C54: 1759747.4 | D54: 53225.06 | E54: 1264684.44 | F54: 1485196.38 | G54: 6118620.84 | H54: 0.03553714277 | I54: 0.2095611946 | K54: =Entrada!P26 -> (10) estações de recarga de veículos elétricos, incluindo a prestação de serviços aos usuários
A55: 44409 | B55: 258477.35 | C55: 1835499.28 | D55: 56112.79 | E55: 1391067.55 | F55: 1473715.15 | G55: 6421292.63 | H55: 0.03635186759 | I55: 0.2120976417 | K55: =Entrada!P27 -> Eficientização do consumo de energia elétrica e instalação de cogeração qualificada, desde que não enquadráveis nos projetos de Pesquisa e Desenvolvimento (P&D) ou de Eficiência Energética estabelecidos em lei
A56: 44440 | B56: 261712.28 | C56: 1876896.11 | D56: 56812.27 | E56: 1860808.1 | F56: 1461543.69 | G56: 6617916.21 | H56: 0.03785616912 | I56: 0.2230663117 | K56: =Entrada!P28 -> Serviços de comunicação de dados
A57: 44470 | B57: 268279.13 | C57: 1927656 | D57: 58238.37 | E57: 1997556.06 | F57: 1479608.56 | G57: 6840260.6 | H57: 0.03807124237 | I57: 0.224760568 | K57: =Entrada!P29 -> Serviços de consultoria
A58: 44501 | B58: 266263.37 | C58: 1913739.15 | D58: 57800.82 | E58: 1952976.09 | F58: 1516347.06 | G58: 6661988.2 | H58: 0.03829114585 | I58: 0.2261257713 | K58: =Entrada!P30 -> Receita proveniente da comercialização de resultados de projetos de P&D COM comprovação
A59: 44531 | B59: 265924.08 | C59: 1911108.87 | D59: 57727.06 | E59: 1977363.12 | F59: 1412480.53 | G59: 6793708.03 | H59: 0.03824042918 | I59: 0.2258036953 | K59: =Entrada!P31 -> Receita proveniente da comercialização de resultados de projetos de P&D SEM comprovação
A60: 44562 | B60: 260373.74 | C60: 1871468.81 | D60: 56522.25 | E60: 1917476.42 | F60: 1397178.74 | G60: 6669862.48 | H60: 0.03800655621 | I60: 0.22445246
A61: 44593 | B61: 317055.69 | C61: 1783763.79 | D61: 68831.18 | E61: 1808525.57 | F61: 1394096.33 | G61: 6207260.65 | H61: 0.04846313833 | I61: 0.2240210746 | K61: Descrição | L61: =L35 -> 2023-03-01 | M61: =M35 -> 2023-02-01 | N61: 2023-01-01 | O61: 2022-12-01 | P61: 2022-11-01 | Q61: 2022-10-01 | R61: 2022-09-01 | S61: 2022-08-01 | T61: 2022-07-01 | U61: 2022-06-01 | V61: 2022-05-01 | W61: 2022-04-01 | X61: 2022-03-01 | Y61: 2022-02-01 | Z61: 2022-01-01 | AA61: =AA35 -> 2021-12-01 | AB61: 2021-11-01 | AC61: 2021-10-01 | AD61: 2021-09-01 | AE61: 2021-08-01 | AF61: 2021-07-01 | AG61: 2021-06-01 | AH61: 2021-05-01 | AI61: 2021-04-01 | AJ61: 2021-03-01 | AK61: 2021-02-01 | AL61: 2021-01-01 | AM61: 2020-12-01 | AN61: 2020-11-01 | AO61: 2020-10-01 | AP61: 2020-09-01 | AQ61: 2020-08-01 | AR61: 2020-07-01 | AS61: 2020-06-01 | AT61: 2020-05-01 | AU61: 2020-04-01 | AV61: 2020-03-01 | AW61: 2020-02-01 | AX61: 2020-01-01 | AY61: 2019-12-01 | AZ61: 2019-11-01 | BA61: =BA35 -> 2019-10-01 | BB61: 2019-09-01 | BC61: 2019-08-01 | BD61: 2019-07-01 | BE61: 2019-06-01 | BF61: 2019-05-01 | BG61: =BG35 -> 2019-04-01 | BH61: 2019-03-01 | BI61: 2019-02-01 | BJ61: 2019-01-01 | BK61: 2018-12-01 | BL61: 2018-11-01 | BM61: 2018-10-01 | BN61: 2018-09-01 | BO61: 2018-08-01 | BP61: 2018-07-01 | BQ61: 2018-06-01 | BR61: 2018-05-01
A62: 44621 | B62: 312832.91 | C62: 1985399.07 | D62: 67910.35 | E62: 2082708.05 | F62: 1422604.29 | G62: 7086872.73 | H62: 0.04330116011 | I62: 0.2257954166 | K62: =Entrada!P36 -> Ultrapassagem de Demanda | L62: =IF(COUNTIFS($C$82:$C$200000,$K62,$H$82:$H$200000,L$2)=0,"",COUNTIFS($C$82:$C$200000,$K62,$H$82:$H$200000,L$2)) -> 1 | M62: 1 | N62: 1 | O62: 1 | P62: 1 | Q62: 1 | R62: 1 | S62: 1 | T62: 1 | U62: 1 | V62: =IF(COUNTIFS($C$82:$C$200000,$K62,$H$82:$H$200000,V$2)=0,"",COUNTIFS($C$82:$C$200000,$K62,$H$82:$H$200000,V$2)) -> 1 | W62: 1 | X62: 1 | Y62: 1 | Z62: 1 | AA62: 1 | AB62: 1 | AC62: 1 | AD62: 1 | AE62: 1 | AF62: =IF(COUNTIFS($C$82:$C$200000,$K62,$H$82:$H$200000,AF$2)=0,"",COUNTIFS($C$82:$C$200000,$K62,$H$82:$H$200000,AF$2)) -> 1 | AG62: 1 | AH62: 1 | AI62: 1 | AJ62: 1 | AK62: 1 | AL62: 1 | AM62: 1 | AN62: 1 | AP62: =IF(COUNTIFS($C$82:$C$200000,$K62,$H$82:$H$200000,AP$2)=0,"",COUNTIFS($C$82:$C$200000,$K62,$H$82:$H$200000,AP$2)) ->  | AZ62: =IF(COUNTIFS($C$82:$C$200000,$K62,$H$82:$H$200000,AZ$2)=0,"",COUNTIFS($C$82:$C$200000,$K62,$H$82:$H$200000,AZ$2)) ->  | BJ62: =IF(COUNTIFS($C$82:$C$200000,$K62,$H$82:$H$200000,BJ$2)=0,"",COUNTIFS($C$82:$C$200000,$K62,$H$82:$H$200000,BJ$2)) -> 
A63: 44652 | B63: 249560.1 | C63: 1766826.78 | D63: 54174.41 | E63: 1208687.52 | F63: 1477453.89 | G63: 6109663.47 | H63: 0.03594920451 | I63: 0.2091168937 | K63: =Entrada!P37 -> Excedente Reativo | L63: 1 | M63: 1 | N63: 1 | O63: 1 | P63: 1 | Q63: 1 | R63: 1 | S63: 1 | T63: 1 | U63: 1 | V63: 1 | W63: 1 | X63: 1 | Y63: 1 | Z63: 1 | AA63: 1 | AB63: 1 | AC63: 1 | AD63: 1 | AE63: 1 | AF63: 1 | AG63: 1 | AH63: 1 | AI63: 1 | AJ63: 1 | AK63: 1 | AL63: 1 | AM63: 1 | AN63: 1
A64: 44682 | B64: 284490.72 | C64: 1654843.21 | D64: 61757.25 | E64: 138534.23 | F64: 1561457.76 | G64: 5465258.65 | H64: 0.03895121187 | I64: 0.1861618091
A65: 44713 | B65: 336154.48 | C65: 1551016.32 | D65: 72974.17 | E65: 5098.31 | F65: 1597272.25 | G65: 4867801.97 | H65: 0.04858940339 | I65: 0.1842035693
A66: 44743 | B66: 246878.25 | C66: 1461868.87 | D66: 53596.86 | E66: -745.61 | F66: 1548983.42 | G66: 4677022.83 | H66: 0.03761065282 | I66: 0.1829830183
A67: 44774 | B67: 203602.23 | C67: 1442842.65 | D67: 44197.07 | E67: 313.29 | F67: 1513261.59 | G67: 4669113.19 | H67: 0.03147575695 | I67: 0.1832715612
A68: 44805 | B68: 197579.9 | C68: 1280508.39 | D68: 42894.24 | E68: 124.99 | F68: 1495245.05 | G68: 4590855.45 | H68: 0.03161239207 | I68: 0.1683338311
A69: 44835 | B69: 315818.65 | C69: 1366762.17 | D69: 68561.77 | F69: 1516667.93 | G69: 4809904.23 | H69: 0.04758529261 | I69: 0.1692015889
A70: 44866 | B70: 329514.19 | C70: 1361001.72 | D70: 71536.78 | F70: 1501405.14 | G70: 4777339.52 | H70: 0.049877015 | I70: 0.1692620347
A71: 44896 | B71: 265771.47 | C71: 1356827.82 | D71: 57696.77 | E71: -0.03 | F71: 1504215.4 | G71: 4851172.2 | H71: 0.04025397869 | I71: 0.1688503272
A72: 44927 | B72: 260040.09 | C72: 1376300.18 | D72: 56454.42 | F72: 1522009.19 | G72: 4879366.19 | H72: 0.03910153941 | I72: 0.1700359849
A73: 44958 | B73: 248733.09 | C73: 1214795.44 | D73: 53998.32 | F73: 1390054.15 | G73: 4057594.62 | H73: 0.04346357171 | I73: 0.1744098794
A80: Tab_Uderor
A81: IdeTipoReceita | B81: TipoReceitaArquivo | C81: TipoReceita | D81: CompetenciaArquivo | E81: Data_envio_arquivo | F81: NomeArquivo | G81: Data_Lancamento | H81: Competencia | I81: R$
A82: 1 | B82: Serviços Cobráveis | C82: Serviços Cobráveis | D82: 202011 | E82: 44872 | F82: APLCVA06587_FLXPAGAMENTOS_112020_S004.XML | G82: 44136 | H82: 44136 | I82: 162882.67
A83: 1 | B83: Serviços Cobráveis | C83: Serviços Cobráveis | D83: 202012 | E83: 44872 | F83: APLCVA06587_FLXPAGAMENTOS_122020_S003.XML | G83: 44166 | H83: 44166 | I83: 142072.67
A84: 1 | B84: Serviços Cobráveis | C84: Serviços Cobráveis | D84: 202101 | E84: 44872 | F84: APLCVA06587_FLXPAGAMENTOS_012021_S004.XML | G84: 44197 | H84: 44197 | I84: 144824.88
A85: 1 | B85: Serviços Cobráveis | C85: Serviços Cobráveis | D85: 202102 | E85: 44872 | F85: APLCVA06587_FLXPAGAMENTOS_022021_S003.XML | G85: 44228 | H85: 44228 | I85: 119791.67
A86: 1 | B86: Serviços Cobráveis | C86: Serviços Cobráveis | D86: 202103 | E86: 44872 | F86: APLCVA06587_FLXPAGAMENTOS_032021_S006.XML | G86: 44256 | H86: 44256 | I86: 186394.73
A87: 1 | B87: Serviços Cobráveis | C87: Serviços Cobráveis | D87: 202104 | E87: 44872 | F87: APLCVA06587_FLXPAGAMENTOS_042021_S005.XML | G87: 44287 | H87: 44287 | I87: 165986.63
A88: 1 | B88: Serviços Cobráveis | C88: Serviços Cobráveis | D88: 202105 | E88: 44872 | F88: APLCVA06587_FLXPAGAMENTOS_052021_S006.XML | G88: 44317 | H88: 44317 | I88: 174757.42
A89: 1 | B89: Serviços Cobráveis | C89: Serviços Cobráveis | D89: 202106 | E89: 44872 | F89: APLCVA06587_FLXPAGAMENTOS_062021_S005.XML | G89: 44348 | H89: 44348 | I89: 237775.29
A90: 1 | B90: Serviços Cobráveis | C90: Serviços Cobráveis | D90: 202107 | E90: 44872 | F90: APLCVA06587_FLXPAGAMENTOS_072021_S005.XML | G90: 44378 | H90: 44378 | I90: 217184.93
A91: 1 | B91: Serviços Cobráveis | C91: Serviços Cobráveis | D91: 202108 | E91: 45001 | F91: APLCVA06587_FLXPAGAMENTOS_082021_S007.XML | G91: 44409 | H91: 44409 | I91: 241508.85
A92: 1 | B92: Serviços Cobráveis | C92: Serviços Cobráveis | D92: 202109 | E92: 44872 | F92: APLCVA06587_FLXPAGAMENTOS_092021_S005.XML | G92: 44440 | H92: 44440 | I92: 189982.95
A93: 1 | B93: Serviços Cobráveis | C93: Serviços Cobráveis | D93: 202110 | E93: 44872 | F93: APLCVA06587_FLXPAGAMENTOS_102021_S005.XML | G93: 44470 | H93: 44470 | I93: 121517.57
A94: 1 | B94: Serviços Cobráveis | C94: Serviços Cobráveis | D94: 202111 | E94: 44872 | F94: APLCVA06587_FLXPAGAMENTOS_112021_S003.XML | G94: 44501 | H94: 44501 | I94: 102909.88
A95: 1 | B95: Serviços Cobráveis | C95: Serviços Cobráveis | D95: 202112 | E95: 45001 | F95: APLCVA06587_FLXPAGAMENTOS_122021_S004.XML | G95: 44531 | H95: 44531 | I95: 279167.15
A96: 1 | B96: Serviços Cobráveis | C96: Serviços Cobráveis | D96: 202201 | E96: 45001 | F96: APLCVA06587_FLXPAGAMENTOS_012022_S004.XML | G96: 44562 | H96: 44562 | I96: 124164.84
A97: 1 | B97: Serviços Cobráveis | C97: Serviços Cobráveis | D97: 202202 | E97: 45001 | F97: APLCVA06587_FLXPAGAMENTOS_022022_S006.XML | G97: 44593 | H97: 44593 | I97: 184671.41
A98: 1 | B98: Serviços Cobráveis | C98: Serviços Cobráveis | D98: 202203 | E98: 45001 | F98: APLCVA06587_FLXPAGAMENTOS_032022_S007.XML | G98: 44621 | H98: 44621 | I98: 114140.59
A99: 1 | B99: Serviços Cobráveis | C99: Serviços Cobráveis | D99: 202204 | E99: 45001 | F99: APLCVA06587_FLXPAGAMENTOS_042022_S004.XML | G99: 44652 | H99: 44652 | I99: 225403.63
A100: 1 | B100: Serviços Cobráveis | C100: Serviços Cobráveis | D100: 202205 | E100: 45001 | F100: APLCVA06587_FLXPAGAMENTOS_052022_S004.XML | G100: 44682 | H100: 44682 | I100: 208955.82
A101: 1 | B101: Serviços Cobráveis | C101: Serviços Cobráveis | D101: 202206 | E101: 45001 | F101: APLCVA06587_FLXPAGAMENTOS_062022_S006.XML | G101: 44713 | H101: 44713 | I101: 133250.46
A102: 1 | B102: Serviços Cobráveis | C102: Serviços Cobráveis | D102: 202207 | E102: 45001 | F102: APLCVA06587_FLXPAGAMENTOS_072022_S007.XML | G102: 44743 | H102: 44743 | I102: 146946.29
A103: 1 | B103: Serviços Cobráveis | C103: Serviços Cobráveis | D103: 202208 | E103: 45001 | F103: APLCVA06587_FLXPAGAMENTOS_082022_S006.XML | G103: 44774 | H103: 44774 | I103: 117447.44
A104: 1 | B104: Serviços Cobráveis | C104: Serviços Cobráveis | D104: 202209 | E104: 45001 | F104: APLCVA06587_FLXPAGAMENTOS_092022_S006.XML | G104: 44805 | H104: 44805 | I104: 95764.38
A105: 1 | B105: Serviços Cobráveis | C105: Serviços Cobráveis | D105: 202210 | E105: 45001 | F105: APLCVA06587_FLXPAGAMENTOS_102022_S005.XML | G105: 44835 | H105: 44835 | I105: 82381.11
A106: 1 | B106: Serviços Cobráveis | C106: Serviços Cobráveis | D106: 202211 | E106: 45001 | F106: APLCVA06587_FLXPAGAMENTOS_112022_S004.XML | G106: 44866 | H106: 44866 | I106: 98783.43
A107: 1 | B107: Serviços Cobráveis | C107: Serviços Cobráveis | D107: 202212 | E107: 45001 | F107: APLCVA06587_FLXPAGAMENTOS_122022_S003.XML | G107: 44896 | H107: 44896 | I107: 108252.72
A108: 1 | B108: Serviços Cobráveis | C108: Serviços Cobráveis | D108: 202301 | E108: 45001 | F108: APLCVA06587_FLXPAGAMENTOS_012023_S002.XML | G108: 44927 | H108: 44927 | I108: 125694.9
A109: 1 | B109: Serviços Cobráveis | C109: Serviços Cobráveis | D109: 202302 | E109: 45002 | F109: APLCVA06587_FLXPAGAMENTOS_022023_S002.XML | G109: 44958 | H109: 44958 | I109: 73396.38
A110: 1 | B110: Serviços Cobráveis | C110: Serviços Cobráveis | D110: 202303 | E110: 45001 | F110: APLCVA06587_FLXPAGAMENTOS_032023_S001.XML | G110: 44986 | H110: 44986 | I110: 0
A111: 2 | B111: Arrecadação de convênios ou valores pela fatura | C111: Arrecadação de convênios ou valores pela fatura | D111: 202011 | E111: 44872 | F111: APLCVA06587_FLXPAGAMENTOS_112020_S004.XML | G111: 44136 | H111: 44136 | I111: 134750.76
A112: 2 | B112: Arrecadação de convênios ou valores pela fatura | C112: Arrecadação de convênios ou valores pela fatura | D112: 202012 | E112: 44872 | F112: APLCVA06587_FLXPAGAMENTOS_122020_S003.XML | G112: 44166 | H112: 44166 | I112: 132138.83
A113: 2 | B113: Arrecadação de convênios ou valores pela fatura | C113: Arrecadação de convênios ou valores pela fatura | D113: 202101 | E113: 44872 | F113: APLCVA06587_FLXPAGAMENTOS_012021_S004.XML | G113: 44197 | H113: 44197 | I113: 85506.39
A114: 2 | B114: Arrecadação de convênios ou valores pela fatura | C114: Arrecadação de convênios ou valores pela fatura | D114: 202102 | E114: 44872 | F114: APLCVA06587_FLXPAGAMENTOS_022021_S003.XML | G114: 44228 | H114: 44228 | I114: 85506.39
A115: 2 | B115: Arrecadação de convênios ou valores pela fatura | C115: Arrecadação de convênios ou valores pela fatura | D115: 202103 | E115: 44872 | F115: APLCVA06587_FLXPAGAMENTOS_032021_S006.XML | G115: 44256 | H115: 44256 | I115: 239505.22
A116: 2 | B116: Arrecadação de convênios ou valores pela fatura | C116: Arrecadação de convênios ou valores pela fatura | D116: 202104 | E116: 44872 | F116: APLCVA06587_FLXPAGAMENTOS_042021_S005.XML | G116: 44287 | H116: 44287 | I116: 158497.23
A117: 2 | B117: Arrecadação de convênios ou valores pela fatura | C117: Arrecadação de convênios ou valores pela fatura | D117: 202105 | E117: 44872 | F117: APLCVA06587_FLXPAGAMENTOS_052021_S006.XML | G117: 44317 | H117: 44317 | I117: 162150.03
A118: 2 | B118: Arrecadação de convênios ou valores pela fatura | C118: Arrecadação de convênios ou valores pela fatura | D118: 202106 | E118: 44872 | F118: APLCVA06587_FLXPAGAMENTOS_062021_S005.XML | G118: 44348 | H118: 44348 | I118: 154419.44
A119: 2 | B119: Arrecadação de convênios ou valores pela fatura | C119: Arrecadação de convênios ou valores pela fatura | D119: 202107 | E119: 44872 | F119: APLCVA06587_FLXPAGAMENTOS_072021_S005.XML | G119: 44378 | H119: 44378 | I119: 152733.22
A120: 2 | B120: Arrecadação de convênios ou valores pela fatura | C120: Arrecadação de convênios ou valores pela fatura | D120: 202108 | E120: 45001 | F120: APLCVA06587_FLXPAGAMENTOS_082021_S007.XML | G120: 44409 | H120: 44409 | I120: 156992.12
A121: 2 | B121: Arrecadação de convênios ou valores pela fatura | C121: Arrecadação de convênios ou valores pela fatura | D121: 202109 | E121: 44872 | F121: APLCVA06587_FLXPAGAMENTOS_092021_S005.XML | G121: 44440 | H121: 44440 | I121: 151464.35
A122: 2 | B122: Arrecadação de convênios ou valores pela fatura | C122: Arrecadação de convênios ou valores pela fatura | D122: 202110 | E122: 44872 | F122: APLCVA06587_FLXPAGAMENTOS_102021_S005.XML | G122: 44470 | H122: 44470 | I122: 152590.29
A123: 2 | B123: Arrecadação de convênios ou valores pela fatura | C123: Arrecadação de convênios ou valores pela fatura | D123: 202111 | E123: 44872 | F123: APLCVA06587_FLXPAGAMENTOS_112021_S003.XML | G123: 44501 | H123: 44501 | I123: 165034.24
A124: 2 | B124: Arrecadação de convênios ou valores pela fatura | C124: Arrecadação de convênios ou valores pela fatura | D124: 202112 | E124: 45001 | F124: APLCVA06587_FLXPAGAMENTOS_122021_S004.XML | G124: 44531 | H124: 44531 | I124: 169137.94
A125: 2 | B125: Arrecadação de convênios ou valores pela fatura | C125: Arrecadação de convênios ou valores pela fatura | D125: 202201 | E125: 45001 | F125: APLCVA06587_FLXPAGAMENTOS_012022_S004.XML | G125: 44562 | H125: 44562 | I125: 136306.8
A126: 2 | B126: Arrecadação de convênios ou valores pela fatura | C126: Arrecadação de convênios ou valores pela fatura | D126: 202202 | E126: 45001 | F126: APLCVA06587_FLXPAGAMENTOS_022022_S006.XML | G126: 44593 | H126: 44593 | I126: 141322.17
A127: 2 | B127: Arrecadação de convênios ou valores pela fatura | C127: Arrecadação de convênios ou valores pela fatura | D127: 202203 | E127: 45001 | F127: APLCVA06587_FLXPAGAMENTOS_032022_S007.XML | G127: 44621 | H127: 44621 | I127: 258655.55
A128: 2 | B128: Arrecadação de convênios ou valores pela fatura | C128: Arrecadação de convênios ou valores pela fatura | D128: 202204 | E128: 45001 | F128: APLCVA06587_FLXPAGAMENTOS_042022_S004.XML | G128: 44652 | H128: 44652 | I128: 181673.63
A129: 2 | B129: Arrecadação de convênios ou valores pela fatura | C129: Arrecadação de convênios ou valores pela fatura | D129: 202205 | E129: 45001 | F129: APLCVA06587_FLXPAGAMENTOS_052022_S004.XML | G129: 44682 | H129: 44682 | I129: 198476.76
A130: 2 | B130: Arrecadação de convênios ou valores pela fatura | C130: Arrecadação de convênios ou valores pela fatura | D130: 202206 | E130: 45001 | F130: APLCVA06587_FLXPAGAMENTOS_062022_S006.XML | G130: 44713 | H130: 44713 | I130: 183204.64
A131: 2 | B131: Arrecadação de convênios ou valores pela fatura | C131: Arrecadação de convênios ou valores pela fatura | D131: 202207 | E131: 45001 | F131: APLCVA06587_FLXPAGAMENTOS_072022_S007.XML | G131: 44743 | H131: 44743 | I131: 209682.42
A132: 2 | B132: Arrecadação de convênios ou valores pela fatura | C132: Arrecadação de convênios ou valores pela fatura | D132: 202208 | E132: 45001 | F132: APLCVA06587_FLXPAGAMENTOS_082022_S006.XML | G132: 44774 | H132: 44774 | I132: 215250
A133: 2 | B133: Arrecadação de convênios ou valores pela fatura | C133: Arrecadação de convênios ou valores pela fatura | D133: 202209 | E133: 45001 | F133: APLCVA06587_FLXPAGAMENTOS_092022_S006.XML | G133: 44805 | H133: 44805 | I133: 210773.07
A134: 2 | B134: Arrecadação de convênios ou valores pela fatura | C134: Arrecadação de convênios ou valores pela fatura | D134: 202210 | E134: 45001 | F134: APLCVA06587_FLXPAGAMENTOS_102022_S005.XML | G134: 44835 | H134: 44835 | I134: 216955.5
A135: 2 | B135: Arrecadação de convênios ou valores pela fatura | C135: Arrecadação de convênios ou valores pela fatura | D135: 202211 | E135: 45001 | F135: APLCVA06587_FLXPAGAMENTOS_112022_S004.XML | G135: 44866 | H135: 44866 | I135: 216248.81
A136: 2 | B136: Arrecadação de convênios ou valores pela fatura | C136: Arrecadação de convênios ou valores pela fatura | D136: 202212 | E136: 45001 | F136: APLCVA06587_FLXPAGAMENTOS_122022_S003.XML | G136: 44896 | H136: 44896 | I136: 190993.75
A137: 2 | B137: Arrecadação de convênios ou valores pela fatura | C137: Arrecadação de convênios ou valores pela fatura | D137: 202301 | E137: 45001 | F137: APLCVA06587_FLXPAGAMENTOS_012023_S002.XML | G137: 44927 | H137: 44927 | I137: 202409.44
A138: 2 | B138: Arrecadação de convênios ou valores pela fatura | C138: Arrecadação de convênios ou valores pela fatura | D138: 202302 | E138: 45002 | F138: APLCVA06587_FLXPAGAMENTOS_022023_S002.XML | G138: 44958 | H138: 44958 | I138: 185603.39
A139: 2 | B139: Arrecadação de convênios ou valores pela fatura | C139: Arrecadação de convênios ou valores pela fatura | D139: 202303 | E139: 45001 | F139: APLCVA06587_FLXPAGAMENTOS_032023_S001.XML | G139: 44986 | H139: 44986 | I139: 0
A140: 6 | B140: Compartilhamento de infraestrutura | C140: Compartilhamento de infraestrutura | D140: 202011 | E140: 44872 | F140: APLCVA06587_FLXPAGAMENTOS_112020_S004.XML | G140: 44136 | H140: 44136 | I140: 715546.56
A141: 6 | B141: Compartilhamento de infraestrutura | C141: Compartilhamento de infraestrutura | D141: 202012 | E141: 44872 | F141: APLCVA06587_FLXPAGAMENTOS_122020_S003.XML | G141: 44166 | H141: 44166 | I141: 687173.79
A142: 6 | B142: Compartilhamento de infraestrutura | C142: Compartilhamento de infraestrutura | D142: 202101 | E142: 44872 | F142: APLCVA06587_FLXPAGAMENTOS_012021_S004.XML | G142: 44197 | H142: 44197 | I142: 728877.33
A143: 6 | B143: Compartilhamento de infraestrutura | C143: Compartilhamento de infraestrutura | D143: 202102 | E143: 44872 | F143: APLCVA06587_FLXPAGAMENTOS_022021_S003.XML | G143: 44228 | H143: 44228 | I143: 741114.08
A144: 6 | B144: Compartilhamento de infraestrutura | C144: Compartilhamento de infraestrutura | D144: 202103 | E144: 44872 | F144: APLCVA06587_FLXPAGAMENTOS_032021_S006.XML | G144: 44256 | H144: 44256 | I144: 854986.34
A145: 6 | B145: Compartilhamento de infraestrutura | C145: Compartilhamento de infraestrutura | D145: 202104 | E145: 44872 | F145: APLCVA06587_FLXPAGAMENTOS_042021_S005.XML | G145: 44287 | H145: 44287 | I145: 797267.25
A146: 6 | B146: Compartilhamento de infraestrutura | C146: Compartilhamento de infraestrutura | D146: 202105 | E146: 44872 | F146: APLCVA06587_FLXPAGAMENTOS_052021_S006.XML | G146: 44317 | H146: 44317 | I146: 795469.2
A147: 6 | B147: Compartilhamento de infraestrutura | C147: Compartilhamento de infraestrutura | D147: 202106 | E147: 44872 | F147: APLCVA06587_FLXPAGAMENTOS_062021_S005.XML | G147: 44348 | H147: 44348 | I147: 834206.31
A148: 6 | B148: Compartilhamento de infraestrutura | C148: Compartilhamento de infraestrutura | D148: 202107 | E148: 44872 | F148: APLCVA06587_FLXPAGAMENTOS_072021_S005.XML | G148: 44378 | H148: 44378 | I148: 1447328.88
A149: 6 | B149: Compartilhamento de infraestrutura | C149: Compartilhamento de infraestrutura | D149: 202108 | E149: 45001 | F149: APLCVA06587_FLXPAGAMENTOS_082021_S007.XML | G149: 44409 | H149: 44409 | I149: 5651576.65
A150: 6 | B150: Compartilhamento de infraestrutura | C150: Compartilhamento de infraestrutura | D150: 202109 | E150: 44872 | F150: APLCVA06587_FLXPAGAMENTOS_092021_S005.XML | G150: 44440 | H150: 44440 | I150: 1387544.96
A151: 6 | B151: Compartilhamento de infraestrutura | C151: Compartilhamento de infraestrutura | D151: 202110 | E151: 44872 | F151: APLCVA06587_FLXPAGAMENTOS_102021_S005.XML | G151: 44470 | H151: 44470 | I151: 1548901.84
A152: 6 | B152: Compartilhamento de infraestrutura | C152: Compartilhamento de infraestrutura | D152: 202111 | E152: 44872 | F152: APLCVA06587_FLXPAGAMENTOS_112021_S003.XML | G152: 44501 | H152: 44501 | I152: 1425293.03
A153: 6 | B153: Compartilhamento de infraestrutura | C153: Compartilhamento de infraestrutura | D153: 202112 | E153: 45001 | F153: APLCVA06587_FLXPAGAMENTOS_122021_S004.XML | G153: 44531 | H153: 44531 | I153: 1436280.89
A154: 6 | B154: Compartilhamento de infraestrutura | C154: Compartilhamento de infraestrutura | D154: 202201 | E154: 45001 | F154: APLCVA06587_FLXPAGAMENTOS_012022_S004.XML | G154: 44562 | H154: 44562 | I154: 1461289.24
A155: 6 | B155: Compartilhamento de infraestrutura | C155: Compartilhamento de infraestrutura | D155: 202202 | E155: 45001 | F155: APLCVA06587_FLXPAGAMENTOS_022022_S006.XML | G155: 44593 | H155: 44593 | I155: 1531330.59
A156: 6 | B156: Compartilhamento de infraestrutura | C156: Compartilhamento de infraestrutura | D156: 202203 | E156: 45001 | F156: APLCVA06587_FLXPAGAMENTOS_032022_S007.XML | G156: 44621 | H156: 44621 | I156: 1570501.3
A157: 6 | B157: Compartilhamento de infraestrutura | C157: Compartilhamento de infraestrutura | D157: 202204 | E157: 45001 | F157: APLCVA06587_FLXPAGAMENTOS_042022_S004.XML | G157: 44652 | H157: 44652 | I157: 1562959.28
A158: 6 | B158: Compartilhamento de infraestrutura | C158: Compartilhamento de infraestrutura | D158: 202205 | E158: 45001 | F158: APLCVA06587_FLXPAGAMENTOS_052022_S004.XML | G158: 44682 | H158: 44682 | I158: 1539779.03
A159: 6 | B159: Compartilhamento de infraestrutura | C159: Compartilhamento de infraestrutura | D159: 202206 | E159: 45001 | F159: APLCVA06587_FLXPAGAMENTOS_062022_S006.XML | G159: 44713 | H159: 44713 | I159: 1569689.18
A160: 6 | B160: Compartilhamento de infraestrutura | C160: Compartilhamento de infraestrutura | D160: 202207 | E160: 45001 | F160: APLCVA06587_FLXPAGAMENTOS_072022_S007.XML | G160: 44743 | H160: 44743 | I160: 1749166.51
A161: 6 | B161: Compartilhamento de infraestrutura | C161: Compartilhamento de infraestrutura | D161: 202208 | E161: 45001 | F161: APLCVA06587_FLXPAGAMENTOS_082022_S006.XML | G161: 44774 | H161: 44774 | I161: 1626410.89
A162: 6 | B162: Compartilhamento de infraestrutura | C162: Compartilhamento de infraestrutura | D162: 202209 | E162: 45001 | F162: APLCVA06587_FLXPAGAMENTOS_092022_S006.XML | G162: 44805 | H162: 44805 | I162: 1644841.29
A163: 6 | B163: Compartilhamento de infraestrutura | C163: Compartilhamento de infraestrutura | D163: 202210 | E163: 45001 | F163: APLCVA06587_FLXPAGAMENTOS_102022_S005.XML | G163: 44835 | H163: 44835 | I163: 2131103.47
A164: 6 | B164: Compartilhamento de infraestrutura | C164: Compartilhamento de infraestrutura | D164: 202211 | E164: 45001 | F164: APLCVA06587_FLXPAGAMENTOS_112022_S004.XML | G164: 44866 | H164: 44866 | I164: 2119941.81
A165: 6 | B165: Compartilhamento de infraestrutura | C165: Compartilhamento de infraestrutura | D165: 202212 | E165: 45001 | F165: APLCVA06587_FLXPAGAMENTOS_122022_S003.XML | G165: 44896 | H165: 44896 | I165: 2138265.6
A166: 6 | B166: Compartilhamento de infraestrutura | C166: Compartilhamento de infraestrutura | D166: 202301 | E166: 45001 | F166: APLCVA06587_FLXPAGAMENTOS_012023_S002.XML | G166: 44927 | H166: 44927 | I166: 1666018.51
A167: 6 | B167: Compartilhamento de infraestrutura | C167: Compartilhamento de infraestrutura | D167: 202302 | E167: 45002 | F167: APLCVA06587_FLXPAGAMENTOS_022023_S002.XML | G167: 44958 | H167: 44958 | I167: 1336604.76
A168: 6 | B168: Compartilhamento de infraestrutura | C168: Compartilhamento de infraestrutura | D168: 202303 | E168: 45001 | F168: APLCVA06587_FLXPAGAMENTOS_032023_S001.XML | G168: 44986 | H168: 44986 | I168: 0
A169: 23 | B169: Ultrapassagem de Demanda | C169: Ultrapassagem de Demanda | D169: 202011 | E169: 44872 | F169: APLCVA06587_FLXPAGAMENTOS_112020_S004.XML | G169: 44136 | H169: 44136 | I169: 441544.77
A170: 23 | B170: Ultrapassagem de Demanda | C170: Ultrapassagem de Demanda | D170: 202012 | E170: 44872 | F170: APLCVA06587_FLXPAGAMENTOS_122020_S003.XML | G170: 44166 | H170: 44166 | I170: 486595.81
A171: 23 | B171: Ultrapassagem de Demanda | C171: Ultrapassagem de Demanda | D171: 202101 | E171: 44872 | F171: APLCVA06587_FLXPAGAMENTOS_012021_S004.XML | G171: 44197 | H171: 44197 | I171: 324435.42
A172: 23 | B172: Ultrapassagem de Demanda | C172: Ultrapassagem de Demanda | D172: 202102 | E172: 44872 | F172: APLCVA06587_FLXPAGAMENTOS_022021_S003.XML | G172: 44228 | H172: 44228 | I172: 477108.76
A173: 23 | B173: Ultrapassagem de Demanda | C173: Ultrapassagem de Demanda | D173: 202103 | E173: 44872 | F173: APLCVA06587_FLXPAGAMENTOS_032021_S006.XML | G173: 44256 | H173: 44256 | I173: 545902.58
A174: 23 | B174: Ultrapassagem de Demanda | C174: Ultrapassagem de Demanda | D174: 202104 | E174: 44872 | F174: APLCVA06587_FLXPAGAMENTOS_042021_S005.XML | G174: 44287 | H174: 44287 | I174: 576732.92
A175: 23 | B175: Ultrapassagem de Demanda | C175: Ultrapassagem de Demanda | D175: 202105 | E175: 44872 | F175: APLCVA06587_FLXPAGAMENTOS_052021_S006.XML | G175: 44317 | H175: 44317 | I175: 519609.96
A176: 23 | B176: Ultrapassagem de Demanda | C176: Ultrapassagem de Demanda | D176: 202106 | E176: 44872 | F176: APLCVA06587_FLXPAGAMENTOS_062021_S005.XML | G176: 44348 | H176: 44348 | I176: 486252.62
A177: 23 | B177: Ultrapassagem de Demanda | C177: Ultrapassagem de Demanda | D177: 202107 | E177: 44872 | F177: APLCVA06587_FLXPAGAMENTOS_072021_S005.XML | G177: 44378 | H177: 44378 | I177: 469533.75
A178: 23 | B178: Ultrapassagem de Demanda | C178: Ultrapassagem de Demanda | D178: 202108 | E178: 45001 | F178: APLCVA06587_FLXPAGAMENTOS_082021_S007.XML | G178: 44409 | H178: 44409 | I178: 485269.43
A179: 23 | B179: Ultrapassagem de Demanda | C179: Ultrapassagem de Demanda | D179: 202109 | E179: 44872 | F179: APLCVA06587_FLXPAGAMENTOS_092021_S005.XML | G179: 44440 | H179: 44440 | I179: 609460.21
A180: 23 | B180: Ultrapassagem de Demanda | C180: Ultrapassagem de Demanda | D180: 202110 | E180: 44872 | F180: APLCVA06587_FLXPAGAMENTOS_102021_S005.XML | G180: 44470 | H180: 44470 | I180: 607869.71
A181: 23 | B181: Ultrapassagem de Demanda | C181: Ultrapassagem de Demanda | D181: 202111 | E181: 44872 | F181: APLCVA06587_FLXPAGAMENTOS_112021_S003.XML | G181: 44501 | H181: 44501 | I181: 769245.56
A182: 23 | B182: Ultrapassagem de Demanda | C182: Ultrapassagem de Demanda | D182: 202112 | E182: 45001 | F182: APLCVA06587_FLXPAGAMENTOS_122021_S004.XML | G182: 44531 | H182: 44531 | I182: 628391.14
A183: 23 | B183: Ultrapassagem de Demanda | C183: Ultrapassagem de Demanda | D183: 202201 | E183: 45001 | F183: APLCVA06587_FLXPAGAMENTOS_012022_S004.XML | G183: 44562 | H183: 44562 | I183: 696829.49
A184: 23 | B184: Ultrapassagem de Demanda | C184: Ultrapassagem de Demanda | D184: 202202 | E184: 45001 | F184: APLCVA06587_FLXPAGAMENTOS_022022_S006.XML | G184: 44593 | H184: 44593 | I184: 630224.86
A185: 23 | B185: Ultrapassagem de Demanda | C185: Ultrapassagem de Demanda | D185: 202203 | E185: 45001 | F185: APLCVA06587_FLXPAGAMENTOS_032022_S007.XML | G185: 44621 | H185: 44621 | I185: 886624.6
A186: 23 | B186: Ultrapassagem de Demanda | C186: Ultrapassagem de Demanda | D186: 202204 | E186: 45001 | F186: APLCVA06587_FLXPAGAMENTOS_042022_S004.XML | G186: 44652 | H186: 44652 | I186: 586659.82
A187: 23 | B187: Ultrapassagem de Demanda | C187: Ultrapassagem de Demanda | D187: 202205 | E187: 45001 | F187: APLCVA06587_FLXPAGAMENTOS_052022_S004.XML | G187: 44682 | H187: 44682 | I187: 545060.91
A188: 23 | B188: Ultrapassagem de Demanda | C188: Ultrapassagem de Demanda | D188: 202206 | E188: 45001 | F188: APLCVA06587_FLXPAGAMENTOS_062022_S006.XML | G188: 44713 | H188: 44713 | I188: 462620.09
A189: 23 | B189: Ultrapassagem de Demanda | C189: Ultrapassagem de Demanda | D189: 202207 | E189: 45001 | F189: APLCVA06587_FLXPAGAMENTOS_072022_S007.XML | G189: 44743 | H189: 44743 | I189: 373865
A190: 23 | B190: Ultrapassagem de Demanda | C190: Ultrapassagem de Demanda | D190: 202208 | E190: 45001 | F190: APLCVA06587_FLXPAGAMENTOS_082022_S006.XML | G190: 44774 | H190: 44774 | I190: 282353.55
A191: 23 | B191: Ultrapassagem de Demanda | C191: Ultrapassagem de Demanda | D191: 202209 | E191: 45001 | F191: APLCVA06587_FLXPAGAMENTOS_092022_S006.XML | G191: 44805 | H191: 44805 | I191: 314471.9
A192: 23 | B192: Ultrapassagem de Demanda | C192: Ultrapassagem de Demanda | D192: 202210 | E192: 45001 | F192: APLCVA06587_FLXPAGAMENTOS_102022_S005.XML | G192: 44835 | H192: 44835 | I192: 538967.16
A193: 23 | B193: Ultrapassagem de Demanda | C193: Ultrapassagem de Demanda | D193: 202211 | E193: 45001 | F193: APLCVA06587_FLXPAGAMENTOS_112022_S004.XML | G193: 44866 | H193: 44866 | I193: 588659.17
A194: 23 | B194: Ultrapassagem de Demanda | C194: Ultrapassagem de Demanda | D194: 202212 | E194: 45001 | F194: APLCVA06587_FLXPAGAMENTOS_122022_S003.XML | G194: 44896 | H194: 44896 | I194: 658387.78
A195: 23 | B195: Ultrapassagem de Demanda | C195: Ultrapassagem de Demanda | D195: 202301 | E195: 45001 | F195: APLCVA06587_FLXPAGAMENTOS_012023_S002.XML | G195: 44927 | H195: 44927 | I195: 856907.07
A196: 23 | B196: Ultrapassagem de Demanda | C196: Ultrapassagem de Demanda | D196: 202302 | E196: 45002 | F196: APLCVA06587_FLXPAGAMENTOS_022023_S002.XML | G196: 44958 | H196: 44958 | I196: 859029.92
A197: 23 | B197: Ultrapassagem de Demanda | C197: Ultrapassagem de Demanda | D197: 202303 | E197: 45001 | F197: APLCVA06587_FLXPAGAMENTOS_032023_S001.XML | G197: 44986 | H197: 44986 | I197: 0
A198: 24 | B198: Excedente Reativo | C198: Excedente Reativo | D198: 202011 | E198: 44872 | F198: APLCVA06587_FLXPAGAMENTOS_112020_S004.XML | G198: 44136 | H198: 44136 | I198: 604614.86
A199: 24 | B199: Excedente Reativo | C199: Excedente Reativo | D199: 202012 | E199: 44872 | F199: APLCVA06587_FLXPAGAMENTOS_122020_S003.XML | G199: 44166 | H199: 44166 | I199: 607313.76
A200: 24 | B200: Excedente Reativo | C200: Excedente Reativo | D200: 202101 | E200: 44872 | F200: APLCVA06587_FLXPAGAMENTOS_012021_S004.XML | G200: 44197 | H200: 44197 | I200: 567311.32
A201: 24 | B201: Excedente Reativo | C201: Excedente Reativo | D201: 202102 | E201: 44872 | F201: APLCVA06587_FLXPAGAMENTOS_022021_S003.XML | G201: 44228 | H201: 44228 | I201: 429142.69
A202: 24 | B202: Excedente Reativo | C202: Excedente Reativo | D202: 202103 | E202: 44872 | F202: APLCVA06587_FLXPAGAMENTOS_032021_S006.XML | G202: 44256 | H202: 44256 | I202: 560308.58
A203: 24 | B203: Excedente Reativo | C203: Excedente Reativo | D203: 202104 | E203: 44872 | F203: APLCVA06587_FLXPAGAMENTOS_042021_S005.XML | G203: 44287 | H203: 44287 | I203: 574570.78
A204: 24 | B204: Excedente Reativo | C204: Excedente Reativo | D204: 202105 | E204: 44872 | F204: APLCVA06587_FLXPAGAMENTOS_052021_S006.XML | G204: 44317 | H204: 44317 | I204: 598839.01
A205: 24 | B205: Excedente Reativo | C205: Excedente Reativo | D205: 202106 | E205: 44872 | F205: APLCVA06587_FLXPAGAMENTOS_062021_S005.XML | G205: 44348 | H205: 44348 | I205: 572824.16
A206: 24 | B206: Excedente Reativo | C206: Excedente Reativo | D206: 202107 | E206: 44872 | F206: APLCVA06587_FLXPAGAMENTOS_072021_S005.XML | G206: 44378 | H206: 44378 | I206: 578933.4
... 20 more rows

Sheet Entrada
A1: Entrada de parâmetros para cálculo tarifário
B4: Energia | D4: Últ. Atulização | F4: Parâmetros para Revisão | P4: ="Caso de OR para a empresa é: " &IF(BD!C53=4,"caso 1","caso 3") -> Caso de OR para a empresa é: caso 3
Q5: Competência Final OR | R5: =IF(CAPA!C7="Revisão",(DATE(YEAR('VPB e Fator X'!C10),MONTH('VPB e Fator X'!C10)-1,1)),0) -> 44805
D6: 45006 | F6: CAPEX - Ativos de Distribuição | J6: Custo Operacional Real do(s) último(s) ano(s) | P6: Outras Receitas
B7: Montante de Geração Própria | D7: 45006 | F7: (1) Ativo Imobilizado em Serviço (Valor Novo de Reposição) | G7: =G73*VLOOKUP(DATE(YEAR(CAPA!$C$10),MONTH(CAPA!$C$10)-1,1),Índices!$B$135:$D$638,3,0)/VLOOKUP(DATE(YEAR($G$72),MONTH($G$72)-1,1),Índices!$B$135:$D$638,3,0) -> 3143010955 | J7: Ano do Custo Operacional | L7: 2020 | M7: 2021 | P7: Tipo de Receita | Q7: =$R$5 -> 2022-09-01 | R7: =DATE(YEAR(Q7),MONTH(Q7)-1,1) -> 2022-08-01 | S7: =DATE(YEAR(R7),MONTH(R7)-1,1) -> 2022-07-01 | T7: 2022-06-01 | U7: 2022-05-01 | V7: 2022-04-01 | W7: 2022-03-01 | X7: 2022-02-01 | Y7: 2022-01-01 | Z7: 2021-12-01 | AA7: 2021-11-01 | AB7: 2021-10-01 | AC7: 2021-09-01 | AD7: 2021-08-01 | AE7: 2021-07-01 | AF7: 2021-06-01 | AG7: 2021-05-01 | AH7: 2021-04-01 | AI7: 2021-03-01 | AJ7: 2021-02-01 | AK7: 2021-01-01 | AL7: 2020-12-01 | AM7: 2020-11-01 | AN7: 2020-10-01 | AO7: 2020-09-01 | AP7: 2020-08-01 | AQ7: 2020-07-01 | AR7: 2020-06-01 | AS7: 2020-05-01 | AT7: 2020-04-01 | AU7: 2020-03-01 | AV7: 2020-02-01 | AW7: 2020-01-01 | AX7: 2019-12-01 | AY7: 2019-11-01 | AZ7: 2019-10-01
B8: Custo médio da Geração Própria | D8: 45006 | F8: (2) Índice de Aproveitamento Integral | G8: =G74*VLOOKUP(DATE(YEAR(CAPA!$C$10),MONTH(CAPA!$C$10)-1,1),Índices!$B$135:$D$638,3,0)/VLOOKUP(DATE(YEAR($G$72),MONTH($G$72)-1,1),Índices!$B$135:$D$638,3,0) -> 2907584.646 | J8: CONTA PESSOAL | P8: Serviços Cobráveis | Q8: =SUMIFS(Tab_Uderor[R$],Tab_Uderor[Competencia],Entrada!Q$7,Tab_Uderor[TipoReceita],Entrada!$P8) -> 95764.38 | R8: =SUMIFS(Tab_Uderor[R$],Tab_Uderor[Competencia],Entrada!R$7,Tab_Uderor[TipoReceita],Entrada!$P8) -> 117447.44 | S8: =SUMIFS(Tab_Uderor[R$],Tab_Uderor[Competencia],Entrada!S$7,Tab_Uderor[TipoReceita],Entrada!$P8) -> 146946.29 | T8: =SUMIFS(Tab_Uderor[R$],Tab_Uderor[Competencia],Entrada!T$7,Tab_Uderor[TipoReceita],Entrada!$P8) -> 133250.46 | U8: =SUMIFS(Tab_Uderor[R$],Tab_Uderor[Competencia],Entrada!U$7,Tab_Uderor[TipoReceita],Entrada!$P8) -> 208955.82 | V8: =SUMIFS(Tab_Uderor[R$],Tab_Uderor[Competencia],Entrada!V$7,Tab_Uderor[TipoReceita],Entrada!$P8) -> 225403.63 | W8: =SUMIFS(Tab_Uderor[R$],Tab_Uderor[Competencia],Entrada!W$7,Tab_Uderor[TipoReceita],Entrada!$P8) -> 114140.59 | X8: =SUMIFS(Tab_Uderor[R$],Tab_Uderor[Competencia],Entrada!X$7,Tab_Uderor[TipoReceita],Entrada!$P8) -> 184671.41 | Y8: =SUMIFS(Tab_Uderor[R$],Tab_Uderor[Competencia],Entrada!Y$7,Tab_Uderor[TipoReceita],Entrada!$P8) -> 124164.84 | Z8: =SUMIFS(Tab_Uderor[R$],Tab_Uderor[Competencia],Entrada!Z$7,Tab_Uderor[TipoReceita],Entrada!$P8) -> 279167.15 | AA8: =SUMIFS(Tab_Uderor[R$],Tab_Uderor[Competencia],Entrada!AA$7,Tab_Uderor[TipoReceita],Entrada!$P8) -> 102909.88 | AB8: =SUMIFS(Tab_Uderor[R$],Tab_Uderor[Competencia],Entrada!AB$7,Tab_Uderor[TipoReceita],Entrada!$P8) -> 121517.57 | AC8: =SUMIFS(Tab_Uderor[R$],Tab_Uderor[Competencia],Entrada!AC$7,Tab_Uderor[TipoReceita],Entrada!$P8) -> 189982.95 | AD8: =SUMIFS(Tab_Uderor[R$],Tab_Uderor[Competencia],Entrada!AD$7,Tab_Uderor[TipoReceita],Entrada!$P8) -> 241508.85 | AE8: =SUMIFS(Tab_Uderor[R$],Tab_Uderor[Competencia],Entrada!AE$7,Tab_Uderor[TipoReceita],Entrada!$P8) -> 217184.93 | AF8: =SUMIFS(Tab_Uderor[R$],Tab_Uderor[Competencia],Entrada!AF$7,Tab_Uderor[TipoReceita],Entrada!$P8) -> 237775.29 | AG8: =SUMIFS(Tab_Uderor[R$],Tab_Uderor[Competencia],Entrada!AG$7,Tab_Uderor[TipoReceita],Entrada!$P8) -> 174757.42 | AH8: =SUMIFS(Tab_Uderor[R$],Tab_Uderor[Competencia],Entrada!AH$7,Tab_Uderor[TipoReceita],Entrada!$P8) -> 165986.63 | AI8: =SUMIFS(Tab_Uderor[R$],Tab_Uderor[Competencia],Entrada!AI$7,Tab_Uderor[TipoReceita],Entrada!$P8) -> 186394.73 | AJ8: =SUMIFS(Tab_Uderor[R$],Tab_Uderor[Competencia],Entrada!AJ$7,Tab_Uderor[TipoReceita],Entrada!$P8) -> 119791.67 | AK8: =SUMIFS(Tab_Uderor[R$],Tab_Uderor[Competencia],Entrada!AK$7,Tab_Uderor[TipoReceita],Entrada!$P8) -> 144824.88 | AL8: =SUMIFS(Tab_Uderor[R$],Tab_Uderor[Competencia],Entrada!AL$7,Tab_Uderor[TipoReceita],Entrada!$P8) -> 142072.67 | AM8: =SUMIFS(Tab_Uderor[R$],Tab_Uderor[Competencia],Entrada!AM$7,Tab_Uderor[TipoReceita],Entrada!$P8) -> 162882.67 | AN8: 201961.38 | AO8: 204920.65 | AP8: 161189.14 | AQ8: 130808.34 | AR8: 91527.6 | AS8: 44202.64 | AT8: 51540.66 | AU8: 166285.64 | AV8: 180900.63 | AW8: 162761.92 | AX8: 189453.68 | AY8: 106265.58 | AZ8: 115146.52
D9: 45006 | F9: (3) Obrigações Especiais Bruta | G9: =G75*VLOOKUP(DATE(YEAR(CAPA!$C$10),MONTH(CAPA!$C$10)-1,1),Índices!$B$135:$D$638,3,0)/VLOOKUP(DATE(YEAR($G$72),MONTH($G$72)-1,1),Índices!$B$135:$D$638,3,0) -> 677219826.5 | J9: BMP - 610530501; 610550501; 610532501; 610552501 | K9: Remuneração | L9: =SUMIFS(Tab_RIT_BMP[SALDO],Tab_RIT_BMP[CONTA],610530501,Tab_RIT_BMP[ANO],$L$7)+SUMIFS(Tab_RIT_BMP[SALDO],Tab_RIT_BMP[CONTA],610550501,Tab_RIT_BMP[ANO],$L$7)+ SUMIFS(Tab_RIT_BMP[SALDO],Tab_RIT_BMP[CONTA],610532501,Tab_RIT_BMP[ANO],$L$7)+SUMIFS(Tab_RIT_BMP[SALDO],Tab_RIT_BMP[CONTA],610552501,Tab_RIT_BMP[ANO],$L$7) -> 30277625.47 | M9: =SUMIFS(Tab_RIT_BMP[SALDO],Tab_RIT_BMP[CONTA],610530501,Tab_RIT_BMP[ANO],$M$7)+SUMIFS(Tab_RIT_BMP[SALDO],Tab_RIT_BMP[CONTA],610550501,Tab_RIT_BMP[ANO],$M$7)+ SUMIFS(Tab_RIT_BMP[SALDO],Tab_RIT_BMP[CONTA],610532501,Tab_RIT_BMP[ANO],$M$7)+SUMIFS(Tab_RIT_BMP[SALDO],Tab_RIT_BMP[CONTA],610552501,Tab_RIT_BMP[ANO],$M$7) -> 29855140.7 | P9: Arrecadação de convênios ou valores pela fatura | Q9: =SUMIFS(Tab_Uderor[R$],Tab_Uderor[Competencia],Entrada!Q$7,Tab_Uderor[TipoReceita],Entrada!$P9) -> 210773.07 | R9: =SUMIFS(Tab_Uderor[R$],Tab_Uderor[Competencia],Entrada!R$7,Tab_Uderor[TipoReceita],Entrada!$P9) -> 215250 | S9: =SUMIFS(Tab_Uderor[R$],Tab_Uderor[Competencia],Entrada!S$7,Tab_Uderor[TipoReceita],Entrada!$P9) -> 209682.42 | T9: =SUMIFS(Tab_Uderor[R$],Tab_Uderor[Competencia],Entrada!T$7,Tab_Uderor[TipoReceita],Entrada!$P9) -> 183204.64 | U9: =SUMIFS(Tab_Uderor[R$],Tab_Uderor[Competencia],Entrada!U$7,Tab_Uderor[TipoReceita],Entrada!$P9) -> 198476.76 | V9: =SUMIFS(Tab_Uderor[R$],Tab_Uderor[Competencia],Entrada!V$7,Tab_Uderor[TipoReceita],Entrada!$P9) -> 181673.63 | W9: =SUMIFS(Tab_Uderor[R$],Tab_Uderor[Competencia],Entrada!W$7,Tab_Uderor[TipoReceita],Entrada!$P9) -> 258655.55 | X9: =SUMIFS(Tab_Uderor[R$],Tab_Uderor[Competencia],Entrada!X$7,Tab_Uderor[TipoReceita],Entrada!$P9) -> 141322.17 | Y9: =SUMIFS(Tab_Uderor[R$],Tab_Uderor[Competencia],Entrada!Y$7,Tab_Uderor[TipoReceita],Entrada!$P9) -> 136306.8 | Z9: =SUMIFS(Tab_Uderor[R$],Tab_Uderor[Competencia],Entrada!Z$7,Tab_Uderor[TipoReceita],Entrada!$P9) -> 169137.94 | AA9: =SUMIFS(Tab_Uderor[R$],Tab_Uderor[Competencia],Entrada!AA$7,Tab_Uderor[TipoReceita],Entrada!$P9) -> 165034.24 | AB9: =SUMIFS(Tab_Uderor[R$],Tab_Uderor[Competencia],Entrada!AB$7,Tab_Uderor[TipoReceita],Entrada!$P9) -> 152590.29 | AC9: =SUMIFS(Tab_Uderor[R$],Tab_Uderor[Competencia],Entrada!AC$7,Tab_Uderor[TipoReceita],Entrada!$P9) -> 151464.35 | AD9: =SUMIFS(Tab_Uderor[R$],Tab_Uderor[Competencia],Entrada!AD$7,Tab_Uderor[TipoReceita],Entrada!$P9) -> 156992.12 | AE9: =SUMIFS(Tab_Uderor[R$],Tab_Uderor[Competencia],Entrada!AE$7,Tab_Uderor[TipoReceita],Entrada!$P9) -> 152733.22 | AF9: =SUMIFS(Tab_Uderor[R$],Tab_Uderor[Competencia],Entrada!AF$7,Tab_Uderor[TipoReceita],Entrada!$P9) -> 154419.44 | AG9: =SUMIFS(Tab_Uderor[R$],Tab_Uderor[Competencia],Entrada!AG$7,Tab_Uderor[TipoReceita],Entrada!$P9) -> 162150.03 | AH9: =SUMIFS(Tab_Uderor[R$],Tab_Uderor[Competencia],Entrada!AH$7,Tab_Uderor[TipoReceita],Entrada!$P9) -> 158497.23 | AI9: =SUMIFS(Tab_Uderor[R$],Tab_Uderor[Competencia],Entrada!AI$7,Tab_Uderor[TipoReceita],Entrada!$P9) -> 239505.22 | AJ9: =SUMIFS(Tab_Uderor[R$],Tab_Uderor[Competencia],Entrada!AJ$7,Tab_Uderor[TipoReceita],Entrada!$P9) -> 85506.39 | AK9: =SUMIFS(Tab_Uderor[R$],Tab_Uderor[Competencia],Entrada!AK$7,Tab_Uderor[TipoReceita],Entrada!$P9) -> 85506.39 | AL9: =SUMIFS(Tab_Uderor[R$],Tab_Uderor[Competencia],Entrada!AL$7,Tab_Uderor[TipoReceita],Entrada!$P9) -> 132138.83 | AM9: =SUMIFS(Tab_Uderor[R$],Tab_Uderor[Competencia],Entrada!AM$7,Tab_Uderor[TipoReceita],Entrada!$P9) -> 134750.76 | AN9: 128051.89 | AO9: 125734.54 | AP9: 131990.99 | AQ9: 104602.15 | AR9: 132545.22 | AS9: 120749.61 | AT9: 132800.91 | AU9: 130692.03 | AV9: 124209.86 | AW9: 136662.49 | AX9: 126609.22 | AY9: 118840.65 | AZ9: 121296.67
D10: 45006 | F10: (4) Bens Totalmente Depreciados | G10: =G76*VLOOKUP(DATE(YEAR(CAPA!$C$10),MONTH(CAPA!$C$10)-1,1),Índices!$B$135:$D$638,3,0)/VLOOKUP(DATE(YEAR($G$72),MONTH($G$72)-1,1),Índices!$B$135:$D$638,3,0) -> 488530482.5 | J10: BMP - 610530502; 610550502; 610532502; 610552502 | K10: Encargos | L10: =SUMIFS(Tab_RIT_BMP[SALDO],Tab_RIT_BMP[CONTA],610530502,Tab_RIT_BMP[ANO],$L$7)+SUMIFS(Tab_RIT_BMP[SALDO],Tab_RIT_BMP[CONTA],610550502,Tab_RIT_BMP[ANO],$L$7)+ SUMIFS(Tab_RIT_BMP[SALDO],Tab_RIT_BMP[CONTA],610532502,Tab_RIT_BMP[ANO],$L$7)+SUMIFS(Tab_RIT_BMP[SALDO],Tab_RIT_BMP[CONTA],610552502,Tab_RIT_BMP[ANO],$L$7) -> 13817338.41 | M10: =SUMIFS(Tab_RIT_BMP[SALDO],Tab_RIT_BMP[CONTA],610530502,Tab_RIT_BMP[ANO],$M$7)+SUMIFS(Tab_RIT_BMP[SALDO],Tab_RIT_BMP[CONTA],610550502,Tab_RIT_BMP[ANO],$M$7)+ SUMIFS(Tab_RIT_BMP[SALDO],Tab_RIT_BMP[CONTA],610532502,Tab_RIT_BMP[ANO],$M$7)+SUMIFS(Tab_RIT_BMP[SALDO],Tab_RIT_BMP[CONTA],610552502,Tab_RIT_BMP[ANO],$M$7) -> 15189754.02 | P10: Arrecadação de faturas de terceiros por estrutura própria | Q10: =SUMIFS(Tab_Uderor[R$],Tab_Uderor[Competencia],Entrada!Q$7,Tab_Uderor[TipoReceita],Entrada!$P10) -> 0 | R10: =SUMIFS(Tab_Uderor[R$],Tab_Uderor[Competencia],Entrada!R$7,Tab_Uderor[TipoReceita],Entrada!$P10) -> 0 | S10: =SUMIFS(Tab_Uderor[R$],Tab_Uderor[Competencia],Entrada!S$7,Tab_Uderor[TipoReceita],Entrada!$P10) -> 0 | T10: =SUMIFS(Tab_Uderor[R$],Tab_Uderor[Competencia],Entrada!T$7,Tab_Uderor[TipoReceita],Entrada!$P10) -> 0 | U10: =SUMIFS(Tab_Uderor[R$],Tab_Uderor[Competencia],Entrada!U$7,Tab_Uderor[TipoReceita],Entrada!$P10) -> 0 | V10: =SUMIFS(Tab_Uderor[R$],Tab_Uderor[Competencia],Entrada!V$7,Tab_Uderor[TipoReceita],Entrada!$P10) -> 0 | W10: =SUMIFS(Tab_Uderor[R$],Tab_Uderor[Competencia],Entrada!W$7,Tab_Uderor[TipoReceita],Entrada!$P10) -> 0 | X10: =SUMIFS(Tab_Uderor[R$],Tab_Uderor[Competencia],Entrada!X$7,Tab_Uderor[TipoReceita],Entrada!$P10) -> 0 | Y10: =SUMIFS(Tab_Uderor[R$],Tab_Uderor[Competencia],Entrada!Y$7,Tab_Uderor[TipoReceita],Entrada!$P10) -> 0 | Z10: =SUMIFS(Tab_Uderor[R$],Tab_Uderor[Competencia],Entrada!Z$7,Tab_Uderor[TipoReceita],Entrada!$P10) -> 0 | AA10: =SUMIFS(Tab_Uderor[R$],Tab_Uderor[Competencia],Entrada!AA$7,Tab_Uderor[TipoReceita],Entrada!$P10) -> 0 | AB10: =SUMIFS(Tab_Uderor[R$],Tab_Uderor[Competencia],Entrada!AB$7,Tab_Uderor[TipoReceita],Entrada!$P10) -> 0 | AC10: =SUMIFS(Tab_Uderor[R$],Tab_Uderor[Competencia],Entrada!AC$7,Tab_Uderor[TipoReceita],Entrada!$P10) -> 0 | AD10: =SUMIFS(Tab_Uderor[R$],Tab_Uderor[Competencia],Entrada!AD$7,Tab_Uderor[TipoReceita],Entrada!$P10) -> 0 | AE10: =SUMIFS(Tab_Uderor[R$],Tab_Uderor[Competencia],Entrada!AE$7,Tab_Uderor[TipoReceita],Entrada!$P10) -> 0 | AF10: =SUMIFS(Tab_Uderor[R$],Tab_Uderor[Competencia],Entrada!AF$7,Tab_Uderor[TipoReceita],Entrada!$P10) -> 0 | AG10: =SUMIFS(Tab_Uderor[R$],Tab_Uderor[Competencia],Entrada!AG$7,Tab_Uderor[TipoReceita],Entrada!$P10) -> 0 | AH10: =SUMIFS(Tab_Uderor[R$],Tab_Uderor[Competencia],Entrada!AH$7,Tab_Uderor[TipoReceita],Entrada!$P10) -> 0 | AI10: =SUMIFS(Tab_Uderor[R$],Tab_Uderor[Competencia],Entrada!AI$7,Tab_Uderor[TipoReceita],Entrada!$P10) -> 0 | AJ10: =SUMIFS(Tab_Uderor[R$],Tab_Uderor[Competencia],Entrada!AJ$7,Tab_Uderor[TipoReceita],Entrada!$P10) -> 0 | AK10: =SUMIFS(Tab_Uderor[R$],Tab_Uderor[Competencia],Entrada!AK$7,Tab_Uderor[TipoReceita],Entrada!$P10) -> 0 | AL10: =SUMIFS(Tab_Uderor[R$],Tab_Uderor[Competencia],Entrada!AL$7,Tab_Uderor[TipoReceita],Entrada!$P10) -> 0 | AM10: =SUMIFS(Tab_Uderor[R$],Tab_Uderor[Competencia],Entrada!AM$7,Tab_Uderor[TipoReceita],Entrada!$P10) -> 0 | AN10: 0 | AO10: 0 | AP10: 0 | AQ10: 0 | AR10: 0 | AS10: 0 | AT10: 0 | AU10: 0 | AV10: 0 | AW10: 0 | AX10: 0 | AY10: 0 | AZ10: 0
F11: (5) Base de Remuneração Bruta = (1)-(2)-(3)-(4) | G11: =G7-G8-G9-G10 -> 1974353061 | J11: BMP - 610530503; 610550503; 610532503; 610552503 | K11: Previdência Privada - Corrente | L11: =SUMIFS(Tab_RIT_BMP[SALDO],Tab_RIT_BMP[CONTA],610530503,Tab_RIT_BMP[ANO],$L$7)+SUMIFS(Tab_RIT_BMP[SALDO],Tab_RIT_BMP[CONTA],610550503,Tab_RIT_BMP[ANO],$L$7)+ SUMIFS(Tab_RIT_BMP[SALDO],Tab_RIT_BMP[CONTA],610532503,Tab_RIT_BMP[ANO],$L$7)+SUMIFS(Tab_RIT_BMP[SALDO],Tab_RIT_BMP[CONTA],610552503,Tab_RIT_BMP[ANO],$L$7) -> 1598653.68 | M11: =SUMIFS(Tab_RIT_BMP[SALDO],Tab_RIT_BMP[CONTA],610530503,Tab_RIT_BMP[ANO],$M$7)+SUMIFS(Tab_RIT_BMP[SALDO],Tab_RIT_BMP[CONTA],610550503,Tab_RIT_BMP[ANO],$M$7)+ SUMIFS(Tab_RIT_BMP[SALDO],Tab_RIT_BMP[CONTA],610532503,Tab_RIT_BMP[ANO],$M$7)+SUMIFS(Tab_RIT_BMP[SALDO],Tab_RIT_BMP[CONTA],610552503,Tab_RIT_BMP[ANO],$M$7) -> 2670390.57 | P11: Veiculação de publicidade | Q11: =SUMIFS(Tab_Uderor[R$],Tab_Uderor[Competencia],Entrada!Q$7,Tab_Uderor[TipoReceita],Entrada!$P11) -> 0 | R11: =SUMIFS(Tab_Uderor[R$],Tab_Uderor[Competencia],Entrada!R$7,Tab_Uderor[TipoReceita],Entrada!$P11) -> 0 | S11: =SUMIFS(Tab_Uderor[R$],Tab_Uderor[Competencia],Entrada!S$7,Tab_Uderor[TipoReceita],Entrada!$P11) -> 0 | T11: =SUMIFS(Tab_Uderor[R$],Tab_Uderor[Competencia],Entrada!T$7,Tab_Uderor[TipoReceita],Entrada!$P11) -> 0 | U11: =SUMIFS(Tab_Uderor[R$],Tab_Uderor[Competencia],Entrada!U$7,Tab_Uderor[TipoReceita],Entrada!$P11) -> 0 | V11: =SUMIFS(Tab_Uderor[R$],Tab_Uderor[Competencia],Entrada!V$7,Tab_Uderor[TipoReceita],Entrada!$P11) -> 0 | W11: =SUMIFS(Tab_Uderor[R$],Tab_Uderor[Competencia],Entrada!W$7,Tab_Uderor[TipoReceita],Entrada!$P11) -> 0 | X11: =SUMIFS(Tab_Uderor[R$],Tab_Uderor[Competencia],Entrada!X$7,Tab_Uderor[TipoReceita],Entrada!$P11) -> 0 | Y11: =SUMIFS(Tab_Uderor[R$],Tab_Uderor[Competencia],Entrada!Y$7,Tab_Uderor[TipoReceita],Entrada!$P11) -> 0 | Z11: =SUMIFS(Tab_Uderor[R$],Tab_Uderor[Competencia],Entrada!Z$7,Tab_Uderor[TipoReceita],Entrada!$P11) -> 0 | AA11: =SUMIFS(Tab_Uderor[R$],Tab_Uderor[Competencia],Entrada!AA$7,Tab_Uderor[TipoReceita],Entrada!$P11) -> 0 | AB11: =SUMIFS(Tab_Uderor[R$],Tab_Uderor[Competencia],Entrada!AB$7,Tab_Uderor[TipoReceita],Entrada!$P11) -> 0 | AC11: =SUMIFS(Tab_Uderor[R$],Tab_Uderor[Competencia],Entrada!AC$7,Tab_Uderor[TipoReceita],Entrada!$P11) -> 0 | AD11: =SUMIFS(Tab_Uderor[R$],Tab_Uderor[Competencia],Entrada!AD$7,Tab_Uderor[TipoReceita],Entrada!$P11) -> 0 | AE11: =SUMIFS(Tab_Uderor[R$],Tab_Uderor[Competencia],Entrada!AE$7,Tab_Uderor[TipoReceita],Entrada!$P11) -> 0 | AF11: =SUMIFS(Tab_Uderor[R$],Tab_Uderor[Competencia],Entrada!AF$7,Tab_Uderor[TipoReceita],Entrada!$P11) -> 0 | AG11: =SUMIFS(Tab_Uderor[R$],Tab_Uderor[Competencia],Entrada!AG$7,Tab_Uderor[TipoReceita],Entrada!$P11) -> 0 | AH11: =SUMIFS(Tab_Uderor[R$],Tab_Uderor[Competencia],Entrada!AH$7,Tab_Uderor[TipoReceita],Entrada!$P11) -> 0 | AI11: =SUMIFS(Tab_Uderor[R$],Tab_Uderor[Competencia],Entrada!AI$7,Tab_Uderor[TipoReceita],Entrada!$P11) -> 0 | AJ11: =SUMIFS(Tab_Uderor[R$],Tab_Uderor[Competencia],Entrada!AJ$7,Tab_Uderor[TipoReceita],Entrada!$P11) -> 0 | AK11: =SUMIFS(Tab_Uderor[R$],Tab_Uderor[Competencia],Entrada!AK$7,Tab_Uderor[TipoReceita],Entrada!$P11) -> 0 | AL11: =SUMIFS(Tab_Uderor[R$],Tab_Uderor[Competencia],Entrada!AL$7,Tab_Uderor[TipoReceita],Entrada!$P11) -> 0 | AM11: =SUMIFS(Tab_Uderor[R$],Tab_Uderor[Competencia],Entrada!AM$7,Tab_Uderor[TipoReceita],Entrada!$P11) -> 0 | AN11: 0 | AO11: 0 | AP11: 0 | AQ11: 0 | AR11: 0 | AS11: 0 | AT11: 0 | AU11: 0 | AV11: 0 | AW11: 0 | AX11: 0 | AY11: 0 | AZ11: 0
F12: (6) Depreciação Acumulada | G12: =G78*VLOOKUP(DATE(YEAR(CAPA!$C$10),MONTH(CAPA!$C$10)-1,1),Índices!$B$135:$D$638,3,0)/VLOOKUP(DATE(YEAR($G$72),MONTH($G$72)-1,1),Índices!$B$135:$D$638,3,0) -> 1581828540 | J12: BMP - 610530508; 610550508; 610532508; 610552508 | K12: Outros Benefícios | L12: =SUMIFS(Tab_RIT_BMP[SALDO],Tab_RIT_BMP[CONTA],610530508,Tab_RIT_BMP[ANO],$L$7)+SUMIFS(Tab_RIT_BMP[SALDO],Tab_RIT_BMP[CONTA],610550508,Tab_RIT_BMP[ANO],$L$7)+ SUMIFS(Tab_RIT_BMP[SALDO],Tab_RIT_BMP[CONTA],610532508,Tab_RIT_BMP[ANO],$L$7)+SUMIFS(Tab_RIT_BMP[SALDO],Tab_RIT_BMP[CONTA],610552508,Tab_RIT_BMP[ANO],$L$7) -> 15441093.37 | M12: =SUMIFS(Tab_RIT_BMP[SALDO],Tab_RIT_BMP[CONTA],610530508,Tab_RIT_BMP[ANO],$M$7)+SUMIFS(Tab_RIT_BMP[SALDO],Tab_RIT_BMP[CONTA],610550508,Tab_RIT_BMP[ANO],$M$7)+ SUMIFS(Tab_RIT_BMP[SALDO],Tab_RIT_BMP[CONTA],610532508,Tab_RIT_BMP[ANO],$M$7)+SUMIFS(Tab_RIT_BMP[SALDO],Tab_RIT_BMP[CONTA],610552508,Tab_RIT_BMP[ANO],$M$7) -> 15729586.95 | P12: Aluguel ou cessão onerosa de imóveis e espaços físicos | Q12: =SUMIFS(Tab_Uderor[R$],Tab_Uderor[Competencia],Entrada!Q$7,Tab_Uderor[TipoReceita],Entrada!$P12) -> 0 | R12: =SUMIFS(Tab_Uderor[R$],Tab_Uderor[Competencia],Entrada!R$7,Tab_Uderor[TipoReceita],Entrada!$P12) -> 0 | S12: =SUMIFS(Tab_Uderor[R$],Tab_Uderor[Competencia],Entrada!S$7,Tab_Uderor[TipoReceita],Entrada!$P12) -> 0 | T12: =SUMIFS(Tab_Uderor[R$],Tab_Uderor[Competencia],Entrada!T$7,Tab_Uderor[TipoReceita],Entrada!$P12) -> 0 | U12: =SUMIFS(Tab_Uderor[R$],Tab_Uderor[Competencia],Entrada!U$7,Tab_Uderor[TipoReceita],Entrada!$P12) -> 0 | V12: =SUMIFS(Tab_Uderor[R$],Tab_Uderor[Competencia],Entrada!V$7,Tab_Uderor[TipoReceita],Entrada!$P12) -> 0 | W12: =SUMIFS(Tab_Uderor[R$],Tab_Uderor[Competencia],Entrada!W$7,Tab_Uderor[TipoReceita],Entrada!$P12) -> 0 | X12: =SUMIFS(Tab_Uderor[R$],Tab_Uderor[Competencia],Entrada!X$7,Tab_Uderor[TipoReceita],Entrada!$P12) -> 0 | Y12: =SUMIFS(Tab_Uderor[R$],Tab_Uderor[Competencia],Entrada!Y$7,Tab_Uderor[TipoReceita],Entrada!$P12) -> 0 | Z12: =SUMIFS(Tab_Uderor[R$],Tab_Uderor[Competencia],Entrada!Z$7,Tab_Uderor[TipoReceita],Entrada!$P12) -> 0 | AA12: =SUMIFS(Tab_Uderor[R$],Tab_Uderor[Competencia],Entrada!AA$7,Tab_Uderor[TipoReceita],Entrada!$P12) -> 0 | AB12: =SUMIFS(Tab_Uderor[R$],Tab_Uderor[Competencia],Entrada!AB$7,Tab_Uderor[TipoReceita],Entrada!$P12) -> 0 | AC12: =SUMIFS(Tab_Uderor[R$],Tab_Uderor[Competencia],Entrada!AC$7,Tab_Uderor[TipoReceita],Entrada!$P12) -> 0 | AD12: =SUMIFS(Tab_Uderor[R$],Tab_Uderor[Competencia],Entrada!AD$7,Tab_Uderor[TipoReceita],Entrada!$P12) -> 0 | AE12: =SUMIFS(Tab_Uderor[R$],Tab_Uderor[Competencia],Entrada!AE$7,Tab_Uderor[TipoReceita],Entrada!$P12) -> 0 | AF12: =SUMIFS(Tab_Uderor[R$],Tab_Uderor[Competencia],Entrada!AF$7,Tab_Uderor[TipoReceita],Entrada!$P12) -> 0 | AG12: =SUMIFS(Tab_Uderor[R$],Tab_Uderor[Competencia],Entrada!AG$7,Tab_Uderor[TipoReceita],Entrada!$P12) -> 0 | AH12: =SUMIFS(Tab_Uderor[R$],Tab_Uderor[Competencia],Entrada!AH$7,Tab_Uderor[TipoReceita],Entrada!$P12) -> 0 | AI12: =SUMIFS(Tab_Uderor[R$],Tab_Uderor[Competencia],Entrada!AI$7,Tab_Uderor[TipoReceita],Entrada!$P12) -> 0 | AJ12: =SUMIFS(Tab_Uderor[R$],Tab_Uderor[Competencia],Entrada!AJ$7,Tab_Uderor[TipoReceita],Entrada!$P12) -> 0 | AK12: =SUMIFS(Tab_Uderor[R$],Tab_Uderor[Competencia],Entrada!AK$7,Tab_Uderor[TipoReceita],Entrada!$P12) -> 0 | AL12: =SUMIFS(Tab_Uderor[R$],Tab_Uderor[Competencia],Entrada!AL$7,Tab_Uderor[TipoReceita],Entrada!$P12) -> 0 | AM12: =SUMIFS(Tab_Uderor[R$],Tab_Uderor[Competencia],Entrada!AM$7,Tab_Uderor[TipoReceita],Entrada!$P12) -> 0 | AN12: 0 | AO12: 0 | AP12: 0 | AQ12: 0 | AR12: 0 | AS12: 0 | AT12: 0 | AU12: 0 | AV12: 0 | AW12: 0 | AX12: 0 | AY12: 0 | AZ12: 0
F13: (7) AIS Líquido (Valor de Mercado em Uso) | G13: =G7-G12 -> 1561182415 | J13: BMP - 610530506; 610550506; 610532506; 610552506 | K13: Despesas Rescisórias | L13: =SUMIFS(Tab_RIT_BMP[SALDO],Tab_RIT_BMP[CONTA],610530506,Tab_RIT_BMP[ANO],$L$7)+SUMIFS(Tab_RIT_BMP[SALDO],Tab_RIT_BMP[CONTA],610550506,Tab_RIT_BMP[ANO],$L$7)+ SUMIFS(Tab_RIT_BMP[SALDO],Tab_RIT_BMP[CONTA],610532506,Tab_RIT_BMP[ANO],$L$7)+SUMIFS(Tab_RIT_BMP[SALDO],Tab_RIT_BMP[CONTA],610552506,Tab_RIT_BMP[ANO],$L$7) -> 0 | M13: =SUMIFS(Tab_RIT_BMP[SALDO],Tab_RIT_BMP[CONTA],610530506,Tab_RIT_BMP[ANO],$M$7)+SUMIFS(Tab_RIT_BMP[SALDO],Tab_RIT_BMP[CONTA],610550506,Tab_RIT_BMP[ANO],$M$7)+ SUMIFS(Tab_RIT_BMP[SALDO],Tab_RIT_BMP[CONTA],610532506,Tab_RIT_BMP[ANO],$M$7)+SUMIFS(Tab_RIT_BMP[SALDO],Tab_RIT_BMP[CONTA],610552506,Tab_RIT_BMP[ANO],$M$7) -> 0 | P13: Compartilhamento de infraestrutura | Q13: =SUMIFS(Tab_Uderor[R$],Tab_Uderor[Competencia],Entrada!Q$7,Tab_Uderor[TipoReceita],Entrada!$P13) -> 1644841.29 | R13: =SUMIFS(Tab_Uderor[R$],Tab_Uderor[Competencia],Entrada!R$7,Tab_Uderor[TipoReceita],Entrada!$P13) -> 1626410.89 | S13: =SUMIFS(Tab_Uderor[R$],Tab_Uderor[Competencia],Entrada!S$7,Tab_Uderor[TipoReceita],Entrada!$P13) -> 1749166.51 | T13: =SUMIFS(Tab_Uderor[R$],Tab_Uderor[Competencia],Entrada!T$7,Tab_Uderor[TipoReceita],Entrada!$P13) -> 1569689.18 | U13: =SUMIFS(Tab_Uderor[R$],Tab_Uderor[Competencia],Entrada!U$7,Tab_Uderor[TipoReceita],Entrada!$P13) -> 1539779.03 | V13: =SUMIFS(Tab_Uderor[R$],Tab_Uderor[Competencia],Entrada!V$7,Tab_Uderor[TipoReceita],Entrada!$P13) -> 1562959.28 | W13: =SUMIFS(Tab_Uderor[R$],Tab_Uderor[Competencia],Entrada!W$7,Tab_Uderor[TipoReceita],Entrada!$P13) -> 1570501.3 | X13: =SUMIFS(Tab_Uderor[R$],Tab_Uderor[Competencia],Entrada!X$7,Tab_Uderor[TipoReceita],Entrada!$P13) -> 1531330.59 | Y13: =SUMIFS(Tab_Uderor[R$],Tab_Uderor[Competencia],Entrada!Y$7,Tab_Uderor[TipoReceita],Entrada!$P13) -> 1461289.24 | Z13: =SUMIFS(Tab_Uderor[R$],Tab_Uderor[Competencia],Entrada!Z$7,Tab_Uderor[TipoReceita],Entrada!$P13) -> 1436280.89 | AA13: =SUMIFS(Tab_Uderor[R$],Tab_Uderor[Competencia],Entrada!AA$7,Tab_Uderor[TipoReceita],Entrada!$P13) -> 1425293.03 | AB13: =SUMIFS(Tab_Uderor[R$],Tab_Uderor[Competencia],Entrada!AB$7,Tab_Uderor[TipoReceita],Entrada!$P13) -> 1548901.84 | AC13: =SUMIFS(Tab_Uderor[R$],Tab_Uderor[Competencia],Entrada!AC$7,Tab_Uderor[TipoReceita],Entrada!$P13) -> 1387544.96 | AD13: =SUMIFS(Tab_Uderor[R$],Tab_Uderor[Competencia],Entrada!AD$7,Tab_Uderor[TipoReceita],Entrada!$P13) -> 5651576.65 | AE13: =SUMIFS(Tab_Uderor[R$],Tab_Uderor[Competencia],Entrada!AE$7,Tab_Uderor[TipoReceita],Entrada!$P13) -> 1447328.88 | AF13: =SUMIFS(Tab_Uderor[R$],Tab_Uderor[Competencia],Entrada!AF$7,Tab_Uderor[TipoReceita],Entrada!$P13) -> 834206.31 | AG13: =SUMIFS(Tab_Uderor[R$],Tab_Uderor[Competencia],Entrada!AG$7,Tab_Uderor[TipoReceita],Entrada!$P13) -> 795469.2 | AH13: =SUMIFS(Tab_Uderor[R$],Tab_Uderor[Competencia],Entrada!AH$7,Tab_Uderor[TipoReceita],Entrada!$P13) -> 797267.25 | AI13: =SUMIFS(Tab_Uderor[R$],Tab_Uderor[Competencia],Entrada!AI$7,Tab_Uderor[TipoReceita],Entrada!$P13) -> 854986.34 | AJ13: =SUMIFS(Tab_Uderor[R$],Tab_Uderor[Competencia],Entrada!AJ$7,Tab_Uderor[TipoReceita],Entrada!$P13) -> 741114.08 | AK13: =SUMIFS(Tab_Uderor[R$],Tab_Uderor[Competencia],Entrada!AK$7,Tab_Uderor[TipoReceita],Entrada!$P13) -> 728877.33 | AL13: =SUMIFS(Tab_Uderor[R$],Tab_Uderor[Competencia],Entrada!AL$7,Tab_Uderor[TipoReceita],Entrada!$P13) -> 687173.79 | AM13: =SUMIFS(Tab_Uderor[R$],Tab_Uderor[Competencia],Entrada!AM$7,Tab_Uderor[TipoReceita],Entrada!$P13) -> 715546.56 | AN13: 694377.39 | AO13: 589871.48 | AP13: 676517.87 | AQ13: 722073.39 | AR13: 627269.97 | AS13: 625511.57 | AT13: 620826.69 | AU13: 645800.34 | AV13: 892978.81 | AW13: 599415.39 | AX13: 883469.05 | AY13: 884058.24 | AZ13: 891049.17
F14: (8) Índice de Aproveitamento Depreciado | G14: =G80*VLOOKUP(DATE(YEAR(CAPA!$C$10),MONTH(CAPA!$C$10)-1,1),Índices!$B$135:$D$638,3,0)/VLOOKUP(DATE(YEAR($G$72),MONTH($G$72)-1,1),Índices!$B$135:$D$638,3,0) -> 2227189.511 | J14: BMP - 610530507; 610550507; 610532507; 610552507 | K14: Participação nos Lucros e Resultados - PLR | L14: =SUMIFS(Tab_RIT_BMP[SALDO],Tab_RIT_BMP[CONTA],610530507,Tab_RIT_BMP[ANO],$L$7)+SUMIFS(Tab_RIT_BMP[SALDO],Tab_RIT_BMP[CONTA],610550507,Tab_RIT_BMP[ANO],$L$7)+SUMIFS(Tab_RIT_BMP[SALDO],Tab_RIT_BMP[CONTA],610532507,Tab_RIT_BMP[ANO],$L$7)+SUMIFS(Tab_RIT_BMP[SALDO],Tab_RIT_BMP[CONTA],610552507,Tab_RIT_BMP[ANO],$L$7) -> 8710954.25 | M14: =SUMIFS(Tab_RIT_BMP[SALDO],Tab_RIT_BMP[CONTA],610530507,Tab_RIT_BMP[ANO],$M$7)+SUMIFS(Tab_RIT_BMP[SALDO],Tab_RIT_BMP[CONTA],610550507,Tab_RIT_BMP[ANO],$M$7)+ SUMIFS(Tab_RIT_BMP[SALDO],Tab_RIT_BMP[CONTA],610532507,Tab_RIT_BMP[ANO],$M$7)+SUMIFS(Tab_RIT_BMP[SALDO],Tab_RIT_BMP[CONTA],610552507,Tab_RIT_BMP[ANO],$M$7) -> 14925264.68 | P14: Serviços de avaliação técnica e aferição de medidores. | Q14: =SUMIFS(Tab_Uderor[R$],Tab_Uderor[Competencia],Entrada!Q$7,Tab_Uderor[TipoReceita],Entrada!$P14) -> 0 | R14: =SUMIFS(Tab_Uderor[R$],Tab_Uderor[Competencia],Entrada!R$7,Tab_Uderor[TipoReceita],Entrada!$P14) -> 0 | S14: =SUMIFS(Tab_Uderor[R$],Tab_Uderor[Competencia],Entrada!S$7,Tab_Uderor[TipoReceita],Entrada!$P14) -> 0 | T14: =SUMIFS(Tab_Uderor[R$],Tab_Uderor[Competencia],Entrada!T$7,Tab_Uderor[TipoReceita],Entrada!$P14) -> 0 | U14: =SUMIFS(Tab_Uderor[R$],Tab_Uderor[Competencia],Entrada!U$7,Tab_Uderor[TipoReceita],Entrada!$P14) -> 0 | V14: =SUMIFS(Tab_Uderor[R$],Tab_Uderor[Competencia],Entrada!V$7,Tab_Uderor[TipoReceita],Entrada!$P14) -> 0 | W14: =SUMIFS(Tab_Uderor[R$],Tab_Uderor[Competencia],Entrada!W$7,Tab_Uderor[TipoReceita],Entrada!$P14) -> 0 | X14: =SUMIFS(Tab_Uderor[R$],Tab_Uderor[Competencia],Entrada!X$7,Tab_Uderor[TipoReceita],Entrada!$P14) -> 0 | Y14: =SUMIFS(Tab_Uderor[R$],Tab_Uderor[Competencia],Entrada!Y$7,Tab_Uderor[TipoReceita],Entrada!$P14) -> 0 | Z14: =SUMIFS(Tab_Uderor[R$],Tab_Uderor[Competencia],Entrada!Z$7,Tab_Uderor[TipoReceita],Entrada!$P14) -> 0 | AA14: =SUMIFS(Tab_Uderor[R$],Tab_Uderor[Competencia],Entrada!AA$7,Tab_Uderor[TipoReceita],Entrada!$P14) -> 0 | AB14: =SUMIFS(Tab_Uderor[R$],Tab_Uderor[Competencia],Entrada!AB$7,Tab_Uderor[TipoReceita],Entrada!$P14) -> 0 | AC14: =SUMIFS(Tab_Uderor[R$],Tab_Uderor[Competencia],Entrada!AC$7,Tab_Uderor[TipoReceita],Entrada!$P14) -> 0 | AD14: =SUMIFS(Tab_Uderor[R$],Tab_Uderor[Competencia],Entrada!AD$7,Tab_Uderor[TipoReceita],Entrada!$P14) -> 0 | AE14: =SUMIFS(Tab_Uderor[R$],Tab_Uderor[Competencia],Entrada!AE$7,Tab_Uderor[TipoReceita],Entrada!$P14) -> 0 | AF14: =SUMIFS(Tab_Uderor[R$],Tab_Uderor[Competencia],Entrada!AF$7,Tab_Uderor[TipoReceita],Entrada!$P14) -> 0 | AG14: =SUMIFS(Tab_Uderor[R$],Tab_Uderor[Competencia],Entrada!AG$7,Tab_Uderor[TipoReceita],Entrada!$P14) -> 0 | AH14: =SUMIFS(Tab_Uderor[R$],Tab_Uderor[Competencia],Entrada!AH$7,Tab_Uderor[TipoReceita],Entrada!$P14) -> 0 | AI14: =SUMIFS(Tab_Uderor[R$],Tab_Uderor[Competencia],Entrada!AI$7,Tab_Uderor[TipoReceita],Entrada!$P14) -> 0 | AJ14: =SUMIFS(Tab_Uderor[R$],Tab_Uderor[Competencia],Entrada!AJ$7,Tab_Uderor[TipoReceita],Entrada!$P14) -> 0 | AK14: =SUMIFS(Tab_Uderor[R$],Tab_Uderor[Competencia],Entrada!AK$7,Tab_Uderor[TipoReceita],Entrada!$P14) -> 0 | AL14: =SUMIFS(Tab_Uderor[R$],Tab_Uderor[Competencia],Entrada!AL$7,Tab_Uderor[TipoReceita],Entrada!$P14) -> 0 | AM14: =SUMIFS(Tab_Uderor[R$],Tab_Uderor[Competencia],Entrada!AM$7,Tab_Uderor[TipoReceita],Entrada!$P14) -> 0 | AN14: =SUMIFS(Tab_Uderor[R$],Tab_Uderor[Competencia],Entrada!AN$7,Tab_Uderor[TipoReceita],Entrada!$P14) -> 0 | AO14: =SUMIFS(Tab_Uderor[R$],Tab_Uderor[Competencia],Entrada!AO$7,Tab_Uderor[TipoReceita],Entrada!$P14) -> 0 | AP14: =SUMIFS(Tab_Uderor[R$],Tab_Uderor[Competencia],Entrada!AP$7,Tab_Uderor[TipoReceita],Entrada!$P14) -> 0 | AQ14: =SUMIFS(Tab_Uderor[R$],Tab_Uderor[Competencia],Entrada!AQ$7,Tab_Uderor[TipoReceita],Entrada!$P14) -> 0 | AR14: =SUMIFS(Tab_Uderor[R$],Tab_Uderor[Competencia],Entrada!AR$7,Tab_Uderor[TipoReceita],Entrada!$P14) -> 0 | AS14: =SUMIFS(Tab_Uderor[R$],Tab_Uderor[Competencia],Entrada!AS$7,Tab_Uderor[TipoReceita],Entrada!$P14) -> 0 | AT14: =SUMIFS(Tab_Uderor[R$],Tab_Uderor[Competencia],Entrada!AT$7,Tab_Uderor[TipoReceita],Entrada!$P14) -> 0 | AU14: =SUMIFS(Tab_Uderor[R$],Tab_Uderor[Competencia],Entrada!AU$7,Tab_Uderor[TipoReceita],Entrada!$P14) -> 0 | AV14: =SUMIFS(Tab_Uderor[R$],Tab_Uderor[Competencia],Entrada!AV$7,Tab_Uderor[TipoReceita],Entrada!$P14) -> 0 | AW14: =SUMIFS(Tab_Uderor[R$],Tab_Uderor[Competencia],Entrada!AW$7,Tab_Uderor[TipoReceita],Entrada!$P14) -> 0 | AX14: =SUMIFS(Tab_Uderor[R$],Tab_Uderor[Competencia],Entrada!AX$7,Tab_Uderor[TipoReceita],Entrada!$P14) -> 0 | AY14: =SUMIFS(Tab_Uderor[R$],Tab_Uderor[Competencia],Entrada!AY$7,Tab_Uderor[TipoReceita],Entrada!$P14) -> 0 | AZ14: =SUMIFS(Tab_Uderor[R$],Tab_Uderor[Competencia],Entrada!AZ$7,Tab_Uderor[TipoReceita],Entrada!$P14) -> 0
F15: (9) Valor da Base de Remuneração (VBR) | G15: =G13-G14 -> 1558955225 | J15: BMP - 610530599; 610550599; 610532599; 610552599 | K15: Outros | L15: =SUMIFS(Tab_RIT_BMP[SALDO],Tab_RIT_BMP[CONTA],610530599,Tab_RIT_BMP[ANO],$L$7)+SUMIFS(Tab_RIT_BMP[SALDO],Tab_RIT_BMP[CONTA],610550599,Tab_RIT_BMP[ANO],$L$7)+ SUMIFS(Tab_RIT_BMP[SALDO],Tab_RIT_BMP[CONTA],610532599,Tab_RIT_BMP[ANO],$L$7)+SUMIFS(Tab_RIT_BMP[SALDO],Tab_RIT_BMP[CONTA],610552599,Tab_RIT_BMP[ANO],$L$7) -> 7831286.05 | M15: =SUMIFS(Tab_RIT_BMP[SALDO],Tab_RIT_BMP[CONTA],610530599,Tab_RIT_BMP[ANO],$M$7)+SUMIFS(Tab_RIT_BMP[SALDO],Tab_RIT_BMP[CONTA],610550599,Tab_RIT_BMP[ANO],$M$7)+ SUMIFS(Tab_RIT_BMP[SALDO],Tab_RIT_BMP[CONTA],610532599,Tab_RIT_BMP[ANO],$M$7)+SUMIFS(Tab_RIT_BMP[SALDO],Tab_RIT_BMP[CONTA],610552599,Tab_RIT_BMP[ANO],$M$7) -> 13083194 | P15: Operacionalização de serviço de créditos tributários | Q15: =SUMIFS(Tab_Uderor[R$],Tab_Uderor[Competencia],Entrada!Q$7,Tab_Uderor[TipoReceita],Entrada!$P15) -> 0 | R15: =SUMIFS(Tab_Uderor[R$],Tab_Uderor[Competencia],Entrada!R$7,Tab_Uderor[TipoReceita],Entrada!$P15) -> 0 | S15: =SUMIFS(Tab_Uderor[R$],Tab_Uderor[Competencia],Entrada!S$7,Tab_Uderor[TipoReceita],Entrada!$P15) -> 0 | T15: =SUMIFS(Tab_Uderor[R$],Tab_Uderor[Competencia],Entrada!T$7,Tab_Uderor[TipoReceita],Entrada!$P15) -> 0 | U15: =SUMIFS(Tab_Uderor[R$],Tab_Uderor[Competencia],Entrada!U$7,Tab_Uderor[TipoReceita],Entrada!$P15) -> 0 | V15: =SUMIFS(Tab_Uderor[R$],Tab_Uderor[Competencia],Entrada!V$7,Tab_Uderor[TipoReceita],Entrada!$P15) -> 0 | W15: =SUMIFS(Tab_Uderor[R$],Tab_Uderor[Competencia],Entrada!W$7,Tab_Uderor[TipoReceita],Entrada!$P15) -> 0 | X15: =SUMIFS(Tab_Uderor[R$],Tab_Uderor[Competencia],Entrada!X$7,Tab_Uderor[TipoReceita],Entrada!$P15) -> 0 | Y15: =SUMIFS(Tab_Uderor[R$],Tab_Uderor[Competencia],Entrada!Y$7,Tab_Uderor[TipoReceita],Entrada!$P15) -> 0 | Z15: =SUMIFS(Tab_Uderor[R$],Tab_Uderor[Competencia],Entrada!Z$7,Tab_Uderor[TipoReceita],Entrada!$P15) -> 0 | AA15: =SUMIFS(Tab_Uderor[R$],Tab_Uderor[Competencia],Entrada!AA$7,Tab_Uderor[TipoReceita],Entrada!$P15) -> 0 | AB15: =SUMIFS(Tab_Uderor[R$],Tab_Uderor[Competencia],Entrada!AB$7,Tab_Uderor[TipoReceita],Entrada!$P15) -> 0 | AC15: =SUMIFS(Tab_Uderor[R$],Tab_Uderor[Competencia],Entrada!AC$7,Tab_Uderor[TipoReceita],Entrada!$P15) -> 0 | AD15: =SUMIFS(Tab_Uderor[R$],Tab_Uderor[Competencia],Entrada!AD$7,Tab_Uderor[TipoReceita],Entrada!$P15) -> 0 | AE15: =SUMIFS(Tab_Uderor[R$],Tab_Uderor[Competencia],Entrada!AE$7,Tab_Uderor[TipoReceita],Entrada!$P15) -> 0 | AF15: =SUMIFS(Tab_Uderor[R$],Tab_Uderor[Competencia],Entrada!AF$7,Tab_Uderor[TipoReceita],Entrada!$P15) -> 0 | AG15: =SUMIFS(Tab_Uderor[R$],Tab_Uderor[Competencia],Entrada!AG$7,Tab_Uderor[TipoReceita],Entrada!$P15) -> 0 | AH15: =SUMIFS(Tab_Uderor[R$],Tab_Uderor[Competencia],Entrada!AH$7,Tab_Uderor[TipoReceita],Entrada!$P15) -> 0 | AI15: =SUMIFS(Tab_Uderor[R$],Tab_Uderor[Competencia],Entrada!AI$7,Tab_Uderor[TipoReceita],Entrada!$P15) -> 0 | AJ15: =SUMIFS(Tab_Uderor[R$],Tab_Uderor[Competencia],Entrada!AJ$7,Tab_Uderor[TipoReceita],Entrada!$P15) -> 0 | AK15: =SUMIFS(Tab_Uderor[R$],Tab_Uderor[Competencia],Entrada!AK$7,Tab_Uderor[TipoReceita],Entrada!$P15) -> 0 | AL15: =SUMIFS(Tab_Uderor[R$],Tab_Uderor[Competencia],Entrada!AL$7,Tab_Uderor[TipoReceita],Entrada!$P15) -> 0 | AM15: =SUMIFS(Tab_Uderor[R$],Tab_Uderor[Competencia],Entrada!AM$7,Tab_Uderor[TipoReceita],Entrada!$P15) -> 0 | AN15: =SUMIFS(Tab_Uderor[R$],Tab_Uderor[Competencia],Entrada!AN$7,Tab_Uderor[TipoReceita],Entrada!$P15) -> 0 | AO15: =SUMIFS(Tab_Uderor[R$],Tab_Uderor[Competencia],Entrada!AO$7,Tab_Uderor[TipoReceita],Entrada!$P15) -> 0 | AP15: =SUMIFS(Tab_Uderor[R$],Tab_Uderor[Competencia],Entrada!AP$7,Tab_Uderor[TipoReceita],Entrada!$P15) -> 0 | AQ15: =SUMIFS(Tab_Uderor[R$],Tab_Uderor[Competencia],Entrada!AQ$7,Tab_Uderor[TipoReceita],Entrada!$P15) -> 0 | AR15: =SUMIFS(Tab_Uderor[R$],Tab_Uderor[Competencia],Entrada!AR$7,Tab_Uderor[TipoReceita],Entrada!$P15) -> 0 | AS15: =SUMIFS(Tab_Uderor[R$],Tab_Uderor[Competencia],Entrada!AS$7,Tab_Uderor[TipoReceita],Entrada!$P15) -> 0 | AT15: =SUMIFS(Tab_Uderor[R$],Tab_Uderor[Competencia],Entrada!AT$7,Tab_Uderor[TipoReceita],Entrada!$P15) -> 0 | AU15: =SUMIFS(Tab_Uderor[R$],Tab_Uderor[Competencia],Entrada!AU$7,Tab_Uderor[TipoReceita],Entrada!$P15) -> 0 | AV15: =SUMIFS(Tab_Uderor[R$],Tab_Uderor[Competencia],Entrada!AV$7,Tab_Uderor[TipoReceita],Entrada!$P15) -> 0 | AW15: =SUMIFS(Tab_Uderor[R$],Tab_Uderor[Competencia],Entrada!AW$7,Tab_Uderor[TipoReceita],Entrada!$P15) -> 0 | AX15: =SUMIFS(Tab_Uderor[R$],Tab_Uderor[Competencia],Entrada!AX$7,Tab_Uderor[TipoReceita],Entrada!$P15) -> 0 | AY15: =SUMIFS(Tab_Uderor[R$],Tab_Uderor[Competencia],Entrada!AY$7,Tab_Uderor[TipoReceita],Entrada!$P15) -> 0 | AZ15: =SUMIFS(Tab_Uderor[R$],Tab_Uderor[Competencia],Entrada!AZ$7,Tab_Uderor[TipoReceita],Entrada!$P15) -> 0
F16: (10) Almoxarifado em Operação | G16: =G82*VLOOKUP(DATE(YEAR(CAPA!$C$10),MONTH(CAPA!$C$10)-1,1),Índices!$B$135:$D$638,3,0)/VLOOKUP(DATE(YEAR($G$72),MONTH($G$72)-1,1),Índices!$B$135:$D$638,3,0) -> 3675681.477 | J16: BMP - 610530510; 610550510; 610532510; 610552510 | K16: (-) Créditos de Tributos Recuperáveis | L16: =SUMIFS(Tab_RIT_BMP[SALDO],Tab_RIT_BMP[CONTA],610530510,Tab_RIT_BMP[ANO],$L$7)+SUMIFS(Tab_RIT_BMP[SALDO],Tab_RIT_BMP[CONTA],610550510,Tab_RIT_BMP[ANO],$L$7)+ SUMIFS(Tab_RIT_BMP[SALDO],Tab_RIT_BMP[CONTA],610532510,Tab_RIT_BMP[ANO],$L$7)+SUMIFS(Tab_RIT_BMP[SALDO],Tab_RIT_BMP[CONTA],610552510,Tab_RIT_BMP[ANO],$L$7) -> 0 | M16: =SUMIFS(Tab_RIT_BMP[SALDO],Tab_RIT_BMP[CONTA],610530510,Tab_RIT_BMP[ANO],$M$7)+SUMIFS(Tab_RIT_BMP[SALDO],Tab_RIT_BMP[CONTA],610550510,Tab_RIT_BMP[ANO],$M$7)+ SUMIFS(Tab_RIT_BMP[SALDO],Tab_RIT_BMP[CONTA],610532510,Tab_RIT_BMP[ANO],$M$7)+SUMIFS(Tab_RIT_BMP[SALDO],Tab_RIT_BMP[CONTA],610552510,Tab_RIT_BMP[ANO],$M$7) -> 0 | P16: Elaboração de projeto, construção, operação, manutenção ou reforma de:
F17: (11) Ativo Diferido | G17: =G83*VLOOKUP(DATE(YEAR(CAPA!$C$10),MONTH(CAPA!$C$10)-1,1),Índices!$B$135:$D$638,3,0)/VLOOKUP(DATE(YEAR($G$72),MONTH($G$72)-1,1),Índices!$B$135:$D$638,3,0) -> 0 | J17: BMP - 6105306; 6105506; 6105326; 6105526 | K17: Administradores | L17: =SUMIFS(Tab_RIT_BMP[SALDO],Tab_RIT_BMP[CONTA],6105306,Tab_RIT_BMP[ANO],$L$7)+SUMIFS(Tab_RIT_BMP[SALDO],Tab_RIT_BMP[CONTA],6105506,Tab_RIT_BMP[ANO],$L$7)+ SUMIFS(Tab_RIT_BMP[SALDO],Tab_RIT_BMP[CONTA],6105326,Tab_RIT_BMP[ANO],$L$7)+SUMIFS(Tab_RIT_BMP[SALDO],Tab_RIT_BMP[CONTA],6105526,Tab_RIT_BMP[ANO],$L$7) -> 3337887.38 | M17: =SUMIFS(Tab_RIT_BMP[SALDO],Tab_RIT_BMP[CONTA],6105306,Tab_RIT_BMP[ANO],$M$7)+SUMIFS(Tab_RIT_BMP[SALDO],Tab_RIT_BMP[CONTA],6105506,Tab_RIT_BMP[ANO],$M$7)+ SUMIFS(Tab_RIT_BMP[SALDO],Tab_RIT_BMP[CONTA],6105326,Tab_RIT_BMP[ANO],$M$7)+SUMIFS(Tab_RIT_BMP[SALDO],Tab_RIT_BMP[CONTA],6105526,Tab_RIT_BMP[ANO],$M$7) -> 4063945.61 | P17: (1) redes de distribuição de energia elétrica destinadas à regularização fundiária de interesse específico e ao atendimento dos empreendimentos de múltiplas unidades consumidoras; | Q17: =SUMIFS(Tab_Uderor[R$],Tab_Uderor[Competencia],Entrada!Q$7,Tab_Uderor[TipoReceita],Entrada!$P17) -> 0 | R17: =SUMIFS(Tab_Uderor[R$],Tab_Uderor[Competencia],Entrada!R$7,Tab_Uderor[TipoReceita],Entrada!$P17) -> 0 | S17: =SUMIFS(Tab_Uderor[R$],Tab_Uderor[Competencia],Entrada!S$7,Tab_Uderor[TipoReceita],Entrada!$P17) -> 0 | T17: =SUMIFS(Tab_Uderor[R$],Tab_Uderor[Competencia],Entrada!T$7,Tab_Uderor[TipoReceita],Entrada!$P17) -> 0 | U17: =SUMIFS(Tab_Uderor[R$],Tab_Uderor[Competencia],Entrada!U$7,Tab_Uderor[TipoReceita],Entrada!$P17) -> 0 | V17: =SUMIFS(Tab_Uderor[R$],Tab_Uderor[Competencia],Entrada!V$7,Tab_Uderor[TipoReceita],Entrada!$P17) -> 0 | W17: =SUMIFS(Tab_Uderor[R$],Tab_Uderor[Competencia],Entrada!W$7,Tab_Uderor[TipoReceita],Entrada!$P17) -> 0 | X17: =SUMIFS(Tab_Uderor[R$],Tab_Uderor[Competencia],Entrada!X$7,Tab_Uderor[TipoReceita],Entrada!$P17) -> 0 | Y17: =SUMIFS(Tab_Uderor[R$],Tab_Uderor[Competencia],Entrada!Y$7,Tab_Uderor[TipoReceita],Entrada!$P17) -> 0 | Z17: =SUMIFS(Tab_Uderor[R$],Tab_Uderor[Competencia],Entrada!Z$7,Tab_Uderor[TipoReceita],Entrada!$P17) -> 0 | AA17: =SUMIFS(Tab_Uderor[R$],Tab_Uderor[Competencia],Entrada!AA$7,Tab_Uderor[TipoReceita],Entrada!$P17) -> 0 | AB17: =SUMIFS(Tab_Uderor[R$],Tab_Uderor[Competencia],Entrada!AB$7,Tab_Uderor[TipoReceita],Entrada!$P17) -> 0 | AC17: =SUMIFS(Tab_Uderor[R$],Tab_Uderor[Competencia],Entrada!AC$7,Tab_Uderor[TipoReceita],Entrada!$P17) -> 0 | AD17: =SUMIFS(Tab_Uderor[R$],Tab_Uderor[Competencia],Entrada!AD$7,Tab_Uderor[TipoReceita],Entrada!$P17) -> 0 | AE17: =SUMIFS(Tab_Uderor[R$],Tab_Uderor[Competencia],Entrada!AE$7,Tab_Uderor[TipoReceita],Entrada!$P17) -> 0 | AF17: =SUMIFS(Tab_Uderor[R$],Tab_Uderor[Competencia],Entrada!AF$7,Tab_Uderor[TipoReceita],Entrada!$P17) -> 0 | AG17: =SUMIFS(Tab_Uderor[R$],Tab_Uderor[Competencia],Entrada!AG$7,Tab_Uderor[TipoReceita],Entrada!$P17) -> 0 | AH17: =SUMIFS(Tab_Uderor[R$],Tab_Uderor[Competencia],Entrada!AH$7,Tab_Uderor[TipoReceita],Entrada!$P17) -> 0 | AI17: =SUMIFS(Tab_Uderor[R$],Tab_Uderor[Competencia],Entrada!AI$7,Tab_Uderor[TipoReceita],Entrada!$P17) -> 0 | AJ17: =SUMIFS(Tab_Uderor[R$],Tab_Uderor[Competencia],Entrada!AJ$7,Tab_Uderor[TipoReceita],Entrada!$P17) -> 0 | AK17: =SUMIFS(Tab_Uderor[R$],Tab_Uderor[Competencia],Entrada!AK$7,Tab_Uderor[TipoReceita],Entrada!$P17) -> 0 | AL17: =SUMIFS(Tab_Uderor[R$],Tab_Uderor[Competencia],Entrada!AL$7,Tab_Uderor[TipoReceita],Entrada!$P17) -> 0 | AM17: =SUMIFS(Tab_Uderor[R$],Tab_Uderor[Competencia],Entrada!AM$7,Tab_Uderor[TipoReceita],Entrada!$P17) -> 0 | AN17: =SUMIFS(Tab_Uderor[R$],Tab_Uderor[Competencia],Entrada!AN$7,Tab_Uderor[TipoReceita],Entrada!$P17) -> 0 | AO17: =SUMIFS(Tab_Uderor[R$],Tab_Uderor[Competencia],Entrada!AO$7,Tab_Uderor[TipoReceita],Entrada!$P17) -> 0 | AP17: =SUMIFS(Tab_Uderor[R$],Tab_Uderor[Competencia],Entrada!AP$7,Tab_Uderor[TipoReceita],Entrada!$P17) -> 0 | AQ17: =SUMIFS(Tab_Uderor[R$],Tab_Uderor[Competencia],Entrada!AQ$7,Tab_Uderor[TipoReceita],Entrada!$P17) -> 0 | AR17: =SUMIFS(Tab_Uderor[R$],Tab_Uderor[Competencia],Entrada!AR$7,Tab_Uderor[TipoReceita],Entrada!$P17) -> 0 | AS17: =SUMIFS(Tab_Uderor[R$],Tab_Uderor[Competencia],Entrada!AS$7,Tab_Uderor[TipoReceita],Entrada!$P17) -> 0 | AT17: =SUMIFS(Tab_Uderor[R$],Tab_Uderor[Competencia],Entrada!AT$7,Tab_Uderor[TipoReceita],Entrada!$P17) -> 0 | AU17: =SUMIFS(Tab_Uderor[R$],Tab_Uderor[Competencia],Entrada!AU$7,Tab_Uderor[TipoReceita],Entrada!$P17) -> 0 | AV17: =SUMIFS(Tab_Uderor[R$],Tab_Uderor[Competencia],Entrada!AV$7,Tab_Uderor[TipoReceita],Entrada!$P17) -> 0 | AW17: =SUMIFS(Tab_Uderor[R$],Tab_Uderor[Competencia],Entrada!AW$7,Tab_Uderor[TipoReceita],Entrada!$P17) -> 0 | AX17: =SUMIFS(Tab_Uderor[R$],Tab_Uderor[Competencia],Entrada!AX$7,Tab_Uderor[TipoReceita],Entrada!$P17) -> 0 | AY17: =SUMIFS(Tab_Uderor[R$],Tab_Uderor[Competencia],Entrada!AY$7,Tab_Uderor[TipoReceita],Entrada!$P17) -> 0 | AZ17: =SUMIFS(Tab_Uderor[R$],Tab_Uderor[Competencia],Entrada!AZ$7,Tab_Uderor[TipoReceita],Entrada!$P17) -> 0
F18: (12) Obrigações Especiais Líquida | G18: =G84*VLOOKUP(DATE(YEAR(CAPA!$C$10),MONTH(CAPA!$C$10)-1,1),Índices!$B$135:$D$638,3,0)/VLOOKUP(DATE(YEAR($G$72),MONTH($G$72)-1,1),Índices!$B$135:$D$638,3,0) -> 299351720.3 | K18: Subtotal | L18: =SUM(L9:L17) -> 81014838.61 | M18: =SUM(M9:M17) -> 95517276.53 | P18: (2) redes de energia elétrica destinadas ao acesso dos sistemas de distribuição ou transmissão; | Q18: =SUMIFS(Tab_Uderor[R$],Tab_Uderor[Competencia],Entrada!Q$7,Tab_Uderor[TipoReceita],Entrada!$P18) -> 0 | R18: =SUMIFS(Tab_Uderor[R$],Tab_Uderor[Competencia],Entrada!R$7,Tab_Uderor[TipoReceita],Entrada!$P18) -> 0 | S18: =SUMIFS(Tab_Uderor[R$],Tab_Uderor[Competencia],Entrada!S$7,Tab_Uderor[TipoReceita],Entrada!$P18) -> 0 | T18: =SUMIFS(Tab_Uderor[R$],Tab_Uderor[Competencia],Entrada!T$7,Tab_Uderor[TipoReceita],Entrada!$P18) -> 0 | U18: =SUMIFS(Tab_Uderor[R$],Tab_Uderor[Competencia],Entrada!U$7,Tab_Uderor[TipoReceita],Entrada!$P18) -> 0 | V18: =SUMIFS(Tab_Uderor[R$],Tab_Uderor[Competencia],Entrada!V$7,Tab_Uderor[TipoReceita],Entrada!$P18) -> 0 | W18: =SUMIFS(Tab_Uderor[R$],Tab_Uderor[Competencia],Entrada!W$7,Tab_Uderor[TipoReceita],Entrada!$P18) -> 0 | X18: =SUMIFS(Tab_Uderor[R$],Tab_Uderor[Competencia],Entrada!X$7,Tab_Uderor[TipoReceita],Entrada!$P18) -> 0 | Y18: =SUMIFS(Tab_Uderor[R$],Tab_Uderor[Competencia],Entrada!Y$7,Tab_Uderor[TipoReceita],Entrada!$P18) -> 0 | Z18: =SUMIFS(Tab_Uderor[R$],Tab_Uderor[Competencia],Entrada!Z$7,Tab_Uderor[TipoReceita],Entrada!$P18) -> 0 | AA18: =SUMIFS(Tab_Uderor[R$],Tab_Uderor[Competencia],Entrada!AA$7,Tab_Uderor[TipoReceita],Entrada!$P18) -> 0 | AB18: =SUMIFS(Tab_Uderor[R$],Tab_Uderor[Competencia],Entrada!AB$7,Tab_Uderor[TipoReceita],Entrada!$P18) -> 0 | AC18: =SUMIFS(Tab_Uderor[R$],Tab_Uderor[Competencia],Entrada!AC$7,Tab_Uderor[TipoReceita],Entrada!$P18) -> 0 | AD18: =SUMIFS(Tab_Uderor[R$],Tab_Uderor[Competencia],Entrada!AD$7,Tab_Uderor[TipoReceita],Entrada!$P18) -> 0 | AE18: =SUMIFS(Tab_Uderor[R$],Tab_Uderor[Competencia],Entrada!AE$7,Tab_Uderor[TipoReceita],Entrada!$P18) -> 0 | AF18: =SUMIFS(Tab_Uderor[R$],Tab_Uderor[Competencia],Entrada!AF$7,Tab_Uderor[TipoReceita],Entrada!$P18) -> 0 | AG18: =SUMIFS(Tab_Uderor[R$],Tab_Uderor[Competencia],Entrada!AG$7,Tab_Uderor[TipoReceita],Entrada!$P18) -> 0 | AH18: =SUMIFS(Tab_Uderor[R$],Tab_Uderor[Competencia],Entrada!AH$7,Tab_Uderor[TipoReceita],Entrada!$P18) -> 0 | AI18: =SUMIFS(Tab_Uderor[R$],Tab_Uderor[Competencia],Entrada!AI$7,Tab_Uderor[TipoReceita],Entrada!$P18) -> 0 | AJ18: =SUMIFS(Tab_Uderor[R$],Tab_Uderor[Competencia],Entrada!AJ$7,Tab_Uderor[TipoReceita],Entrada!$P18) -> 0 | AK18: =SUMIFS(Tab_Uderor[R$],Tab_Uderor[Competencia],Entrada!AK$7,Tab_Uderor[TipoReceita],Entrada!$P18) -> 0 | AL18: =SUMIFS(Tab_Uderor[R$],Tab_Uderor[Competencia],Entrada!AL$7,Tab_Uderor[TipoReceita],Entrada!$P18) -> 0 | AM18: =SUMIFS(Tab_Uderor[R$],Tab_Uderor[Competencia],Entrada!AM$7,Tab_Uderor[TipoReceita],Entrada!$P18) -> 0 | AN18: =SUMIFS(Tab_Uderor[R$],Tab_Uderor[Competencia],Entrada!AN$7,Tab_Uderor[TipoReceita],Entrada!$P18) -> 0 | AO18: =SUMIFS(Tab_Uderor[R$],Tab_Uderor[Competencia],Entrada!AO$7,Tab_Uderor[TipoReceita],Entrada!$P18) -> 0 | AP18: =SUMIFS(Tab_Uderor[R$],Tab_Uderor[Competencia],Entrada!AP$7,Tab_Uderor[TipoReceita],Entrada!$P18) -> 0 | AQ18: =SUMIFS(Tab_Uderor[R$],Tab_Uderor[Competencia],Entrada!AQ$7,Tab_Uderor[TipoReceita],Entrada!$P18) -> 0 | AR18: =SUMIFS(Tab_Uderor[R$],Tab_Uderor[Competencia],Entrada!AR$7,Tab_Uderor[TipoReceita],Entrada!$P18) -> 0 | AS18: =SUMIFS(Tab_Uderor[R$],Tab_Uderor[Competencia],Entrada!AS$7,Tab_Uderor[TipoReceita],Entrada!$P18) -> 0 | AT18: =SUMIFS(Tab_Uderor[R$],Tab_Uderor[Competencia],Entrada!AT$7,Tab_Uderor[TipoReceita],Entrada!$P18) -> 0 | AU18: =SUMIFS(Tab_Uderor[R$],Tab_Uderor[Competencia],Entrada!AU$7,Tab_Uderor[TipoReceita],Entrada!$P18) -> 0 | AV18: =SUMIFS(Tab_Uderor[R$],Tab_Uderor[Competencia],Entrada!AV$7,Tab_Uderor[TipoReceita],Entrada!$P18) -> 0 | AW18: =SUMIFS(Tab_Uderor[R$],Tab_Uderor[Competencia],Entrada!AW$7,Tab_Uderor[TipoReceita],Entrada!$P18) -> 0 | AX18: =SUMIFS(Tab_Uderor[R$],Tab_Uderor[Competencia],Entrada!AX$7,Tab_Uderor[TipoReceita],Entrada!$P18) -> 0 | AY18: =SUMIFS(Tab_Uderor[R$],Tab_Uderor[Competencia],Entrada!AY$7,Tab_Uderor[TipoReceita],Entrada!$P18) -> 0 | AZ18: =SUMIFS(Tab_Uderor[R$],Tab_Uderor[Competencia],Entrada!AZ$7,Tab_Uderor[TipoReceita],Entrada!$P18) -> 0
F19: (13) Terrenos e Servidões | G19: =G85*VLOOKUP(DATE(YEAR(CAPA!$C$10),MONTH(CAPA!$C$10)-1,1),Índices!$B$135:$D$638,3,0)/VLOOKUP(DATE(YEAR($G$72),MONTH($G$72)-1,1),Índices!$B$135:$D$638,3,0) -> 34803926.08 | J19: CONTA MATERIAIS | P19: (3) subestações de energia; | Q19: =SUMIFS(Tab_Uderor[R$],Tab_Uderor[Competencia],Entrada!Q$7,Tab_Uderor[TipoReceita],Entrada!$P19) -> 0 | R19: =SUMIFS(Tab_Uderor[R$],Tab_Uderor[Competencia],Entrada!R$7,Tab_Uderor[TipoReceita],Entrada!$P19) -> 0 | S19: =SUMIFS(Tab_Uderor[R$],Tab_Uderor[Competencia],Entrada!S$7,Tab_Uderor[TipoReceita],Entrada!$P19) -> 0 | T19: =SUMIFS(Tab_Uderor[R$],Tab_Uderor[Competencia],Entrada!T$7,Tab_Uderor[TipoReceita],Entrada!$P19) -> 0 | U19: =SUMIFS(Tab_Uderor[R$],Tab_Uderor[Competencia],Entrada!U$7,Tab_Uderor[TipoReceita],Entrada!$P19) -> 0 | V19: =SUMIFS(Tab_Uderor[R$],Tab_Uderor[Competencia],Entrada!V$7,Tab_Uderor[TipoReceita],Entrada!$P19) -> 0 | W19: =SUMIFS(Tab_Uderor[R$],Tab_Uderor[Competencia],Entrada!W$7,Tab_Uderor[TipoReceita],Entrada!$P19) -> 0 | X19: =SUMIFS(Tab_Uderor[R$],Tab_Uderor[Competencia],Entrada!X$7,Tab_Uderor[TipoReceita],Entrada!$P19) -> 0 | Y19: =SUMIFS(Tab_Uderor[R$],Tab_Uderor[Competencia],Entrada!Y$7,Tab_Uderor[TipoReceita],Entrada!$P19) -> 0 | Z19: =SUMIFS(Tab_Uderor[R$],Tab_Uderor[Competencia],Entrada!Z$7,Tab_Uderor[TipoReceita],Entrada!$P19) -> 0 | AA19: =SUMIFS(Tab_Uderor[R$],Tab_Uderor[Competencia],Entrada!AA$7,Tab_Uderor[TipoReceita],Entrada!$P19) -> 0 | AB19: =SUMIFS(Tab_Uderor[R$],Tab_Uderor[Competencia],Entrada!AB$7,Tab_Uderor[TipoReceita],Entrada!$P19) -> 0 | AC19: =SUMIFS(Tab_Uderor[R$],Tab_Uderor[Competencia],Entrada!AC$7,Tab_Uderor[TipoReceita],Entrada!$P19) -> 0 | AD19: =SUMIFS(Tab_Uderor[R$],Tab_Uderor[Competencia],Entrada!AD$7,Tab_Uderor[TipoReceita],Entrada!$P19) -> 0 | AE19: =SUMIFS(Tab_Uderor[R$],Tab_Uderor[Competencia],Entrada!AE$7,Tab_Uderor[TipoReceita],Entrada!$P19) -> 0 | AF19: =SUMIFS(Tab_Uderor[R$],Tab_Uderor[Competencia],Entrada!AF$7,Tab_Uderor[TipoReceita],Entrada!$P19) -> 0 | AG19: =SUMIFS(Tab_Uderor[R$],Tab_Uderor[Competencia],Entrada!AG$7,Tab_Uderor[TipoReceita],Entrada!$P19) -> 0 | AH19: =SUMIFS(Tab_Uderor[R$],Tab_Uderor[Competencia],Entrada!AH$7,Tab_Uderor[TipoReceita],Entrada!$P19) -> 0 | AI19: =SUMIFS(Tab_Uderor[R$],Tab_Uderor[Competencia],Entrada!AI$7,Tab_Uderor[TipoReceita],Entrada!$P19) -> 0 | AJ19: =SUMIFS(Tab_Uderor[R$],Tab_Uderor[Competencia],Entrada!AJ$7,Tab_Uderor[TipoReceita],Entrada!$P19) -> 0 | AK19: =SUMIFS(Tab_Uderor[R$],Tab_Uderor[Competencia],Entrada!AK$7,Tab_Uderor[TipoReceita],Entrada!$P19) -> 0 | AL19: =SUMIFS(Tab_Uderor[R$],Tab_Uderor[Competencia],Entrada!AL$7,Tab_Uderor[TipoReceita],Entrada!$P19) -> 0 | AM19: =SUMIFS(Tab_Uderor[R$],Tab_Uderor[Competencia],Entrada!AM$7,Tab_Uderor[TipoReceita],Entrada!$P19) -> 0 | AN19: =SUMIFS(Tab_Uderor[R$],Tab_Uderor[Competencia],Entrada!AN$7,Tab_Uderor[TipoReceita],Entrada!$P19) -> 0 | AO19: =SUMIFS(Tab_Uderor[R$],Tab_Uderor[Competencia],Entrada!AO$7,Tab_Uderor[TipoReceita],Entrada!$P19) -> 0 | AP19: =SUMIFS(Tab_Uderor[R$],Tab_Uderor[Competencia],Entrada!AP$7,Tab_Uderor[TipoReceita],Entrada!$P19) -> 0 | AQ19: =SUMIFS(Tab_Uderor[R$],Tab_Uderor[Competencia],Entrada!AQ$7,Tab_Uderor[TipoReceita],Entrada!$P19) -> 0 | AR19: =SUMIFS(Tab_Uderor[R$],Tab_Uderor[Competencia],Entrada!AR$7,Tab_Uderor[TipoReceita],Entrada!$P19) -> 0 | AS19: =SUMIFS(Tab_Uderor[R$],Tab_Uderor[Competencia],Entrada!AS$7,Tab_Uderor[TipoReceita],Entrada!$P19) -> 0 | AT19: =SUMIFS(Tab_Uderor[R$],Tab_Uderor[Competencia],Entrada!AT$7,Tab_Uderor[TipoReceita],Entrada!$P19) -> 0 | AU19: =SUMIFS(Tab_Uderor[R$],Tab_Uderor[Competencia],Entrada!AU$7,Tab_Uderor[TipoReceita],Entrada!$P19) -> 0 | AV19: =SUMIFS(Tab_Uderor[R$],Tab_Uderor[Competencia],Entrada!AV$7,Tab_Uderor[TipoReceita],Entrada!$P19) -> 0 | AW19: =SUMIFS(Tab_Uderor[R$],Tab_Uderor[Competencia],Entrada!AW$7,Tab_Uderor[TipoReceita],Entrada!$P19) -> 0 | AX19: =SUMIFS(Tab_Uderor[R$],Tab_Uderor[Competencia],Entrada!AX$7,Tab_Uderor[TipoReceita],Entrada!$P19) -> 0 | AY19: =SUMIFS(Tab_Uderor[R$],Tab_Uderor[Competencia],Entrada!AY$7,Tab_Uderor[TipoReceita],Entrada!$P19) -> 0 | AZ19: =SUMIFS(Tab_Uderor[R$],Tab_Uderor[Competencia],Entrada!AZ$7,Tab_Uderor[TipoReceita],Entrada!$P19) -> 0
F20: (14) Base de Rem. Líquida Total = (1)-(6)-(8)+(10)+(11)-(12)+(13) | G20: =G15+G16+G17-G18+G19 -> 1298083112 | J20: BMP - 610530701; 610550701; 610532701; 610552701 | K20: Materiais | L20: =SUMIFS(Tab_RIT_BMP[SALDO],Tab_RIT_BMP[CONTA],610530701,Tab_RIT_BMP[ANO],$L$7)+SUMIFS(Tab_RIT_BMP[SALDO],Tab_RIT_BMP[CONTA],610550701,Tab_RIT_BMP[ANO],$L$7)+ SUMIFS(Tab_RIT_BMP[SALDO],Tab_RIT_BMP[CONTA],610532701,Tab_RIT_BMP[ANO],$L$7)+SUMIFS(Tab_RIT_BMP[SALDO],Tab_RIT_BMP[CONTA],610552701,Tab_RIT_BMP[ANO],$L$7) -> 12533664.4 | M20: =SUMIFS(Tab_RIT_BMP[SALDO],Tab_RIT_BMP[CONTA],610530701,Tab_RIT_BMP[ANO],$M$7)+SUMIFS(Tab_RIT_BMP[SALDO],Tab_RIT_BMP[CONTA],610550701,Tab_RIT_BMP[ANO],$M$7)+ SUMIFS(Tab_RIT_BMP[SALDO],Tab_RIT_BMP[CONTA],610532701,Tab_RIT_BMP[ANO],$M$7)+SUMIFS(Tab_RIT_BMP[SALDO],Tab_RIT_BMP[CONTA],610552701,Tab_RIT_BMP[ANO],$M$7) -> 14716007.22 | P20: (4) instalações elétricas internas de unidades consumidoras; | Q20: =SUMIFS(Tab_Uderor[R$],Tab_Uderor[Competencia],Entrada!Q$7,Tab_Uderor[TipoReceita],Entrada!$P20) -> 0 | R20: =SUMIFS(Tab_Uderor[R$],Tab_Uderor[Competencia],Entrada!R$7,Tab_Uderor[TipoReceita],Entrada!$P20) -> 0 | S20: =SUMIFS(Tab_Uderor[R$],Tab_Uderor[Competencia],Entrada!S$7,Tab_Uderor[TipoReceita],Entrada!$P20) -> 0 | T20: =SUMIFS(Tab_Uderor[R$],Tab_Uderor[Competencia],Entrada!T$7,Tab_Uderor[TipoReceita],Entrada!$P20) -> 0 | U20: =SUMIFS(Tab_Uderor[R$],Tab_Uderor[Competencia],Entrada!U$7,Tab_Uderor[TipoReceita],Entrada!$P20) -> 0 | V20: =SUMIFS(Tab_Uderor[R$],Tab_Uderor[Competencia],Entrada!V$7,Tab_Uderor[TipoReceita],Entrada!$P20) -> 0 | W20: =SUMIFS(Tab_Uderor[R$],Tab_Uderor[Competencia],Entrada!W$7,Tab_Uderor[TipoReceita],Entrada!$P20) -> 0 | X20: =SUMIFS(Tab_Uderor[R$],Tab_Uderor[Competencia],Entrada!X$7,Tab_Uderor[TipoReceita],Entrada!$P20) -> 0 | Y20: =SUMIFS(Tab_Uderor[R$],Tab_Uderor[Competencia],Entrada!Y$7,Tab_Uderor[TipoReceita],Entrada!$P20) -> 0 | Z20: =SUMIFS(Tab_Uderor[R$],Tab_Uderor[Competencia],Entrada!Z$7,Tab_Uderor[TipoReceita],Entrada!$P20) -> 0 | AA20: =SUMIFS(Tab_Uderor[R$],Tab_Uderor[Competencia],Entrada!AA$7,Tab_Uderor[TipoReceita],Entrada!$P20) -> 0 | AB20: =SUMIFS(Tab_Uderor[R$],Tab_Uderor[Competencia],Entrada!AB$7,Tab_Uderor[TipoReceita],Entrada!$P20) -> 0 | AC20: =SUMIFS(Tab_Uderor[R$],Tab_Uderor[Competencia],Entrada!AC$7,Tab_Uderor[TipoReceita],Entrada!$P20) -> 0 | AD20: =SUMIFS(Tab_Uderor[R$],Tab_Uderor[Competencia],Entrada!AD$7,Tab_Uderor[TipoReceita],Entrada!$P20) -> 0 | AE20: =SUMIFS(Tab_Uderor[R$],Tab_Uderor[Competencia],Entrada!AE$7,Tab_Uderor[TipoReceita],Entrada!$P20) -> 0 | AF20: =SUMIFS(Tab_Uderor[R$],Tab_Uderor[Competencia],Entrada!AF$7,Tab_Uderor[TipoReceita],Entrada!$P20) -> 0 | AG20: =SUMIFS(Tab_Uderor[R$],Tab_Uderor[Competencia],Entrada!AG$7,Tab_Uderor[TipoReceita],Entrada!$P20) -> 0 | AH20: =SUMIFS(Tab_Uderor[R$],Tab_Uderor[Competencia],Entrada!AH$7,Tab_Uderor[TipoReceita],Entrada!$P20) -> 0 | AI20: =SUMIFS(Tab_Uderor[R$],Tab_Uderor[Competencia],Entrada!AI$7,Tab_Uderor[TipoReceita],Entrada!$P20) -> 0 | AJ20: =SUMIFS(Tab_Uderor[R$],Tab_Uderor[Competencia],Entrada!AJ$7,Tab_Uderor[TipoReceita],Entrada!$P20) -> 0 | AK20: =SUMIFS(Tab_Uderor[R$],Tab_Uderor[Competencia],Entrada!AK$7,Tab_Uderor[TipoReceita],Entrada!$P20) -> 0 | AL20: =SUMIFS(Tab_Uderor[R$],Tab_Uderor[Competencia],Entrada!AL$7,Tab_Uderor[TipoReceita],Entrada!$P20) -> 0 | AM20: =SUMIFS(Tab_Uderor[R$],Tab_Uderor[Competencia],Entrada!AM$7,Tab_Uderor[TipoReceita],Entrada!$P20) -> 0 | AN20: =SUMIFS(Tab_Uderor[R$],Tab_Uderor[Competencia],Entrada!AN$7,Tab_Uderor[TipoReceita],Entrada!$P20) -> 0 | AO20: =SUMIFS(Tab_Uderor[R$],Tab_Uderor[Competencia],Entrada!AO$7,Tab_Uderor[TipoReceita],Entrada!$P20) -> 0 | AP20: =SUMIFS(Tab_Uderor[R$],Tab_Uderor[Competencia],Entrada!AP$7,Tab_Uderor[TipoReceita],Entrada!$P20) -> 0 | AQ20: =SUMIFS(Tab_Uderor[R$],Tab_Uderor[Competencia],Entrada!AQ$7,Tab_Uderor[TipoReceita],Entrada!$P20) -> 0 | AR20: =SUMIFS(Tab_Uderor[R$],Tab_Uderor[Competencia],Entrada!AR$7,Tab_Uderor[TipoReceita],Entrada!$P20) -> 0 | AS20: =SUMIFS(Tab_Uderor[R$],Tab_Uderor[Competencia],Entrada!AS$7,Tab_Uderor[TipoReceita],Entrada!$P20) -> 0 | AT20: =SUMIFS(Tab_Uderor[R$],Tab_Uderor[Competencia],Entrada!AT$7,Tab_Uderor[TipoReceita],Entrada!$P20) -> 0 | AU20: =SUMIFS(Tab_Uderor[R$],Tab_Uderor[Competencia],Entrada!AU$7,Tab_Uderor[TipoReceita],Entrada!$P20) -> 0 | AV20: =SUMIFS(Tab_Uderor[R$],Tab_Uderor[Competencia],Entrada!AV$7,Tab_Uderor[TipoReceita],Entrada!$P20) -> 0 | AW20: =SUMIFS(Tab_Uderor[R$],Tab_Uderor[Competencia],Entrada!AW$7,Tab_Uderor[TipoReceita],Entrada!$P20) -> 0 | AX20: =SUMIFS(Tab_Uderor[R$],Tab_Uderor[Competencia],Entrada!AX$7,Tab_Uderor[TipoReceita],Entrada!$P20) -> 0 | AY20: =SUMIFS(Tab_Uderor[R$],Tab_Uderor[Competencia],Entrada!AY$7,Tab_Uderor[TipoReceita],Entrada!$P20) -> 0 | AZ20: =SUMIFS(Tab_Uderor[R$],Tab_Uderor[Competencia],Entrada!AZ$7,Tab_Uderor[TipoReceita],Entrada!$P20) -> 0
F21: (15) Saldo RGR PLPT | G21: =G87*VLOOKUP(DATE(YEAR(CAPA!$C$10),MONTH(CAPA!$C$10)-1,1),Índices!$B$135:$D$638,3,0)/VLOOKUP(DATE(YEAR($G$72),MONTH($G$72)-1,1),Índices!$B$135:$D$638,3,0) -> 0 | J21: BMP - 610530799; 610550799; 610532799; 610552799 | K21: Outros | L21: =SUMIFS(Tab_RIT_BMP[SALDO],Tab_RIT_BMP[CONTA],610530799,Tab_RIT_BMP[ANO],$L$7)+SUMIFS(Tab_RIT_BMP[SALDO],Tab_RIT_BMP[CONTA],610550799,Tab_RIT_BMP[ANO],$L$7)+ SUMIFS(Tab_RIT_BMP[SALDO],Tab_RIT_BMP[CONTA],610532799,Tab_RIT_BMP[ANO],$L$7)+SUMIFS(Tab_RIT_BMP[SALDO],Tab_RIT_BMP[CONTA],610552799,Tab_RIT_BMP[ANO],$L$7) -> 1008256.23 | M21: =SUMIFS(Tab_RIT_BMP[SALDO],Tab_RIT_BMP[CONTA],610530799,Tab_RIT_BMP[ANO],$M$7)+SUMIFS(Tab_RIT_BMP[SALDO],Tab_RIT_BMP[CONTA],610550799,Tab_RIT_BMP[ANO],$M$7)+ SUMIFS(Tab_RIT_BMP[SALDO],Tab_RIT_BMP[CONTA],610532799,Tab_RIT_BMP[ANO],$M$7)+SUMIFS(Tab_RIT_BMP[SALDO],Tab_RIT_BMP[CONTA],610552799,Tab_RIT_BMP[ANO],$M$7) -> 428381.67 | P21: (5) banco de capacitores; | Q21: =SUMIFS(Tab_Uderor[R$],Tab_Uderor[Competencia],Entrada!Q$7,Tab_Uderor[TipoReceita],Entrada!$P21) -> 0 | R21: =SUMIFS(Tab_Uderor[R$],Tab_Uderor[Competencia],Entrada!R$7,Tab_Uderor[TipoReceita],Entrada!$P21) -> 0 | S21: =SUMIFS(Tab_Uderor[R$],Tab_Uderor[Competencia],Entrada!S$7,Tab_Uderor[TipoReceita],Entrada!$P21) -> 0 | T21: =SUMIFS(Tab_Uderor[R$],Tab_Uderor[Competencia],Entrada!T$7,Tab_Uderor[TipoReceita],Entrada!$P21) -> 0 | U21: =SUMIFS(Tab_Uderor[R$],Tab_Uderor[Competencia],Entrada!U$7,Tab_Uderor[TipoReceita],Entrada!$P21) -> 0 | V21: =SUMIFS(Tab_Uderor[R$],Tab_Uderor[Competencia],Entrada!V$7,Tab_Uderor[TipoReceita],Entrada!$P21) -> 0 | W21: =SUMIFS(Tab_Uderor[R$],Tab_Uderor[Competencia],Entrada!W$7,Tab_Uderor[TipoReceita],Entrada!$P21) -> 0 | X21: =SUMIFS(Tab_Uderor[R$],Tab_Uderor[Competencia],Entrada!X$7,Tab_Uderor[TipoReceita],Entrada!$P21) -> 0 | Y21: =SUMIFS(Tab_Uderor[R$],Tab_Uderor[Competencia],Entrada!Y$7,Tab_Uderor[TipoReceita],Entrada!$P21) -> 0 | Z21: =SUMIFS(Tab_Uderor[R$],Tab_Uderor[Competencia],Entrada!Z$7,Tab_Uderor[TipoReceita],Entrada!$P21) -> 0 | AA21: =SUMIFS(Tab_Uderor[R$],Tab_Uderor[Competencia],Entrada!AA$7,Tab_Uderor[TipoReceita],Entrada!$P21) -> 0 | AB21: =SUMIFS(Tab_Uderor[R$],Tab_Uderor[Competencia],Entrada!AB$7,Tab_Uderor[TipoReceita],Entrada!$P21) -> 0 | AC21: =SUMIFS(Tab_Uderor[R$],Tab_Uderor[Competencia],Entrada!AC$7,Tab_Uderor[TipoReceita],Entrada!$P21) -> 0 | AD21: =SUMIFS(Tab_Uderor[R$],Tab_Uderor[Competencia],Entrada!AD$7,Tab_Uderor[TipoReceita],Entrada!$P21) -> 0 | AE21: =SUMIFS(Tab_Uderor[R$],Tab_Uderor[Competencia],Entrada!AE$7,Tab_Uderor[TipoReceita],Entrada!$P21) -> 0 | AF21: =SUMIFS(Tab_Uderor[R$],Tab_Uderor[Competencia],Entrada!AF$7,Tab_Uderor[TipoReceita],Entrada!$P21) -> 0 | AG21: =SUMIFS(Tab_Uderor[R$],Tab_Uderor[Competencia],Entrada!AG$7,Tab_Uderor[TipoReceita],Entrada!$P21) -> 0 | AH21: =SUMIFS(Tab_Uderor[R$],Tab_Uderor[Competencia],Entrada!AH$7,Tab_Uderor[TipoReceita],Entrada!$P21) -> 0 | AI21: =SUMIFS(Tab_Uderor[R$],Tab_Uderor[Competencia],Entrada!AI$7,Tab_Uderor[TipoReceita],Entrada!$P21) -> 0 | AJ21: =SUMIFS(Tab_Uderor[R$],Tab_Uderor[Competencia],Entrada!AJ$7,Tab_Uderor[TipoReceita],Entrada!$P21) -> 0 | AK21: =SUMIFS(Tab_Uderor[R$],Tab_Uderor[Competencia],Entrada!AK$7,Tab_Uderor[TipoReceita],Entrada!$P21) -> 0 | AL21: =SUMIFS(Tab_Uderor[R$],Tab_Uderor[Competencia],Entrada!AL$7,Tab_Uderor[TipoReceita],Entrada!$P21) -> 0 | AM21: =SUMIFS(Tab_Uderor[R$],Tab_Uderor[Competencia],Entrada!AM$7,Tab_Uderor[TipoReceita],Entrada!$P21) -> 0 | AN21: =SUMIFS(Tab_Uderor[R$],Tab_Uderor[Competencia],Entrada!AN$7,Tab_Uderor[TipoReceita],Entrada!$P21) -> 0 | AO21: =SUMIFS(Tab_Uderor[R$],Tab_Uderor[Competencia],Entrada!AO$7,Tab_Uderor[TipoReceita],Entrada!$P21) -> 0 | AP21: =SUMIFS(Tab_Uderor[R$],Tab_Uderor[Competencia],Entrada!AP$7,Tab_Uderor[TipoReceita],Entrada!$P21) -> 0 | AQ21: =SUMIFS(Tab_Uderor[R$],Tab_Uderor[Competencia],Entrada!AQ$7,Tab_Uderor[TipoReceita],Entrada!$P21) -> 0 | AR21: =SUMIFS(Tab_Uderor[R$],Tab_Uderor[Competencia],Entrada!AR$7,Tab_Uderor[TipoReceita],Entrada!$P21) -> 0 | AS21: =SUMIFS(Tab_Uderor[R$],Tab_Uderor[Competencia],Entrada!AS$7,Tab_Uderor[TipoReceita],Entrada!$P21) -> 0 | AT21: =SUMIFS(Tab_Uderor[R$],Tab_Uderor[Competencia],Entrada!AT$7,Tab_Uderor[TipoReceita],Entrada!$P21) -> 0 | AU21: =SUMIFS(Tab_Uderor[R$],Tab_Uderor[Competencia],Entrada!AU$7,Tab_Uderor[TipoReceita],Entrada!$P21) -> 0 | AV21: =SUMIFS(Tab_Uderor[R$],Tab_Uderor[Competencia],Entrada!AV$7,Tab_Uderor[TipoReceita],Entrada!$P21) -> 0 | AW21: =SUMIFS(Tab_Uderor[R$],Tab_Uderor[Competencia],Entrada!AW$7,Tab_Uderor[TipoReceita],Entrada!$P21) -> 0 | AX21: =SUMIFS(Tab_Uderor[R$],Tab_Uderor[Competencia],Entrada!AX$7,Tab_Uderor[TipoReceita],Entrada!$P21) -> 0 | AY21: =SUMIFS(Tab_Uderor[R$],Tab_Uderor[Competencia],Entrada!AY$7,Tab_Uderor[TipoReceita],Entrada!$P21) -> 0 | AZ21: =SUMIFS(Tab_Uderor[R$],Tab_Uderor[Competencia],Entrada!AZ$7,Tab_Uderor[TipoReceita],Entrada!$P21) -> 0
F22: (16) Saldo RGR Demais Investimentos | G22: =G88*VLOOKUP(DATE(YEAR(CAPA!$C$10),MONTH(CAPA!$C$10)-1,1),Índices!$B$135:$D$638,3,0)/VLOOKUP(DATE(YEAR($G$72),MONTH($G$72)-1,1),Índices!$B$135:$D$638,3,0) -> 0 | J22: BMP - 610530710; 610550710; 610532710; 610552710 | K22: (-) Créditos de Tributos Recuperáveis | L22: =SUMIFS(Tab_RIT_BMP[SALDO],Tab_RIT_BMP[CONTA],610530710,Tab_RIT_BMP[ANO],$L$7)+SUMIFS(Tab_RIT_BMP[SALDO],Tab_RIT_BMP[CONTA],610550710,Tab_RIT_BMP[ANO],$L$7)+ SUMIFS(Tab_RIT_BMP[SALDO],Tab_RIT_BMP[CONTA],610532710,Tab_RIT_BMP[ANO],$L$7)+SUMIFS(Tab_RIT_BMP[SALDO],Tab_RIT_BMP[CONTA],610552710,Tab_RIT_BMP[ANO],$L$7) -> -315943.5 | M22: =SUMIFS(Tab_RIT_BMP[SALDO],Tab_RIT_BMP[CONTA],610530710,Tab_RIT_BMP[ANO],$M$7)+SUMIFS(Tab_RIT_BMP[SALDO],Tab_RIT_BMP[CONTA],610550710,Tab_RIT_BMP[ANO],$M$7)+ SUMIFS(Tab_RIT_BMP[SALDO],Tab_RIT_BMP[CONTA],610532710,Tab_RIT_BMP[ANO],$M$7)+SUMIFS(Tab_RIT_BMP[SALDO],Tab_RIT_BMP[CONTA],610552710,Tab_RIT_BMP[ANO],$M$7) -> -307577.2 | P22: (6) padrões de entrada de unidades consumidoras atendidas em baixa tensão; | Q22: =SUMIFS(Tab_Uderor[R$],Tab_Uderor[Competencia],Entrada!Q$7,Tab_Uderor[TipoReceita],Entrada!$P22) -> 0 | R22: =SUMIFS(Tab_Uderor[R$],Tab_Uderor[Competencia],Entrada!R$7,Tab_Uderor[TipoReceita],Entrada!$P22) -> 0 | S22: =SUMIFS(Tab_Uderor[R$],Tab_Uderor[Competencia],Entrada!S$7,Tab_Uderor[TipoReceita],Entrada!$P22) -> 0 | T22: =SUMIFS(Tab_Uderor[R$],Tab_Uderor[Competencia],Entrada!T$7,Tab_Uderor[TipoReceita],Entrada!$P22) -> 0 | U22: =SUMIFS(Tab_Uderor[R$],Tab_Uderor[Competencia],Entrada!U$7,Tab_Uderor[TipoReceita],Entrada!$P22) -> 0 | V22: =SUMIFS(Tab_Uderor[R$],Tab_Uderor[Competencia],Entrada!V$7,Tab_Uderor[TipoReceita],Entrada!$P22) -> 0 | W22: =SUMIFS(Tab_Uderor[R$],Tab_Uderor[Competencia],Entrada!W$7,Tab_Uderor[TipoReceita],Entrada!$P22) -> 0 | X22: =SUMIFS(Tab_Uderor[R$],Tab_Uderor[Competencia],Entrada!X$7,Tab_Uderor[TipoReceita],Entrada!$P22) -> 0 | Y22: =SUMIFS(Tab_Uderor[R$],Tab_Uderor[Competencia],Entrada!Y$7,Tab_Uderor[TipoReceita],Entrada!$P22) -> 0 | Z22: =SUMIFS(Tab_Uderor[R$],Tab_Uderor[Competencia],Entrada!Z$7,Tab_Uderor[TipoReceita],Entrada!$P22) -> 0 | AA22: =SUMIFS(Tab_Uderor[R$],Tab_Uderor[Competencia],Entrada!AA$7,Tab_Uderor[TipoReceita],Entrada!$P22) -> 0 | AB22: =SUMIFS(Tab_Uderor[R$],Tab_Uderor[Competencia],Entrada!AB$7,Tab_Uderor[TipoReceita],Entrada!$P22) -> 0 | AC22: =SUMIFS(Tab_Uderor[R$],Tab_Uderor[Competencia],Entrada!AC$7,Tab_Uderor[TipoReceita],Entrada!$P22) -> 0 | AD22: =SUMIFS(Tab_Uderor[R$],Tab_Uderor[Competencia],Entrada!AD$7,Tab_Uderor[TipoReceita],Entrada!$P22) -> 0 | AE22: =SUMIFS(Tab_Uderor[R$],Tab_Uderor[Competencia],Entrada!AE$7,Tab_Uderor[TipoReceita],Entrada!$P22) -> 0 | AF22: =SUMIFS(Tab_Uderor[R$],Tab_Uderor[Competencia],Entrada!AF$7,Tab_Uderor[TipoReceita],Entrada!$P22) -> 0 | AG22: =SUMIFS(Tab_Uderor[R$],Tab_Uderor[Competencia],Entrada!AG$7,Tab_Uderor[TipoReceita],Entrada!$P22) -> 0 | AH22: =SUMIFS(Tab_Uderor[R$],Tab_Uderor[Competencia],Entrada!AH$7,Tab_Uderor[TipoReceita],Entrada!$P22) -> 0 | AI22: =SUMIFS(Tab_Uderor[R$],Tab_Uderor[Competencia],Entrada!AI$7,Tab_Uderor[TipoReceita],Entrada!$P22) -> 0 | AJ22: =SUMIFS(Tab_Uderor[R$],Tab_Uderor[Competencia],Entrada!AJ$7,Tab_Uderor[TipoReceita],Entrada!$P22) -> 0 | AK22: =SUMIFS(Tab_Uderor[R$],Tab_Uderor[Competencia],Entrada!AK$7,Tab_Uderor[TipoReceita],Entrada!$P22) -> 0 | AL22: =SUMIFS(Tab_Uderor[R$],Tab_Uderor[Competencia],Entrada!AL$7,Tab_Uderor[TipoReceita],Entrada!$P22) -> 0 | AM22: =SUMIFS(Tab_Uderor[R$],Tab_Uderor[Competencia],Entrada!AM$7,Tab_Uderor[TipoReceita],Entrada!$P22) -> 0 | AN22: =SUMIFS(Tab_Uderor[R$],Tab_Uderor[Competencia],Entrada!AN$7,Tab_Uderor[TipoReceita],Entrada!$P22) -> 0 | AO22: =SUMIFS(Tab_Uderor[R$],Tab_Uderor[Competencia],Entrada!AO$7,Tab_Uderor[TipoReceita],Entrada!$P22) -> 0 | AP22: =SUMIFS(Tab_Uderor[R$],Tab_Uderor[Competencia],Entrada!AP$7,Tab_Uderor[TipoReceita],Entrada!$P22) -> 0 | AQ22: =SUMIFS(Tab_Uderor[R$],Tab_Uderor[Competencia],Entrada!AQ$7,Tab_Uderor[TipoReceita],Entrada!$P22) -> 0 | AR22: =SUMIFS(Tab_Uderor[R$],Tab_Uderor[Competencia],Entrada!AR$7,Tab_Uderor[TipoReceita],Entrada!$P22) -> 0 | AS22: =SUMIFS(Tab_Uderor[R$],Tab_Uderor[Competencia],Entrada!AS$7,Tab_Uderor[TipoReceita],Entrada!$P22) -> 0 | AT22: =SUMIFS(Tab_Uderor[R$],Tab_Uderor[Competencia],Entrada!AT$7,Tab_Uderor[TipoReceita],Entrada!$P22) -> 0 | AU22: =SUMIFS(Tab_Uderor[R$],Tab_Uderor[Competencia],Entrada!AU$7,Tab_Uderor[TipoReceita],Entrada!$P22) -> 0 | AV22: =SUMIFS(Tab_Uderor[R$],Tab_Uderor[Competencia],Entrada!AV$7,Tab_Uderor[TipoReceita],Entrada!$P22) -> 0 | AW22: =SUMIFS(Tab_Uderor[R$],Tab_Uderor[Competencia],Entrada!AW$7,Tab_Uderor[TipoReceita],Entrada!$P22) -> 0 | AX22: =SUMIFS(Tab_Uderor[R$],Tab_Uderor[Competencia],Entrada!AX$7,Tab_Uderor[TipoReceita],Entrada!$P22) -> 0 | AY22: =SUMIFS(Tab_Uderor[R$],Tab_Uderor[Competencia],Entrada!AY$7,Tab_Uderor[TipoReceita],Entrada!$P22) -> 0 | AZ22: =SUMIFS(Tab_Uderor[R$],Tab_Uderor[Competencia],Entrada!AZ$7,Tab_Uderor[TipoReceita],Entrada!$P22) -> 0
F23: (17) Taxa de Depreciação | G23: =G89 -> 0.0407 | K23: Subtotal | L23: =SUM(L20:L22) -> 13225977.13 | M23: =SUM(M20:M22) -> 14836811.69 | P23: (7) sistemas de medição de energia elétrica; | Q23: =SUMIFS(Tab_Uderor[R$],Tab_Uderor[Competencia],Entrada!Q$7,Tab_Uderor[TipoReceita],Entrada!$P23) -> 0 | R23: =SUMIFS(Tab_Uderor[R$],Tab_Uderor[Competencia],Entrada!R$7,Tab_Uderor[TipoReceita],Entrada!$P23) -> 0 | S23: =SUMIFS(Tab_Uderor[R$],Tab_Uderor[Competencia],Entrada!S$7,Tab_Uderor[TipoReceita],Entrada!$P23) -> 0 | T23: =SUMIFS(Tab_Uderor[R$],Tab_Uderor[Competencia],Entrada!T$7,Tab_Uderor[TipoReceita],Entrada!$P23) -> 0 | U23: =SUMIFS(Tab_Uderor[R$],Tab_Uderor[Competencia],Entrada!U$7,Tab_Uderor[TipoReceita],Entrada!$P23) -> 0 | V23: =SUMIFS(Tab_Uderor[R$],Tab_Uderor[Competencia],Entrada!V$7,Tab_Uderor[TipoReceita],Entrada!$P23) -> 0 | W23: =SUMIFS(Tab_Uderor[R$],Tab_Uderor[Competencia],Entrada!W$7,Tab_Uderor[TipoReceita],Entrada!$P23) -> 0 | X23: =SUMIFS(Tab_Uderor[R$],Tab_Uderor[Competencia],Entrada!X$7,Tab_Uderor[TipoReceita],Entrada!$P23) -> 0 | Y23: =SUMIFS(Tab_Uderor[R$],Tab_Uderor[Competencia],Entrada!Y$7,Tab_Uderor[TipoReceita],Entrada!$P23) -> 0 | Z23: =SUMIFS(Tab_Uderor[R$],Tab_Uderor[Competencia],Entrada!Z$7,Tab_Uderor[TipoReceita],Entrada!$P23) -> 0 | AA23: =SUMIFS(Tab_Uderor[R$],Tab_Uderor[Competencia],Entrada!AA$7,Tab_Uderor[TipoReceita],Entrada!$P23) -> 0 | AB23: =SUMIFS(Tab_Uderor[R$],Tab_Uderor[Competencia],Entrada!AB$7,Tab_Uderor[TipoReceita],Entrada!$P23) -> 0 | AC23: =SUMIFS(Tab_Uderor[R$],Tab_Uderor[Competencia],Entrada!AC$7,Tab_Uderor[TipoReceita],Entrada!$P23) -> 0 | AD23: =SUMIFS(Tab_Uderor[R$],Tab_Uderor[Competencia],Entrada!AD$7,Tab_Uderor[TipoReceita],Entrada!$P23) -> 0 | AE23: =SUMIFS(Tab_Uderor[R$],Tab_Uderor[Competencia],Entrada!AE$7,Tab_Uderor[TipoReceita],Entrada!$P23) -> 0 | AF23: =SUMIFS(Tab_Uderor[R$],Tab_Uderor[Competencia],Entrada!AF$7,Tab_Uderor[TipoReceita],Entrada!$P23) -> 0 | AG23: =SUMIFS(Tab_Uderor[R$],Tab_Uderor[Competencia],Entrada!AG$7,Tab_Uderor[TipoReceita],Entrada!$P23) -> 0 | AH23: =SUMIFS(Tab_Uderor[R$],Tab_Uderor[Competencia],Entrada!AH$7,Tab_Uderor[TipoReceita],Entrada!$P23) -> 0 | AI23: =SUMIFS(Tab_Uderor[R$],Tab_Uderor[Competencia],Entrada!AI$7,Tab_Uderor[TipoReceita],Entrada!$P23) -> 0 | AJ23: =SUMIFS(Tab_Uderor[R$],Tab_Uderor[Competencia],Entrada!AJ$7,Tab_Uderor[TipoReceita],Entrada!$P23) -> 0 | AK23: =SUMIFS(Tab_Uderor[R$],Tab_Uderor[Competencia],Entrada!AK$7,Tab_Uderor[TipoReceita],Entrada!$P23) -> 0 | AL23: =SUMIFS(Tab_Uderor[R$],Tab_Uderor[Competencia],Entrada!AL$7,Tab_Uderor[TipoReceita],Entrada!$P23) -> 0 | AM23: =SUMIFS(Tab_Uderor[R$],Tab_Uderor[Competencia],Entrada!AM$7,Tab_Uderor[TipoReceita],Entrada!$P23) -> 0 | AN23: =SUMIFS(Tab_Uderor[R$],Tab_Uderor[Competencia],Entrada!AN$7,Tab_Uderor[TipoReceita],Entrada!$P23) -> 0 | AO23: =SUMIFS(Tab_Uderor[R$],Tab_Uderor[Competencia],Entrada!AO$7,Tab_Uderor[TipoReceita],Entrada!$P23) -> 0 | AP23: =SUMIFS(Tab_Uderor[R$],Tab_Uderor[Competencia],Entrada!AP$7,Tab_Uderor[TipoReceita],Entrada!$P23) -> 0 | AQ23: =SUMIFS(Tab_Uderor[R$],Tab_Uderor[Competencia],Entrada!AQ$7,Tab_Uderor[TipoReceita],Entrada!$P23) -> 0 | AR23: =SUMIFS(Tab_Uderor[R$],Tab_Uderor[Competencia],Entrada!AR$7,Tab_Uderor[TipoReceita],Entrada!$P23) -> 0 | AS23: =SUMIFS(Tab_Uderor[R$],Tab_Uderor[Competencia],Entrada!AS$7,Tab_Uderor[TipoReceita],Entrada!$P23) -> 0 | AT23: =SUMIFS(Tab_Uderor[R$],Tab_Uderor[Competencia],Entrada!AT$7,Tab_Uderor[TipoReceita],Entrada!$P23) -> 0 | AU23: =SUMIFS(Tab_Uderor[R$],Tab_Uderor[Competencia],Entrada!AU$7,Tab_Uderor[TipoReceita],Entrada!$P23) -> 0 | AV23: =SUMIFS(Tab_Uderor[R$],Tab_Uderor[Competencia],Entrada!AV$7,Tab_Uderor[TipoReceita],Entrada!$P23) -> 0 | AW23: =SUMIFS(Tab_Uderor[R$],Tab_Uderor[Competencia],Entrada!AW$7,Tab_Uderor[TipoReceita],Entrada!$P23) -> 0 | AX23: =SUMIFS(Tab_Uderor[R$],Tab_Uderor[Competencia],Entrada!AX$7,Tab_Uderor[TipoReceita],Entrada!$P23) -> 0 | AY23: =SUMIFS(Tab_Uderor[R$],Tab_Uderor[Competencia],Entrada!AY$7,Tab_Uderor[TipoReceita],Entrada!$P23) -> 0 | AZ23: =SUMIFS(Tab_Uderor[R$],Tab_Uderor[Competencia],Entrada!AZ$7,Tab_Uderor[TipoReceita],Entrada!$P23) -> 0
F24: (18) Quota de Reintegração Regulatória = (5) * (17) | G24: =G23*G11 -> 80356169.59 | J24: CONTA TERCEIROS | P24: (8) geradores, incluindo-se unidades de microgeração e minigeração distribuída; | Q24: =SUMIFS(Tab_Uderor[R$],Tab_Uderor[Competencia],Entrada!Q$7,Tab_Uderor[TipoReceita],Entrada!$P24) -> 0 | R24: =SUMIFS(Tab_Uderor[R$],Tab_Uderor[Competencia],Entrada!R$7,Tab_Uderor[TipoReceita],Entrada!$P24) -> 0 | S24: =SUMIFS(Tab_Uderor[R$],Tab_Uderor[Competencia],Entrada!S$7,Tab_Uderor[TipoReceita],Entrada!$P24) -> 0 | T24: =SUMIFS(Tab_Uderor[R$],Tab_Uderor[Competencia],Entrada!T$7,Tab_Uderor[TipoReceita],Entrada!$P24) -> 0 | U24: =SUMIFS(Tab_Uderor[R$],Tab_Uderor[Competencia],Entrada!U$7,Tab_Uderor[TipoReceita],Entrada!$P24) -> 0 | V24: =SUMIFS(Tab_Uderor[R$],Tab_Uderor[Competencia],Entrada!V$7,Tab_Uderor[TipoReceita],Entrada!$P24) -> 0 | W24: =SUMIFS(Tab_Uderor[R$],Tab_Uderor[Competencia],Entrada!W$7,Tab_Uderor[TipoReceita],Entrada!$P24) -> 0 | X24: =SUMIFS(Tab_Uderor[R$],Tab_Uderor[Competencia],Entrada!X$7,Tab_Uderor[TipoReceita],Entrada!$P24) -> 0 | Y24: =SUMIFS(Tab_Uderor[R$],Tab_Uderor[Competencia],Entrada!Y$7,Tab_Uderor[TipoReceita],Entrada!$P24) -> 0 | Z24: =SUMIFS(Tab_Uderor[R$],Tab_Uderor[Competencia],Entrada!Z$7,Tab_Uderor[TipoReceita],Entrada!$P24) -> 0 | AA24: =SUMIFS(Tab_Uderor[R$],Tab_Uderor[Competencia],Entrada!AA$7,Tab_Uderor[TipoReceita],Entrada!$P24) -> 0 | AB24: =SUMIFS(Tab_Uderor[R$],Tab_Uderor[Competencia],Entrada!AB$7,Tab_Uderor[TipoReceita],Entrada!$P24) -> 0 | AC24: =SUMIFS(Tab_Uderor[R$],Tab_Uderor[Competencia],Entrada!AC$7,Tab_Uderor[TipoReceita],Entrada!$P24) -> 0 | AD24: =SUMIFS(Tab_Uderor[R$],Tab_Uderor[Competencia],Entrada!AD$7,Tab_Uderor[TipoReceita],Entrada!$P24) -> 0 | AE24: =SUMIFS(Tab_Uderor[R$],Tab_Uderor[Competencia],Entrada!AE$7,Tab_Uderor[TipoReceita],Entrada!$P24) -> 0 | AF24: =SUMIFS(Tab_Uderor[R$],Tab_Uderor[Competencia],Entrada!AF$7,Tab_Uderor[TipoReceita],Entrada!$P24) -> 0 | AG24: =SUMIFS(Tab_Uderor[R$],Tab_Uderor[Competencia],Entrada!AG$7,Tab_Uderor[TipoReceita],Entrada!$P24) -> 0 | AH24: =SUMIFS(Tab_Uderor[R$],Tab_Uderor[Competencia],Entrada!AH$7,Tab_Uderor[TipoReceita],Entrada!$P24) -> 0 | AI24: =SUMIFS(Tab_Uderor[R$],Tab_Uderor[Competencia],Entrada!AI$7,Tab_Uderor[TipoReceita],Entrada!$P24) -> 0 | AJ24: =SUMIFS(Tab_Uderor[R$],Tab_Uderor[Competencia],Entrada!AJ$7,Tab_Uderor[TipoReceita],Entrada!$P24) -> 0 | AK24: =SUMIFS(Tab_Uderor[R$],Tab_Uderor[Competencia],Entrada!AK$7,Tab_Uderor[TipoReceita],Entrada!$P24) -> 0 | AL24: =SUMIFS(Tab_Uderor[R$],Tab_Uderor[Competencia],Entrada!AL$7,Tab_Uderor[TipoReceita],Entrada!$P24) -> 0 | AM24: =SUMIFS(Tab_Uderor[R$],Tab_Uderor[Competencia],Entrada!AM$7,Tab_Uderor[TipoReceita],Entrada!$P24) -> 0 | AN24: =SUMIFS(Tab_Uderor[R$],Tab_Uderor[Competencia],Entrada!AN$7,Tab_Uderor[TipoReceita],Entrada!$P24) -> 0 | AO24: =SUMIFS(Tab_Uderor[R$],Tab_Uderor[Competencia],Entrada!AO$7,Tab_Uderor[TipoReceita],Entrada!$P24) -> 0 | AP24: =SUMIFS(Tab_Uderor[R$],Tab_Uderor[Competencia],Entrada!AP$7,Tab_Uderor[TipoReceita],Entrada!$P24) -> 0 | AQ24: =SUMIFS(Tab_Uderor[R$],Tab_Uderor[Competencia],Entrada!AQ$7,Tab_Uderor[TipoReceita],Entrada!$P24) -> 0 | AR24: =SUMIFS(Tab_Uderor[R$],Tab_Uderor[Competencia],Entrada!AR$7,Tab_Uderor[TipoReceita],Entrada!$P24) -> 0 | AS24: =SUMIFS(Tab_Uderor[R$],Tab_Uderor[Competencia],Entrada!AS$7,Tab_Uderor[TipoReceita],Entrada!$P24) -> 0 | AT24: =SUMIFS(Tab_Uderor[R$],Tab_Uderor[Competencia],Entrada!AT$7,Tab_Uderor[TipoReceita],Entrada!$P24) -> 0 | AU24: =SUMIFS(Tab_Uderor[R$],Tab_Uderor[Competencia],Entrada!AU$7,Tab_Uderor[TipoReceita],Entrada!$P24) -> 0 | AV24: =SUMIFS(Tab_Uderor[R$],Tab_Uderor[Competencia],Entrada!AV$7,Tab_Uderor[TipoReceita],Entrada!$P24) -> 0 | AW24: =SUMIFS(Tab_Uderor[R$],Tab_Uderor[Competencia],Entrada!AW$7,Tab_Uderor[TipoReceita],Entrada!$P24) -> 0 | AX24: =SUMIFS(Tab_Uderor[R$],Tab_Uderor[Competencia],Entrada!AX$7,Tab_Uderor[TipoReceita],Entrada!$P24) -> 0 | AY24: =SUMIFS(Tab_Uderor[R$],Tab_Uderor[Competencia],Entrada!AY$7,Tab_Uderor[TipoReceita],Entrada!$P24) -> 0 | AZ24: =SUMIFS(Tab_Uderor[R$],Tab_Uderor[Competencia],Entrada!AZ$7,Tab_Uderor[TipoReceita],Entrada!$P24) -> 0
J25: RIT - RP 800 - Célula F20 | K25: Manut. e Conserv. Bens e Instalações vinculadas ao Serviço Concedido | L25: =SUMIFS(Tab_RIT_BMP[SALDO],Tab_RIT_BMP[CONTA],1,Tab_RIT_BMP[ANO],$L$7) -> 4970047.11 | M25: =SUMIFS(Tab_RIT_BMP[SALDO],Tab_RIT_BMP[CONTA],1,Tab_RIT_BMP[ANO],$M$7) -> 5963424.85 | P25: (9) sistemas de iluminação pública. | Q25: =SUMIFS(Tab_Uderor[R$],Tab_Uderor[Competencia],Entrada!Q$7,Tab_Uderor[TipoReceita],Entrada!$P25) -> 0 | R25: =SUMIFS(Tab_Uderor[R$],Tab_Uderor[Competencia],Entrada!R$7,Tab_Uderor[TipoReceita],Entrada!$P25) -> 0 | S25: =SUMIFS(Tab_Uderor[R$],Tab_Uderor[Competencia],Entrada!S$7,Tab_Uderor[TipoReceita],Entrada!$P25) -> 0 | T25: =SUMIFS(Tab_Uderor[R$],Tab_Uderor[Competencia],Entrada!T$7,Tab_Uderor[TipoReceita],Entrada!$P25) -> 0 | U25: =SUMIFS(Tab_Uderor[R$],Tab_Uderor[Competencia],Entrada!U$7,Tab_Uderor[TipoReceita],Entrada!$P25) -> 0 | V25: =SUMIFS(Tab_Uderor[R$],Tab_Uderor[Competencia],Entrada!V$7,Tab_Uderor[TipoReceita],Entrada!$P25) -> 0 | W25: =SUMIFS(Tab_Uderor[R$],Tab_Uderor[Competencia],Entrada!W$7,Tab_Uderor[TipoReceita],Entrada!$P25) -> 0 | X25: =SUMIFS(Tab_Uderor[R$],Tab_Uderor[Competencia],Entrada!X$7,Tab_Uderor[TipoReceita],Entrada!$P25) -> 0 | Y25: =SUMIFS(Tab_Uderor[R$],Tab_Uderor[Competencia],Entrada!Y$7,Tab_Uderor[TipoReceita],Entrada!$P25) -> 0 | Z25: =SUMIFS(Tab_Uderor[R$],Tab_Uderor[Competencia],Entrada!Z$7,Tab_Uderor[TipoReceita],Entrada!$P25) -> 0 | AA25: =SUMIFS(Tab_Uderor[R$],Tab_Uderor[Competencia],Entrada!AA$7,Tab_Uderor[TipoReceita],Entrada!$P25) -> 0 | AB25: =SUMIFS(Tab_Uderor[R$],Tab_Uderor[Competencia],Entrada!AB$7,Tab_Uderor[TipoReceita],Entrada!$P25) -> 0 | AC25: =SUMIFS(Tab_Uderor[R$],Tab_Uderor[Competencia],Entrada!AC$7,Tab_Uderor[TipoReceita],Entrada!$P25) -> 0 | AD25: =SUMIFS(Tab_Uderor[R$],Tab_Uderor[Competencia],Entrada!AD$7,Tab_Uderor[TipoReceita],Entrada!$P25) -> 0 | AE25: =SUMIFS(Tab_Uderor[R$],Tab_Uderor[Competencia],Entrada!AE$7,Tab_Uderor[TipoReceita],Entrada!$P25) -> 0 | AF25: =SUMIFS(Tab_Uderor[R$],Tab_Uderor[Competencia],Entrada!AF$7,Tab_Uderor[TipoReceita],Entrada!$P25) -> 0 | AG25: =SUMIFS(Tab_Uderor[R$],Tab_Uderor[Competencia],Entrada!AG$7,Tab_Uderor[TipoReceita],Entrada!$P25) -> 0 | AH25: =SUMIFS(Tab_Uderor[R$],Tab_Uderor[Competencia],Entrada!AH$7,Tab_Uderor[TipoReceita],Entrada!$P25) -> 0 | AI25: =SUMIFS(Tab_Uderor[R$],Tab_Uderor[Competencia],Entrada!AI$7,Tab_Uderor[TipoReceita],Entrada!$P25) -> 0 | AJ25: =SUMIFS(Tab_Uderor[R$],Tab_Uderor[Competencia],Entrada!AJ$7,Tab_Uderor[TipoReceita],Entrada!$P25) -> 0 | AK25: =SUMIFS(Tab_Uderor[R$],Tab_Uderor[Competencia],Entrada!AK$7,Tab_Uderor[TipoReceita],Entrada!$P25) -> 0 | AL25: =SUMIFS(Tab_Uderor[R$],Tab_Uderor[Competencia],Entrada!AL$7,Tab_Uderor[TipoReceita],Entrada!$P25) -> 0 | AM25: =SUMIFS(Tab_Uderor[R$],Tab_Uderor[Competencia],Entrada!AM$7,Tab_Uderor[TipoReceita],Entrada!$P25) -> 0 | AN25: =SUMIFS(Tab_Uderor[R$],Tab_Uderor[Competencia],Entrada!AN$7,Tab_Uderor[TipoReceita],Entrada!$P25) -> 0 | AO25: =SUMIFS(Tab_Uderor[R$],Tab_Uderor[Competencia],Entrada!AO$7,Tab_Uderor[TipoReceita],Entrada!$P25) -> 0 | AP25: =SUMIFS(Tab_Uderor[R$],Tab_Uderor[Competencia],Entrada!AP$7,Tab_Uderor[TipoReceita],Entrada!$P25) -> 0 | AQ25: =SUMIFS(Tab_Uderor[R$],Tab_Uderor[Competencia],Entrada!AQ$7,Tab_Uderor[TipoReceita],Entrada!$P25) -> 0 | AR25: =SUMIFS(Tab_Uderor[R$],Tab_Uderor[Competencia],Entrada!AR$7,Tab_Uderor[TipoReceita],Entrada!$P25) -> 0 | AS25: =SUMIFS(Tab_Uderor[R$],Tab_Uderor[Competencia],Entrada!AS$7,Tab_Uderor[TipoReceita],Entrada!$P25) -> 0 | AT25: =SUMIFS(Tab_Uderor[R$],Tab_Uderor[Competencia],Entrada!AT$7,Tab_Uderor[TipoReceita],Entrada!$P25) -> 0 | AU25: =SUMIFS(Tab_Uderor[R$],Tab_Uderor[Competencia],Entrada!AU$7,Tab_Uderor[TipoReceita],Entrada!$P25) -> 0 | AV25: =SUMIFS(Tab_Uderor[R$],Tab_Uderor[Competencia],Entrada!AV$7,Tab_Uderor[TipoReceita],Entrada!$P25) -> 0 | AW25: =SUMIFS(Tab_Uderor[R$],Tab_Uderor[Competencia],Entrada!AW$7,Tab_Uderor[TipoReceita],Entrada!$P25) -> 0 | AX25: =SUMIFS(Tab_Uderor[R$],Tab_Uderor[Competencia],Entrada!AX$7,Tab_Uderor[TipoReceita],Entrada!$P25) -> 0 | AY25: =SUMIFS(Tab_Uderor[R$],Tab_Uderor[Competencia],Entrada!AY$7,Tab_Uderor[TipoReceita],Entrada!$P25) -> 0 | AZ25: =SUMIFS(Tab_Uderor[R$],Tab_Uderor[Competencia],Entrada!AZ$7,Tab_Uderor[TipoReceita],Entrada!$P25) -> 0
F26: Gasto do Conselho de Consumidores | J26: RIT - RP 800 - Célula F21 | K26: Auditoria e Consultoria | L26: =SUMIFS(Tab_RIT_BMP[SALDO],Tab_RIT_BMP[CONTA],2,Tab_RIT_BMP[ANO],$L$7) -> 566087.41 | M26: =SUMIFS(Tab_RIT_BMP[SALDO],Tab_RIT_BMP[CONTA],2,Tab_RIT_BMP[ANO],$M$7) -> 579393.04 | P26: (10) estações de recarga de veículos elétricos, incluindo a prestação de serviços aos usuários | Q26: =SUMIFS(Tab_Uderor[R$],Tab_Uderor[Competencia],Entrada!Q$7,Tab_Uderor[TipoReceita],Entrada!$P26) -> 0 | R26: =SUMIFS(Tab_Uderor[R$],Tab_Uderor[Competencia],Entrada!R$7,Tab_Uderor[TipoReceita],Entrada!$P26) -> 0 | S26: =SUMIFS(Tab_Uderor[R$],Tab_Uderor[Competencia],Entrada!S$7,Tab_Uderor[TipoReceita],Entrada!$P26) -> 0 | T26: =SUMIFS(Tab_Uderor[R$],Tab_Uderor[Competencia],Entrada!T$7,Tab_Uderor[TipoReceita],Entrada!$P26) -> 0 | U26: =SUMIFS(Tab_Uderor[R$],Tab_Uderor[Competencia],Entrada!U$7,Tab_Uderor[TipoReceita],Entrada!$P26) -> 0 | V26: =SUMIFS(Tab_Uderor[R$],Tab_Uderor[Competencia],Entrada!V$7,Tab_Uderor[TipoReceita],Entrada!$P26) -> 0 | W26: =SUMIFS(Tab_Uderor[R$],Tab_Uderor[Competencia],Entrada!W$7,Tab_Uderor[TipoReceita],Entrada!$P26) -> 0 | X26: =SUMIFS(Tab_Uderor[R$],Tab_Uderor[Competencia],Entrada!X$7,Tab_Uderor[TipoReceita],Entrada!$P26) -> 0 | Y26: =SUMIFS(Tab_Uderor[R$],Tab_Uderor[Competencia],Entrada!Y$7,Tab_Uderor[TipoReceita],Entrada!$P26) -> 0 | Z26: =SUMIFS(Tab_Uderor[R$],Tab_Uderor[Competencia],Entrada!Z$7,Tab_Uderor[TipoReceita],Entrada!$P26) -> 0 | AA26: =SUMIFS(Tab_Uderor[R$],Tab_Uderor[Competencia],Entrada!AA$7,Tab_Uderor[TipoReceita],Entrada!$P26) -> 0 | AB26: =SUMIFS(Tab_Uderor[R$],Tab_Uderor[Competencia],Entrada!AB$7,Tab_Uderor[TipoReceita],Entrada!$P26) -> 0 | AC26: =SUMIFS(Tab_Uderor[R$],Tab_Uderor[Competencia],Entrada!AC$7,Tab_Uderor[TipoReceita],Entrada!$P26) -> 0 | AD26: =SUMIFS(Tab_Uderor[R$],Tab_Uderor[Competencia],Entrada!AD$7,Tab_Uderor[TipoReceita],Entrada!$P26) -> 0 | AE26: =SUMIFS(Tab_Uderor[R$],Tab_Uderor[Competencia],Entrada!AE$7,Tab_Uderor[TipoReceita],Entrada!$P26) -> 0 | AF26: =SUMIFS(Tab_Uderor[R$],Tab_Uderor[Competencia],Entrada!AF$7,Tab_Uderor[TipoReceita],Entrada!$P26) -> 0 | AG26: =SUMIFS(Tab_Uderor[R$],Tab_Uderor[Competencia],Entrada!AG$7,Tab_Uderor[TipoReceita],Entrada!$P26) -> 0 | AH26: =SUMIFS(Tab_Uderor[R$],Tab_Uderor[Competencia],Entrada!AH$7,Tab_Uderor[TipoReceita],Entrada!$P26) -> 0 | AI26: =SUMIFS(Tab_Uderor[R$],Tab_Uderor[Competencia],Entrada!AI$7,Tab_Uderor[TipoReceita],Entrada!$P26) -> 0 | AJ26: =SUMIFS(Tab_Uderor[R$],Tab_Uderor[Competencia],Entrada!AJ$7,Tab_Uderor[TipoReceita],Entrada!$P26) -> 0 | AK26: =SUMIFS(Tab_Uderor[R$],Tab_Uderor[Competencia],Entrada!AK$7,Tab_Uderor[TipoReceita],Entrada!$P26) -> 0 | AL26: =SUMIFS(Tab_Uderor[R$],Tab_Uderor[Competencia],Entrada!AL$7,Tab_Uderor[TipoReceita],Entrada!$P26) -> 0 | AM26: =SUMIFS(Tab_Uderor[R$],Tab_Uderor[Competencia],Entrada!AM$7,Tab_Uderor[TipoReceita],Entrada!$P26) -> 0 | AN26: =SUMIFS(Tab_Uderor[R$],Tab_Uderor[Competencia],Entrada!AN$7,Tab_Uderor[TipoReceita],Entrada!$P26) -> 0 | AO26: =SUMIFS(Tab_Uderor[R$],Tab_Uderor[Competencia],Entrada!AO$7,Tab_Uderor[TipoReceita],Entrada!$P26) -> 0 | AP26: =SUMIFS(Tab_Uderor[R$],Tab_Uderor[Competencia],Entrada!AP$7,Tab_Uderor[TipoReceita],Entrada!$P26) -> 0 | AQ26: =SUMIFS(Tab_Uderor[R$],Tab_Uderor[Competencia],Entrada!AQ$7,Tab_Uderor[TipoReceita],Entrada!$P26) -> 0 | AR26: =SUMIFS(Tab_Uderor[R$],Tab_Uderor[Competencia],Entrada!AR$7,Tab_Uderor[TipoReceita],Entrada!$P26) -> 0 | AS26: =SUMIFS(Tab_Uderor[R$],Tab_Uderor[Competencia],Entrada!AS$7,Tab_Uderor[TipoReceita],Entrada!$P26) -> 0 | AT26: =SUMIFS(Tab_Uderor[R$],Tab_Uderor[Competencia],Entrada!AT$7,Tab_Uderor[TipoReceita],Entrada!$P26) -> 0 | AU26: =SUMIFS(Tab_Uderor[R$],Tab_Uderor[Competencia],Entrada!AU$7,Tab_Uderor[TipoReceita],Entrada!$P26) -> 0 | AV26: =SUMIFS(Tab_Uderor[R$],Tab_Uderor[Competencia],Entrada!AV$7,Tab_Uderor[TipoReceita],Entrada!$P26) -> 0 | AW26: =SUMIFS(Tab_Uderor[R$],Tab_Uderor[Competencia],Entrada!AW$7,Tab_Uderor[TipoReceita],Entrada!$P26) -> 0 | AX26: =SUMIFS(Tab_Uderor[R$],Tab_Uderor[Competencia],Entrada!AX$7,Tab_Uderor[TipoReceita],Entrada!$P26) -> 0 | AY26: =SUMIFS(Tab_Uderor[R$],Tab_Uderor[Competencia],Entrada!AY$7,Tab_Uderor[TipoReceita],Entrada!$P26) -> 0 | AZ26: =SUMIFS(Tab_Uderor[R$],Tab_Uderor[Competencia],Entrada!AZ$7,Tab_Uderor[TipoReceita],Entrada!$P26) -> 0
F27: =Indexador!D132 -> Despesa 2022 | G27: 38623.33 | H27: 45007 | J27: RIT - RP 800 - Célula F22 | K27: Serviços Jurídicos | L27: =SUMIFS(Tab_RIT_BMP[SALDO],Tab_RIT_BMP[CONTA],3,Tab_RIT_BMP[ANO],$L$7) -> 0 | M27: =SUMIFS(Tab_RIT_BMP[SALDO],Tab_RIT_BMP[CONTA],3,Tab_RIT_BMP[ANO],$M$7) -> 0 | P27: Eficientização do consumo de energia elétrica e instalação de cogeração qualificada, desde que não enquadráveis nos projetos de Pesquisa e Desenvolvimento (P&D) ou de Eficiência Energética estabelecidos em lei | Q27: =SUMIFS(Tab_Uderor[R$],Tab_Uderor[Competencia],Entrada!Q$7,Tab_Uderor[TipoReceita],Entrada!$P27) -> 0 | R27: =SUMIFS(Tab_Uderor[R$],Tab_Uderor[Competencia],Entrada!R$7,Tab_Uderor[TipoReceita],Entrada!$P27) -> 0 | S27: =SUMIFS(Tab_Uderor[R$],Tab_Uderor[Competencia],Entrada!S$7,Tab_Uderor[TipoReceita],Entrada!$P27) -> 0 | T27: =SUMIFS(Tab_Uderor[R$],Tab_Uderor[Competencia],Entrada!T$7,Tab_Uderor[TipoReceita],Entrada!$P27) -> 0 | U27: =SUMIFS(Tab_Uderor[R$],Tab_Uderor[Competencia],Entrada!U$7,Tab_Uderor[TipoReceita],Entrada!$P27) -> 0 | V27: =SUMIFS(Tab_Uderor[R$],Tab_Uderor[Competencia],Entrada!V$7,Tab_Uderor[TipoReceita],Entrada!$P27) -> 0 | W27: =SUMIFS(Tab_Uderor[R$],Tab_Uderor[Competencia],Entrada!W$7,Tab_Uderor[TipoReceita],Entrada!$P27) -> 0 | X27: =SUMIFS(Tab_Uderor[R$],Tab_Uderor[Competencia],Entrada!X$7,Tab_Uderor[TipoReceita],Entrada!$P27) -> 0 | Y27: =SUMIFS(Tab_Uderor[R$],Tab_Uderor[Competencia],Entrada!Y$7,Tab_Uderor[TipoReceita],Entrada!$P27) -> 0 | Z27: =SUMIFS(Tab_Uderor[R$],Tab_Uderor[Competencia],Entrada!Z$7,Tab_Uderor[TipoReceita],Entrada!$P27) -> 0 | AA27: =SUMIFS(Tab_Uderor[R$],Tab_Uderor[Competencia],Entrada!AA$7,Tab_Uderor[TipoReceita],Entrada!$P27) -> 0 | AB27: =SUMIFS(Tab_Uderor[R$],Tab_Uderor[Competencia],Entrada!AB$7,Tab_Uderor[TipoReceita],Entrada!$P27) -> 0 | AC27: =SUMIFS(Tab_Uderor[R$],Tab_Uderor[Competencia],Entrada!AC$7,Tab_Uderor[TipoReceita],Entrada!$P27) -> 0 | AD27: =SUMIFS(Tab_Uderor[R$],Tab_Uderor[Competencia],Entrada!AD$7,Tab_Uderor[TipoReceita],Entrada!$P27) -> 0 | AE27: =SUMIFS(Tab_Uderor[R$],Tab_Uderor[Competencia],Entrada!AE$7,Tab_Uderor[TipoReceita],Entrada!$P27) -> 0 | AF27: =SUMIFS(Tab_Uderor[R$],Tab_Uderor[Competencia],Entrada!AF$7,Tab_Uderor[TipoReceita],Entrada!$P27) -> 0 | AG27: =SUMIFS(Tab_Uderor[R$],Tab_Uderor[Competencia],Entrada!AG$7,Tab_Uderor[TipoReceita],Entrada!$P27) -> 0 | AH27: =SUMIFS(Tab_Uderor[R$],Tab_Uderor[Competencia],Entrada!AH$7,Tab_Uderor[TipoReceita],Entrada!$P27) -> 0 | AI27: =SUMIFS(Tab_Uderor[R$],Tab_Uderor[Competencia],Entrada!AI$7,Tab_Uderor[TipoReceita],Entrada!$P27) -> 0 | AJ27: =SUMIFS(Tab_Uderor[R$],Tab_Uderor[Competencia],Entrada!AJ$7,Tab_Uderor[TipoReceita],Entrada!$P27) -> 0 | AK27: =SUMIFS(Tab_Uderor[R$],Tab_Uderor[Competencia],Entrada!AK$7,Tab_Uderor[TipoReceita],Entrada!$P27) -> 0 | AL27: =SUMIFS(Tab_Uderor[R$],Tab_Uderor[Competencia],Entrada!AL$7,Tab_Uderor[TipoReceita],Entrada!$P27) -> 0 | AM27: =SUMIFS(Tab_Uderor[R$],Tab_Uderor[Competencia],Entrada!AM$7,Tab_Uderor[TipoReceita],Entrada!$P27) -> 0 | AN27: =SUMIFS(Tab_Uderor[R$],Tab_Uderor[Competencia],Entrada!AN$7,Tab_Uderor[TipoReceita],Entrada!$P27) -> 0 | AO27: =SUMIFS(Tab_Uderor[R$],Tab_Uderor[Competencia],Entrada!AO$7,Tab_Uderor[TipoReceita],Entrada!$P27) -> 0 | AP27: =SUMIFS(Tab_Uderor[R$],Tab_Uderor[Competencia],Entrada!AP$7,Tab_Uderor[TipoReceita],Entrada!$P27) -> 0 | AQ27: =SUMIFS(Tab_Uderor[R$],Tab_Uderor[Competencia],Entrada!AQ$7,Tab_Uderor[TipoReceita],Entrada!$P27) -> 0 | AR27: =SUMIFS(Tab_Uderor[R$],Tab_Uderor[Competencia],Entrada!AR$7,Tab_Uderor[TipoReceita],Entrada!$P27) -> 0 | AS27: =SUMIFS(Tab_Uderor[R$],Tab_Uderor[Competencia],Entrada!AS$7,Tab_Uderor[TipoReceita],Entrada!$P27) -> 0 | AT27: =SUMIFS(Tab_Uderor[R$],Tab_Uderor[Competencia],Entrada!AT$7,Tab_Uderor[TipoReceita],Entrada!$P27) -> 0 | AU27: =SUMIFS(Tab_Uderor[R$],Tab_Uderor[Competencia],Entrada!AU$7,Tab_Uderor[TipoReceita],Entrada!$P27) -> 0 | AV27: =SUMIFS(Tab_Uderor[R$],Tab_Uderor[Competencia],Entrada!AV$7,Tab_Uderor[TipoReceita],Entrada!$P27) -> 0 | AW27: =SUMIFS(Tab_Uderor[R$],Tab_Uderor[Competencia],Entrada!AW$7,Tab_Uderor[TipoReceita],Entrada!$P27) -> 0 | AX27: =SUMIFS(Tab_Uderor[R$],Tab_Uderor[Competencia],Entrada!AX$7,Tab_Uderor[TipoReceita],Entrada!$P27) -> 0 | AY27: =SUMIFS(Tab_Uderor[R$],Tab_Uderor[Competencia],Entrada!AY$7,Tab_Uderor[TipoReceita],Entrada!$P27) -> 0 | AZ27: =SUMIFS(Tab_Uderor[R$],Tab_Uderor[Competencia],Entrada!AZ$7,Tab_Uderor[TipoReceita],Entrada!$P27) -> 0
F28: =Indexador!E132 -> Despesa 2021 | G28: 38623.33 | J28: RIT - RP 800 - Célula F23 | K28: Serviços de Informática | L28: =SUMIFS(Tab_RIT_BMP[SALDO],Tab_RIT_BMP[CONTA],4,Tab_RIT_BMP[ANO],$L$7)+SUMIFS(Tab_RIT_BMP[SALDO],Tab_RIT_BMP[CONTA],5,Tab_RIT_BMP[ANO],$L$7) -> 252792.21 | M28: =SUMIFS(Tab_RIT_BMP[SALDO],Tab_RIT_BMP[CONTA],4,Tab_RIT_BMP[ANO],$M$7)+SUMIFS(Tab_RIT_BMP[SALDO],Tab_RIT_BMP[CONTA],5,Tab_RIT_BMP[ANO],$M$7) -> 279991.35 | P28: Serviços de comunicação de dados | Q28: =SUMIFS(Tab_Uderor[R$],Tab_Uderor[Competencia],Entrada!Q$7,Tab_Uderor[TipoReceita],Entrada!$P28) -> 0 | R28: =SUMIFS(Tab_Uderor[R$],Tab_Uderor[Competencia],Entrada!R$7,Tab_Uderor[TipoReceita],Entrada!$P28) -> 0 | S28: =SUMIFS(Tab_Uderor[R$],Tab_Uderor[Competencia],Entrada!S$7,Tab_Uderor[TipoReceita],Entrada!$P28) -> 0 | T28: =SUMIFS(Tab_Uderor[R$],Tab_Uderor[Competencia],Entrada!T$7,Tab_Uderor[TipoReceita],Entrada!$P28) -> 0 | U28: =SUMIFS(Tab_Uderor[R$],Tab_Uderor[Competencia],Entrada!U$7,Tab_Uderor[TipoReceita],Entrada!$P28) -> 0 | V28: =SUMIFS(Tab_Uderor[R$],Tab_Uderor[Competencia],Entrada!V$7,Tab_Uderor[TipoReceita],Entrada!$P28) -> 0 | W28: =SUMIFS(Tab_Uderor[R$],Tab_Uderor[Competencia],Entrada!W$7,Tab_Uderor[TipoReceita],Entrada!$P28) -> 0 | X28: =SUMIFS(Tab_Uderor[R$],Tab_Uderor[Competencia],Entrada!X$7,Tab_Uderor[TipoReceita],Entrada!$P28) -> 0 | Y28: =SUMIFS(Tab_Uderor[R$],Tab_Uderor[Competencia],Entrada!Y$7,Tab_Uderor[TipoReceita],Entrada!$P28) -> 0 | Z28: =SUMIFS(Tab_Uderor[R$],Tab_Uderor[Competencia],Entrada!Z$7,Tab_Uderor[TipoReceita],Entrada!$P28) -> 0 | AA28: =SUMIFS(Tab_Uderor[R$],Tab_Uderor[Competencia],Entrada!AA$7,Tab_Uderor[TipoReceita],Entrada!$P28) -> 0 | AB28: =SUMIFS(Tab_Uderor[R$],Tab_Uderor[Competencia],Entrada!AB$7,Tab_Uderor[TipoReceita],Entrada!$P28) -> 0 | AC28: =SUMIFS(Tab_Uderor[R$],Tab_Uderor[Competencia],Entrada!AC$7,Tab_Uderor[TipoReceita],Entrada!$P28) -> 0 | AD28: =SUMIFS(Tab_Uderor[R$],Tab_Uderor[Competencia],Entrada!AD$7,Tab_Uderor[TipoReceita],Entrada!$P28) -> 0 | AE28: =SUMIFS(Tab_Uderor[R$],Tab_Uderor[Competencia],Entrada!AE$7,Tab_Uderor[TipoReceita],Entrada!$P28) -> 0 | AF28: =SUMIFS(Tab_Uderor[R$],Tab_Uderor[Competencia],Entrada!AF$7,Tab_Uderor[TipoReceita],Entrada!$P28) -> 0 | AG28: =SUMIFS(Tab_Uderor[R$],Tab_Uderor[Competencia],Entrada!AG$7,Tab_Uderor[TipoReceita],Entrada!$P28) -> 0 | AH28: =SUMIFS(Tab_Uderor[R$],Tab_Uderor[Competencia],Entrada!AH$7,Tab_Uderor[TipoReceita],Entrada!$P28) -> 0 | AI28: =SUMIFS(Tab_Uderor[R$],Tab_Uderor[Competencia],Entrada!AI$7,Tab_Uderor[TipoReceita],Entrada!$P28) -> 0 | AJ28: =SUMIFS(Tab_Uderor[R$],Tab_Uderor[Competencia],Entrada!AJ$7,Tab_Uderor[TipoReceita],Entrada!$P28) -> 0 | AK28: =SUMIFS(Tab_Uderor[R$],Tab_Uderor[Competencia],Entrada!AK$7,Tab_Uderor[TipoReceita],Entrada!$P28) -> 0 | AL28: =SUMIFS(Tab_Uderor[R$],Tab_Uderor[Competencia],Entrada!AL$7,Tab_Uderor[TipoReceita],Entrada!$P28) -> 0 | AM28: =SUMIFS(Tab_Uderor[R$],Tab_Uderor[Competencia],Entrada!AM$7,Tab_Uderor[TipoReceita],Entrada!$P28) -> 0 | AN28: =SUMIFS(Tab_Uderor[R$],Tab_Uderor[Competencia],Entrada!AN$7,Tab_Uderor[TipoReceita],Entrada!$P28) -> 0 | AO28: =SUMIFS(Tab_Uderor[R$],Tab_Uderor[Competencia],Entrada!AO$7,Tab_Uderor[TipoReceita],Entrada!$P28) -> 0 | AP28: =SUMIFS(Tab_Uderor[R$],Tab_Uderor[Competencia],Entrada!AP$7,Tab_Uderor[TipoReceita],Entrada!$P28) -> 0 | AQ28: =SUMIFS(Tab_Uderor[R$],Tab_Uderor[Competencia],Entrada!AQ$7,Tab_Uderor[TipoReceita],Entrada!$P28) -> 0 | AR28: =SUMIFS(Tab_Uderor[R$],Tab_Uderor[Competencia],Entrada!AR$7,Tab_Uderor[TipoReceita],Entrada!$P28) -> 0 | AS28: =SUMIFS(Tab_Uderor[R$],Tab_Uderor[Competencia],Entrada!AS$7,Tab_Uderor[TipoReceita],Entrada!$P28) -> 0 | AT28: =SUMIFS(Tab_Uderor[R$],Tab_Uderor[Competencia],Entrada!AT$7,Tab_Uderor[TipoReceita],Entrada!$P28) -> 0 | AU28: =SUMIFS(Tab_Uderor[R$],Tab_Uderor[Competencia],Entrada!AU$7,Tab_Uderor[TipoReceita],Entrada!$P28) -> 0 | AV28: =SUMIFS(Tab_Uderor[R$],Tab_Uderor[Competencia],Entrada!AV$7,Tab_Uderor[TipoReceita],Entrada!$P28) -> 0 | AW28: =SUMIFS(Tab_Uderor[R$],Tab_Uderor[Competencia],Entrada!AW$7,Tab_Uderor[TipoReceita],Entrada!$P28) -> 0 | AX28: =SUMIFS(Tab_Uderor[R$],Tab_Uderor[Competencia],Entrada!AX$7,Tab_Uderor[TipoReceita],Entrada!$P28) -> 0 | AY28: =SUMIFS(Tab_Uderor[R$],Tab_Uderor[Competencia],Entrada!AY$7,Tab_Uderor[TipoReceita],Entrada!$P28) -> 0 | AZ28: =SUMIFS(Tab_Uderor[R$],Tab_Uderor[Competencia],Entrada!AZ$7,Tab_Uderor[TipoReceita],Entrada!$P28) -> 0
F29: =Indexador!F132 -> Despesa 2020 | G29: 31948.16 | J29: RIT - RP 800 - Célula F26 | K29: Viagens (Passagens Aéreas, etc) | L29: =SUMIFS(Tab_RIT_BMP[SALDO],Tab_RIT_BMP[CONTA],6,Tab_RIT_BMP[ANO],$L$7) -> 1385767.29 | M29: =SUMIFS(Tab_RIT_BMP[SALDO],Tab_RIT_BMP[CONTA],6,Tab_RIT_BMP[ANO],$M$7) -> 1610969.62 | P29: Serviços de consultoria | Q29: =SUMIFS(Tab_Uderor[R$],Tab_Uderor[Competencia],Entrada!Q$7,Tab_Uderor[TipoReceita],Entrada!$P29) -> 0 | R29: =SUMIFS(Tab_Uderor[R$],Tab_Uderor[Competencia],Entrada!R$7,Tab_Uderor[TipoReceita],Entrada!$P29) -> 0 | S29: =SUMIFS(Tab_Uderor[R$],Tab_Uderor[Competencia],Entrada!S$7,Tab_Uderor[TipoReceita],Entrada!$P29) -> 0 | T29: =SUMIFS(Tab_Uderor[R$],Tab_Uderor[Competencia],Entrada!T$7,Tab_Uderor[TipoReceita],Entrada!$P29) -> 0 | U29: =SUMIFS(Tab_Uderor[R$],Tab_Uderor[Competencia],Entrada!U$7,Tab_Uderor[TipoReceita],Entrada!$P29) -> 0 | V29: =SUMIFS(Tab_Uderor[R$],Tab_Uderor[Competencia],Entrada!V$7,Tab_Uderor[TipoReceita],Entrada!$P29) -> 0 | W29: =SUMIFS(Tab_Uderor[R$],Tab_Uderor[Competencia],Entrada!W$7,Tab_Uderor[TipoReceita],Entrada!$P29) -> 0 | X29: =SUMIFS(Tab_Uderor[R$],Tab_Uderor[Competencia],Entrada!X$7,Tab_Uderor[TipoReceita],Entrada!$P29) -> 0 | Y29: =SUMIFS(Tab_Uderor[R$],Tab_Uderor[Competencia],Entrada!Y$7,Tab_Uderor[TipoReceita],Entrada!$P29) -> 0 | Z29: =SUMIFS(Tab_Uderor[R$],Tab_Uderor[Competencia],Entrada!Z$7,Tab_Uderor[TipoReceita],Entrada!$P29) -> 0 | AA29: =SUMIFS(Tab_Uderor[R$],Tab_Uderor[Competencia],Entrada!AA$7,Tab_Uderor[TipoReceita],Entrada!$P29) -> 0 | AB29: =SUMIFS(Tab_Uderor[R$],Tab_Uderor[Competencia],Entrada!AB$7,Tab_Uderor[TipoReceita],Entrada!$P29) -> 0 | AC29: =SUMIFS(Tab_Uderor[R$],Tab_Uderor[Competencia],Entrada!AC$7,Tab_Uderor[TipoReceita],Entrada!$P29) -> 0 | AD29: =SUMIFS(Tab_Uderor[R$],Tab_Uderor[Competencia],Entrada!AD$7,Tab_Uderor[TipoReceita],Entrada!$P29) -> 0 | AE29: =SUMIFS(Tab_Uderor[R$],Tab_Uderor[Competencia],Entrada!AE$7,Tab_Uderor[TipoReceita],Entrada!$P29) -> 0 | AF29: =SUMIFS(Tab_Uderor[R$],Tab_Uderor[Competencia],Entrada!AF$7,Tab_Uderor[TipoReceita],Entrada!$P29) -> 0 | AG29: =SUMIFS(Tab_Uderor[R$],Tab_Uderor[Competencia],Entrada!AG$7,Tab_Uderor[TipoReceita],Entrada!$P29) -> 0 | AH29: =SUMIFS(Tab_Uderor[R$],Tab_Uderor[Competencia],Entrada!AH$7,Tab_Uderor[TipoReceita],Entrada!$P29) -> 0 | AI29: =SUMIFS(Tab_Uderor[R$],Tab_Uderor[Competencia],Entrada!AI$7,Tab_Uderor[TipoReceita],Entrada!$P29) -> 0 | AJ29: =SUMIFS(Tab_Uderor[R$],Tab_Uderor[Competencia],Entrada!AJ$7,Tab_Uderor[TipoReceita],Entrada!$P29) -> 0 | AK29: =SUMIFS(Tab_Uderor[R$],Tab_Uderor[Competencia],Entrada!AK$7,Tab_Uderor[TipoReceita],Entrada!$P29) -> 0 | AL29: =SUMIFS(Tab_Uderor[R$],Tab_Uderor[Competencia],Entrada!AL$7,Tab_Uderor[TipoReceita],Entrada!$P29) -> 0 | AM29: =SUMIFS(Tab_Uderor[R$],Tab_Uderor[Competencia],Entrada!AM$7,Tab_Uderor[TipoReceita],Entrada!$P29) -> 0 | AN29: =SUMIFS(Tab_Uderor[R$],Tab_Uderor[Competencia],Entrada!AN$7,Tab_Uderor[TipoReceita],Entrada!$P29) -> 0 | AO29: =SUMIFS(Tab_Uderor[R$],Tab_Uderor[Competencia],Entrada!AO$7,Tab_Uderor[TipoReceita],Entrada!$P29) -> 0 | AP29: =SUMIFS(Tab_Uderor[R$],Tab_Uderor[Competencia],Entrada!AP$7,Tab_Uderor[TipoReceita],Entrada!$P29) -> 0 | AQ29: =SUMIFS(Tab_Uderor[R$],Tab_Uderor[Competencia],Entrada!AQ$7,Tab_Uderor[TipoReceita],Entrada!$P29) -> 0 | AR29: =SUMIFS(Tab_Uderor[R$],Tab_Uderor[Competencia],Entrada!AR$7,Tab_Uderor[TipoReceita],Entrada!$P29) -> 0 | AS29: =SUMIFS(Tab_Uderor[R$],Tab_Uderor[Competencia],Entrada!AS$7,Tab_Uderor[TipoReceita],Entrada!$P29) -> 0 | AT29: =SUMIFS(Tab_Uderor[R$],Tab_Uderor[Competencia],Entrada!AT$7,Tab_Uderor[TipoReceita],Entrada!$P29) -> 0 | AU29: =SUMIFS(Tab_Uderor[R$],Tab_Uderor[Competencia],Entrada!AU$7,Tab_Uderor[TipoReceita],Entrada!$P29) -> 0 | AV29: =SUMIFS(Tab_Uderor[R$],Tab_Uderor[Competencia],Entrada!AV$7,Tab_Uderor[TipoReceita],Entrada!$P29) -> 0 | AW29: =SUMIFS(Tab_Uderor[R$],Tab_Uderor[Competencia],Entrada!AW$7,Tab_Uderor[TipoReceita],Entrada!$P29) -> 0 | AX29: =SUMIFS(Tab_Uderor[R$],Tab_Uderor[Competencia],Entrada!AX$7,Tab_Uderor[TipoReceita],Entrada!$P29) -> 0 | AY29: =SUMIFS(Tab_Uderor[R$],Tab_Uderor[Competencia],Entrada!AY$7,Tab_Uderor[TipoReceita],Entrada!$P29) -> 0 | AZ29: =SUMIFS(Tab_Uderor[R$],Tab_Uderor[Competencia],Entrada!AZ$7,Tab_Uderor[TipoReceita],Entrada!$P29) -> 0
F30: =Indexador!G132 -> Despesa 2019 | G30: 53205.86 | J30: RIT - RP 800 - Célula F27 | K30: Transportes (inclui Fretes) | L30: =SUMIFS(Tab_RIT_BMP[SALDO],Tab_RIT_BMP[CONTA],7,Tab_RIT_BMP[ANO],$L$7) -> 1701323.67 | M30: =SUMIFS(Tab_RIT_BMP[SALDO],Tab_RIT_BMP[CONTA],7,Tab_RIT_BMP[ANO],$M$7) -> 1712692.85 | P30: Receita proveniente da comercialização de resultados de projetos de P&D COM comprovação | Q30: =SUMIFS(Tab_Uderor[R$],Tab_Uderor[Competencia],Entrada!Q$7,Tab_Uderor[TipoReceita],Entrada!$P30) -> 0 | R30: =SUMIFS(Tab_Uderor[R$],Tab_Uderor[Competencia],Entrada!R$7,Tab_Uderor[TipoReceita],Entrada!$P30) -> 0 | S30: =SUMIFS(Tab_Uderor[R$],Tab_Uderor[Competencia],Entrada!S$7,Tab_Uderor[TipoReceita],Entrada!$P30) -> 0 | T30: =SUMIFS(Tab_Uderor[R$],Tab_Uderor[Competencia],Entrada!T$7,Tab_Uderor[TipoReceita],Entrada!$P30) -> 0 | U30: =SUMIFS(Tab_Uderor[R$],Tab_Uderor[Competencia],Entrada!U$7,Tab_Uderor[TipoReceita],Entrada!$P30) -> 0 | V30: =SUMIFS(Tab_Uderor[R$],Tab_Uderor[Competencia],Entrada!V$7,Tab_Uderor[TipoReceita],Entrada!$P30) -> 0 | W30: =SUMIFS(Tab_Uderor[R$],Tab_Uderor[Competencia],Entrada!W$7,Tab_Uderor[TipoReceita],Entrada!$P30) -> 0 | X30: =SUMIFS(Tab_Uderor[R$],Tab_Uderor[Competencia],Entrada!X$7,Tab_Uderor[TipoReceita],Entrada!$P30) -> 0 | Y30: =SUMIFS(Tab_Uderor[R$],Tab_Uderor[Competencia],Entrada!Y$7,Tab_Uderor[TipoReceita],Entrada!$P30) -> 0 | Z30: =SUMIFS(Tab_Uderor[R$],Tab_Uderor[Competencia],Entrada!Z$7,Tab_Uderor[TipoReceita],Entrada!$P30) -> 0 | AA30: =SUMIFS(Tab_Uderor[R$],Tab_Uderor[Competencia],Entrada!AA$7,Tab_Uderor[TipoReceita],Entrada!$P30) -> 0 | AB30: =SUMIFS(Tab_Uderor[R$],Tab_Uderor[Competencia],Entrada!AB$7,Tab_Uderor[TipoReceita],Entrada!$P30) -> 0 | AC30: =SUMIFS(Tab_Uderor[R$],Tab_Uderor[Competencia],Entrada!AC$7,Tab_Uderor[TipoReceita],Entrada!$P30) -> 0 | AD30: =SUMIFS(Tab_Uderor[R$],Tab_Uderor[Competencia],Entrada!AD$7,Tab_Uderor[TipoReceita],Entrada!$P30) -> 0 | AE30: =SUMIFS(Tab_Uderor[R$],Tab_Uderor[Competencia],Entrada!AE$7,Tab_Uderor[TipoReceita],Entrada!$P30) -> 0 | AF30: =SUMIFS(Tab_Uderor[R$],Tab_Uderor[Competencia],Entrada!AF$7,Tab_Uderor[TipoReceita],Entrada!$P30) -> 0 | AG30: =SUMIFS(Tab_Uderor[R$],Tab_Uderor[Competencia],Entrada!AG$7,Tab_Uderor[TipoReceita],Entrada!$P30) -> 0 | AH30: =SUMIFS(Tab_Uderor[R$],Tab_Uderor[Competencia],Entrada!AH$7,Tab_Uderor[TipoReceita],Entrada!$P30) -> 0 | AI30: =SUMIFS(Tab_Uderor[R$],Tab_Uderor[Competencia],Entrada!AI$7,Tab_Uderor[TipoReceita],Entrada!$P30) -> 0 | AJ30: =SUMIFS(Tab_Uderor[R$],Tab_Uderor[Competencia],Entrada!AJ$7,Tab_Uderor[TipoReceita],Entrada!$P30) -> 0 | AK30: =SUMIFS(Tab_Uderor[R$],Tab_Uderor[Competencia],Entrada!AK$7,Tab_Uderor[TipoReceita],Entrada!$P30) -> 0 | AL30: =SUMIFS(Tab_Uderor[R$],Tab_Uderor[Competencia],Entrada!AL$7,Tab_Uderor[TipoReceita],Entrada!$P30) -> 0 | AM30: =SUMIFS(Tab_Uderor[R$],Tab_Uderor[Competencia],Entrada!AM$7,Tab_Uderor[TipoReceita],Entrada!$P30) -> 0 | AN30: =SUMIFS(Tab_Uderor[R$],Tab_Uderor[Competencia],Entrada!AN$7,Tab_Uderor[TipoReceita],Entrada!$P30) -> 0 | AO30: =SUMIFS(Tab_Uderor[R$],Tab_Uderor[Competencia],Entrada!AO$7,Tab_Uderor[TipoReceita],Entrada!$P30) -> 0 | AP30: =SUMIFS(Tab_Uderor[R$],Tab_Uderor[Competencia],Entrada!AP$7,Tab_Uderor[TipoReceita],Entrada!$P30) -> 0 | AQ30: =SUMIFS(Tab_Uderor[R$],Tab_Uderor[Competencia],Entrada!AQ$7,Tab_Uderor[TipoReceita],Entrada!$P30) -> 0 | AR30: =SUMIFS(Tab_Uderor[R$],Tab_Uderor[Competencia],Entrada!AR$7,Tab_Uderor[TipoReceita],Entrada!$P30) -> 0 | AS30: =SUMIFS(Tab_Uderor[R$],Tab_Uderor[Competencia],Entrada!AS$7,Tab_Uderor[TipoReceita],Entrada!$P30) -> 0 | AT30: =SUMIFS(Tab_Uderor[R$],Tab_Uderor[Competencia],Entrada!AT$7,Tab_Uderor[TipoReceita],Entrada!$P30) -> 0 | AU30: =SUMIFS(Tab_Uderor[R$],Tab_Uderor[Competencia],Entrada!AU$7,Tab_Uderor[TipoReceita],Entrada!$P30) -> 0 | AV30: =SUMIFS(Tab_Uderor[R$],Tab_Uderor[Competencia],Entrada!AV$7,Tab_Uderor[TipoReceita],Entrada!$P30) -> 0 | AW30: =SUMIFS(Tab_Uderor[R$],Tab_Uderor[Competencia],Entrada!AW$7,Tab_Uderor[TipoReceita],Entrada!$P30) -> 0 | AX30: =SUMIFS(Tab_Uderor[R$],Tab_Uderor[Competencia],Entrada!AX$7,Tab_Uderor[TipoReceita],Entrada!$P30) -> 0 | AY30: =SUMIFS(Tab_Uderor[R$],Tab_Uderor[Competencia],Entrada!AY$7,Tab_Uderor[TipoReceita],Entrada!$P30) -> 0 | AZ30: =SUMIFS(Tab_Uderor[R$],Tab_Uderor[Competencia],Entrada!AZ$7,Tab_Uderor[TipoReceita],Entrada!$P30) -> 0
F31: =Indexador!H132 -> Despesa 2018 | G31: 74941 | J31: RIT - RP 800 - Célula F28 | K31: Propaganda e Publicidade (exceto Publicações Oficiais) | L31: =SUMIFS(Tab_RIT_BMP[SALDO],Tab_RIT_BMP[CONTA],8,Tab_RIT_BMP[ANO],$L$7) -> 51836.54 | M31: =SUMIFS(Tab_RIT_BMP[SALDO],Tab_RIT_BMP[CONTA],8,Tab_RIT_BMP[ANO],$M$7) -> 82181.09 | P31: Receita proveniente da comercialização de resultados de projetos de P&D SEM comprovação | Q31: =SUMIFS(Tab_Uderor[R$],Tab_Uderor[Competencia],Entrada!Q$7,Tab_Uderor[TipoReceita],Entrada!$P31) -> 0 | R31: =SUMIFS(Tab_Uderor[R$],Tab_Uderor[Competencia],Entrada!R$7,Tab_Uderor[TipoReceita],Entrada!$P31) -> 0 | S31: =SUMIFS(Tab_Uderor[R$],Tab_Uderor[Competencia],Entrada!S$7,Tab_Uderor[TipoReceita],Entrada!$P31) -> 0 | T31: =SUMIFS(Tab_Uderor[R$],Tab_Uderor[Competencia],Entrada!T$7,Tab_Uderor[TipoReceita],Entrada!$P31) -> 0 | U31: =SUMIFS(Tab_Uderor[R$],Tab_Uderor[Competencia],Entrada!U$7,Tab_Uderor[TipoReceita],Entrada!$P31) -> 0 | V31: =SUMIFS(Tab_Uderor[R$],Tab_Uderor[Competencia],Entrada!V$7,Tab_Uderor[TipoReceita],Entrada!$P31) -> 0 | W31: =SUMIFS(Tab_Uderor[R$],Tab_Uderor[Competencia],Entrada!W$7,Tab_Uderor[TipoReceita],Entrada!$P31) -> 0 | X31: =SUMIFS(Tab_Uderor[R$],Tab_Uderor[Competencia],Entrada!X$7,Tab_Uderor[TipoReceita],Entrada!$P31) -> 0 | Y31: =SUMIFS(Tab_Uderor[R$],Tab_Uderor[Competencia],Entrada!Y$7,Tab_Uderor[TipoReceita],Entrada!$P31) -> 0 | Z31: =SUMIFS(Tab_Uderor[R$],Tab_Uderor[Competencia],Entrada!Z$7,Tab_Uderor[TipoReceita],Entrada!$P31) -> 0 | AA31: =SUMIFS(Tab_Uderor[R$],Tab_Uderor[Competencia],Entrada!AA$7,Tab_Uderor[TipoReceita],Entrada!$P31) -> 0 | AB31: =SUMIFS(Tab_Uderor[R$],Tab_Uderor[Competencia],Entrada!AB$7,Tab_Uderor[TipoReceita],Entrada!$P31) -> 0 | AC31: =SUMIFS(Tab_Uderor[R$],Tab_Uderor[Competencia],Entrada!AC$7,Tab_Uderor[TipoReceita],Entrada!$P31) -> 0 | AD31: =SUMIFS(Tab_Uderor[R$],Tab_Uderor[Competencia],Entrada!AD$7,Tab_Uderor[TipoReceita],Entrada!$P31) -> 0 | AE31: =SUMIFS(Tab_Uderor[R$],Tab_Uderor[Competencia],Entrada!AE$7,Tab_Uderor[TipoReceita],Entrada!$P31) -> 0 | AF31: =SUMIFS(Tab_Uderor[R$],Tab_Uderor[Competencia],Entrada!AF$7,Tab_Uderor[TipoReceita],Entrada!$P31) -> 0 | AG31: =SUMIFS(Tab_Uderor[R$],Tab_Uderor[Competencia],Entrada!AG$7,Tab_Uderor[TipoReceita],Entrada!$P31) -> 0 | AH31: =SUMIFS(Tab_Uderor[R$],Tab_Uderor[Competencia],Entrada!AH$7,Tab_Uderor[TipoReceita],Entrada!$P31) -> 0 | AI31: =SUMIFS(Tab_Uderor[R$],Tab_Uderor[Competencia],Entrada!AI$7,Tab_Uderor[TipoReceita],Entrada!$P31) -> 0 | AJ31: =SUMIFS(Tab_Uderor[R$],Tab_Uderor[Competencia],Entrada!AJ$7,Tab_Uderor[TipoReceita],Entrada!$P31) -> 0 | AK31: =SUMIFS(Tab_Uderor[R$],Tab_Uderor[Competencia],Entrada!AK$7,Tab_Uderor[TipoReceita],Entrada!$P31) -> 0 | AL31: =SUMIFS(Tab_Uderor[R$],Tab_Uderor[Competencia],Entrada!AL$7,Tab_Uderor[TipoReceita],Entrada!$P31) -> 0 | AM31: =SUMIFS(Tab_Uderor[R$],Tab_Uderor[Competencia],Entrada!AM$7,Tab_Uderor[TipoReceita],Entrada!$P31) -> 0 | AN31: =SUMIFS(Tab_Uderor[R$],Tab_Uderor[Competencia],Entrada!AN$7,Tab_Uderor[TipoReceita],Entrada!$P31) -> 0 | AO31: =SUMIFS(Tab_Uderor[R$],Tab_Uderor[Competencia],Entrada!AO$7,Tab_Uderor[TipoReceita],Entrada!$P31) -> 0 | AP31: =SUMIFS(Tab_Uderor[R$],Tab_Uderor[Competencia],Entrada!AP$7,Tab_Uderor[TipoReceita],Entrada!$P31) -> 0 | AQ31: =SUMIFS(Tab_Uderor[R$],Tab_Uderor[Competencia],Entrada!AQ$7,Tab_Uderor[TipoReceita],Entrada!$P31) -> 0 | AR31: =SUMIFS(Tab_Uderor[R$],Tab_Uderor[Competencia],Entrada!AR$7,Tab_Uderor[TipoReceita],Entrada!$P31) -> 0 | AS31: =SUMIFS(Tab_Uderor[R$],Tab_Uderor[Competencia],Entrada!AS$7,Tab_Uderor[TipoReceita],Entrada!$P31) -> 0 | AT31: =SUMIFS(Tab_Uderor[R$],Tab_Uderor[Competencia],Entrada!AT$7,Tab_Uderor[TipoReceita],Entrada!$P31) -> 0 | AU31: =SUMIFS(Tab_Uderor[R$],Tab_Uderor[Competencia],Entrada!AU$7,Tab_Uderor[TipoReceita],Entrada!$P31) -> 0 | AV31: =SUMIFS(Tab_Uderor[R$],Tab_Uderor[Competencia],Entrada!AV$7,Tab_Uderor[TipoReceita],Entrada!$P31) -> 0 | AW31: =SUMIFS(Tab_Uderor[R$],Tab_Uderor[Competencia],Entrada!AW$7,Tab_Uderor[TipoReceita],Entrada!$P31) -> 0 | AX31: =SUMIFS(Tab_Uderor[R$],Tab_Uderor[Competencia],Entrada!AX$7,Tab_Uderor[TipoReceita],Entrada!$P31) -> 0 | AY31: =SUMIFS(Tab_Uderor[R$],Tab_Uderor[Competencia],Entrada!AY$7,Tab_Uderor[TipoReceita],Entrada!$P31) -> 0 | AZ31: =SUMIFS(Tab_Uderor[R$],Tab_Uderor[Competencia],Entrada!AZ$7,Tab_Uderor[TipoReceita],Entrada!$P31) -> 0
F32: Perdas Regulatórias | J32: RIT - RP 800 - Célula F29 | K32: Publicações Oficiais | L32: =SUMIFS(Tab_RIT_BMP[SALDO],Tab_RIT_BMP[CONTA],9,Tab_RIT_BMP[ANO],$L$7) -> 17013.6 | M32: =SUMIFS(Tab_RIT_BMP[SALDO],Tab_RIT_BMP[CONTA],9,Tab_RIT_BMP[ANO],$M$7) -> 7449.22
F33: Perdas Não Técnicas | G33: 0.04645369748 | H33: 45021 | J33: RIT - RP 800 - Célula F30 | K33: Serviço de Engenharia e Supervisão de Obras | L33: =SUMIFS(Tab_RIT_BMP[SALDO],Tab_RIT_BMP[CONTA],10,Tab_RIT_BMP[ANO],$L$7) -> 0 | M33: =SUMIFS(Tab_RIT_BMP[SALDO],Tab_RIT_BMP[CONTA],10,Tab_RIT_BMP[ANO],$M$7) -> 0 | P33: Ultrapassagem de demanda e Excedente de reativos | Q33: Competência Final UDER | R33: =IF(CAPA!C7="Revisão",(DATE(YEAR('VPB e Fator X'!C10),MONTH('VPB e Fator X'!C10),1)),0) -> 44835
F34: Perdas Técnicas | G34: =276424.754/3347887.01 -> 0.08256693048 | J34: RIT - RP 800 - Célula F31 | K34: Gestão Comercial | L34: =SUMIFS(Tab_RIT_BMP[SALDO],Tab_RIT_BMP[CONTA],11,Tab_RIT_BMP[ANO],$L$7) -> 6745895.61 | M34: =SUMIFS(Tab_RIT_BMP[SALDO],Tab_RIT_BMP[CONTA],11,Tab_RIT_BMP[ANO],$M$7) -> 6294200.04 | Q34: 60 | R34: =Q34-1 -> 59 | S34: =R34-1 -> 58 | T34: 57 | U34: 56 | V34: 55 | W34: 54 | X34: 53 | Y34: 52 | Z34: 51 | AA34: 50 | AB34: 49 | AC34: 48 | AD34: 47 | AE34: 46 | AF34: 45 | AG34: 44 | AH34: 43 | AI34: 42 | AJ34: 41 | AK34: 40 | AL34: 39 | AM34: 38 | AN34: 37 | AO34: 36 | AP34: 35 | AQ34: 34 | AR34: 33 | AS34: 32 | AT34: 31 | AU34: 30 | AV34: 29 | AW34: 28 | AX34: 27 | AY34: 26 | AZ34: 25 | BA34: 24 | BB34: 23 | BC34: 22 | BD34: 21 | BE34: 20 | BF34: 19 | BG34: 18 | BH34: 17 | BI34: 16 | BJ34: 15 | BK34: 14 | BL34: 13 | BM34: =BL34-1 -> 12 | BN34: 11 | BO34: 10 | BP34: 9 | BQ34: 8 | BR34: 7 | BS34: 6 | BT34: 5 | BU34: 4 | BV34: 3 | BW34: 2 | BX34: 1
J35: RIT - RP 800 - Célula F32 | K35: Outros Serviços Terceirizados | L35: =SUMIFS(Tab_RIT_BMP[SALDO],Tab_RIT_BMP[CONTA],12,Tab_RIT_BMP[ANO],$L$7) -> 6265132.55 | M35: =SUMIFS(Tab_RIT_BMP[SALDO],Tab_RIT_BMP[CONTA],12,Tab_RIT_BMP[ANO],$M$7) -> 7958824.93 | P35: Tipo de Receita | Q35: =$R$33 -> 2022-10-01 | R35: =DATE(YEAR(Q35),MONTH(Q35)-1,1) -> 2022-09-01 | S35: =DATE(YEAR(R35),MONTH(R35)-1,1) -> 2022-08-01 | T35: 2022-07-01 | U35: 2022-06-01 | V35: 2022-05-01 | W35: 2022-04-01 | X35: 2022-03-01 | Y35: 2022-02-01 | Z35: 2022-01-01 | AA35: 2021-12-01 | AB35: 2021-11-01 | AC35: 2021-10-01 | AD35: 2021-09-01 | AE35: 2021-08-01 | AF35: 2021-07-01 | AG35: 2021-06-01 | AH35: 2021-05-01 | AI35: 2021-04-01 | AJ35: 2021-03-01 | AK35: 2021-02-01 | AL35: 2021-01-01 | AM35: 2020-12-01 | AN35: 2020-11-01 | AO35: 2020-10-01 | AP35: 2020-09-01 | AQ35: 2020-08-01 | AR35: 2020-07-01 | AS35: 2020-06-01 | AT35: 2020-05-01 | AU35: 2020-04-01 | AV35: 2020-03-01 | AW35: 2020-02-01 | AX35: 2020-01-01 | AY35: 2019-12-01 | AZ35: 2019-11-01 | BA35: 2019-10-01 | BB35: 2019-09-01 | BC35: 2019-08-01 | BD35: 2019-07-01 | BE35: 2019-06-01 | BF35: 2019-05-01 | BG35: 2019-04-01 | BH35: 2019-03-01 | BI35: 2019-02-01 | BJ35: 2019-01-01 | BK35: 2018-12-01 | BL35: 2018-11-01 | BM35: =DATE(YEAR(BL35),MONTH(BL35)-1,1) -> 2018-10-01 | BN35: =DATE(YEAR(BM35),MONTH(BM35)-1,1) -> 2018-09-01 | BO35: =DATE(YEAR(BN35),MONTH(BN35)-1,1) -> 2018-08-01 | BP35: =DATE(YEAR(BO35),MONTH(BO35)-1,1) -> 2018-07-01 | BQ35: =DATE(YEAR(BP35),MONTH(BP35)-1,1) -> 2018-06-01 | BR35: =DATE(YEAR(BQ35),MONTH(BQ35)-1,1) -> 2018-05-01 | BS35: =DATE(YEAR(BR35),MONTH(BR35)-1,1) -> 2018-04-01 | BT35: =DATE(YEAR(BS35),MONTH(BS35)-1,1) -> 2018-03-01 | BU35: =DATE(YEAR(BT35),MONTH(BT35)-1,1) -> 2018-02-01 | BV35: =DATE(YEAR(BU35),MONTH(BU35)-1,1) -> 2018-01-01 | BW35: =DATE(YEAR(BV35),MONTH(BV35)-1,1) -> 2017-12-01 | BX35: =DATE(YEAR(BW35),MONTH(BW35)-1,1) -> 2017-11-01
F36: Dados da Revisão Anterior - Componente Pd | J36: RIT - RP 800 - Célula F33 - BMP - 610530810,610550810,610532810,610552810 | K36: (-) Créditos de Tributos Recuperáveis | L36: =SUMIFS(Tab_RIT_BMP[SALDO],Tab_RIT_BMP[CONTA],610530810,Tab_RIT_BMP[ANO],$L$7)+SUMIFS(Tab_RIT_BMP[SALDO],Tab_RIT_BMP[CONTA],610550810,Tab_RIT_BMP[ANO],$L$7)+ SUMIFS(Tab_RIT_BMP[SALDO],Tab_RIT_BMP[CONTA],610532810,Tab_RIT_BMP[ANO],$L$7)+SUMIFS(Tab_RIT_BMP[SALDO],Tab_RIT_BMP[CONTA],610552810,Tab_RIT_BMP[ANO],$L$7) -> -759516.21 | M36: =SUMIFS(Tab_RIT_BMP[SALDO],Tab_RIT_BMP[CONTA],610530810,Tab_RIT_BMP[ANO],$M$7)+SUMIFS(Tab_RIT_BMP[SALDO],Tab_RIT_BMP[CONTA],610550810,Tab_RIT_BMP[ANO],$M$7)+ SUMIFS(Tab_RIT_BMP[SALDO],Tab_RIT_BMP[CONTA],610532810,Tab_RIT_BMP[ANO],$M$7)+SUMIFS(Tab_RIT_BMP[SALDO],Tab_RIT_BMP[CONTA],610552810,Tab_RIT_BMP[ANO],$M$7) -> -903576.25 | P36: Ultrapassagem de Demanda | Q36: =SUMIFS(Tab_Uderor[R$],Tab_Uderor[Competencia],Entrada!Q35,Tab_Uderor[TipoReceita],Entrada!$P36) -> 538967.16 | R36: =SUMIFS(Tab_Uderor[R$],Tab_Uderor[Competencia],Entrada!R35,Tab_Uderor[TipoReceita],Entrada!$P36) -> 314471.9 | S36: =SUMIFS(Tab_Uderor[R$],Tab_Uderor[Competencia],Entrada!S35,Tab_Uderor[TipoReceita],Entrada!$P36) -> 282353.55 | T36: =SUMIFS(Tab_Uderor[R$],Tab_Uderor[Competencia],Entrada!T35,Tab_Uderor[TipoReceita],Entrada!$P36) -> 373865 | U36: =SUMIFS(Tab_Uderor[R$],Tab_Uderor[Competencia],Entrada!U35,Tab_Uderor[TipoReceita],Entrada!$P36) -> 462620.09 | V36: =SUMIFS(Tab_Uderor[R$],Tab_Uderor[Competencia],Entrada!V35,Tab_Uderor[TipoReceita],Entrada!$P36) -> 545060.91 | W36: =SUMIFS(Tab_Uderor[R$],Tab_Uderor[Competencia],Entrada!W35,Tab_Uderor[TipoReceita],Entrada!$P36) -> 586659.82 | X36: =SUMIFS(Tab_Uderor[R$],Tab_Uderor[Competencia],Entrada!X35,Tab_Uderor[TipoReceita],Entrada!$P36) -> 886624.6 | Y36: =SUMIFS(Tab_Uderor[R$],Tab_Uderor[Competencia],Entrada!Y35,Tab_Uderor[TipoReceita],Entrada!$P36) -> 630224.86 | Z36: =SUMIFS(Tab_Uderor[R$],Tab_Uderor[Competencia],Entrada!Z35,Tab_Uderor[TipoReceita],Entrada!$P36) -> 696829.49 | AA36: =SUMIFS(Tab_Uderor[R$],Tab_Uderor[Competencia],Entrada!AA35,Tab_Uderor[TipoReceita],Entrada!$P36) -> 628391.14 | AB36: =SUMIFS(Tab_Uderor[R$],Tab_Uderor[Competencia],Entrada!AB35,Tab_Uderor[TipoReceita],Entrada!$P36) -> 769245.56 | AC36: =SUMIFS(Tab_Uderor[R$],Tab_Uderor[Competencia],Entrada!AC35,Tab_Uderor[TipoReceita],Entrada!$P36) -> 607869.71 | AD36: =SUMIFS(Tab_Uderor[R$],Tab_Uderor[Competencia],Entrada!AD35,Tab_Uderor[TipoReceita],Entrada!$P36) -> 609460.21 | AE36: =SUMIFS(Tab_Uderor[R$],Tab_Uderor[Competencia],Entrada!AE35,Tab_Uderor[TipoReceita],Entrada!$P36) -> 485269.43 | AF36: =SUMIFS(Tab_Uderor[R$],Tab_Uderor[Competencia],Entrada!AF35,Tab_Uderor[TipoReceita],Entrada!$P36) -> 469533.75 | AG36: =SUMIFS(Tab_Uderor[R$],Tab_Uderor[Competencia],Entrada!AG35,Tab_Uderor[TipoReceita],Entrada!$P36) -> 486252.62 | AH36: =SUMIFS(Tab_Uderor[R$],Tab_Uderor[Competencia],Entrada!AH35,Tab_Uderor[TipoReceita],Entrada!$P36) -> 519609.96 | AI36: =SUMIFS(Tab_Uderor[R$],Tab_Uderor[Competencia],Entrada!AI35,Tab_Uderor[TipoReceita],Entrada!$P36) -> 576732.92 | AJ36: =SUMIFS(Tab_Uderor[R$],Tab_Uderor[Competencia],Entrada!AJ35,Tab_Uderor[TipoReceita],Entrada!$P36) -> 545902.58 | AK36: =SUMIFS(Tab_Uderor[R$],Tab_Uderor[Competencia],Entrada!AK35,Tab_Uderor[TipoReceita],Entrada!$P36) -> 477108.76 | AL36: =SUMIFS(Tab_Uderor[R$],Tab_Uderor[Competencia],Entrada!AL35,Tab_Uderor[TipoReceita],Entrada!$P36) -> 324435.42 | AM36: =SUMIFS(Tab_Uderor[R$],Tab_Uderor[Competencia],Entrada!AM35,Tab_Uderor[TipoReceita],Entrada!$P36) -> 486595.81 | AN36: =SUMIFS(Tab_Uderor[R$],Tab_Uderor[Competencia],Entrada!AN35,Tab_Uderor[TipoReceita],Entrada!$P36) -> 441544.77 | AO36: 390861.5484 | AP36: 335810.3322 | AQ36: 261781.6362 | AR36: 252767.878 | AS36: 308551.2231 | AT36: 1951368.644 | AU36: 256572.7806 | AV36: 584744.466 | AW36: 505170.964 | AX36: 461775.1679 | AY36: 483613.637 | AZ36: 501424.2418 | BA36: 372899.5752 | BB36: 244818.6384 | BC36: 289763.4139 | BD36: 233628.738 | BE36: 276558.5173 | BF36: 366599.5244 | BG36: 358515.3397 | BH36: 591238.0063 | BI36: 512185.4897 | BJ36: 418868.8206 | BK36: 367630.1939 | BL36: 421492.568 | BM36: 303719.6496 | BN36: 302758.4334 | BO36: 204465.852 | BP36: 133597.9822 | BQ36: 166487.8935 | BR36: 291599.1854 | BS36: 315640.6503 | BT36: 433045.3015 | BU36: 412613.1881 | BV36: 325948.9853 | BW36: 281214.6745 | BX36: 355586.6864
F37: Data Base Ativos e Consumidores | G37: 43039 | J37: RIT - RP 800 - Célula F34 - BMP - 610532801,610552801 | K37: Transferências da Administração Central | L37: =SUMIFS(Tab_RIT_BMP[SALDO],Tab_RIT_BMP[CONTA],610532801,Tab_RIT_BMP[ANO],$L$7)+SUMIFS(Tab_RIT_BMP[SALDO],Tab_RIT_BMP[CONTA],610552801,Tab_RIT_BMP[ANO],$M$7) -> 46530150.68 | M37: =SUMIFS(Tab_RIT_BMP[SALDO],Tab_RIT_BMP[CONTA],610532801,Tab_RIT_BMP[ANO],$M$7)+SUMIFS(Tab_RIT_BMP[SALDO],Tab_RIT_BMP[CONTA],610552801,Tab_RIT_BMP[ANO],$L$7) -> 46922526.19 | P37: Excedente Reativo | Q37: =SUMIFS(Tab_Uderor[R$],Tab_Uderor[Competencia],Entrada!Q35,Tab_Uderor[TipoReceita],Entrada!$P37) -> 631905.63 | R37: =SUMIFS(Tab_Uderor[R$],Tab_Uderor[Competencia],Entrada!R35,Tab_Uderor[TipoReceita],Entrada!$P37) -> 587472.7 | S37: =SUMIFS(Tab_Uderor[R$],Tab_Uderor[Competencia],Entrada!S35,Tab_Uderor[TipoReceita],Entrada!$P37) -> 576588.82 | T37: =SUMIFS(Tab_Uderor[R$],Tab_Uderor[Competencia],Entrada!T35,Tab_Uderor[TipoReceita],Entrada!$P37) -> 604068.56 | U37: =SUMIFS(Tab_Uderor[R$],Tab_Uderor[Competencia],Entrada!U35,Tab_Uderor[TipoReceita],Entrada!$P37) -> 676229.74 | V37: =SUMIFS(Tab_Uderor[R$],Tab_Uderor[Competencia],Entrada!V35,Tab_Uderor[TipoReceita],Entrada!$P37) -> 620231.4 | W37: =SUMIFS(Tab_Uderor[R$],Tab_Uderor[Competencia],Entrada!W35,Tab_Uderor[TipoReceita],Entrada!$P37) -> 606648.22 | X37: =SUMIFS(Tab_Uderor[R$],Tab_Uderor[Competencia],Entrada!X35,Tab_Uderor[TipoReceita],Entrada!$P37) -> 595962.41 | Y37: =SUMIFS(Tab_Uderor[R$],Tab_Uderor[Competencia],Entrada!Y35,Tab_Uderor[TipoReceita],Entrada!$P37) -> 623410.38 | Z37: =SUMIFS(Tab_Uderor[R$],Tab_Uderor[Competencia],Entrada!Z35,Tab_Uderor[TipoReceita],Entrada!$P37) -> 666213.1 | AA37: =SUMIFS(Tab_Uderor[R$],Tab_Uderor[Competencia],Entrada!AA35,Tab_Uderor[TipoReceita],Entrada!$P37) -> 609595.61 | AB37: =SUMIFS(Tab_Uderor[R$],Tab_Uderor[Competencia],Entrada!AB35,Tab_Uderor[TipoReceita],Entrada!$P37) -> 582628.28 | AC37: =SUMIFS(Tab_Uderor[R$],Tab_Uderor[Competencia],Entrada!AC35,Tab_Uderor[TipoReceita],Entrada!$P37) -> 619099.67 | AD37: =SUMIFS(Tab_Uderor[R$],Tab_Uderor[Competencia],Entrada!AD35,Tab_Uderor[TipoReceita],Entrada!$P37) -> 570581.32 | AE37: =SUMIFS(Tab_Uderor[R$],Tab_Uderor[Competencia],Entrada!AE35,Tab_Uderor[TipoReceita],Entrada!$P37) -> 570420.65 | AF37: =SUMIFS(Tab_Uderor[R$],Tab_Uderor[Competencia],Entrada!AF35,Tab_Uderor[TipoReceita],Entrada!$P37) -> 578933.4 | AG37: =SUMIFS(Tab_Uderor[R$],Tab_Uderor[Competencia],Entrada!AG35,Tab_Uderor[TipoReceita],Entrada!$P37) -> 572824.16 | AH37: =SUMIFS(Tab_Uderor[R$],Tab_Uderor[Competencia],Entrada!AH35,Tab_Uderor[TipoReceita],Entrada!$P37) -> 598839.01 | AI37: =SUMIFS(Tab_Uderor[R$],Tab_Uderor[Competencia],Entrada!AI35,Tab_Uderor[TipoReceita],Entrada!$P37) -> 574570.78 | AJ37: =SUMIFS(Tab_Uderor[R$],Tab_Uderor[Competencia],Entrada!AJ35,Tab_Uderor[TipoReceita],Entrada!$P37) -> 560308.58 | AK37: =SUMIFS(Tab_Uderor[R$],Tab_Uderor[Competencia],Entrada!AK35,Tab_Uderor[TipoReceita],Entrada!$P37) -> 429142.69 | AL37: =SUMIFS(Tab_Uderor[R$],Tab_Uderor[Competencia],Entrada!AL35,Tab_Uderor[TipoReceita],Entrada!$P37) -> 567311.32 | AM37: =SUMIFS(Tab_Uderor[R$],Tab_Uderor[Competencia],Entrada!AM35,Tab_Uderor[TipoReceita],Entrada!$P37) -> 607313.76 | AN37: =SUMIFS(Tab_Uderor[R$],Tab_Uderor[Competencia],Entrada!AN35,Tab_Uderor[TipoReceita],Entrada!$P37) -> 604614.86 | AO37: 622645.9416 | AP37: 562253.3678 | AQ37: 540677.7638 | AR37: 541716.632 | AS37: 618581.1369 | AT37: 846288.8855 | AU37: 622366.3994 | AV37: 603696.924 | AW37: 601741.876 | AX37: 596251.1321 | AY37: 666225.733 | AZ37: 651200.3382 | BA37: 608709.9348 | BB37: 593181.6216 | BC37: 563036.8361 | BD37: 543314.482 | BE37: 560849.5327 | BF37: 623977.1556 | BG37: 590432.2603 | BH37: 613697.0937 | BI37: 618071.2203 | BJ37: 686821.3194 | BK37: 697263.3261 | BL37: 700366.992 | BM37: 685062.4204 | BN37: 638729.3066 | BO37: 623898.658 | BP37: 643123.4578 | BQ37: 629820.2265 | BR37: 676570.9546 | BS37: 653802.8497 | BT37: 637684.6185 | BU37: 623804.6319 | BV37: 689857.6147 | BW37: 611775.3555 | BX37: 616163.9936
F38: Mercado AT (MWh) | G38: 922634 | K38: Subtotal | L38: =SUM(L25:L37) -> 67726530.46 | M38: =SUM(M25:M37) -> 70508076.93
F39: Mercado MT (MWh) | G39: 902240 | J39: CONTA SEGUROS | P39: Receitas Irrecuperáveis | Q39: Meses
F40: Mercado BT (MWh) | G40: 1393496 | J40: BMP - 610531001; 610551001; 610533001; 610553001 | K40: Seguros | L40: =SUMIFS(Tab_RIT_BMP[SALDO],Tab_RIT_BMP[CONTA],610531001,Tab_RIT_BMP[ANO],$L$7)+SUMIFS(Tab_RIT_BMP[SALDO],Tab_RIT_BMP[CONTA],610551001,Tab_RIT_BMP[ANO],$L$7)+ SUMIFS(Tab_RIT_BMP[SALDO],Tab_RIT_BMP[CONTA],610533001,Tab_RIT_BMP[ANO],$L$7)+SUMIFS(Tab_RIT_BMP[SALDO],Tab_RIT_BMP[CONTA],610553001,Tab_RIT_BMP[ANO],$L$7) -> 549921.84 | M40: =SUMIFS(Tab_RIT_BMP[SALDO],Tab_RIT_BMP[CONTA],610531001,Tab_RIT_BMP[ANO],$M$7)+SUMIFS(Tab_RIT_BMP[SALDO],Tab_RIT_BMP[CONTA],610551001,Tab_RIT_BMP[ANO],$M$7)+ SUMIFS(Tab_RIT_BMP[SALDO],Tab_RIT_BMP[CONTA],610533001,Tab_RIT_BMP[ANO],$M$7)+SUMIFS(Tab_RIT_BMP[SALDO],Tab_RIT_BMP[CONTA],610553001,Tab_RIT_BMP[ANO],$M$7) -> 692002.46 | P40: Faturamento Total | Q40: 49 | R40: 50 | S40: 51 | T40: 52 | U40: 53 | V40: 54 | W40: 55 | X40: 56 | Y40: 57 | Z40: 58 | AA40: 59 | AB40: 60
F41: Número de unidades consumidoras | G41: 647462 | J41: BMP - 610531099; 610551099; 610533099; 610553099 | K41: Outros | L41: =SUMIFS(Tab_RIT_BMP[SALDO],Tab_RIT_BMP[CONTA],610531099,Tab_RIT_BMP[ANO],$L$7)+SUMIFS(Tab_RIT_BMP[SALDO],Tab_RIT_BMP[CONTA],610551099,Tab_RIT_BMP[ANO],$L$7)+ SUMIFS(Tab_RIT_BMP[SALDO],Tab_RIT_BMP[CONTA],610533099,Tab_RIT_BMP[ANO],$L$7)+SUMIFS(Tab_RIT_BMP[SALDO],Tab_RIT_BMP[CONTA],610553099,Tab_RIT_BMP[ANO],$L$7) -> 0 | M41: =SUMIFS(Tab_RIT_BMP[SALDO],Tab_RIT_BMP[CONTA],610531099,Tab_RIT_BMP[ANO],$M$7)+SUMIFS(Tab_RIT_BMP[SALDO],Tab_RIT_BMP[CONTA],610551099,Tab_RIT_BMP[ANO],$M$7)+ SUMIFS(Tab_RIT_BMP[SALDO],Tab_RIT_BMP[CONTA],610533099,Tab_RIT_BMP[ANO],$M$7)+SUMIFS(Tab_RIT_BMP[SALDO],Tab_RIT_BMP[CONTA],610553099,Tab_RIT_BMP[ANO],$M$7) -> 0 | P41: 1.Residencial | Q41: 62787061.9 | R41: 55844604.93 | S41: 50186614.58 | T41: 55306339.58 | U41: 50986980.65 | V41: 59059916.14 | W41: 61147836.41 | X41: 57322544.25 | Y41: 65239470.53 | Z41: 54327893.86 | AA41: 55586417.61 | AB41: 55437134.29
J42: BMP - 610531010; 610551010; 610533010; 610553010 | K42: (-) Créditos de Tributos Recuperáveis | L42: =SUMIFS(Tab_RIT_BMP[SALDO],Tab_RIT_BMP[CONTA],610531010,Tab_RIT_BMP[ANO],$L$7)+SUMIFS(Tab_RIT_BMP[SALDO],Tab_RIT_BMP[CONTA],610551010,Tab_RIT_BMP[ANO],$L$7)+ SUMIFS(Tab_RIT_BMP[SALDO],Tab_RIT_BMP[CONTA],610533010,Tab_RIT_BMP[ANO],$L$7)+SUMIFS(Tab_RIT_BMP[SALDO],Tab_RIT_BMP[CONTA],610553010,Tab_RIT_BMP[ANO],$L$7) -> 0 | M42: =SUMIFS(Tab_RIT_BMP[SALDO],Tab_RIT_BMP[CONTA],610531010,Tab_RIT_BMP[ANO],$M$7)+SUMIFS(Tab_RIT_BMP[SALDO],Tab_RIT_BMP[CONTA],610551010,Tab_RIT_BMP[ANO],$M$7)+ SUMIFS(Tab_RIT_BMP[SALDO],Tab_RIT_BMP[CONTA],610533010,Tab_RIT_BMP[ANO],$M$7)+SUMIFS(Tab_RIT_BMP[SALDO],Tab_RIT_BMP[CONTA],610553010,Tab_RIT_BMP[ANO],$M$7) -> 0 | P42: 2.Industrial | Q42: 13364400.22 | R42: 13185487.62 | S42: 11896055.35 | T42: 12731251.43 | U42: 12122936.17 | V42: 12087999.19 | W42: 12382988.86 | X42: 10396301.55 | Y42: 12207466.01 | Z42: 11919829.8 | AA42: 11338934.63 | AB42: 11930382.12
F43: OPEX | K43: Subtotal | L43: =SUM(L40:L42) -> 549921.84 | M43: =SUM(M40:M42) -> 692002.46 | P43: 3.Comercial | Q43: 39445867.26 | R43: 36565765.63 | S43: 32640132.87 | T43: 34699145.87 | U43: 32088148.44 | V43: 35332197.12 | W43: 36812948.84 | X43: 31226004.7 | Y43: 37729987.71 | Z43: 33627307.81 | AA43: 33932124.46 | AB43: 35448576.1
F44: Extensão de redes subterrâneas (Km) | G44: 26.88878 | H44: 45007 | J44: CONTA TRIBUTOS | P44: 4.Rural | Q44: 4227603.04 | R44: 3029693.81 | S44: 2221242.26 | T44: 2590807.31 | U44: 2056955.34 | V44: 2350679.61 | W44: 2769323.05 | X44: 3063420.7 | Y44: 4316486.99 | Z44: 3646068.36 | AA44: 3839074.81 | AB44: 3877764.44
F45: Extensão de rede de distribuição aérea (Km) | G45: 26977.72554 | J45: BMP - 6105316; 6105516; 6105336; 6105536 | K45: Tributos | L45: =SUMIFS(Tab_RIT_BMP[SALDO],Tab_RIT_BMP[CONTA],6105316,Tab_RIT_BMP[ANO],$L$7)+SUMIFS(Tab_RIT_BMP[SALDO],Tab_RIT_BMP[CONTA],6105516,Tab_RIT_BMP[ANO],$L$7)+ SUMIFS(Tab_RIT_BMP[SALDO],Tab_RIT_BMP[CONTA],6105336,Tab_RIT_BMP[ANO],$L$7)+SUMIFS(Tab_RIT_BMP[SALDO],Tab_RIT_BMP[CONTA],6105536,Tab_RIT_BMP[ANO],$L$7) -> 701944.37 | M45: =SUMIFS(Tab_RIT_BMP[SALDO],Tab_RIT_BMP[CONTA],6105316,Tab_RIT_BMP[ANO],$M$7)+SUMIFS(Tab_RIT_BMP[SALDO],Tab_RIT_BMP[CONTA],6105516,Tab_RIT_BMP[ANO],$M$7)+ SUMIFS(Tab_RIT_BMP[SALDO],Tab_RIT_BMP[CONTA],6105336,Tab_RIT_BMP[ANO],$M$7)+SUMIFS(Tab_RIT_BMP[SALDO],Tab_RIT_BMP[CONTA],6105536,Tab_RIT_BMP[ANO],$M$7) -> 691341.2 | P45: 5.Poder Público | Q45: 6980435.13 | R45: 6201502.67 | S45: 5611783.09 | T45: 5857306.95 | U45: 5505085.83 | V45: 5931079.68 | W45: 6479779.83 | X45: 6073441.71 | Y45: 4641814.31 | Z45: 8040481.15 | AA45: 5945570.93 | AB45: 5971421.57
F46: Extensão de rede de alta tensão (Km) | G46: 1364.973867 | K46: (+) Créditos de Tributos Recuperáveis | L46: =L45 -> 701944.37 | M46: =M45 -> 691341.2 | P46: 6.Iluminação Pública | Q46: 5293099.93 | R46: 4966462.84 | S46: 4502394.94 | T46: 4932943.86 | U46: 4542076.8 | V46: 4220733.46 | W46: 4820050.95 | X46: 3731647.79 | Y46: 4201216.59 | Z46: 3498548 | AA46: 3885946.65 | AB46: 4108252.06
F47: ="% PNT / BT Real de "&IF(MONTH(LnkTxtDRPData)>6,YEAR(LnkTxtDRPData)-1,YEAR(LnkTxtDRPData)-2) & " (Medido)" -> % PNT / BT Real de 2021 (Medido) | G47: 0.07050339006 | J47: CONTA OUTROS | P47: 7.Serviço Público | Q47: 6567501.29 | R47: 6220442.34 | S47: 5560653.29 | T47: 6043506.23 | U47: 5770032.62 | V47: 5618652.28 | W47: 6034726.61 | X47: 4910872.59 | Y47: 5944664.54 | Z47: 5013668.32 | AA47: 5021792.98 | AB47: 5194533.12
F48: ="% PNT / BT Real de "&IF(MONTH(LnkTxtDRPData)>6,YEAR(LnkTxtDRPData)-1,YEAR(LnkTxtDRPData)-2)-1 & " (Medido)" -> % PNT / BT Real de 2020 (Medido) | G48: 0.0775755225 | J48: BMP - 610531901; 610551901; 610533901; 610553901 | K48: Indenização por Perdas e Danos | L48: =SUMIFS(Tab_RIT_BMP[SALDO],Tab_RIT_BMP[CONTA],610531901,Tab_RIT_BMP[ANO],$L$7)+SUMIFS(Tab_RIT_BMP[SALDO],Tab_RIT_BMP[CONTA],610551901,Tab_RIT_BMP[ANO],$L$7)+ SUMIFS(Tab_RIT_BMP[SALDO],Tab_RIT_BMP[CONTA],610533901,Tab_RIT_BMP[ANO],$L$7)+SUMIFS(Tab_RIT_BMP[SALDO],Tab_RIT_BMP[CONTA],610553901,Tab_RIT_BMP[ANO],$L$7) -> 4824295.28 | M48: =SUMIFS(Tab_RIT_BMP[SALDO],Tab_RIT_BMP[CONTA],610531901,Tab_RIT_BMP[ANO],$M$7)+SUMIFS(Tab_RIT_BMP[SALDO],Tab_RIT_BMP[CONTA],610551901,Tab_RIT_BMP[ANO],$M$7)+ SUMIFS(Tab_RIT_BMP[SALDO],Tab_RIT_BMP[CONTA],610533901,Tab_RIT_BMP[ANO],$M$7)+SUMIFS(Tab_RIT_BMP[SALDO],Tab_RIT_BMP[CONTA],610553901,Tab_RIT_BMP[ANO],$M$7) -> 7576018.65
F49: ="% PNT / BT Real de "&IF(MONTH(LnkTxtDRPData)>6,YEAR(LnkTxtDRPData)-1,YEAR(LnkTxtDRPData)-2)-2 & " (Medido)" -> % PNT / BT Real de 2019 (Medido) | G49: 0.07466957132 | J49: BMP - 610531902; 610551902; 610533902; 610553902 | K49: Consumo Próprio de Energia | L49: =SUMIFS(Tab_RIT_BMP[SALDO],Tab_RIT_BMP[CONTA],610531902,Tab_RIT_BMP[ANO],$L$7)+SUMIFS(Tab_RIT_BMP[SALDO],Tab_RIT_BMP[CONTA],610551902,Tab_RIT_BMP[ANO],$L$7)+ SUMIFS(Tab_RIT_BMP[SALDO],Tab_RIT_BMP[CONTA],610533902,Tab_RIT_BMP[ANO],$L$7)+SUMIFS(Tab_RIT_BMP[SALDO],Tab_RIT_BMP[CONTA],610553902,Tab_RIT_BMP[ANO],$L$7) -> 1871303.59 | M49: =SUMIFS(Tab_RIT_BMP[SALDO],Tab_RIT_BMP[CONTA],610531902,Tab_RIT_BMP[ANO],$M$7)+SUMIFS(Tab_RIT_BMP[SALDO],Tab_RIT_BMP[CONTA],610551902,Tab_RIT_BMP[ANO],$M$7)+ SUMIFS(Tab_RIT_BMP[SALDO],Tab_RIT_BMP[CONTA],610533902,Tab_RIT_BMP[ANO],$M$7)+SUMIFS(Tab_RIT_BMP[SALDO],Tab_RIT_BMP[CONTA],610553902,Tab_RIT_BMP[ANO],$M$7) -> 2411943.62 | P49: Receitas Irrecuperáveis | Q49: Meses
F50: ="DEC Apurado "&IF(MONTH(LnkTxtDRPData)>3,YEAR(LnkTxtDRPData)-1,YEAR(LnkTxtDRPData)-2) -> DEC Apurado 2022 | G50: 9.69 | J50: BMP - 610531905 | K50: Despesas com Conselho de Consumidores | L50: =SUMIFS(Tab_RIT_BMP[SALDO],Tab_RIT_BMP[CONTA],610531905,Tab_RIT_BMP[ANO],$L$7) -> 0 | M50: =SUMIFS(Tab_RIT_BMP[SALDO],Tab_RIT_BMP[CONTA],610531905,Tab_RIT_BMP[ANO],$M$7) -> 0 | P50: Faturamento não recebido até dez do ano anterior | Q50: 49 | R50: 50 | S50: 51 | T50: 52 | U50: 53 | V50: 54 | W50: 55 | X50: 56 | Y50: 57 | Z50: 58 | AA50: 59 | AB50: 60
F51: ="DEC Apurado "&IF(MONTH(LnkTxtDRPData)>3,YEAR(LnkTxtDRPData)-1,YEAR(LnkTxtDRPData)-2)-1 -> DEC Apurado 2021 | G51: 10.55 | J51: BMP - 610531903; 610551903; 610533903; 610553903 | K51: Taxa de Arrecadação | L51: =SUMIFS(Tab_RIT_BMP[SALDO],Tab_RIT_BMP[CONTA],610531903,Tab_RIT_BMP[ANO],$L$7)+SUMIFS(Tab_RIT_BMP[SALDO],Tab_RIT_BMP[CONTA],610551903,Tab_RIT_BMP[ANO],$L$7)+ SUMIFS(Tab_RIT_BMP[SALDO],Tab_RIT_BMP[CONTA],610533903,Tab_RIT_BMP[ANO],$L$7)+SUMIFS(Tab_RIT_BMP[SALDO],Tab_RIT_BMP[CONTA],610553903,Tab_RIT_BMP[ANO],$L$7) -> 0 | M51: =SUMIFS(Tab_RIT_BMP[SALDO],Tab_RIT_BMP[CONTA],610531903,Tab_RIT_BMP[ANO],$M$7)+SUMIFS(Tab_RIT_BMP[SALDO],Tab_RIT_BMP[CONTA],610551903,Tab_RIT_BMP[ANO],$M$7)+ SUMIFS(Tab_RIT_BMP[SALDO],Tab_RIT_BMP[CONTA],610533903,Tab_RIT_BMP[ANO],$M$7)+SUMIFS(Tab_RIT_BMP[SALDO],Tab_RIT_BMP[CONTA],610553903,Tab_RIT_BMP[ANO],$M$7) -> 0 | P51: 1.Residencial | R51: 449724 | S51: 441670 | V51: 475626 | W51: 517595 | X51: 465469 | Y51: 478473 | Z51: 482348 | AB51: 388063
F52: ="DEC Apurado "&IF(MONTH(LnkTxtDRPData)>3,YEAR(LnkTxtDRPData)-1,YEAR(LnkTxtDRPData)-2)-2 -> DEC Apurado 2020 | G52: 10.57 | J52: BMP - 610531904; 610551904; 610533904; 610553904 | K52: Taxas Bancárias | L52: =SUMIFS(Tab_RIT_BMP[SALDO],Tab_RIT_BMP[CONTA],610531904,Tab_RIT_BMP[ANO],$L$7)+SUMIFS(Tab_RIT_BMP[SALDO],Tab_RIT_BMP[CONTA],610551904,Tab_RIT_BMP[ANO],$L$7)+ SUMIFS(Tab_RIT_BMP[SALDO],Tab_RIT_BMP[CONTA],610533904,Tab_RIT_BMP[ANO],$L$7)+SUMIFS(Tab_RIT_BMP[SALDO],Tab_RIT_BMP[CONTA],610553904,Tab_RIT_BMP[ANO],$L$7) -> 0 | M52: =SUMIFS(Tab_RIT_BMP[SALDO],Tab_RIT_BMP[CONTA],610531904,Tab_RIT_BMP[ANO],$M$7)+SUMIFS(Tab_RIT_BMP[SALDO],Tab_RIT_BMP[CONTA],610551904,Tab_RIT_BMP[ANO],$M$7)+ SUMIFS(Tab_RIT_BMP[SALDO],Tab_RIT_BMP[CONTA],610533904,Tab_RIT_BMP[ANO],$M$7)+SUMIFS(Tab_RIT_BMP[SALDO],Tab_RIT_BMP[CONTA],610553904,Tab_RIT_BMP[ANO],$M$7) -> 0 | P52: 2.Industrial | Q52: 21082 | R52: 24584 | S52: 21649 | U52: 22430 | V52: 37384 | W52: 35583 | X52: 17501 | Z52: 16310
F53: Meta de % PNT / BT (Medido) | G53: 0.06844472223 | J53: BMP - 610531910; 610551910; 610533910; 610553910 | K53: (-) Créditos de Tributos Recuperáveis | L53: =SUMIFS(Tab_RIT_BMP[SALDO],Tab_RIT_BMP[CONTA],610531910,Tab_RIT_BMP[ANO],$L$7)+SUMIFS(Tab_RIT_BMP[SALDO],Tab_RIT_BMP[CONTA],610551910,Tab_RIT_BMP[ANO],$L$7)+ SUMIFS(Tab_RIT_BMP[SALDO],Tab_RIT_BMP[CONTA],610533910,Tab_RIT_BMP[ANO],$L$7)+SUMIFS(Tab_RIT_BMP[SALDO],Tab_RIT_BMP[CONTA],610553910,Tab_RIT_BMP[ANO],$L$7) -> 0 | M53: =SUMIFS(Tab_RIT_BMP[SALDO],Tab_RIT_BMP[CONTA],610531910,Tab_RIT_BMP[ANO],$M$7)+SUMIFS(Tab_RIT_BMP[SALDO],Tab_RIT_BMP[CONTA],610551910,Tab_RIT_BMP[ANO],$M$7)+ SUMIFS(Tab_RIT_BMP[SALDO],Tab_RIT_BMP[CONTA],610533910,Tab_RIT_BMP[ANO],$M$7)+SUMIFS(Tab_RIT_BMP[SALDO],Tab_RIT_BMP[CONTA],610553910,Tab_RIT_BMP[ANO],$M$7) -> 0 | P53: 3.Comercial | R53: 53327 | S53: 181101 | T53: 47072 | U53: 105423 | V53: 132876 | W53: 102097 | Y53: 147179 | Z53: 104665 | AA53: 110248 | AB53: 41727
F54: DEC 8 anos (Limite V8) | G54: 0.0799 | K54: Subtotal | L54: =SUM(L48:L53) -> 6695598.87 | M54: =SUM(M48:M53) -> 9987962.27 | P54: 4.Rural | Q54: 12835 | R54: 11981 | S54: 9219 | T54: 7837 | U54: 9838 | V54: 55636 | X54: 17368 | AA54: 8159 | AB54: 7698
J55: Demais | P55: 5.Poder Público | Q55: 19 | R55: 104 | T55: 309 | U55: 217 | W55: 77 | Y55: 308 | Z55: 43
K56: Condenações Trabalhistas | L56: 27220254 | M56: 16681675 | N56: dado da empresa | P56: 6.Iluminação Pública | R56: 2217 | U56: 2809 | V56: 3124 | W56: 2897 | X56: 2760 | AA56: 2443
F57: Dados da última Revisão Tarifária | K57: Gastos com CCEE | L57: 311059 | M57: 305372 | N57: dado da empresa | P57: 7.Serviço Público | U57: 428 | W57: 48 | Y57: 53
F58: Custos Operacionais (CO3) | G58: 210183656 | J58: BMP - 611511401 | K58: Perdas na Alienação e Desativação | L58: =SUMIFS(Tab_RIT_BMP[SALDO],Tab_RIT_BMP[CONTA],611511401,Tab_RIT_BMP[ANO],$L$7) -> 6736555.18 | M58: =SUMIFS(Tab_RIT_BMP[SALDO],Tab_RIT_BMP[CONTA],611511401,Tab_RIT_BMP[ANO],$M$7) -> 6601618.44
F59: Receitas Irrecuperáveis - Encargos Setoriais (Vi) | G59: 575496 | J59: BMP - 611112103 | K59: Ganhos na Alienação de Materiais | L59: =SUMIFS(Tab_RIT_BMP[SALDO],Tab_RIT_BMP[CONTA],611112103,Tab_RIT_BMP[ANO],$L$7) -> -1583771.53 | M59: =SUMIFS(Tab_RIT_BMP[SALDO],Tab_RIT_BMP[CONTA],611112103,Tab_RIT_BMP[ANO],$M$7) -> -1918017.83 | P59: Previsão CCEE | Q59: =DATE(YEAR(LnkTxtDRPData),MONTH(LnkTxtDRPData),DAY(1)) -> 2023-04-01 | R59: =DATE(YEAR(Q59),MONTH(Q59)+1,DAY(1)) -> 2023-05-01 | S59: =DATE(YEAR(R59),MONTH(R59)+1,DAY(1)) -> 2023-06-01 | T59: 2023-07-01 | U59: 2023-08-01 | V59: 2023-09-01 | W59: 2023-10-01 | X59: 2023-11-01 | Y59: 2023-12-01 | Z59: 2024-01-01 | AA59: 2024-02-01 | AB59: 2024-03-01
F60: Demais Receitas Irrecuperáveis (Vse) | G60: 8584214 | P60: GSF | Q60: 0.982 | R60: 0.861 | S60: 0.757 | T60: 0.703 | U60: 0.696 | V60: 0.727 | W60: 0.812 | X60: 0.837 | Y60: 0.879 | Z60: 1.076 | AA60: 1.061 | AB60: 0.958 | AC60: Informa CCEE 31/03/2023 - slide 121 - Projeção de MRE para fins de repactuação de RH
F61: Remuneração do Capital (RC) | G61: 105618602 | P61: PLD | Q61: 69.04 | R61: 69.04 | S61: 69.04 | T61: 69.04 | U61: 69.04 | V61: 69.04 | W61: 69.04 | X61: 69.04 | Y61: 69.04 | Z61: 69.04 | AA61: 69.04 | AB61: 69.04 | AC61: Informa CCEE 31/03/2023 - slide 76 - Projeção do PLD - NE
F62: Quota de Reintegração Regulatória (QRR) | G62: 49318516
F63: Custo anual das instalações móveis e imóveis (CAIMI) | G63: 29345668
F64: Índice de Produtividade (Pd)
F65: Mecanismo de Qualidade (Q) | G65: 0.0102
F66: Outras Receitas (OR) (inserir o valor positivo) | G66: 5085909
F67: Componente T - Última Revisão | G67: 0.0217
F68: Ultrapassagem de Demanda
F69: Excedente de Reativos
F72: Base de Ativos - SFF | G72: 44866
F73: (1) Ativo Imobilizado em Serviço (Valor Novo de Reposição) | G73: 3047080140
F74: (2) Índice de Aproveitamento Integral | G74: 2818839.5
F75: (3) Obrigações Especiais Bruta | G75: 656549758.5
F76: (4) Bens Totalmente Depreciados | G76: 473619580.8
F77: (5) Base de Remuneração Bruta = (1)-(2)-(3)-(4) | G77: =G73-G74-G75-G76 -> 1914091961
F78: (6) Depreciação Acumulada | G78: 1533548053
F79: (7) AIS Líquido (Valor de Mercado em Uso) | G79: =G73-G78 -> 1513532087
F80: (8) Índice de Aproveitamento Depreciado | G80: 2159211.35
F81: (9) Valor da Base de Remuneração (VBR) | G81: =G79-G80 -> 1511372876
F82: (10) Almoxarifado em Operação | G82: 3563492.52
F83: (11) Ativo Diferido | G83: =G104*H83 -> 0
F84: (12) Obrigações Especiais Líquida | G84: 290214922.9
F85: (13) Terrenos e Servidões | G85: 33741642.48
F86: (14) Base de Rem. Líquida Total = (9)+(10)+(11)-(12)+(13) | G86: =G81+G82+G83-G84+G85 -> 1258463088
F87: (15) Saldo RGR PLPT | G87: =G108*F114 -> 0
F88: (16) Saldo RGR Demais Investimentos
F89: (17) Taxa de Depreciação | G89: 0.0407
F90: (18) Quota de Reintegração Regulatória = (5) * (17) | G90: =G89*G77 -> 77903542.81
F93: Base de Ativios - Ciclo anterior
F94: (1) Ativo Imobilizado em Serviço (Valor Novo de Reposição) | G94: 2055984085
F95: (2) Índice de Aproveitamento Integral | G95: 744111
F96: (3) Obrigações Especiais Bruta | G96: 461563435
F97: (4) Bens Totalmente Depreciados | G97: 299227311
F98: (5) Base de Remuneração Bruta = (1)-(2)-(3)-(4) | G98: =G94-G95-G96-G97 -> 1294449228
F99: (6) Depreciação Acumulada | G99: 996735758
F100: (7) AIS Líquido (Valor de Mercado em Uso) | G100: =G94-G99 -> 1059248327
F101: (8) Índice de Aproveitamento Depreciado | G101: 498513
F102: (9) Valor da Base de Remuneração (VBR) | G102: =G100-G101 -> 1058749814
F103: (10) Almoxarifado em Operação | G103: 644978
F104: (11) Ativo Diferido | G104: 0
F105: (12) Obrigações Especiais Líquida | G105: 285924514
F106: (13) Terrenos e Servidões | G106: 23787135
F107: (14) Base de Rem. Líquida Total = (1)-(6)-(8)+(10)+(11)-(12)+(13) | G107: =G102+G103+G104-G105+G106 -> 797257413
F108: (15) Saldo RGR PLPT | G108: 0
F109: (16) Saldo RGR Demais Investimentos | G109: 0
F110: (17) Taxa de Depreciação | G110: 0.0381
F111: (18) Quota de Reintegração Regulatória = (5) * (17) | G111: =G98*G110 -> 49318515.59

Sheet Subvenção Permissionária (hidden)
A1: Cooperativa
S2: Outras Receitas
A3: Cálculo PB | D3: Receita Agregada | K3: Subvenção
A4: UC | D4: Subgrupo | E4: Modalidade | F4: Classe | G4: Mercado TUSD | H4: Tarifa Fio B eco | I4: Receita | K4: Subvenção | R4: OUTRAS RECEITAS (R$) | W4: ='VPB e Fator X - Subvenção'!G163 -> 44805 | X4: ='VPB e Fator X - Subvenção'!H163 -> 44774 | Y4: ='VPB e Fator X - Subvenção'!I163 -> 44743 | Z4: ='VPB e Fator X - Subvenção'!J163 -> 44713 | AA4: ='VPB e Fator X - Subvenção'!K163 -> 44682 | AB4: ='VPB e Fator X - Subvenção'!L163 -> 44652 | AC4: ='VPB e Fator X - Subvenção'!M163 -> 44621 | AD4: ='VPB e Fator X - Subvenção'!N163 -> 44593 | AE4: ='VPB e Fator X - Subvenção'!O163 -> 44562 | AF4: ='VPB e Fator X - Subvenção'!P163 -> 44531 | AG4: ='VPB e Fator X - Subvenção'!Q163 -> 44501 | AH4: ='VPB e Fator X - Subvenção'!R163 -> 44470
A5: Data Base | D5: A3 | E5: Azul | F5: Demanda azul P | I5: =G5*H5 -> 0 | K5: PB COM COOPERATIVA | L5: ='VPB e Fator X - Subvenção'!C26 -> 595972126.2 | R5: Tipo de Receita | Y5: 3 meses antes | Z5: 4 meses antes | AA5: 5 meses antes | AB5: 6 meses antes | AC5: 7 meses antes | AD5: 8 meses antes | AE5: 9 meses antes | AF5: 10 meses antes | AG5: 11 meses antes | AH5: 12 meses antes
A6: (1) Ativo Imobilizado em Serviço (Valor Novo de Reposição) | F6: Demanda azul FP | I6: =G6*H6 -> 0 | K6: PB ORIGINAL SUPRIDORA | L6: =Resultado!D44 -> 612753106.5 | R6: Serviços Cobráveis | V6: Atividade inerente ao serviço
A7: (2) Obrigações Especiais Bruta | F7: Energia TUSD azul | I7: 0 | K7: Diferença | L7: =L5-L6 -> -16780980.32 | R7: Arrecadação de convênios ou valores pela fatura | V7: Atividades acessórias próprias
A8: (3) Bens Totalmente Depreciados | E8: Geração | F8: Demanda Geração | I8: 0 | K8: Receita Agregada | L8: =I24 -> 0 | R8: Arrecadação de faturas de terceiros por estrutura própria
A9: (4) Base de Remuneração Bruta = (1)-(2)-(3) | K9: Subvenção | L9: =L7-L8 -> -16780980.32 | R9: Veiculação de publicidade
A10: (5) Depreciação Acumulada | D10: A4 | E10: Azul | F10: Demanda azul P | I10: 0 | R10: Aluguel ou cessão onerosa de imóveis e espaços físicos
A11: (6) Valor da Base de Remuneração (VBR) | F11: Demanda azul FP | I11: 0 | K11: subvenção de 2016 | R11: Compartilhamento de infraestrutura
A12: (7) Obrigações Especiais Líquida | F12: Energia TUSD azul E | I12: 0 | L12: =L9/L11-1 ->  | R12: Serviços de avaliação técnica e aferição de medidores.
A13: (8) Terrenos e Servidões | E13: Verde | F13: Demanda verde | I13: 0 | R13: Operacionalização de serviço de créditos tributários
A14: (9) Almoxarifado em Operação | F14: Energia TUSD verde EP | I14: 0 | K14: Item | L14: 2023 | M14: Calculo anterior | N14: variação | R14: Elaboração de projeto, construção, operação, manutenção ou reforma de: | V14: Atividades acessórias complementares
A15: (10) Base de Remuneração Líquida Total = (1)-(5)-(7)+(8)+(9) | F15: Energia TUSD verde EFP | I15: 0 | K15: Densidade Cooperativa | L15: =G24/B21 ->  | N15: =L15/M15-1 ->  | R15: (1) redes de distribuição de energia elétrica destinadas à regularização fundiária de interesse específico e ao atendimento dos empreendimentos de múltiplas unidades consumidoras;
A16: (11) Taxa de Depreciação | E16: Geração | F16: Demanda geração | I16: 0 | K16: Densidade Supridora | L16: =(Mercado!C24-Mercado!C17)/(Entrada!G44+Entrada!G45+Entrada!G46) -> 101.0569796 | N16: =L16/M16-1 ->  | R16: (2) redes de energia elétrica destinadas ao acesso dos sistemas de distribuição ou transmissão;
A17: (12) Quota de Reintegração Regulatória | K17: Mercado | L17: =G24 -> 0 | R17: (3) subestações de energia;
A18: (13) Remuneração de Capital (RC) = BRR líq x WACC | D18: BT | E18: Convencional ( B1, B2, B3) | F18: Energia TUSD B | I18: =G18*H18 -> 0 | K18: Km de rede | L18: =B21 -> 0 | R18: (4) instalações elétricas internas de unidades consumidoras;
E19: Branca | F19: Ponta | I19: 0 | R19: (5) banco de capacitores:
B20: Valores | E20: Branca | F20: Fora Ponta | I20: 0 | R20: (6) padrões de entrada de unidades consumidoras atendidas em baixa tensão;
A21: Total de km de rede (linhas e redes de distribuição) | E21: Branca | F21: Intermediário | I21: 0 | R21: (7) sistemas de medição de energia elétrica;
E22: Iluminação | F22: Energia TUSD B4a | I22: 0 | R22: (8) geradores, incluindo-se unidades de microgeração e minigeração distribuída;
F23: Energia TUSD B4b | I23: =G23*H23 -> 0 | R23: (9) sistemas de iluminação pública.
D24: Total Energia | G24: =G7+G12+G14+G15+G18+G22+G23 -> 0 | H24: Receita total | I24: =SUM(I5:I23) -> 0 | R24: Eficientização do consumo de energia elétrica e instalação de cogeração qualificada, desde que não enquadráveis nos projetos de Pesquisa e Desenvolvimento (P&D) ou de Eficiência Energética estabelecidos em lei
D25: Total demanda | G25: =G5+G6+G8+G10+G11+G13+G16 -> 0 | R25: Serviços de comunicação de dados
R26: Serviços de consultoria

Sheet VPB e Fator X - Subvenção (hidden)
B2: Cálculo da Parcela B de Revisão | E2: Anexo II | F2: =Resultado!$D$6 -> 0.008972456795
E3: Anexo I | F3: =Resultado!$D$8 -> -0.03356754261
B5: Parâmetros | E5: Parcela A
B6: Descrição | C6: Valor | E6: Descrição | F6: Valor
B7: Número de anos no Ciclo | C7: =VLOOKUP(0,Dados_Revisao[],4,FALSE) -> 5 | E7: Encagos | F7: =Resultado!D19 -> 191404875.8
B8: Data da Revisão | C8: =CAPA!C10 -> 45038 | E8: Transporte | F8: =Resultado!D29 -> 112358417.9
B9: Data Base Ativos, Consumidores e Mercado da Revisao Anterior | C9: =Entrada!G37 -> 43039 | E9: Energia | F9: =Resultado!D38 -> 642760530.6
B10: Data Base Ativos, Consumidores e Mercado da Revisão Atual | C10: =DATE(YEAR(C8),MONTH(C8)-5,0) -> 44865 | E10: VPA | F10: =Resultado!D39 -> 946523824.2
B11: Número de anos do próximo Ciclo | C11: =VLOOKUP(401,Dados_Revisao[],4,FALSE) -> 5
B12: Formação da Parcela B (resumo)
B13: Descrição | C13: Valor
B14: Custo de Administração, Operação e Manutenção (CAOM) | C14: =SUM(C15:C17) -> 329614340.3
B15: Custos Operacionais (CO) | C15: ='VPB e Fator X'!C15+'VPB e Fator X - Subvenção'!H158 -> 312722803
B16: Receitas Irrecuperáveis - Encargos Setoriais (Vi) | C16: =C204 -> 1173325.268
B17: Demais Receitas Irrecuperáveis (Vse) | C17: =C208 -> 15718212.04
B18: Custo Anual dos Ativos (CAA) | C18: =SUM(C19:C21) -> 282235642.6
B19: Remuneração do Capital (RC) | C19: =C95 -> 159254126.3
B20: Quota de Reintegração Regulatória (QRR) | C20: =C77 -> 80356169.59
B21: Custo anual das instalações móveis e imóveis (CAIMI) | C21: =C67 -> 42625346.72
B22: CAOM + CAA | C22: =C18+C14 -> 611849982.9
B23: Fator de Ajuste do Mercado | C23: =C33 -> 0.004225996072
B24: Mecanismo de Incentivo à Qualidade | C24: =C40 -> -0.008692654435
B25: OR + UD + ER | C25: =D189+D196+D197 -> 18610781.54
B26: VPB | C26: =(1-C23-C24)*C22-C25 -> 595972126.2
B29: Fator X
B31: Fator X
B32: Descrição | C32: Valor
B33: Componente Pd | C33: =0.663%+0.317*(C34-1.521%) -> 0.004225996072
B34: MWhXT-6 | C34: =(POWER(1 + IFERROR(LN(DSUM(MercadoBase,"TUSD_E",C45:C48)/VLOOKUP("AT",TabMercado6[],2,FALSE))*VLOOKUP(CAPA!$C$23,TaBTodososPesos[],2,FALSE),0) + IFERROR(LN(DSUM(MercadoBase,"TUSD_E",D45:D48)/VLOOKUP("MT",TabMercado6[],2,FALSE))*VLOOKUP(CAPA!$C$23,TaBTodososPesos[],3,FALSE),0) + IFERROR(LN(DSUM(MercadoBase,"TUSD_E",E45:E46)/VLOOKUP("BT",TabMercado6[],2,FALSE))*VLOOKUP(CAPA!$C$23,TaBTodososPesos[],4,FALSE),0),1/5) - 1) -> 0.007626391393
B36: Componente T | C36: =(1-(C39/C38)^(1/(C11-1)))*(C38/C37) -> 0.02657432128
B37: VPB | C37: =C26 -> 595972126.2 | E37: Ajuste de Custos Operacionais para Calculo do Componente T
B38: Custos Operacionais | C38: =C121+G41 -> 304607467.5 | E38: Descrição | G38: Valor
B39: Meta de Custos Operacionais | C39: =C120+G41 -> 246028902.2 | E39: Valor de Ajuste da Parcela B [VPB- (CAOM+CAA)] | G39: =C26-C22 -> -15877856.7
B40: Componente Q (Fator de Qualidade) | C40: ='VPB1'!F42 -> -0.008692654435 | E40: Participação dos CO no VPB antes do Ajuste | G40: =C15/C22 -> 0.5111102586
B41: Fator X Revisão | C41: =C33+C36+C40 -> 0.02210766292 | E41: Valor de Ajuste dos Custos Operacionais | G41: =G40*G39 -> -8115335.443
B43: Variação de Mercado e Unidades Consumidoras
B44: Descrição | C44: Mercado AT (MWh) | D44: Mercado MT (MWh) | E44: Mercado BT (MWh) | F44: Total | G44: Unidades Consumidoras
B45: Critérios | C45: Subgrupo | D45: Subgrupo | E45: Subgrupo | F45: - | G45: AnoMes
C46: ="=A1" -> =A1 | D46: ="=A3a" -> =A3a | E46: B | F46: - | G46: =DATE(YEAR(CAPA!C10),MONTH(CAPA!C10)-6,1) -> 44835
C47: ="=A2" -> =A2 | D47: ="=A4" -> =A4 | E47: B | F47: -
C48: ="=A3" -> =A3 | D48: ="=As" -> =As | E48: B | F48: -
B49: Revisão Atual | C49: =DSUM(MercadoBase,"TUSD_E",C45:C48) -> 258072.349 | D49: =DSUM(MercadoBase,"TUSD_E",D45:D48) -> 829436.945 | E49: =DSUM(MercadoBase,"TUSD_E",E45:E46) -> 1792685.716 | F49: =SUM(C49:E49) -> 2880195.01 | G49: =DSUM(MercadoBase,"UC",G45:G46)+'Subvenção Permissionária'!B4 -> 840331
B50: Revisão Anterior | C50: =Entrada!G38 -> 922634 | D50: =Entrada!G39 -> 902240 | E50: =Entrada!G40 -> 1393496 | F50: =SUM(C50:E50) -> 3218370 | G50: =Entrada!G41 -> 647462
B51: Variação | C51: =IFERROR((C49/C50-1),0) -> -0.7202874065 | D51: =IFERROR((D49/D50-1),0) -> -0.08069145128 | E51: =IFERROR((E49/E50-1),0) -> 0.2864663523 | F51: =IFERROR((F49/F50-1),0) -> -0.1050764797 | G51: =IFERROR((G49/G50-1),0) -> 0.2978846635
B52: Peso | C52: =VLOOKUP(201,Dados_Revisao[#Data],4,FALSE) -> 0.06305347491 | D52: =VLOOKUP(202,Dados_Revisao[#Data],4,FALSE) -> 0.2573472868 | E52: =VLOOKUP(203,Dados_Revisao[#Data],4,FALSE) -> 0.6795992383 | F52: 0 | G52: -
B53: Participação na Variação de Mercado | C53: =IFERROR(LN(C49/C50)*C52,0) -> -0.08032966389 | D53: =IFERROR(LN(D49/D50)*D52,0) -> -0.02165151997 | E53: =IFERROR(LN(E49/E50)*E52,0) -> 0.171190503 | F53: =SUM(C53:E53) -> 0.06920931917 | G53: -
B56: Custo Anual do Ativos (CAA)
B58: Custo Anual das Instalações Móveis e Imóveis (CAIMI)
B59: Descrição | C59: Valores
B60: (1) Base de Anuidade Regulatória (BAR) | C60: =2.7159*(Entrada!G7-Entrada!G8+'Subvenção Permissionária'!B6)^(-0.167+1)*(VLOOKUP((DATE(YEAR(CAPA!C10),MONTH(CAPA!C10)-1,1)),Índices!B82:D10000,3,FALSE)/VLOOKUP(DATE(2014,12,1),Índices!B82:D10000,3,FALSE))^0.167 -> 240003048.1
B61: (2) Base de Anuidade - Infraestrutura de imóveis e móveis administrativos (BARA) | C61: =C60*0.45 -> 108001371.6
B62: (3) Base de Anuidade - Veículos (BARV) | C62: =C60*0.12 -> 28800365.77
B63: (4) Base de Anuidade - Sistemas de Informática (BARI) | C63: =C60*0.43 -> 103201310.7
B64: (5) Anuidade - Infraestrutura de imóveis e móveis administrativos (CAL) | C64: =C61*(1/19.5+F81/2) -> 11613771.04
B65: (6) Anuidade - Veículos (CAV) | C65: =C62*(1/7+F81/2) -> 5734401.743
B66: (7) Anuidade - Sistemas de Informática (CAI) | C66: =C63*(1/5.3+F81/2) -> 25277173.94
B67: (8) CAIMI = (5)+(6)+(7) | C67: =SUM(C64:C66) -> 42625346.72
B69: Base de Remuneração Bruta e Quota de Reintegração Regulatória (QRR)
B70: Descrição | C70: Valor
B71: (1) Ativo Imobilizado em Serviço (Valor Novo de Reposição) | C71: =Entrada!G7+'Subvenção Permissionária'!B6 -> 3143010955
B72: (2) Índice de Aproveitamento Integral | C72: =Entrada!G8 -> 2907584.646
B73: (3) Obrigações Especiais Bruta | C73: =Entrada!G9+'Subvenção Permissionária'!B7 -> 677219826.5 | F73: 0.1136 | G73: 0.1108366985 | H73: 0.1063543545
B74: (4) Bens Totalmente Depreciados | C74: =Entrada!G10+'Subvenção Permissionária'!B7 -> 488530482.5 | F74: 0.0135 | G74: 0.02281926149 | H74: 0.02168624234
B75: (5) Base de Remuneração Bruta | C75: =C71-C72-C73-C74 -> 1974353061 | F75: 0.0362 | G75: 0.02281926149 | H75: 0.02168624234
B76: (17) Taxa de Depreciação | C76: =Entrada!G23 -> 0.0407
B77: (18) Quota de Reintegração Regulatória | C77: =C75*C76 -> 80356169.59 | G77: 0.5782 | H77: 0.5183503422
G78: 0.0545 | H78: 0.09120246719
B79: Base de Remuneração Líquida e Remuneração do Capital (RC) | E79: Custo Médio do Capital | I79: Cálculo do Beta (Res. Normativa 473)
B80: Descrição | C80: Valor | E80: Tipo | F80: Valor | G80: Norma | I80: Descrição | J80: Valor
B81: (1) Ativo Imobilizado em Serviço (Valor Novo de Reposição) | C81: =C71 -> 3143010955 | E81: WACC real antes de impostos | F81: ='VPB e Fator X'!F81 -> 0.112503 | G81: ='VPB e Fator X'!G81 -> Despacho n° 829/2023, 24/03/2023 | I81: Depreciação AIS | J81: =SUM(C61/27.9,C62/7,C63/5.3) -> 27457300.28
B82: (6) Depreciação Acumulada | C82: =Entrada!G12+'Subvenção Permissionária'!B10 -> 1581828540 | E82: Taxa RGR/PLPT real | F82: ='VPB e Fator X'!F82 -> 0.000797 | G82: ='VPB e Fator X'!G82 -> Despacho n° 829/2023, 24/03/2023 | I82: Remuneração AIS | J82: =SUM(C61,C62,C63)*(F81/2) -> 13500531.46
B83: (7) AIS Líquido (Valor de Mercado em Uso) | C83: =Entrada!G13+'Subvenção Permissionária'!B6-'Subvenção Permissionária'!B10 -> 1561182415 | E83: Taxa RGR Demais Investimentos | F83: ='VPB e Fator X'!F83 -> 0.000797 | G83: ='VPB e Fator X'!G83 -> Despacho n° 829/2023, 24/03/2023 | I83: Remuneração de Capital Bruta pós pd | J83: =(C95+J82)*Resultado!G30/Resultado!G27 -> 176765170.8
B84: (8) Índice de Aproveitamento Depreciado | C84: =Entrada!G14 -> 2227189.511 | I84: Quota de Reintegração Bruta pós pd | J84: =(C77+J81)*(Resultado!G30/Resultado!G27) -> 110316368.1
B85: (9) Valor da Base de Remuneração (VBR) | C85: =Entrada!G15+'Subvenção Permissionária'!B11 -> 1558955225 | I85: Custo Operacional pós pd | J85: =Resultado!G19*(Resultado!G30/Resultado!G27) -> 337329555.5
B86: (10) Almoxarifado em Operação | C86: =Entrada!G16+'Subvenção Permissionária'!B14 -> 3675681.477 | I86: Outras Receitas (OR) proporcional RCB | J86: =C25*(J83/(J85+J84+J83)) -> 5268545.045
B87: (11) Ativo Diferido | C87: =Entrada!G17 -> 0 | E87: Remuneração sobre Obrigações Especiais | I87: Remuenração de Capital Bruta - OR proporcional | J87: =J83-J86 -> 171496625.7
B88: (12) Obrigações Especiais Líquida | C88: =Entrada!G18+'Subvenção Permissionária'!B7 -> 299351720.3 | E88: Descrição | G88: Valor | I88: Beta | J88: =J87/Resultado!G30 -> 0.2739044396
B89: (13) Terrenos e Servidões | C89: =Entrada!G19+'Subvenção Permissionária'!B13 -> 34803926.08 | E89: CAA-RCOE | G89: =C77+C93+C67 -> 269019760.7
B90: (14) Base de Remuneração Líquida | C90: =C81-C82-C84+C86+C87-C88+C89 -> 1298083112 | E90: CAOM / (CAOM+CAA-RCOE) | G90: =(C14+H158)/(C14+G89+H158) -> 0.5506106982
B91: (15) Saldo RGR PLPT | C91: =Entrada!G21 -> 0 | E91: Obrigações Especiais Bruta (OESb) | G91: =C73 -> 677219826.5
B92: (16) Saldo RGR Demais Investimentos | C92: =Entrada!G22 -> 0 | E92: Custo de Capital Próprio - Nominal (rp) | G92: ='VPB e Fator X'!G92 -> 0.524453
B93: (19) RC sem Obrigações Especiais | C93: =$F$83*$C$92+$C$91*$F$82+($C$90-$C$91-$C$92)*$F$81 -> 146038244.4 | E93: Prêmio de Risco do negócio e financeiro após impostos | G93: ='VPB e Fator X'!G93 -> 0.089205
B94: (20) Remuneração de Obrigações Especiais | C94: =G95 -> 13215881.92 | E94: Impostos e Contribuições sobre a Renda (t) | G94: ='VPB e Fator X'!G94 -> 0.34
B95: (21) Remuneração do Capital (RC) | C95: =C94+C93 -> 159254126.3 | E95: RC Obrigações Especiais | G95: =(G93)/(1-G94)*0.5*G92*G90*G91 -> 13215881.92
B98: Custo de Administração, Operação e Manutenção (CAOM)
B100: Receita de Custos Operacionais no Ano Teste
B101: Descrição | C101: Valor
B102: Receita de Parcela B no Ano Teste (Receita Verificada) | C102: =SUM(INDIRECT("DADOS_MercadoBase[DISTRIBUICAO]")) -> 676224605
B103: Custos Operacionais da Última Revisão com Ajustes | C103: =Entrada!G58*(1-(Entrada!G64+Entrada!G65)) -> 208039782.7
B104: VPB da Última Revisão com Ajustes | C104: =SUM(Entrada!G58:G63)*(1-(Entrada!G64+Entrada!G65))-Entrada!G66-Entrada!G68-Entrada!G69 -> 394423256.2
B105: Componente T da Última Revisão (TRev) | C105: =Entrada!G67 -> 0.0217
B106: Fator (1-TRev)N-1 | C106: =(1-C105)^(C7-1) -> 0.9159846885
B107: Receita de Custos Operacionais no Ano Teste | C107: =(C103-C104*(1-C106))*C102/(C104*C106) -> 327367444.3
B109: Meta e Custos Operacionais Regulaórios | E109: Custos Operacionais Reais (Opex) - Valores Atualizados
B110: Descrição | C110: Valor | F110: =Entrada!L7 -> 2020 | G110: =IF(Entrada!M7=0,2013,Entrada!M7) -> 2021
B111: Custo Operacional no Ano Teste | C111: =C107 -> 327367444.3 | E111: IPCA junho | F111: =VLOOKUP(DATE($F$110,6,1),Índices!$B:$D,3,FALSE) -> 5325.46 | G111: =VLOOKUP(DATE($G$110,6,1),Índices!$B:$D,3,FALSE) -> 5769.98
B112: Limite Superior dos Custos Operacionais Eficientes | C112: =C135 -> 254144237.7 | E112: IPCA dezembro | F112: =VLOOKUP(DATE(F110,12,1),Índices!$B:$F,3,FALSE) -> 5560.59 | G112: =VLOOKUP(DATE(G110,12,1),Índices!$B:$F,3,FALSE) -> 6120.04
B113: Limite Inferior dos Custos Operacionais Eficientes | C113: =C136 -> 213211482.1 | E113: Conta Pessoal | F113: =Entrada!L18*$F$112/$F$111 -> 84591810.18 | G113: =Entrada!M18*$G$112/$G$111 -> 101312232.1
B114: Custo Operacional Eficiente | C114: =MIN(MAX(C111,C113),C112) -> 254144237.7 | E114: Conta Materiais | F114: =Entrada!L23*$F$112/$F$111 -> 13809931.19 | G114: =Entrada!M23*$G$112/$G$111 -> 15736949
B115: Variação Anual dos Custos Operacionais - Sem limite | C115: =((C114/C111)^(1/C11)-1) -> -0.04937560316 | E115: Conta Terceiros | F115: =Entrada!L38*$F$112/$F$111 -> 70716795.92 | G115: =Entrada!M38*$G$112/$G$111 -> 74785744.69
B116: Variação Anual dos Custos Operacionais - Limitada a ±5% | C116: =MIN(ABS(C115),5%)*SIGN(C115) -> -0.04937560316 | E116: Conta Seguros | F116: =Entrada!L43*$F$112/$F$111 -> 574202.019 | G116: =Entrada!M43*$G$112/$G$111 -> 733985.6872
B117: Meta Custos Operacionais sem Compartilhamento | C117: =C111*(1+C116)^C11 -> 254144237.7 | E117: Conta Tributos | F117: =Entrada!L46*$F$112/$F$111 -> 732936.6561 | G117: =Entrada!M46*$G$112/$G$111 -> 733284.3091
B118: Média dos Custos Operacionais Reais (Opex medio) | C118: =(F121+G121)/2 -> 248243858.8 | E118: Conta Outros | F118: =Entrada!L54*$F$112/$F$111 -> 6991223.316 | G118: =Entrada!M54*$G$112/$G$111 -> 10593923.83
B119: Razão entre CO regulatórios Ajustado e Custos Operacionais Reais Médios | C119: =C117/C118 -> 1.023768478 | E119: Demais Custos | F119: =(Entrada!L56+Entrada!L57+Entrada!L58+Entrada!L59)*$F$112/$F$111 -> 34127166.67 | G119: =(Entrada!M56+Entrada!M57+Entrada!M58+Entrada!M59)*$G$112/$G$111 -> 22985388.2
B120: Meta Custos Operacionais Regulatórios | C120: =IF(C119>1.2,(1.2+C119)/2,C119)*C118 -> 254144237.7 | E120: Custo Operacional | F120: =IF(F110=2013,(VLOOKUP(119,Dados_Revisao[#Data],4,FALSE))*1000+F119,SUM(F113:F119)) -> 211544065.9 | G120: =IF(G110=2013,(VLOOKUP(119,Dados_Revisao[#Data],4,FALSE))*1000+G119,SUM(G113:G119)) -> 226881507.8
B121: Custos Operacionais Regulatórios | C121: =C111+(C120-C111)/C11 -> 312722803 | E121: Custo Operacional Atualizado | F121: =F120*C125/F112 -> 251454695.7 | G121: =G120*C125/G112 -> 245033022
B123: Intervalo de Custos Eficientes
B124: Descrição | C124: Valor
B125: Número índice do IPCA no mês anterior à data base da revisão tarifária | C125: =VLOOKUP(DATE(YEAR(C8),MONTH(C8)-1,1),Índices!$B:$F,3,FALSE) -> 6609.67
B126: Número índice do IPCA no mês anterior à data base do cálculo da eficiência | C126: =VLOOKUP(DATE(2016,12,1),Índices!B:D,3,FALSE) -> 4775.7
B127: Custo eficiente estimado na data base do cálculo da eficiência | C127: =(VLOOKUP(106,Dados_Revisao[#Data],4,FALSE)*1000)*C131 -> 132072592.3
B128: Custo eficiente estimado na data da revisão tarifária | C128: =F157 -> 149240791.7
B129: Fator de Atualização (α) | C129: =(C128/C127)*(C125/C126) -> 1.563930976
B130: Referência de eficiência média | C130: =VLOOKUP(104,Dados_Revisao[],4,FALSE) -> 0.786868
B131: Eficiência apurada para a empresa | C131: =VLOOKUP(102,Dados_Revisao[#Data],4,FALSE) -> 0.7159216545
B132: Limite superor do intervalo de eficiência | C132: =VLOOKUP(103,Dados_Revisao[#Data],4,FALSE) -> 0.7792651639
B133: Limite inferior do intervalo de eficiência | C133: =VLOOKUP(101,Dados_Revisao[#Data],4,FALSE) -> 0.6537558437
B134: Custo operacional real usado no estudo de eficiência | C134: =VLOOKUP(105,Dados_Revisao[#Data],4,FALSE)*1000 -> 164088939.2
B135: Limite Superior dos Custos Operacionais Eficientes | C135: =$C$129*(C132/$C$130)*$C$134 -> 254144237.7
B136: Limite Inferior dos Custos Operacionais Eficientes | C136: =$C$129*(C133/$C$130)*$C$134 -> 213211482.1
B138: Custo Eficiente Estimado
B139: Parametros | D139: Valor
B140: Indicador médio de perdas não técnicas (% PNT / BT) | D140: =AVERAGE(Entrada!G47:G49) -> 0.07424949463
B141: Meta (% PNT / BT) | D141: =Entrada!G53 -> 0.06844472223
B142: DEC Global Médio realizado | D142: =AVERAGE(Entrada!G50:G52) -> 10.27
B143: Limite V8 global | D143: =Entrada!G54 -> 0.0799
B144: Peso do Insumo (u) | D144: =VLOOKUP(108,Dados_Revisao[#Data],4,FALSE) -> 5.420667847e-06
B145: Produto | D145: Valor | E145: Peso | F145: Custo (R$) | H145: Custo Operacional agregado pela Permissionária
B146: "Fator de escala" da empresa | D146: =VLOOKUP(107,Dados_Revisao[#Data],4,FALSE) -> 0.002033156948 | E146: 1 | F146: =(E146*D146)*1000/$D$144 -> 375074.9919 | H146: 0
B147: Extensão de redes subterrâneas (Km) | D147: =Entrada!G44 -> 26.88878 | E147: =VLOOKUP(109,Dados_Revisao[#Data],4,FALSE) -> 7.870614569e-06 | F147: 39041.54056 | H147: 0
B148: Extensão de rede de distribuição aérea (Km) | D148: =Entrada!G45 -> 26977.72554 | E148: =VLOOKUP(110,Dados_Revisao[#Data],4,FALSE) -> 3.935307285e-06 | F148: 19585343.14 | G148: ='Subvenção Permissionária'!B21 -> 0 | H148: =(E148*G148)*1000/$D$144 -> 0
B149: Extensão de rede de alta tensão (Km) | D149: =Entrada!G46 -> 1364.973867 | E149: =VLOOKUP(111,Dados_Revisao[#Data],4,FALSE) -> 3.935307285e-06 | F149: 990946.4579 | H149: 0
B150: Número de consumidores | D150: =DSUM(Mercado_Receita!A:AAA,"UC",G45:G46) -> 840331 | E150: =VLOOKUP(112,Dados_Revisao[#Data],4,FALSE) -> 5.337922172e-07 | F150: 82750347.45 | G150: ='Subvenção Permissionária'!B4 -> 0 | H150: =(E150*G150)*1000/$D$144 -> 0
B151: Perdas Não Técnicas Ajustadas (MWh) | D151: =-MAX((D140-D141)*D156,0) -> -10406.13256 | E151: =VLOOKUP(114,Dados_Revisao[#Data],4,FALSE) -> 1.017752071e-06 | F151: =(E151*D151)*1000/$D$144 -> -1953793.013 | H151: 0
B152: Consumidor Hora Interrompido Ajustado (horas) | D152: =-MAX((D142-D143)*D150,0) -> -8563056.923 | E152: =VLOOKUP(115,Dados_Revisao[#Data],4,FALSE) -> 0 | F152: =(E152*D152)*1000/$D$144 -> 0 | H152: 0
B153: Mercado Ponderado (MWh) | D153: =D154*E154+D155*E155+D156*E156 -> 1544946.869 | E153: =VLOOKUP(113,Dados_Revisao[#Data],4,FALSE) -> 1.664985778e-07 | F153: =(E153*D153)*1000/$D$144 -> 47453831.12 | H153: 0
B154: Mercado AT (MWh) | D154: =DSUM(MercadoBase,"TUSD_E",C45:C48) -> 258072.349 | E154: =VLOOKUP(116,Dados_Revisao[#Data],4,FALSE) -> 0.04327690163 | H154: 0
B155: Mercado MT (MWh) | D155: =DSUM(MercadoBase,"TUSD_E",D45:D48) -> 829436.945 | E155: =VLOOKUP(117,Dados_Revisao[#Data],4,FALSE) -> 0.1882437231 | H155: 0
B156: Mercado BT (MWh) | D156: =DSUM(MercadoBase,"TUSD_E",E45:E46) -> 1792685.716 | E156: =VLOOKUP(118,Dados_Revisao[#Data],4,FALSE) -> 0.7684793752 | H156: 0
B157: Custo Eficiente Estimado | F157: =SUM(F146:F153) -> 149240791.7 | H157: =SUM(H147:H156) -> 0
H158: =IFERROR(H157*C125/C126/C130,0) -> 0
B160: Outras Receitas
B162: Outras Receitas (Valor Presente e Média)
D163: Receita Regulatória | E163: Compartilhamento | F163: Média 36 meses | G163: =Entrada!$R$5 -> 2022-09-01 | H163: =DATE(YEAR(G163),MONTH(G163)-1,1) -> 2022-08-01 | I163: 2022-07-01 | J163: 2022-06-01 | K163: 2022-05-01 | L163: 2022-04-01 | M163: 2022-03-01 | N163: 2022-02-01 | O163: 2022-01-01 | P163: 2021-12-01 | Q163: 2021-11-01 | R163: 2021-10-01 | S163: 2021-09-01 | T163: 2021-08-01 | U163: 2021-07-01 | V163: 2021-06-01 | W163: 2021-05-01 | X163: 2021-04-01 | Y163: 2021-03-01 | Z163: 2021-02-01 | AA163: 2021-01-01 | AB163: 2020-12-01 | AC163: 2020-11-01 | AD163: 2020-10-01 | AE163: 2020-09-01 | AF163: 2020-08-01 | AG163: 2020-07-01 | AH163: 2020-06-01 | AI163: 2020-05-01 | AJ163: 2020-04-01 | AK163: 2020-03-01 | AL163: 2020-02-01 | AM163: 2020-01-01 | AN163: 2019-12-01 | AO163: 2019-11-01 | AP163: 2019-10-01
B164: Fator IGP- M | F164: =VLOOKUP(CAPA!C15,Índices!$B$7:$C$626,2,FALSE) -> 1163.359 | G164: =VLOOKUP(EDATE(G163,0),Índices!$B$7:$C$626,2,FALSE) -> 1173.793 | H164: =VLOOKUP(EDATE(H163,0),Índices!$B$7:$C$626,2,FALSE) -> 1185.004 | I164: =VLOOKUP(EDATE(I163,0),Índices!$B$7:$C$626,2,FALSE) -> 1193.337 | J164: =VLOOKUP(EDATE(J163,0),Índices!$B$7:$C$626,2,FALSE) -> 1190.882 | K164: =VLOOKUP(EDATE(K163,0),Índices!$B$7:$C$626,2,FALSE) -> 1183.953 | L164: =VLOOKUP(EDATE(L163,0),Índices!$B$7:$C$626,2,FALSE) -> 1177.809 | M164: =VLOOKUP(EDATE(M163,0),Índices!$B$7:$C$626,2,FALSE) -> 1161.418 | N164: =VLOOKUP(EDATE(N163,0),Índices!$B$7:$C$626,2,FALSE) -> 1141.546 | O164: =VLOOKUP(EDATE(O163,0),Índices!$B$7:$C$626,2,FALSE) -> 1120.999 | P164: =VLOOKUP(EDATE(P163,0),Índices!$B$7:$C$626,2,FALSE) -> 1100.988 | Q164: =VLOOKUP(EDATE(Q163,0),Índices!$B$7:$C$626,2,FALSE) -> 1091.483 | R164: =VLOOKUP(EDATE(R163,0),Índices!$B$7:$C$626,2,FALSE) -> 1091.283 | S164: =VLOOKUP(EDATE(S163,0),Índices!$B$7:$C$626,2,FALSE) -> 1084.312 | T164: =VLOOKUP(EDATE(T163,0),Índices!$B$7:$C$626,2,FALSE) -> 1091.29 | U164: =VLOOKUP(EDATE(U163,0),Índices!$B$7:$C$626,2,FALSE) -> 1084.095 | V164: =VLOOKUP(EDATE(V163,0),Índices!$B$7:$C$626,2,FALSE) -> 1075.733 | W164: =VLOOKUP(EDATE(W163,0),Índices!$B$7:$C$626,2,FALSE) -> 1069.289 | X164: =VLOOKUP(EDATE(X163,0),Índices!$B$7:$C$626,2,FALSE) -> 1027.211 | Y164: =VLOOKUP(EDATE(Y163,0),Índices!$B$7:$C$626,2,FALSE) -> 1011.948 | Z164: =VLOOKUP(EDATE(Z163,0),Índices!$B$7:$C$626,2,FALSE) -> 983.063 | AA164: =VLOOKUP(EDATE(AA163,0),Índices!$B$7:$C$626,2,FALSE) -> 958.844 | AB164: =VLOOKUP(EDATE(AB163,0),Índices!$B$7:$C$626,2,FALSE) -> 934.758 | AC164: =VLOOKUP(EDATE(AC163,0),Índices!$B$7:$C$626,2,FALSE) -> 925.887 | AD164: =VLOOKUP(EDATE(AD163,0),Índices!$B$7:$C$626,2,FALSE) -> 896.505 | AE164: =VLOOKUP(EDATE(AE163,0),Índices!$B$7:$C$626,2,FALSE) -> 868.442 | AF164: =VLOOKUP(EDATE(AF163,0),Índices!$B$7:$C$626,2,FALSE) -> 832.313 | AG164: =VLOOKUP(EDATE(AG163,0),Índices!$B$7:$C$626,2,FALSE) -> 810.083 | AH164: =VLOOKUP(EDATE(AH163,0),Índices!$B$7:$C$626,2,FALSE) -> 792.429 | AI164: =VLOOKUP(EDATE(AI163,0),Índices!$B$7:$C$626,2,FALSE) -> 780.28 | AJ164: =VLOOKUP(EDATE(AJ163,0),Índices!$B$7:$C$626,2,FALSE) -> 778.101 | AK164: =VLOOKUP(EDATE(AK163,0),Índices!$B$7:$C$626,2,FALSE) -> 771.908 | AL164: =VLOOKUP(EDATE(AL163,0),Índices!$B$7:$C$626,2,FALSE) -> 762.423 | AM164: =VLOOKUP(EDATE(AM163,0),Índices!$B$7:$C$626,2,FALSE) -> 762.733 | AN164: =VLOOKUP(EDATE(AN163,0),Índices!$B$7:$C$626,2,FALSE) -> 759.112 | AO164: =VLOOKUP(EDATE(AO163,0),Índices!$B$7:$C$626,2,FALSE) -> 743.558 | AP164: =VLOOKUP(EDATE(AP163,0),Índices!$B$7:$C$626,2,FALSE) -> 741.333
B165: Serviços Cobráveis | D165: =F165*12*E165 -> 1351865.92 | E165: 0.6 | F165: =AVERAGE(G165:AP165) -> 187759.1555 | G165: =(Entrada!Q8+'Subvenção Permissionária'!W6)*$F$164/G$164 -> 94913.11786 | H165: =(Entrada!R8+'Subvenção Permissionária'!X6)*$F$164/H$164 -> 115302.1731 | I165: =(Entrada!S8+'Subvenção Permissionária'!Y6)*$F$164/I$164 -> 143254.8299 | J165: =(Entrada!T8+'Subvenção Permissionária'!Z6)*$F$164/J$164 -> 130170.8498 | K165: =(Entrada!U8+'Subvenção Permissionária'!AA6)*$F$164/K$164 -> 205321.1857 | L165: =(Entrada!V8+'Subvenção Permissionária'!AB6)*$F$164/L$164 -> 222638.2559 | M165: =(Entrada!W8+'Subvenção Permissionária'!AC6)*$F$164/M$164 -> 114331.3455 | N165: =(Entrada!X8+'Subvenção Permissionária'!AD6)*$F$164/N$164 -> 188200.1661 | O165: =(Entrada!Y8+'Subvenção Permissionária'!AE6)*$F$164/O$164 -> 128856.7466 | P165: =(Entrada!Z8+'Subvenção Permissionária'!AF6)*$F$164/P$164 -> 294981.9766 | Q165: =(Entrada!AA8+'Subvenção Permissionária'!AG6)*$F$164/Q$164 -> 109686.6695 | R165: =(Entrada!AB8+'Subvenção Permissionária'!AH6)*$F$164/R$164 -> 129543.4445 | S165: =(Entrada!AC8+'Subvenção Permissionária'!AI6)*$F$164/S$164 -> 203832.8219 | T165: =(Entrada!AD8+'Subvenção Permissionária'!AJ6)*$F$164/T$164 -> 257458.1406 | U165: =(Entrada!AE8+'Subvenção Permissionária'!AK6)*$F$164/U$164 -> 233064.4851 | V165: =(Entrada!AF8+'Subvenção Permissionária'!AL6)*$F$164/V$164 -> 257143.7556 | W165: =(Entrada!AG8+'Subvenção Permissionária'!AM6)*$F$164/W$164 -> 190131.5897 | X165: =(Entrada!AH8+'Subvenção Permissionária'!AN6)*$F$164/X$164 -> 187986.7329 | Y165: =(Entrada!AI8+'Subvenção Permissionária'!AO6)*$F$164/Y$164 -> 214283.7248 | Z165: =(Entrada!AJ8+'Subvenção Permissionária'!AP6)*$F$164/Z$164 -> 141761.7359 | AA165: =(Entrada!AK8+'Subvenção Permissionária'!AQ6)*$F$164/AA$164 -> 175715.0564 | AB165: =(Entrada!AL8+'Subvenção Permissionária'!AR6)*$F$164/AB$164 -> 176817.4429 | AC165: =(Entrada!AM8+'Subvenção Permissionária'!AS6)*$F$164/AC$164 -> 204658.9056 | AD165: =(Entrada!AN8+'Subvenção Permissionária'!AT6)*$F$164/AD$164 -> 262077.2768 | AE165: =(Entrada!AO8+'Subvenção Permissionária'!AU6)*$F$164/AE$164 -> 274510.3098 | AF165: =(Entrada!AP8+'Subvenção Permissionária'!AV6)*$F$164/AF$164 -> 225300.8624 | AG165: =(Entrada!AQ8+'Subvenção Permissionária'!AW6)*$F$164/AG$164 -> 187853.6639 | AH165: =(Entrada!AR8+'Subvenção Permissionária'!AX6)*$F$164/AH$164 -> 134370.9748 | AI165: =(Entrada!AS8+'Subvenção Permissionária'!AY6)*$F$164/AI$164 -> 65903.95636 | AJ165: =(Entrada!AT8+'Subvenção Permissionária'!AZ6)*$F$164/AJ$164 -> 77059.77846 | AK165: =(Entrada!AU8+'Subvenção Permissionária'!BA6)*$F$164/AK$164 -> 250612.6324 | AL165: =(Entrada!AV8+'Subvenção Permissionária'!BB6)*$F$164/AL$164 -> 276030.9907 | AM165: =(Entrada!AW8+'Subvenção Permissionária'!BC6)*$F$164/AM$164 -> 248252.7234 | AN165: =(Entrada!AX8+'Subvenção Permissionária'!BD6)*$F$164/AN$164 -> 290342.7211 | AO165: =(Entrada!AY8+'Subvenção Permissionária'!BE6)*$F$164/AO$164 -> 166261.4334 | AP165: =(Entrada!AZ8+'Subvenção Permissionária'!BF6)*$F$164/AP$164 -> 180697.1231
B166: Arrecadação de convênios ou valores pela fatura | D166: 1295679.193 | E166: 0.6 | F166: =AVERAGE(G166:AP166) -> 179955.4434 | G166: =(Entrada!Q9+'Subvenção Permissionária'!W7)*$F$164/G$164 -> 208899.4805 | H166: =(Entrada!R9+'Subvenção Permissionária'!X7)*$F$164/H$164 -> 211318.2949 | I166: =(Entrada!S9+'Subvenção Permissionária'!Y7)*$F$164/I$164 -> 204414.9561 | J166: =(Entrada!T9+'Subvenção Permissionária'!Z7)*$F$164/J$164 -> 178970.5166 | K166: =(Entrada!U9+'Subvenção Permissionária'!AA7)*$F$164/K$164 -> 195024.4013 | L166: =(Entrada!V9+'Subvenção Permissionária'!AB7)*$F$164/L$164 -> 179444.7593 | M166: =(Entrada!W9+'Subvenção Permissionária'!AC7)*$F$164/M$164 -> 259087.8237 | N166: =(Entrada!X9+'Subvenção Permissionária'!AD7)*$F$164/N$164 -> 144022.596 | O166: =(Entrada!Y9+'Subvenção Permissionária'!AE7)*$F$164/O$164 -> 141457.5236 | P166: =(Entrada!Z9+'Subvenção Permissionária'!AF7)*$F$164/P$164 -> 178719.6089 | Q166: =(Entrada!AA9+'Subvenção Permissionária'!AG7)*$F$164/Q$164 -> 175902.0236 | R166: =(Entrada!AB9+'Subvenção Permissionária'!AH7)*$F$164/R$164 -> 162668.4253 | S166: =(Entrada!AC9+'Subvenção Permissionária'!AI7)*$F$164/S$164 -> 162506.1926 | T166: =(Entrada!AD9+'Subvenção Permissionária'!AJ7)*$F$164/T$164 -> 167359.9096 | U166: =(Entrada!AE9+'Subvenção Permissionária'!AK7)*$F$164/U$164 -> 163900.3649 | V166: =(Entrada!AF9+'Subvenção Permissionária'!AL7)*$F$164/V$164 -> 166997.9868 | W166: =(Entrada!AG9+'Subvenção Permissionária'!AM7)*$F$164/W$164 -> 176415.0728 | X166: =(Entrada!AH9+'Subvenção Permissionária'!AN7)*$F$164/X$164 -> 179504.6772 | Y166: =(Entrada!AI9+'Subvenção Permissionária'!AO7)*$F$164/Y$164 -> 275340.7816 | Z166: =(Entrada!AJ9+'Subvenção Permissionária'!AP7)*$F$164/Z$164 -> 101188.4573 | AA166: =(Entrada!AK9+'Subvenção Permissionária'!AQ7)*$F$164/AA$164 -> 103744.33 | AB166: =(Entrada!AL9+'Subvenção Permissionária'!AR7)*$F$164/AB$164 -> 164454.2193 | AC166: =(Entrada!AM9+'Subvenção Permissionária'!AS7)*$F$164/AC$164 -> 169311.708 | AD166: =(Entrada!AN9+'Subvenção Permissionária'!AT7)*$F$164/AD$164 -> 166167.8615 | AE166: =(Entrada!AO9+'Subvenção Permissionária'!AU7)*$F$164/AE$164 -> 168433.1351 | AF166: =(Entrada!AP9+'Subvenção Permissionária'!AV7)*$F$164/AF$164 -> 184489.3762 | AG166: =(Entrada!AQ9+'Subvenção Permissionária'!AW7)*$F$164/AG$164 -> 150218.9931 | AH166: =(Entrada!AR9+'Subvenção Permissionária'!AX7)*$F$164/AH$164 -> 194588.6314 | AI166: =(Entrada!AS9+'Subvenção Permissionária'!AY7)*$F$164/AI$164 -> 180031.7137 | AJ166: =(Entrada!AT9+'Subvenção Permissionária'!AZ7)*$F$164/AJ$164 -> 198554.0873 | AK166: =(Entrada!AU9+'Subvenção Permissionária'!BA7)*$F$164/AK$164 -> 196968.7441 | AL166: =(Entrada!AV9+'Subvenção Permissionária'!BB7)*$F$164/AL$164 -> 189528.1996 | AM166: =(Entrada!AW9+'Subvenção Permissionária'!BC7)*$F$164/AM$164 -> 208444.551 | AN166: =(Entrada!AX9+'Subvenção Permissionária'!BD7)*$F$164/AN$164 -> 194031.942 | AO166: =(Entrada!AY9+'Subvenção Permissionária'!BE7)*$F$164/AO$164 -> 185936.1876 | AP166: =(Entrada!AZ9+'Subvenção Permissionária'!BF7)*$F$164/AP$164 -> 190348.4301
B167: Arrecadação de faturas de terceiros por estrutura própria | D167: 0 | E167: 0.6 | F167: 0 | G167: =(Entrada!Q10+'Subvenção Permissionária'!W8)*$F$164/G$164 -> 0 | H167: =(Entrada!R10+'Subvenção Permissionária'!X8)*$F$164/H$164 -> 0 | I167: =(Entrada!S10+'Subvenção Permissionária'!Y8)*$F$164/I$164 -> 0 | J167: =(Entrada!T10+'Subvenção Permissionária'!Z8)*$F$164/J$164 -> 0 | K167: =(Entrada!U10+'Subvenção Permissionária'!AA8)*$F$164/K$164 -> 0 | L167: =(Entrada!V10+'Subvenção Permissionária'!AB8)*$F$164/L$164 -> 0 | M167: =(Entrada!W10+'Subvenção Permissionária'!AC8)*$F$164/M$164 -> 0 | N167: =(Entrada!X10+'Subvenção Permissionária'!AD8)*$F$164/N$164 -> 0 | O167: =(Entrada!Y10+'Subvenção Permissionária'!AE8)*$F$164/O$164 -> 0 | P167: =(Entrada!Z10+'Subvenção Permissionária'!AF8)*$F$164/P$164 -> 0 | Q167: =(Entrada!AA10+'Subvenção Permissionária'!AG8)*$F$164/Q$164 -> 0 | R167: =(Entrada!AB10+'Subvenção Permissionária'!AH8)*$F$164/R$164 -> 0 | S167: =(Entrada!AC10+'Subvenção Permissionária'!AI8)*$F$164/S$164 -> 0 | T167: =(Entrada!AD10+'Subvenção Permissionária'!AJ8)*$F$164/T$164 -> 0 | U167: =(Entrada!AE10+'Subvenção Permissionária'!AK8)*$F$164/U$164 -> 0 | V167: =(Entrada!AF10+'Subvenção Permissionária'!AL8)*$F$164/V$164 -> 0 | W167: =(Entrada!AG10+'Subvenção Permissionária'!AM8)*$F$164/W$164 -> 0 | X167: =(Entrada!AH10+'Subvenção Permissionária'!AN8)*$F$164/X$164 -> 0 | Y167: =(Entrada!AI10+'Subvenção Permissionária'!AO8)*$F$164/Y$164 -> 0 | Z167: =(Entrada!AJ10+'Subvenção Permissionária'!AP8)*$F$164/Z$164 -> 0 | AA167: =(Entrada!AK10+'Subvenção Permissionária'!AQ8)*$F$164/AA$164 -> 0 | AB167: =(Entrada!AL10+'Subvenção Permissionária'!AR8)*$F$164/AB$164 -> 0 | AC167: =(Entrada!AM10+'Subvenção Permissionária'!AS8)*$F$164/AC$164 -> 0 | AD167: =(Entrada!AN10+'Subvenção Permissionária'!AT8)*$F$164/AD$164 -> 0 | AE167: =(Entrada!AO10+'Subvenção Permissionária'!AU8)*$F$164/AE$164 -> 0 | AF167: =(Entrada!AP10+'Subvenção Permissionária'!AV8)*$F$164/AF$164 -> 0 | AG167: =(Entrada!AQ10+'Subvenção Permissionária'!AW8)*$F$164/AG$164 -> 0 | AH167: =(Entrada!AR10+'Subvenção Permissionária'!AX8)*$F$164/AH$164 -> 0 | AI167: =(Entrada!AS10+'Subvenção Permissionária'!AY8)*$F$164/AI$164 -> 0 | AJ167: =(Entrada!AT10+'Subvenção Permissionária'!AZ8)*$F$164/AJ$164 -> 0 | AK167: =(Entrada!AU10+'Subvenção Permissionária'!BA8)*$F$164/AK$164 -> 0 | AL167: =(Entrada!AV10+'Subvenção Permissionária'!BB8)*$F$164/AL$164 -> 0 | AM167: =(Entrada!AW10+'Subvenção Permissionária'!BC8)*$F$164/AM$164 -> 0 | AN167: =(Entrada!AX10+'Subvenção Permissionária'!BD8)*$F$164/AN$164 -> 0 | AO167: =(Entrada!AY10+'Subvenção Permissionária'!BE8)*$F$164/AO$164 -> 0 | AP167: =(Entrada!AZ10+'Subvenção Permissionária'!BF8)*$F$164/AP$164 -> 0
B168: Veiculação de publicidade | D168: 0 | E168: 0.6 | F168: 0 | G168: =(Entrada!Q11+'Subvenção Permissionária'!W9)*$F$164/G$164 -> 0 | H168: =(Entrada!R11+'Subvenção Permissionária'!X9)*$F$164/H$164 -> 0 | I168: =(Entrada!S11+'Subvenção Permissionária'!Y9)*$F$164/I$164 -> 0 | J168: =(Entrada!T11+'Subvenção Permissionária'!Z9)*$F$164/J$164 -> 0 | K168: =(Entrada!U11+'Subvenção Permissionária'!AA9)*$F$164/K$164 -> 0 | L168: =(Entrada!V11+'Subvenção Permissionária'!AB9)*$F$164/L$164 -> 0 | M168: =(Entrada!W11+'Subvenção Permissionária'!AC9)*$F$164/M$164 -> 0 | N168: =(Entrada!X11+'Subvenção Permissionária'!AD9)*$F$164/N$164 -> 0 | O168: =(Entrada!Y11+'Subvenção Permissionária'!AE9)*$F$164/O$164 -> 0 | P168: =(Entrada!Z11+'Subvenção Permissionária'!AF9)*$F$164/P$164 -> 0 | Q168: =(Entrada!AA11+'Subvenção Permissionária'!AG9)*$F$164/Q$164 -> 0 | R168: =(Entrada!AB11+'Subvenção Permissionária'!AH9)*$F$164/R$164 -> 0 | S168: =(Entrada!AC11+'Subvenção Permissionária'!AI9)*$F$164/S$164 -> 0 | T168: =(Entrada!AD11+'Subvenção Permissionária'!AJ9)*$F$164/T$164 -> 0 | U168: =(Entrada!AE11+'Subvenção Permissionária'!AK9)*$F$164/U$164 -> 0 | V168: =(Entrada!AF11+'Subvenção Permissionária'!AL9)*$F$164/V$164 -> 0 | W168: =(Entrada!AG11+'Subvenção Permissionária'!AM9)*$F$164/W$164 -> 0 | X168: =(Entrada!AH11+'Subvenção Permissionária'!AN9)*$F$164/X$164 -> 0 | Y168: =(Entrada!AI11+'Subvenção Permissionária'!AO9)*$F$164/Y$164 -> 0 | Z168: =(Entrada!AJ11+'Subvenção Permissionária'!AP9)*$F$164/Z$164 -> 0 | AA168: =(Entrada!AK11+'Subvenção Permissionária'!AQ9)*$F$164/AA$164 -> 0 | AB168: =(Entrada!AL11+'Subvenção Permissionária'!AR9)*$F$164/AB$164 -> 0 | AC168: =(Entrada!AM11+'Subvenção Permissionária'!AS9)*$F$164/AC$164 -> 0 | AD168: =(Entrada!AN11+'Subvenção Permissionária'!AT9)*$F$164/AD$164 -> 0 | AE168: =(Entrada!AO11+'Subvenção Permissionária'!AU9)*$F$164/AE$164 -> 0 | AF168: =(Entrada!AP11+'Subvenção Permissionária'!AV9)*$F$164/AF$164 -> 0 | AG168: =(Entrada!AQ11+'Subvenção Permissionária'!AW9)*$F$164/AG$164 -> 0 | AH168: =(Entrada!AR11+'Subvenção Permissionária'!AX9)*$F$164/AH$164 -> 0 | AI168: =(Entrada!AS11+'Subvenção Permissionária'!AY9)*$F$164/AI$164 -> 0 | AJ168: =(Entrada!AT11+'Subvenção Permissionária'!AZ9)*$F$164/AJ$164 -> 0 | AK168: =(Entrada!AU11+'Subvenção Permissionária'!BA9)*$F$164/AK$164 -> 0 | AL168: =(Entrada!AV11+'Subvenção Permissionária'!BB9)*$F$164/AL$164 -> 0 | AM168: =(Entrada!AW11+'Subvenção Permissionária'!BC9)*$F$164/AM$164 -> 0 | AN168: =(Entrada!AX11+'Subvenção Permissionária'!BD9)*$F$164/AN$164 -> 0 | AO168: =(Entrada!AY11+'Subvenção Permissionária'!BE9)*$F$164/AO$164 -> 0 | AP168: =(Entrada!AZ11+'Subvenção Permissionária'!BF9)*$F$164/AP$164 -> 0
B169: Aluguel ou cessão onerosa de imóveis e espaços físicos | D169: 0 | E169: 0.6 | F169: 0 | G169: =(Entrada!Q12+'Subvenção Permissionária'!W10)*$F$164/G$164 -> 0 | H169: =(Entrada!R12+'Subvenção Permissionária'!X10)*$F$164/H$164 -> 0 | I169: =(Entrada!S12+'Subvenção Permissionária'!Y10)*$F$164/I$164 -> 0 | J169: =(Entrada!T12+'Subvenção Permissionária'!Z10)*$F$164/J$164 -> 0 | K169: =(Entrada!U12+'Subvenção Permissionária'!AA10)*$F$164/K$164 -> 0 | L169: =(Entrada!V12+'Subvenção Permissionária'!AB10)*$F$164/L$164 -> 0 | M169: =(Entrada!W12+'Subvenção Permissionária'!AC10)*$F$164/M$164 -> 0 | N169: =(Entrada!X12+'Subvenção Permissionária'!AD10)*$F$164/N$164 -> 0 | O169: =(Entrada!Y12+'Subvenção Permissionária'!AE10)*$F$164/O$164 -> 0 | P169: =(Entrada!Z12+'Subvenção Permissionária'!AF10)*$F$164/P$164 -> 0 | Q169: =(Entrada!AA12+'Subvenção Permissionária'!AG10)*$F$164/Q$164 -> 0 | R169: =(Entrada!AB12+'Subvenção Permissionária'!AH10)*$F$164/R$164 -> 0 | S169: =(Entrada!AC12+'Subvenção Permissionária'!AI10)*$F$164/S$164 -> 0 | T169: =(Entrada!AD12+'Subvenção Permissionária'!AJ10)*$F$164/T$164 -> 0 | U169: =(Entrada!AE12+'Subvenção Permissionária'!AK10)*$F$164/U$164 -> 0 | V169: =(Entrada!AF12+'Subvenção Permissionária'!AL10)*$F$164/V$164 -> 0 | W169: =(Entrada!AG12+'Subvenção Permissionária'!AM10)*$F$164/W$164 -> 0 | X169: =(Entrada!AH12+'Subvenção Permissionária'!AN10)*$F$164/X$164 -> 0 | Y169: =(Entrada!AI12+'Subvenção Permissionária'!AO10)*$F$164/Y$164 -> 0 | Z169: =(Entrada!AJ12+'Subvenção Permissionária'!AP10)*$F$164/Z$164 -> 0 | AA169: =(Entrada!AK12+'Subvenção Permissionária'!AQ10)*$F$164/AA$164 -> 0 | AB169: =(Entrada!AL12+'Subvenção Permissionária'!AR10)*$F$164/AB$164 -> 0 | AC169: =(Entrada!AM12+'Subvenção Permissionária'!AS10)*$F$164/AC$164 -> 0 | AD169: =(Entrada!AN12+'Subvenção Permissionária'!AT10)*$F$164/AD$164 -> 0 | AE169: =(Entrada!AO12+'Subvenção Permissionária'!AU10)*$F$164/AE$164 -> 0 | AF169: =(Entrada!AP12+'Subvenção Permissionária'!AV10)*$F$164/AF$164 -> 0 | AG169: =(Entrada!AQ12+'Subvenção Permissionária'!AW10)*$F$164/AG$164 -> 0 | AH169: =(Entrada!AR12+'Subvenção Permissionária'!AX10)*$F$164/AH$164 -> 0 | AI169: =(Entrada!AS12+'Subvenção Permissionária'!AY10)*$F$164/AI$164 -> 0 | AJ169: =(Entrada!AT12+'Subvenção Permissionária'!AZ10)*$F$164/AJ$164 -> 0 | AK169: =(Entrada!AU12+'Subvenção Permissionária'!BA10)*$F$164/AK$164 -> 0 | AL169: =(Entrada!AV12+'Subvenção Permissionária'!BB10)*$F$164/AL$164 -> 0 | AM169: =(Entrada!AW12+'Subvenção Permissionária'!BC10)*$F$164/AM$164 -> 0 | AN169: =(Entrada!AX12+'Subvenção Permissionária'!BD10)*$F$164/AN$164 -> 0 | AO169: =(Entrada!AY12+'Subvenção Permissionária'!BE10)*$F$164/AO$164 -> 0 | AP169: =(Entrada!AZ12+'Subvenção Permissionária'!BF10)*$F$164/AP$164 -> 0
B170: Compartilhamento de infraestrutura (Média 24 meses) | D170: =F170*12*E170 -> 9787488.677 | E170: 0.6 | F170: 1359373.427 | G170: =(Entrada!Q13+'Subvenção Permissionária'!W11)*$F$164/G$164 -> 1630220.08 | H170: =(Entrada!R13+'Subvenção Permissionária'!X11)*$F$164/H$164 -> 1596703.257 | I170: =(Entrada!S13+'Subvenção Permissionária'!Y11)*$F$164/I$164 -> 1705225.432 | J170: =(Entrada!T13+'Subvenção Permissionária'!Z11)*$F$164/J$164 -> 1533411.4 | K170: =(Entrada!U13+'Subvenção Permissionária'!AA11)*$F$164/K$164 -> 1512995.695 | L170: =(Entrada!V13+'Subvenção Permissionária'!AB11)*$F$164/L$164 -> 1543784.047 | M170: =(Entrada!W13+'Subvenção Permissionária'!AC11)*$F$164/M$164 -> 1573125.973 | N170: =(Entrada!X13+'Subvenção Permissionária'!AD11)*$F$164/N$164 -> 1560591.71 | O170: =(Entrada!Y13+'Subvenção Permissionária'!AE11)*$F$164/O$164 -> 1516508.033 | P170: =(Entrada!Z13+'Subvenção Permissionária'!AF11)*$F$164/P$164 -> 1517646.241 | Q170: =(Entrada!AA13+'Subvenção Permissionária'!AG11)*$F$164/Q$164 -> 1519150.985 | R170: =(Entrada!AB13+'Subvenção Permissionária'!AH11)*$F$164/R$164 -> 1651202.205 | S170: =(Entrada!AC13+'Subvenção Permissionária'!AI11)*$F$164/S$164 -> 1488697.826 | T170: =(Entrada!AD13+'Subvenção Permissionária'!AJ11)*$F$164/T$164 -> 6024807.851 | U170: =(Entrada!AE13+'Subvenção Permissionária'!AK11)*$F$164/U$164 -> 1553150.857 | V170: =(Entrada!AF13+'Subvenção Permissionária'!AL11)*$F$164/V$164 -> 902158.2666 | W170: =(Entrada!AG13+'Subvenção Permissionária'!AM11)*$F$164/W$164 -> 865450.0823 | X170: =(Entrada!AH13+'Subvenção Permissionária'!AN11)*$F$164/X$164 -> 902938.1799 | Y170: =(Entrada!AI13+'Subvenção Permissionária'!AO11)*$F$164/Y$164 -> 982912.2183 | Z170: =(Entrada!AJ13+'Subvenção Permissionária'!AP11)*$F$164/Z$164 -> 877036.0953 | AA170: =(Entrada!AK13+'Subvenção Permissionária'!AQ11)*$F$164/AA$164 -> 884341.9803 | AB170: =(Entrada!AL13+'Subvenção Permissionária'!AR11)*$F$164/AB$164 -> 855226.5005 | AC170: =(Entrada!AM13+'Subvenção Permissionária'!AS11)*$F$164/AC$164 -> 899070.3299 | AD170: =(Entrada!AN13+'Subvenção Permissionária'!AT11)*$F$164/AD$164 -> 901066.0131 | AE170: =(Entrada!AO13+'Subvenção Permissionária'!AU11)*$F$164/AE$164 -> 790187.825 | AF170: =(Entrada!AP13+'Subvenção Permissionária'!AV11)*$F$164/AF$164 -> 945597.5729 | AG170: =(Entrada!AQ13+'Subvenção Permissionária'!AW11)*$F$164/AG$164 -> 1036968.529 | AH170: =(Entrada!AR13+'Subvenção Permissionária'!AX11)*$F$164/AH$164 -> 920890.2817 | AI170: =(Entrada!AS13+'Subvenção Permissionária'!AY11)*$F$164/AI$164 -> 932606.9034 | AJ170: =(Entrada!AT13+'Subvenção Permissionária'!AZ11)*$F$164/AJ$164 -> 928214.0972 | AK170: =(Entrada!AU13+'Subvenção Permissionária'!BA11)*$F$164/AK$164 -> 973299.4576 | AL170: =(Entrada!AV13+'Subvenção Permissionária'!BB11)*$F$164/AL$164 -> 1362570.299 | AM170: =(Entrada!AW13+'Subvenção Permissionária'!BC11)*$F$164/AM$164 -> 914258.7101 | AN170: =(Entrada!AX13+'Subvenção Permissionária'!BD11)*$F$164/AN$164 -> 1353939.433 | AO170: =(Entrada!AY13+'Subvenção Permissionária'!BE11)*$F$164/AO$164 -> 1383183.437 | AP170: =(Entrada!AZ13+'Subvenção Permissionária'!BF11)*$F$164/AP$164 -> 1398305.581
B171: Serviços de avaliação técnica e aferição de medidores. | D171: 0 | E171: 0.6 | F171: 0 | G171: =(Entrada!Q14+'Subvenção Permissionária'!W12)*$F$164/G$164 -> 0 | H171: =(Entrada!R14+'Subvenção Permissionária'!X12)*$F$164/H$164 -> 0 | I171: =(Entrada!S14+'Subvenção Permissionária'!Y12)*$F$164/I$164 -> 0 | J171: =(Entrada!T14+'Subvenção Permissionária'!Z12)*$F$164/J$164 -> 0 | K171: =(Entrada!U14+'Subvenção Permissionária'!AA12)*$F$164/K$164 -> 0 | L171: =(Entrada!V14+'Subvenção Permissionária'!AB12)*$F$164/L$164 -> 0 | M171: =(Entrada!W14+'Subvenção Permissionária'!AC12)*$F$164/M$164 -> 0 | N171: =(Entrada!X14+'Subvenção Permissionária'!AD12)*$F$164/N$164 -> 0 | O171: =(Entrada!Y14+'Subvenção Permissionária'!AE12)*$F$164/O$164 -> 0 | P171: =(Entrada!Z14+'Subvenção Permissionária'!AF12)*$F$164/P$164 -> 0 | Q171: =(Entrada!AA14+'Subvenção Permissionária'!AG12)*$F$164/Q$164 -> 0 | R171: =(Entrada!AB14+'Subvenção Permissionária'!AH12)*$F$164/R$164 -> 0 | S171: =(Entrada!AC14+'Subvenção Permissionária'!AI12)*$F$164/S$164 -> 0 | T171: =(Entrada!AD14+'Subvenção Permissionária'!AJ12)*$F$164/T$164 -> 0 | U171: =(Entrada!AE14+'Subvenção Permissionária'!AK12)*$F$164/U$164 -> 0 | V171: =(Entrada!AF14+'Subvenção Permissionária'!AL12)*$F$164/V$164 -> 0 | W171: =(Entrada!AG14+'Subvenção Permissionária'!AM12)*$F$164/W$164 -> 0 | X171: =(Entrada!AH14+'Subvenção Permissionária'!AN12)*$F$164/X$164 -> 0 | Y171: =(Entrada!AI14+'Subvenção Permissionária'!AO12)*$F$164/Y$164 -> 0 | Z171: =(Entrada!AJ14+'Subvenção Permissionária'!AP12)*$F$164/Z$164 -> 0 | AA171: =(Entrada!AK14+'Subvenção Permissionária'!AQ12)*$F$164/AA$164 -> 0 | AB171: =(Entrada!AL14+'Subvenção Permissionária'!AR12)*$F$164/AB$164 -> 0 | AC171: =(Entrada!AM14+'Subvenção Permissionária'!AS12)*$F$164/AC$164 -> 0 | AD171: =(Entrada!AN14+'Subvenção Permissionária'!AT12)*$F$164/AD$164 -> 0 | AE171: =(Entrada!AO14+'Subvenção Permissionária'!AU12)*$F$164/AE$164 -> 0 | AF171: =(Entrada!AP14+'Subvenção Permissionária'!AV12)*$F$164/AF$164 -> 0 | AG171: =(Entrada!AQ14+'Subvenção Permissionária'!AW12)*$F$164/AG$164 -> 0 | AH171: =(Entrada!AR14+'Subvenção Permissionária'!AX12)*$F$164/AH$164 -> 0 | AI171: =(Entrada!AS14+'Subvenção Permissionária'!AY12)*$F$164/AI$164 -> 0 | AJ171: =(Entrada!AT14+'Subvenção Permissionária'!AZ12)*$F$164/AJ$164 -> 0 | AK171: =(Entrada!AU14+'Subvenção Permissionária'!BA12)*$F$164/AK$164 -> 0 | AL171: =(Entrada!AV14+'Subvenção Permissionária'!BB12)*$F$164/AL$164 -> 0 | AM171: =(Entrada!AW14+'Subvenção Permissionária'!BC12)*$F$164/AM$164 -> 0 | AN171: =(Entrada!AX14+'Subvenção Permissionária'!BD12)*$F$164/AN$164 -> 0 | AO171: =(Entrada!AY14+'Subvenção Permissionária'!BE12)*$F$164/AO$164 -> 0 | AP171: =(Entrada!AZ14+'Subvenção Permissionária'!BF12)*$F$164/AP$164 -> 0
B172: Operacionalização de serviço de créditos tributários | D172: 0 | E172: 0.6 | F172: 0 | G172: =(Entrada!Q15+'Subvenção Permissionária'!W13)*$F$164/G$164 -> 0 | H172: =(Entrada!R15+'Subvenção Permissionária'!X13)*$F$164/H$164 -> 0 | I172: =(Entrada!S15+'Subvenção Permissionária'!Y13)*$F$164/I$164 -> 0 | J172: =(Entrada!T15+'Subvenção Permissionária'!Z13)*$F$164/J$164 -> 0 | K172: =(Entrada!U15+'Subvenção Permissionária'!AA13)*$F$164/K$164 -> 0 | L172: =(Entrada!V15+'Subvenção Permissionária'!AB13)*$F$164/L$164 -> 0 | M172: =(Entrada!W15+'Subvenção Permissionária'!AC13)*$F$164/M$164 -> 0 | N172: =(Entrada!X15+'Subvenção Permissionária'!AD13)*$F$164/N$164 -> 0 | O172: =(Entrada!Y15+'Subvenção Permissionária'!AE13)*$F$164/O$164 -> 0 | P172: =(Entrada!Z15+'Subvenção Permissionária'!AF13)*$F$164/P$164 -> 0 | Q172: =(Entrada!AA15+'Subvenção Permissionária'!AG13)*$F$164/Q$164 -> 0 | R172: =(Entrada!AB15+'Subvenção Permissionária'!AH13)*$F$164/R$164 -> 0 | S172: =(Entrada!AC15+'Subvenção Permissionária'!AI13)*$F$164/S$164 -> 0 | T172: =(Entrada!AD15+'Subvenção Permissionária'!AJ13)*$F$164/T$164 -> 0 | U172: =(Entrada!AE15+'Subvenção Permissionária'!AK13)*$F$164/U$164 -> 0 | V172: =(Entrada!AF15+'Subvenção Permissionária'!AL13)*$F$164/V$164 -> 0 | W172: =(Entrada!AG15+'Subvenção Permissionária'!AM13)*$F$164/W$164 -> 0 | X172: =(Entrada!AH15+'Subvenção Permissionária'!AN13)*$F$164/X$164 -> 0 | Y172: =(Entrada!AI15+'Subvenção Permissionária'!AO13)*$F$164/Y$164 -> 0 | Z172: =(Entrada!AJ15+'Subvenção Permissionária'!AP13)*$F$164/Z$164 -> 0 | AA172: =(Entrada!AK15+'Subvenção Permissionária'!AQ13)*$F$164/AA$164 -> 0 | AB172: =(Entrada!AL15+'Subvenção Permissionária'!AR13)*$F$164/AB$164 -> 0 | AC172: =(Entrada!AM15+'Subvenção Permissionária'!AS13)*$F$164/AC$164 -> 0 | AD172: =(Entrada!AN15+'Subvenção Permissionária'!AT13)*$F$164/AD$164 -> 0 | AE172: =(Entrada!AO15+'Subvenção Permissionária'!AU13)*$F$164/AE$164 -> 0 | AF172: =(Entrada!AP15+'Subvenção Permissionária'!AV13)*$F$164/AF$164 -> 0 | AG172: =(Entrada!AQ15+'Subvenção Permissionária'!AW13)*$F$164/AG$164 -> 0 | AH172: =(Entrada!AR15+'Subvenção Permissionária'!AX13)*$F$164/AH$164 -> 0 | AI172: =(Entrada!AS15+'Subvenção Permissionária'!AY13)*$F$164/AI$164 -> 0 | AJ172: =(Entrada!AT15+'Subvenção Permissionária'!AZ13)*$F$164/AJ$164 -> 0 | AK172: =(Entrada!AU15+'Subvenção Permissionária'!BA13)*$F$164/AK$164 -> 0 | AL172: =(Entrada!AV15+'Subvenção Permissionária'!BB13)*$F$164/AL$164 -> 0 | AM172: =(Entrada!AW15+'Subvenção Permissionária'!BC13)*$F$164/AM$164 -> 0 | AN172: =(Entrada!AX15+'Subvenção Permissionária'!BD13)*$F$164/AN$164 -> 0 | AO172: =(Entrada!AY15+'Subvenção Permissionária'!BE13)*$F$164/AO$164 -> 0 | AP172: =(Entrada!AZ15+'Subvenção Permissionária'!BF13)*$F$164/AP$164 -> 0
B173: Elaboração de projeto, construção, operação, manutenção ou reforma de: | D173: =SUM(D174:D183) -> 0 | F173: =SUM(F174:F183) -> 0 | G173: 0 | H173: 0 | I173: 0 | J173: 0 | K173: 0 | L173: 0 | M173: 0 | N173: 0 | O173: 0 | P173: 0 | Q173: 0 | R173: 0 | S173: 0 | T173: 0 | U173: 0 | V173: 0 | W173: 0 | X173: 0 | Y173: 0 | Z173: 0 | AA173: 0 | AB173: 0 | AC173: 0 | AD173: 0 | AE173: 0 | AF173: 0 | AG173: 0 | AH173: 0 | AI173: 0 | AJ173: 0 | AK173: 0 | AL173: 0 | AM173: 0 | AN173: 0 | AO173: 0 | AP173: 0
